Workbook

Sheet Maratontaulukot
C1: MIESTEN SUPERPESIKSEN MARATONTAULUKKO 1931-2025 | Q1: MIESTEN PLAY OFF 1986-2025 | AG1: NAISTEN SUPERPESIKSEN MARATONTAULUKKO 1955-2025 | AU1: NAISTEN PLAY OFF 1987-2025 | BK1: MIESTEN YKKÖSPESIKSEN MARATONTAULUKKO 1981-2025 | CA1: NAISTEN YKKÖSPESIKSEN MARATONTAULUKKO 1985–2025 | CQ1: MIESTEN SUOMENSARJAN MARATONTAULUKKO 1945-2025 | DG1: NAISTEN SUOMENSARJAN MARATONTAULUKKO 1978-2025
A2: 2025 | B2: 2024 | C2: JOUKKUE | D2: K | E2: O | F2: 3P | G2: 2P | H2: T | I2: 1P | J2: 0P | L2: JUOKSUT | N2: PIST | O2: V-% | Q2: SARJAVOITOT | R2: Puolivälierät | U2: Välierät | X2: Pronssit | AA2: Finaalit | AE2: 2025 | AF2: 2024 | AG2: JOUKKUE | AH2: K | AI2: O | AJ2: 3P | AK2: 2P | AL2: T | AM2: 1P | AN2: 0P | AP2: JUOKSUT | AR2: PIST | AS2: V-% | AU2: SARJAVOITOT | AV2: Puolivälierät | AY2: Välierät | BB2: Pronssit | BE2: Finaalit | BI2: 2025 | BJ2: 2024 | BK2: JOUKKUE | BL2: K | BM2: O | BN2: 3P | BO2: 2P | BP2: T | BQ2: 1P | BR2: 0P | BT2: JUOKSUT | BV2: PIST | BW2: V-% | BY2: 2025 | BZ2: 2024 | CA2: JOUKKUE | CB2: K | CC2: O | CD2: 3P | CE2: 2P | CF2: T | CG2: 1P | CH2: 0P | CJ2: JUOKSUT | CL2: PIST | CM2: V-% | CO2: 2025 | CP2: 2024 | CQ2: JOUKKUE | CR2: K | CS2: O | CT2: 3P | CU2: 2P | CV2: T | CW2: 1P | CX2: 0P | CZ2: JUOKSUT | DB2: PIST | DC2: V-% | DE2: 2025 | DF2: 2024 | DG2: JOUKKUE | DH2: K | DI2: O | DJ2: 3P | DK2: 2P | DL2: T | DM2: 1P | DN2: 0P | DP2: JUOKSUT | DR2: PIST | DS2: V-%
A3: 1. | B3: 1. | C3: Sotkamon Jymy | D3: 47 | E3: 1208 | F3: 476 | G3: 387 | H3: 20 | I3: 91 | J3: 234 | K3: 10131 | L3: - | M3: 5955 | N3: 2313 | O3: =PRODUCT((F3+G3)/E3) -> 71.4 % | Q3: SEURA | R3: Y | S3: V | T3: V-% | U3: Y | V3: V | W3: V-% | X3: Y | Y3: V | Z3: V-% | AA3: Y | AB3: V | AC3: V-% | AE3: 1. | AF3: 1. | AG3: Lapuan Virkiä | AH3: 59 | AI3: 1125 | AJ3: 375 | AK3: 378 | AL3: 22 | AM3: 76 | AN3: 274 | AO3: 10707 | AP3: - | AQ3: 6546 | AR3: 1979 | AS3: =PRODUCT((AJ3+AK3)/AI3) -> 66.9 % | AU3: SEURA | AV3: Y | AW3: V | AX3: V-% | AY3: Y | AZ3: V | BA3: V-% | BB3: Y | BC3: V | BD3: V-% | BE3: Y | BF3: V | BG3: V-% | BI3: 1. | BJ3: 1. | BK3: Ulvilan Pesä-Veikot | BL3: 25 | BM3: 581 | BN3: 153 | BO3: 152 | BP3: 7 | BQ3: 77 | BR3: 192 | BS3: 3912 | BT3: - | BU3: 3778 | BV3: 847 | BW3: =PRODUCT((BN3+BO3)/BM3) -> 52.5 % | BY3: 1. | BZ3: 1. | CA3: Pesä Ysit | CB3: 16 | CC3: 319 | CD3: 96 | CE3: 93 | CF3: 5 | CG3: 35 | CH3: 90 | CI3: 3594 | CJ3: - | CK3: 2636 | CL3: 514 | CM3: =PRODUCT((CD3+CE3)/CC3) -> 59.2 % | CO3: 1. | CP3: 3. | CQ3: Jokioisten Koetus | CR3: 40 | CS3: 704 | CT3: 204 | CU3: 230 | CV3: 14 | CW3: 32 | CX3: 224 | CY3: 7222 | CZ3: - | DA3: 4749 | DB3: 1118 | DC3: =PRODUCT((CT3+CU3)/CS3) -> 61.6 % | DE3: 1. | DF3: 1. | DG3: Kuusankosken Puhti | DH3: 26 | DI3: 364 | DJ3: 137 | DK3: 118 | DL3: 3 | DM3: 28 | DN3: 78 | DO3: 5002 | DP3: - | DQ3: 2844 | DR3: 678 | DS3: =PRODUCT((DJ3+DK3)/DI3) -> 70.1 % | DU3: =DI3-DJ3-DK3-DL3-DM3-DN3 -> 0
A4: 2. | B4: 2. | C4: Vimpelin Veto | D4: 67 | E4: 1465 | F4: 298 | G4: 526 | H4: 49 | I4: 75 | J4: 517 | K4: 11340 | L4: - | M4: 9179 | N4: 2070 | O4: =PRODUCT((F4+G4)/E4) -> 56.2 % | Q4: Sotkamon Jymy | R4: 37 | S4: 34 | T4: =PRODUCT(S4/R4) -> 91.9 % | U4: 34 | V4: 28 | W4: =PRODUCT(V4/U4) -> 82.4 % | X4: 6 | Y4: 3 | Z4: =PRODUCT(Y4/X4) -> 50.0 % | AA4: 28 | AB4: 20 | AC4: =PRODUCT(AB4/AA4) -> 71.4 % | AE4: 2. | AF4: 2. | AG4: Pesäkarhut | AH4: 31 | AI4: 707 | AJ4: 350 | AK4: 128 | AL4: 0 | AM4: 69 | AN4: 160 | AO4: 6017 | AP4: - | AQ4: 3648 | AR4: 1375 | AS4: =PRODUCT((AJ4+AK4)/AI4) -> 67.6 % | AU4: Lapuan Virkiä | AV4: 35 | AW4: 28 | AX4: =PRODUCT(AW4/AV4) -> 80.0 % | AY4: 29 | AZ4: 20 | BA4: =PRODUCT(AZ4/AY4) -> 69.0 % | BB4: 15 | BC4: 9 | BD4: =PRODUCT(BC4/BB4) -> 60.0 % | BE4: 15 | BF4: 10 | BG4: =PRODUCT(BF4/BE4) -> 66.7 % | BI4: 2. | BJ4: 2. | BK4: Haminan Palloilijat | BL4: 24 | BM4: 532 | BN4: 119 | BO4: 202 | BP4: 10 | BQ4: 45 | BR4: 156 | BS4: 4509 | BT4: - | BU4: 3331 | BV4: 816 | BW4: =PRODUCT((BN4+BO4)/BM4) -> 60.3 % | BY4: 2. | BZ4: 4. | CA4: Tyrnävän Tempaus | CB4: 14 | CC4: 284 | CD4: 112 | CE4: 49 | CF4: 0 | CG4: 38 | CH4: 85 | CI4: 2576 | CJ4: - | CK4: 2232 | CL4: 472 | CM4: =PRODUCT((CD4+CE4)/CC4) -> 56.7 % | CO4: 2. | CP4: 2. | CQ4: Sotkamon Jymy 2 | CR4: 40 | CS4: 713 | CT4: 204 | CU4: 214 | CV4: 17 | CW4: 55 | CX4: 223 | CY4: 7123 | CZ4: - | DA4: 5627 | DB4: 1112 | DC4: =PRODUCT((CT4+CU4)/CS4) -> 58.6 % | DE4: 2. | DF4: 2. | DG4: Haapajärven Pesä-Kiilat | DH4: 25 | DI4: 367 | DJ4: 157 | DK4: 57 | DL4: 0 | DM4: 51 | DN4: 102 | DO4: 4771 | DP4: - | DQ4: 3558 | DR4: 636 | DS4: =PRODUCT((DJ4+DK4)/DI4) -> 58.3 % | DU4: =DI4-DJ4-DK4-DL4-DM4-DN4 -> 0
A5: 3. | B5: 3. | C5: Hyvinkään Tahko | D5: 52 | E5: 1356 | F5: 301 | G5: 449 | H5: 31 | I5: 120 | J5: 455 | K5: 10472 | L5: - | M5: 8742 | N5: 1952 | O5: =PRODUCT((F5+G5)/E5) -> 55.3 % | Q5: Vimpelin Veto | R5: 23 | S5: 16 | T5: =PRODUCT(S5/R5) -> 69.6 % | U5: 16 | V5: 10 | W5: =PRODUCT(V5/U5) -> 62.5 % | X5: 6 | Y5: 4 | Z5: =PRODUCT(Y5/X5) -> 66.7 % | AA5: 10 | AB5: 4 | AC5: =PRODUCT(AB5/AA5) -> 40.0 % | AE5: 3. | AF5: 3. | AG5: Jyväskylän Kirittäret | AH5: 21 | AI5: 479 | AJ5: 292 | AK5: 93 | AL5: 0 | AM5: 38 | AN5: 56 | AO5: 4673 | AP5: - | AQ5: 1849 | AR5: 1100 | AS5: =PRODUCT((AJ5+AK5)/AI5) -> 80.4 % | AU5: Jyväskylän Kirittäret | AV5: 21 | AW5: 18 | AX5: =PRODUCT(AW5/AV5) -> 85.7 % | AY5: 18 | AZ5: 16 | BA5: =PRODUCT(AZ5/AY5) -> 88.9 % | BB5: 2 | BC5: 1 | BD5: =PRODUCT(BC5/BB5) -> 50.0 % | BE5: 16 | BF5: 11 | BG5: =PRODUCT(BF5/BE5) -> 68.8 % | BI5: 3. | BJ5: 3. | BK5: Kempeleen Kiri | BL5: 23 | BM5: 565 | BN5: 154 | BO5: 128 | BP5: 4 | BQ5: 41 | BR5: 238 | BS5: 3667 | BT5: - | BU5: 3535 | BV5: 763 | BW5: =PRODUCT((BN5+BO5)/BM5) -> 49.9 % | BY5: 3. | BZ5: 2. | CA5: Reisjärven Pilke | CB5: 20 | CC5: 346 | CD5: 99 | CE5: 65 | CF5: 2 | CG5: 28 | CH5: 152 | CI5: 3610 | CJ5: - | CK5: 3840 | CL5: 457 | CM5: =PRODUCT((CD5+CE5)/CC5) -> 47.4 % | CO5: 3. | CP5: 1. | CQ5: Helsingin Puna-Mustat | CR5: 39 | CS5: 643 | CT5: 206 | CU5: 209 | CV5: 12 | CW5: 47 | CX5: 169 | CY5: 6977 | CZ5: - | DA5: 4516 | DB5: 1095 | DC5: =PRODUCT((CT5+CU5)/CS5) -> 64.5 % | DE5: 3. | DF5: 3. | DG5: Oulunsalon Vasama | DH5: 20 | DI5: 288 | DJ5: 135 | DK5: 52 | DL5: 2 | DM5: 32 | DN5: 67 | DO5: 3631 | DP5: - | DQ5: 2558 | DR5: 543 | DS5: =PRODUCT((DJ5+DK5)/DI5) -> 64.9 % | DU5: =DI5-DJ5-DK5-DL5-DM5-DN5 -> 0
A6: 4. | B6: 4. | C6: Kouvolan Pallonlyöjät | D6: 63 | E6: 1394 | F6: 219 | G6: 532 | H6: 48 | I6: 88 | J6: 507 | K6: 9647 | L6: - | M6: 8694 | N6: 1857 | O6: =PRODUCT((F6+G6)/E6) -> 53.9 % | Q6: Kiteen Pallo-90 | R6: 28 | S6: 8 | T6: =PRODUCT(S6/R6) -> 28.6 % | U6: 8 | V6: 6 | W6: =PRODUCT(V6/U6) -> 75.0 % | X6: 2 | Y6: 1 | Z6: =PRODUCT(Y6/X6) -> 50.0 % | AA6: 6 | AB6: 3 | AC6: =PRODUCT(AB6/AA6) -> 50.0 % | AE6: 4. | AF6: 4. | AG6: Jyväskylän Kiri | AH6: 49 | AI6: 723 | AJ6: 142 | AK6: 292 | AL6: 16 | AM6: 22 | AN6: 251 | AO6: 8143 | AP6: - | AQ6: 6057 | AR6: 1048 | AS6: =PRODUCT((AJ6+AK6)/AI6) -> 60.0 % | AU6: Jyväskylän Kiri | AV6: 14 | AW6: 8 | AX6: =PRODUCT(AW6/AV6) -> 57.1 % | AY6: 10 | AZ6: 7 | BA6: =PRODUCT(AZ6/AY6) -> 70.0 % | BB6: 3 | BC6: 2 | BD6: =PRODUCT(BC6/BB6) -> 66.7 % | BE6: 7 | BF6: 4 | BG6: =PRODUCT(BF6/BE6) -> 57.1 % | BI6: 4. | BJ6: 4. | BK6: Ylivieskan Kuula | BL6: 24 | BM6: 579 | BN6: 109 | BO6: 110 | BP6: 4 | BQ6: 95 | BR6: 261 | BS6: 3368 | BT6: - | BU6: 4369 | BV6: 654 | BW6: =PRODUCT((BN6+BO6)/BM6) -> 37.8 % | BY6: 4. | BZ6: 3. | CA6: Pesäkarhut 2 | CB6: 17 | CC6: 311 | CD6: 85 | CE6: 72 | CF6: 0 | CG6: 46 | CH6: 108 | CI6: 2404 | CJ6: - | CK6: 2422 | CL6: 445 | CM6: =PRODUCT((CD6+CE6)/CC6) -> 50.5 % | CO6: 4. | CP6: 4. | CQ6: Jyväskylän Lohi | CR6: 33 | CS6: 584 | CT6: 197 | CU6: 207 | CV6: 10 | CW6: 42 | CX6: 128 | CY6: 5668 | CZ6: - | DA6: 3241 | DB6: 1057 | DC6: =PRODUCT((CT6+CU6)/CS6) -> 69.2 % | DE6: 4. | DF6: 5. | DG6: Roihu 2 | DH6: 22 | DI6: 317 | DJ6: 87 | DK6: 88 | DL6: 6 | DM6: 23 | DN6: 113 | DO6: 3818 | DP6: - | DQ6: 3218 | DR6: 466 | DS6: =PRODUCT((DJ6+DK6)/DI6) -> 55.2 % | DU6: =DI6-DJ6-DK6-DL6-DM6-DN6 -> 0
A7: 5. | B7: 5. | C7: Jyväskylän Kiri | D7: 63 | E7: 1300 | F7: 113 | G7: 539 | H7: 56 | I7: 75 | J7: 517 | K7: 9158 | L7: - | M7: 8120 | N7: 1548 | O7: =PRODUCT((F7+G7)/E7) -> 50.2 % | Q7: Imatran Pallo-Veikot | R7: 9 | S7: 5 | T7: =PRODUCT(S7/R7) -> 55.6 % | U7: 5 | V7: 4 | W7: =PRODUCT(V7/U7) -> 80.0 % | X7: 1 | Y7: 0 | Z7: =PRODUCT(Y7/X7) -> 0.0 % | AA7: 4 | AB7: 2 | AC7: =PRODUCT(AB7/AA7) -> 50.0 % | AE7: 5. | AF7: 5. | AG7: Oulun Lippo | AH7: 38 | AI7: 599 | AJ7: 122 | AK7: 194 | AL7: 20 | AM7: 28 | AN7: 235 | AO7: 5514 | AP7: - | AQ7: 5173 | AR7: 802 | AS7: =PRODUCT((AJ7+AK7)/AI7) -> 52.8 % | AU7: Pesäkarhut | AV7: 29 | AW7: 24 | AX7: =PRODUCT(AW7/AV7) -> 82.8 % | AY7: 24 | AZ7: 10 | BA7: =PRODUCT(AZ7/AY7) -> 41.7 % | BB7: 14 | BC7: 10 | BD7: =PRODUCT(BC7/BB7) -> 71.4 % | BE7: 10 | BF7: 3 | BG7: =PRODUCT(BF7/BE7) -> 30.0 % | BI7: 5. | BJ7: 5. | BK7: Kankaanpään Maila | BL7: 15 | BM7: 340 | BN7: 125 | BO7: 111 | BP7: 3 | BQ7: 32 | BR7: 67 | BS7: 2613 | BT7: - | BU7: 1697 | BV7: 632 | BW7: =PRODUCT((BN7+BO7)/BM7) -> 69.4 % | BY7: 5. | BZ7: 5. | CA7: Haminan Palloilijat | CB7: 15 | CC7: 279 | CD7: 89 | CE7: 55 | CF7: 0 | CG7: 32 | CH7: 103 | CI7: 2735 | CJ7: - | CK7: 2752 | CL7: 409 | CM7: =PRODUCT((CD7+CE7)/CC7) -> 51.6 % | CO7: 5. | CP7: 5. | CQ7: Vähänkyrön Viesti | CR7: 34 | CS7: 630 | CT7: 139 | CU7: 274 | CV7: 12 | CW7: 32 | CX7: 173 | CY7: 5960 | CZ7: - | DA7: 4091 | DB7: 1009 | DC7: =PRODUCT((CT7+CU7)/CS7) -> 65.6 % | DE7: 5. | DF7: 7. | DG7: Lapuan Virkiä 2 | DH7: 23 | DI7: 322 | DJ7: 87 | DK7: 82 | DL7: 3 | DM7: 36 | DN7: 114 | DO7: 3664 | DP7: - | DQ7: 3563 | DR7: 464 | DS7: =PRODUCT((DJ7+DK7)/DI7) -> 52.5 % | DU7: =DI7-DJ7-DK7-DL7-DM7-DN7 -> 0
A8: 6. | B8: 6. | C8: Kiteen Pallo-90 | D8: 36 | E8: 1006 | F8: 293 | G8: 248 | H8: 5 | I8: 128 | J8: 332 | K8: 6736 | L8: - | M8: 6187 | N8: 1508 | O8: =PRODUCT((F8+G8)/E8) -> 53.8 % | Q8: Manse PP Edustus | R8: 5 | S8: 5 | T8: =PRODUCT(S8/R8) -> 100.0 % | U8: 5 | V8: 4 | W8: =PRODUCT(V8/U8) -> 80.0 % | X8: 1 | Y8: 0 | Z8: 0.0 % | AA8: 4 | AB8: 2 | AC8: =PRODUCT(AB8/AA8) -> 50.0 % | AE8: 6. | AF8: 8. | AG8: Fera | AH8: 25 | AI8: 565 | AJ8: 148 | AK8: 110 | AL8: 0 | AM8: 69 | AN8: 238 | AO8: 3219 | AP8: - | AQ8: 3697 | AR8: 733 | AS8: =PRODUCT((AJ8+AK8)/AI8) -> 45.7 % | AU8: Manse PP Edustus | AV8: 10 | AW8: 9 | AX8: =PRODUCT(AW8/AV8) -> 90.0 % | AY8: 9 | AZ8: 7 | BA8: =PRODUCT(AZ8/AY8) -> 77.8 % | BB8: 2 | BC8: 1 | BD8: =PRODUCT(BC8/BB8) -> 50.0 % | BE8: 7 | BF8: 3 | BG8: =PRODUCT(BF8/BE8) -> 42.9 % | BI8: 6. | BJ8: 6. | BK8: Puijon Pesis | BL8: 16 | BM8: 381 | BN8: 117 | BO8: 104 | BP8: 0 | BQ8: 66 | BR8: 94 | BS8: 2752 | BT8: - | BU8: 2202 | BV8: 625 | BW8: =PRODUCT((BN8+BO8)/BM8) -> 58.0 % | BY8: 6. | BZ8: 6. | CA8: Pattijoen Urheilijat | CB8: 13 | CC8: 227 | CD8: 83 | CE8: 44 | CF8: 0 | CG8: 18 | CH8: 82 | CI8: 2209 | CJ8: - | CK8: 1978 | CL8: 355 | CM8: =PRODUCT((CD8+CE8)/CC8) -> 55.9 % | CO8: 6. | CP8: 6. | CQ8: Iin Urheilijat | CR8: 42 | CS8: 706 | CT8: 124 | CU8: 262 | CV8: 19 | CW8: 34 | CX8: 267 | CY8: 6058 | CZ8: - | DA8: 5422 | DB8: 949 | DC8: =PRODUCT((CT8+CU8)/CS8) -> 54.7 % | DE8: 6. | DF8: 4. | DG8: Haminan Palloilijat | DH8: 19 | DI8: 260 | DJ8: 96 | DK8: 69 | DL8: 2 | DM8: 20 | DN8: 73 | DO8: 3660 | DP8: - | DQ8: 2220 | DR8: 448 | DS8: =PRODUCT((DJ8+DK8)/DI8) -> 63.5 % | DU8: =DI8-DJ8-DK8-DL8-DM8-DN8 -> 0
A9: 7. | B9: 7. | C9: Imatran Pallo-Veikot | D9: 51 | E9: 1216 | F9: 78 | G9: 496 | H9: 44 | I9: 72 | J9: 526 | K9: 7947 | L9: - | M9: 7993 | N9: 1342 | O9: =PRODUCT((F9+G9)/E9) -> 47.2 % | Q9: Oulun Lippo | R9: 17 | S9: 7 | T9: =PRODUCT(S9/R9) -> 41.2 % | U9: 7 | V9: 3 | W9: =PRODUCT(V9/U9) -> 42.9 % | X9: 4 | Y9: 2 | Z9: =PRODUCT(Y9/X9) -> 50.0 % | AA9: 3 | AB9: 2 | AC9: =PRODUCT(AB9/AA9) -> 66.7 % | AE9: 7. | AF9: 6. | AG9: Viinijärven Urheilijat | AH9: 27 | AI9: 584 | AJ9: 94 | AK9: 181 | AL9: 5 | AM9: 57 | AN9: 247 | AO9: 4541 | AP9: - | AQ9: 4430 | AR9: 706 | AS9: =PRODUCT((AJ9+AK9)/AI9) -> 47.1 % | AU9: Oulun Lippo | AV9: 12 | AW9: 9 | AX9: =PRODUCT(AW9/AV9) -> 75.0 % | AY9: 9 | AZ9: 6 | BA9: =PRODUCT(AZ9/AY9) -> 66.7 % | BB9: 3 | BC9: 2 | BD9: =PRODUCT(BC9/BB9) -> 66.7 % | BE9: 6 | BF9: 2 | BG9: =PRODUCT(BF9/BE9) -> 33.3 % | BI9: 7. | BJ9: 7. | BK9: Imatran Pallo-Veikot | BL9: 14 | BM9: 318 | BN9: 133 | BO9: 64 | BP9: 0 | BQ9: 40 | BR9: 81 | BS9: 2532 | BT9: - | BU9: 1918 | BV9: 567 | BW9: =PRODUCT((BN9+BO9)/BM9) -> 61.9 % | BY9: 7. | BZ9: 8. | CA9: Kajaanin Pallokerho | CB9: 14 | CC9: 245 | CD9: 70 | CE9: 52 | CF9: 0 | CG9: 31 | CH9: 92 | CI9: 2233 | CJ9: - | CK9: 2378 | CL9: 345 | CM9: =PRODUCT((CD9+CE9)/CC9) -> 49.8 % | CO9: 7. | CP9: 7. | CQ9: Vaasan Maila | CR9: 40 | CS9: 562 | CT9: 164 | CU9: 188 | CV9: 13 | CW9: 32 | CX9: 165 | CY9: 5621 | CZ9: - | DA9: 3650 | DB9: 913 | DC9: =PRODUCT((CT9+CU9)/CS9) -> 62.6 % | DE9: 7. | DF9: 6. | DG9: Fera 2 | DH9: 18 | DI9: 270 | DJ9: 97 | DK9: 56 | DL9: 0 | DM9: 36 | DN9: 81 | DO9: 3244 | DP9: - | DQ9: 2840 | DR9: 439 | DS9: =PRODUCT((DJ9+DK9)/DI9) -> 56.7 % | DU9: =DI9-DJ9-DK9-DL9-DM9-DN9 -> 0
A10: 8. | B10: 9. | C10: Pattijoen Urheilijat | D10: 31 | E10: 867 | F10: 239 | G10: 211 | H10: 4 | I10: 123 | J10: 290 | K10: 5654 | L10: - | M10: 5554 | N10: 1266 | O10: =PRODUCT((F10+G10)/E10) -> 51.9 % | Q10: Alajärven Ankkurit | R10: 10 | S10: 6 | T10: =PRODUCT(S10/R10) -> 60.0 % | U10: 6 | V10: 3 | W10: =PRODUCT(V10/U10) -> 50.0 % | X10: 3 | Y10: 1 | Z10: =PRODUCT(Y10/X10) -> 33.3 % | AA10: 3 | AB10: 2 | AC10: =PRODUCT(AB10/AA10) -> 66.7 % | AE10: 8. | AF10: 7. | AG10: Siilinjärven Pesis | AH10: 24 | AI10: 531 | AJ10: 139 | AK10: 111 | AL10: 3 | AM10: 49 | AN10: 229 | AO10: 4434 | AP10: - | AQ10: 4578 | AR10: 691 | AS10: =PRODUCT((AJ10+AK10)/AI10) -> 47.1 % | AU10: Ikaalisten Tarmo | AV10: 4 | AW10: 1 | AX10: =PRODUCT(AW10/AV10) -> 25.0 % | AY10: 3 | AZ10: 1 | BA10: =PRODUCT(AZ10/AY10) -> 33.3 % | BB10: 2 | BC10: 2 | BD10: =PRODUCT(BC10/BB10) -> 100.0 % | BE10: 2 | BF10: 2 | BG10: =PRODUCT(BF10/BE10) -> 100.0 % | BI10: 8. | BJ10: 8. | BK10: Haapajärven Pesä-Kiilat | BL10: 21 | BM10: 481 | BN10: 87 | BO10: 119 | BP10: 2 | BQ10: 64 | BR10: 209 | BS10: 3300 | BT10: - | BU10: 3699 | BV10: 565 | BW10: =PRODUCT((BN10+BO10)/BM10) -> 42.8 % | BY10: 8. | BZ10: 7. | CA10: Hämeenlinnan Paukku | CB10: 14 | CC10: 251 | CD10: 63 | CE10: 54 | CF10: 0 | CG10: 32 | CH10: 102 | CI10: 2342 | CJ10: - | CK10: 2670 | CL10: 329 | CM10: =PRODUCT((CD10+CE10)/CC10) -> 46.6 % | CO10: 8. | CP10: 8. | CQ10: Lahden Mailaveikot | CR10: 42 | CS10: 646 | CT10: 107 | CU10: 230 | CV10: 16 | CW10: 50 | CX10: 243 | CY10: 6941 | CZ10: - | DA10: 6133 | DB10: 847 | DC10: =PRODUCT((CT10+CU10)/CS10) -> 52.2 % | DE10: 8. | DF10: 8. | DG10: Lahden Mailaveikot | DH10: 20 | DI10: 283 | DJ10: 85 | DK10: 69 | DL10: 7 | DM10: 25 | DN10: 97 | DO10: 4271 | DP10: - | DQ10: 3661 | DR10: 425 | DS10: =PRODUCT((DJ10+DK10)/DI10) -> 54.4 % | DU10: =DI10-DJ10-DK10-DL10-DM10-DN10 -> 0
A11: 9. | B11: 8. | C11: Seinäjoen Maila-Jussit | D11: 46 | E11: 1030 | F11: 116 | G11: 410 | H11: 41 | I11: 55 | J11: 408 | K11: 6195 | L11: - | M11: 5884 | N11: =PRODUCT(F11*3+G11*2+H11+I11) -> 1264 | O11: =PRODUCT((F11+G11)/E11) -> 51.1 % | Q11: Joensuun Maila | R11: 17 | S11: 10 | T11: =PRODUCT(S11/R11) -> 58.8 % | U11: 10 | V11: 2 | W11: =PRODUCT(V11/U11) -> 20.0 % | X11: 8 | Y11: 6 | Z11: =PRODUCT(Y11/X11) -> 75.0 % | AA11: 2 | AB11: 2 | AC11: =PRODUCT(AB11/AA11) -> 100.0 % | AE11: 9. | AF11: 9. | AG11: Hyvinkään Tahko | AH11: 40 | AI11: 659 | AJ11: 35 | AK11: 250 | AL11: 22 | AM11: 32 | AN11: 320 | AO11: 6007 | AP11: - | AQ11: 6920 | AR11: 659 | AS11: =PRODUCT((AJ11+AK11)/AI11) -> 43.2 % | AU11: Siilinjärven Pesis | AV11: 17 | AW11: 9 | AX11: =PRODUCT(AW11/AV11) -> 52.9 % | AY11: 9 | AZ11: 4 | BA11: =PRODUCT(AZ11/AY11) -> 44.4 % | BB11: 5 | BC11: 0 | BD11: =PRODUCT(BC11/BB11) -> 0.0 % | BE11: 4 | BF11: 1 | BG11: =PRODUCT(BF11/BE11) -> 25.0 % | BI11: 9. | BJ11: 9. | BK11: Nurmon Jymy | BL11: 18 | BM11: 420 | BN11: 63 | BO11: 148 | BP11: 16 | BQ11: 29 | BR11: 164 | BS11: 3040 | BT11: - | BU11: 2882 | BV11: 530 | BW11: =PRODUCT((BN11+BO11)/BM11) -> 50.2 % | BY11: 9. | BZ11: 9. | CA11: Vähänkyrön Viesti | CB11: 13 | CC11: 225 | CD11: 59 | CE11: 50 | CF11: 2 | CG11: 24 | CH11: 90 | CI11: 2190 | CJ11: - | CK11: 2283 | CL11: 303 | CM11: =PRODUCT((CD11+CE11)/CC11) -> 48.4 % | CO11: 9. | CP11: 9. | CQ11: Muhoksen Pallo-Salamat | CR11: 33 | CS11: 566 | CT11: 140 | CU11: 183 | CV11: 14 | CW11: 32 | CX11: 197 | CY11: 4979 | CZ11: - | DA11: 4163 | DB11: 832 | DC11: =PRODUCT((CT11+CU11)/CS11) -> 57.1 % | DE11: 9. | DF11: 10. | DG11: Turku-Pesis | DH11: 15 | DI11: 223 | DJ11: 87 | DK11: 37 | DL11: 0 | DM11: 25 | DN11: 74 | DO11: 2221 | DP11: - | DQ11: 2026 | DR11: 360 | DS11: =PRODUCT((DJ11+DK11)/DI11) -> 55.6 % | DU11: =DI11-DJ11-DK11-DL11-DM11-DN11 -> 0
A12: 10. | B12: 10. | C12: Oulun Lippo | D12: 35 | E12: 865 | F12: 178 | G12: 262 | H12: 23 | I12: 68 | J12: 334 | K12: 5719 | L12: - | M12: 5390 | N12: =PRODUCT(F12*3+G12*2+H12+I12) -> 1149 | O12: =PRODUCT((F12+G12)/E12) -> 50.9 % | Q12: Hyvinkään Tahko | R12: 33 | S12: 18 | T12: =PRODUCT(S12/R12) -> 54.5 % | U12: 18 | V12: 5 | W12: =PRODUCT(V12/U12) -> 27.8 % | X12: 13 | Y12: 4 | Z12: =PRODUCT(Y12/X12) -> 30.8 % | AA12: 5 | AB12: 1 | AC12: =PRODUCT(AB12/AA12) -> 20.0 % | AE12: 10. | AF12: 10. | AG12: Pesä Ysit | AH12: 21 | AI12: 471 | AJ12: 118 | AK12: 98 | AL12: 0 | AM12: 51 | AN12: 204 | AO12: 3308 | AP12: - | AQ12: 3673 | AR12: 601 | AS12: =PRODUCT((AJ12+AK12)/AI12) -> 45.9 % | AU12: Viinijärven Urheilijat | AV12: 13 | AW12: 4 | AX12: =PRODUCT(AW12/AV12) -> 30.8 % | AY12: 6 | AZ12: 3 | BA12: =PRODUCT(AZ12/AY12) -> 50.0 % | BB12: 3 | BC12: 2 | BD12: =PRODUCT(BC12/BB12) -> 66.7 % | BE12: 4 | BF12: 1 | BG12: =PRODUCT(BF12/BE12) -> 25.0 % | BI12: 10. | BJ12: 10. | BK12: Muhoksen Pallo-Salamat | BL12: 16 | BM12: 380 | BN12: 62 | BO12: 146 | BP12: 8 | BQ12: 24 | BR12: 140 | BS12: 2850 | BT12: - | BU12: 2497 | BV12: 510 | BW12: =PRODUCT((BN12+BO12)/BM12) -> 54.7 % | BY12: 10. | BZ12: 10. | CA12: Roihu | CB12: 10 | CC12: 178 | CD12: 63 | CE12: 42 | CF12: 0 | CG12: 23 | CH12: 50 | CI12: 1737 | CJ12: - | CK12: 1294 | CL12: 296 | CM12: =PRODUCT((CD12+CE12)/CC12) -> 59.0 % | CO12: 10. | CP12: 10. | CQ12: Vimpelin Veto 2 | CR12: 38 | CS12: 622 | CT12: 142 | CU12: 141 | CV12: 10 | CW12: 58 | CX12: 271 | CY12: 5938 | CZ12: - | DA12: 6050 | DB12: 776 | DC12: =PRODUCT((CT12+CU12)/CS12) -> 45.5 % | DE12: 10. | DF12: 9. | DG12: Vimpelin Veto | DH12: 20 | DI12: 260 | DJ12: 57 | DK12: 82 | DL12: 7 | DM12: 11 | DN12: 103 | DO12: 3211 | DP12: - | DQ12: 2887 | DR12: 353 | DS12: =PRODUCT((DJ12+DK12)/DI12) -> 53.5 % | DU12: =DI12-DJ12-DK12-DL12-DM12-DN12 -> 0
A13: 11. | B13: 11. | C13: Kankaanpään Maila | D13: 43 | E13: 1073 | F13: 62 | G13: 378 | H13: 29 | I13: 75 | J13: 529 | K13: 6168 | L13: - | M13: 7911 | N13: 1046 | O13: =PRODUCT((F13+G13)/E13) -> 41.0 % | Q13: Pattijoen Urheilijat | R13: 24 | S13: 10 | T13: =PRODUCT(S13/R13) -> 41.7 % | U13: 10 | V13: 3 | W13: =PRODUCT(V13/U13) -> 30.0 % | X13: 7 | Y13: 3 | Z13: =PRODUCT(Y13/X13) -> 42.9 % | AA13: 3 | AB13: 1 | AC13: =PRODUCT(AB13/AA13) -> 33.3 % | AE13: 11. | AF13: 12. | AG13: Seinäjoen Maila-Jussit | AH13: 23 | AI13: 424 | AJ13: 86 | AK13: 137 | AL13: 8 | AM13: 31 | AN13: 162 | AO13: 3187 | AP13: - | AQ13: 3225 | AR13: 571 | AS13: =PRODUCT((AJ13+AK13)/AI13) -> 52.6 % | AU13: Vihdin Pallo | AV13: 11 | AW13: 6 | AX13: =PRODUCT(AW13/AV13) -> 54.5 % | AY13: 7 | AZ13: 2 | BA13: =PRODUCT(AZ13/AY13) -> 28.6 % | BB13: 5 | BC13: 2 | BD13: =PRODUCT(BC13/BB13) -> 40.0 % | BE13: 2 | BF13: 1 | BG13: =PRODUCT(BF13/BE13) -> 50.0 % | BI13: 11. | BJ13: 11. | BK13: Vimpelin Veto | BL13: 10 | BM13: 234 | BN13: 77 | BO13: 79 | BP13: 0 | BQ13: 13 | BR13: 65 | BS13: 1977 | BT13: - | BU13: 1316 | BV13: 402 | BW13: =PRODUCT((BN13+BO13)/BM13) -> 66.7 % | BY13: 11. | BZ13: 11. | CA13: Seinäjoen Maila-Jussit | CB13: 9 | CC13: 166 | CD13: 54 | CE13: 57 | CF13: 2 | CG13: 17 | CH13: 36 | CI13: 2057 | CJ13: - | CK13: 1312 | CL13: 295 | CM13: =PRODUCT((CD13+CE13)/CC13) -> 66.9 % | CO13: 11. | CP13: 11. | CQ13: Kauhajoen Karhu | CR13: 42 | CS13: 638 | CT13: 40 | CU13: 257 | CV13: 25 | CW13: 14 | CX13: 302 | CY13: 4968 | CZ13: - | DA13: 4876 | DB13: 673 | DC13: =PRODUCT((CT13+CU13)/CS13) -> 46.6 % | DE13: 11. | DF13: 15. | DG13: Pesä Ysit 2 | DH13: 17 | DI13: 240 | DJ13: 67 | DK13: 51 | DL13: 2 | DM13: 34 | DN13: 86 | DO13: 3022 | DP13: - | DQ13: 2825 | DR13: 339 | DS13: =PRODUCT((DJ13+DK13)/DI13) -> 49.2 % | DU13: =DI13-DJ13-DK13-DL13-DM13-DN13 -> 0
A14: 12. | B14: 12. | C14: Alajärven Ankkurit | D14: 37 | E14: 953 | F14: 89 | G14: 336 | H14: 26 | I14: 77 | J14: 425 | K14: 6208 | L14: - | M14: 6891 | N14: 1042 | O14: =PRODUCT((F14+G14)/E14) -> 44.6 % | Q14: Seinäjoen Maila-Jussit | R14: 15 | S14: 7 | T14: =PRODUCT(S14/R14) -> 46.7 % | U14: 7 | V14: 2 | W14: =PRODUCT(V14/U14) -> 28.6 % | X14: 5 | Y14: 5 | Z14: =PRODUCT(Y14/X14) -> 100.0 % | AA14: 2 | AB14: 1 | AC14: =PRODUCT(AB14/AA14) -> 50.0 % | AE14: 12. | AF14: 11. | AG14: Vihdin Pallo | AH14: 19 | AI14: 434 | AJ14: 102 | AK14: 112 | AL14: 6 | AM14: 35 | AN14: 179 | AO14: 3517 | AP14: - | AQ14: 3678 | AR14: 571 | AS14: =PRODUCT((AJ14+AK14)/AI14) -> 49.3 % | AU14: Pattijoen Urheilijat | AV14: 3 | AW14: 3 | AX14: =PRODUCT(AW14/AV14) -> 100.0 % | AY14: 3 | AZ14: 1 | BA14: =PRODUCT(AZ14/AY14) -> 33.3 % | BB14: 2 | BC14: 0 | BD14: =PRODUCT(BC14/BB14) -> 0.0 % | BE14: 1 | BF14: 1 | BG14: =PRODUCT(BF14/BE14) -> 100.0 % | BI14: 12. | BJ14: 12. | BK14: Alajärven Ankkurit | BL14: 11 | BM14: 235 | BN14: 83 | BO14: 61 | BP14: 0 | BQ14: 28 | BR14: 63 | BS14: 1832 | BT14: - | BU14: 1423 | BV14: 399 | BW14: =PRODUCT((BN14+BO14)/BM14) -> 61.3 % | BY14: 12. | BZ14: 14. | CA14: Jyväskylän Kirittäret 2 | CB14: 14 | CC14: 242 | CD14: 59 | CE14: 37 | CF14: 0 | CG14: 36 | CH14: 110 | CI14: 1937 | CJ14: - | CK14: 2226 | CL14: 287 | CM14: =PRODUCT((CD14+CE14)/CC14) -> 39.7 % | CO14: 12. | CP14: 12. | CQ14: Vihdin Pallo | CR14: 24 | CS14: 442 | CT14: 129 | CU14: 107 | CV14: 3 | CW14: 58 | CX14: 145 | CY14: 3965 | CZ14: - | DA14: 3735 | DB14: 662 | DC14: =PRODUCT((CT14+CU14)/CS14) -> 53.4 % | DE14: 12. | DF14: 11. | DG14: Pattijoen Urheilijat | DH14: 15 | DI14: 222 | DJ14: 73 | DK14: 46 | DL14: 2 | DM14: 15 | DN14: 86 | DO14: 2559 | DP14: - | DQ14: 1986 | DR14: 328 | DS14: =PRODUCT((DJ14+DK14)/DI14) -> 53.6 % | DU14: =DI14-DJ14-DK14-DL14-DM14-DN14 -> 0
A15: 13. | B15: 13. | C15: Joensuun Maila | D15: 22 | E15: 613 | F15: 207 | G15: 148 | H15: 0 | I15: 81 | J15: 177 | K15: 4391 | L15: - | M15: 3713 | N15: 998 | O15: =PRODUCT((F15+G15)/E15) -> 57.9 % | Q15: Kouvolan Pallonlyöjät | R15: 17 | S15: 12 | T15: =PRODUCT(S15/R15) -> 70.6 % | U15: 12 | V15: 5 | W15: =PRODUCT(V15/U15) -> 41.7 % | X15: 7 | Y15: 3 | Z15: =PRODUCT(Y15/X15) -> 42.9 % | AA15: 5 | AB15: 0 | AC15: =PRODUCT(AB15/AA15) -> 0.0 % | AE15: 13. | AF15: 13. | AG15: Roihu | AH15: 34 | AI15: 613 | AJ15: 29 | AK15: 209 | AL15: 10 | AM15: 24 | AN15: 341 | AO15: 5069 | AP15: - | AQ15: 6160 | AR15: 539 | AS15: =PRODUCT((AJ15+AK15)/AI15) -> 38.8 % | AU15: Pesä Ysit | AV15: 14 | AW15: 6 | AX15: =PRODUCT(AW15/AV15) -> 42.9 % | AY15: 6 | AZ15: 1 | BA15: =PRODUCT(AZ15/AY15) -> 16.7 % | BB15: 5 | BC15: 1 | BD15: =PRODUCT(BC15/BB15) -> 20.0 % | BE15: 1 | BF15: 0 | BG15: =PRODUCT(BF15/BE15) -> 0.0 % | BI15: 13. | BJ15: 13. | BK15: Kouvolan Pallonlyöjät | BL15: 9 | BM15: 214 | BN15: 80 | BO15: 60 | BP15: 3 | BQ15: 18 | BR15: 53 | BS15: 1759 | BT15: - | BU15: 1165 | BV15: 381 | BW15: =PRODUCT((BN15+BO15)/BM15) -> 65.4 % | BY15: 13. | BZ15: 12. | CA15: Fera | CB15: 8 | CC15: 171 | CD15: 70 | CE15: 26 | CF15: 2 | CG15: 21 | CH15: 52 | CI15: 1770 | CJ15: - | CK15: 1537 | CL15: 285 | CM15: =PRODUCT((CD15+CE15)/CC15) -> 56.1 % | CO15: 13. | CP15: 13. | CQ15: Puurtilan Kisa-Pojat | CR15: 31 | CS15: 507 | CT15: 71 | CU15: 203 | CV15: 10 | CW15: 30 | CX15: 193 | CY15: 4601 | CZ15: - | DA15: 3991 | DB15: 659 | DC15: =PRODUCT((CT15+CU15)/CS15) -> 54.0 % | DE15: 13. | DF15: 12. | DG15: Seinäjoen Maila-Jussit 2 | DH15: 14 | DI15: 210 | DJ15: 68 | DK15: 53 | DL15: 0 | DM15: 17 | DN15: 72 | DO15: 2652 | DP15: - | DQ15: 2256 | DR15: 327 | DS15: =PRODUCT((DJ15+DK15)/DI15) -> 57.6 % | DU15: =DI15-DJ15-DK15-DL15-DM15-DN15 -> 0
A16: 14. | B16: 14. | C16: Koskenkorvan Urheilijat | D16: 25 | E16: 688 | F16: 159 | G16: 155 | H16: 0 | I16: 97 | J16: 277 | K16: 4797 | L16: - | M16: 5252 | N16: 884 | O16: =PRODUCT((F16+G16)/E16) -> 45.6 % | Q16: Kaisaniemen Tiikerit | R16: 2 | S16: 1 | T16: =PRODUCT(S16/R16) -> 50.0 % | U16: 1 | V16: 1 | W16: =PRODUCT(V16/U16) -> 100.0 % | AA16: 1 | AB16: 0 | AC16: 0.0 % | AE16: 14. | AF16: 14. | AG16: Manse PP Edustus | AH16: 10 | AI16: 236 | AJ16: 125 | AK16: 52 | AL16: 0 | AM16: 20 | AN16: 39 | AO16: 2037 | AP16: - | AQ16: 976 | AR16: 499 | AS16: =PRODUCT((AJ16+AK16)/AI16) -> 75.0 % | AU16: PeTo-Jussit | AV16: 5 | AW16: 4 | AX16: =PRODUCT(AW16/AV16) -> 80.0 % | AY16: 4 | AZ16: 1 | BA16: =PRODUCT(AZ16/AY16) -> 25.0 % | BB16: 3 | BC16: 0 | BD16: =PRODUCT(BC16/BB16) -> 0.0 % | BE16: 1 | BF16: 0 | BG16: =PRODUCT(BF16/BE16) -> 0.0 % | BI16: 14. | BJ16: 14. | BK16: Jyväskylän Kiri | BL16: 8 | BM16: 178 | BN16: 92 | BO16: 34 | BP16: 0 | BQ16: 20 | BR16: 32 | BS16: 1684 | BT16: - | BU16: 963 | BV16: 364 | BW16: =PRODUCT((BN16+BO16)/BM16) -> 70.8 % | BY16: 14. | BZ16: 22. | CA16: Lappajärven Veikot | CB16: 10 | CC16: 191 | CD16: 52 | CE16: 46 | CF16: 0 | CG16: 33 | CH16: 60 | CI16: 1451 | CJ16: - | CK16: 1467 | CL16: 281 | CM16: =PRODUCT((CD16+CE16)/CC16) -> 51.3 % | CO16: 14. | CP16: 14. | CQ16: Simon Kiri | CR16: 37 | CS16: 551 | CT16: 97 | CU16: 152 | CV16: 10 | CW16: 42 | CX16: 250 | CY16: 4623 | CZ16: - | DA16: 4856 | DB16: 647 | DC16: =PRODUCT((CT16+CU16)/CS16) -> 45.2 % | DE16: 14. | DF16: 13. | DG16: Imatran Pallo-Veikot | DH16: 19 | DI16: 227 | DJ16: 48 | DK16: 80 | DL16: 3 | DM16: 16 | DN16: 80 | DO16: 3061 | DP16: - | DQ16: 2364 | DR16: 323 | DS16: =PRODUCT((DJ16+DK16)/DI16) -> 56.4 % | DU16: =DI16-DJ16-DK16-DL16-DM16-DN16 -> 0
A17: 15. | B17: 15. | C17: Haminan Palloilijat | D17: 50 | E17: 893 | F17: 38 | G17: 321 | H17: 41 | I17: 48 | J17: 445 | K17: 5214 | L17: - | M17: 6361 | N17: 845 | O17: =PRODUCT((F17+G17)/E17) -> 40.2 % | Q17: Siilinjärven Ponnistus | R17: 1 | S17: 0 | T17: =PRODUCT(S17/R17) -> 0.0 % | AA17: 1 | AB17: 0 | AC17: 0.0 % | AE17: 15. | AF17: 15. | AG17: Turku-Pesis | AH17: 32 | AI17: 499 | AJ17: 29 | AK17: 151 | AL17: 15 | AM17: 26 | AN17: 278 | AO17: 3534 | AP17: - | AQ17: 4767 | AR17: 430 | AS17: =PRODUCT((AJ17+AK17)/AI17) -> 36.1 % | AU17: Tyrnävän Tempaus | AV17: 7 | AW17: 1 | AX17: =PRODUCT(AW17/AV17) -> 14.3 % | AY17: 1 | AZ17: 1 | BA17: =PRODUCT(AZ17/AY17) -> 100.0 % | BE17: 1 | BF17: 0 | BG17: =PRODUCT(BF17/BE17) -> 0.0 % | BI17: 15. | BJ17: 15. | BK17: Koskenkorvan Urheilijat | BL17: 12 | BM17: 294 | BN17: 59 | BO17: 103 | BP17: 5 | BQ17: 21 | BR17: 106 | BS17: 2239 | BT17: - | BU17: 2080 | BV17: 409 | BW17: =PRODUCT((BN17+BO17)/BM17) -> 55.1 % | BY17: 15. | BZ17: 13. | CA17: Jalasjärven Jalas | CB17: 10 | CC17: 202 | CD17: 49 | CE17: 54 | CF17: 0 | CG17: 26 | CH17: 73 | CI17: 1686 | CJ17: - | CK17: 1684 | CL17: 281 | CM17: =PRODUCT((CD17+CE17)/CC17) -> 51.0 % | CO17: 15. | CP17: 15. | CQ17: Halsuan Toivo | CR17: 26 | CS17: 458 | CT17: 32 | CU17: 255 | CV17: 18 | CW17: 21 | CX17: 132 | CY17: 4414 | CZ17: - | DA17: 3009 | DB17: 645 | DC17: =PRODUCT((CT17+CU17)/CS17) -> 62.7 % | DE17: 15. | DF17: 14. | DG17: Kauhajoen Karhu | DH17: 19 | DI17: 247 | DJ17: 41 | DK17: 87 | DL17: 3 | DM17: 18 | DN17: 98 | DO17: 2690 | DP17: - | DQ17: 2437 | DR17: 318 | DS17: =PRODUCT((DJ17+DK17)/DI17) -> 51.8 % | DU17: =DI17-DJ17-DK17-DL17-DM17-DN17 -> 0
A18: 16. | B18: 16. | C18: Nurmon Jymy | D18: 26 | E18: 548 | F18: 53 | G18: 175 | H18: 20 | I18: 39 | J18: 261 | K18: 3322 | L18: - | M18: 3887 | N18: =PRODUCT(F18*3+G18*2+H18+I18) -> 568 | O18: =PRODUCT((F18+G18)/E18) -> 41.6 % | Q18: Kinnarin Pesis | R18: 2 | S18: 1 | T18: =PRODUCT(S18/R18) -> 50.0 % | U18: 1 | V18: 1 | W18: 100.0 % | AA18: 1 | AB18: 0 | AC18: 0.0 % | AE18: 16. | AF18: 16. | AG18: Ikaalisten Tarmo | AH18: 14 | AI18: 286 | AJ18: 14 | AK18: 156 | AL18: 9 | AM18: 5 | AN18: 102 | AO18: 3159 | AP18: - | AQ18: 2441 | AR18: 368 | AS18: =PRODUCT((AJ18+AK18)/AI18) -> 59.4 % | AU18: Roihu | AV18: 6 | AW18: 0 | AX18: =PRODUCT(AW18/AV18) -> 0.0 % | BE18: 1 | BF18: 0 | BG18: =PRODUCT(BF18/BE18) -> 0.0 % | BI18: 16. | BJ18: 16. | BK18: Kajaanin Pallokerho | BL18: 11 | BM18: 259 | BN18: 71 | BO18: 48 | BP18: 0 | BQ18: 43 | BR18: 97 | BS18: 1870 | BT18: - | BU18: 1961 | BV18: 352 | BW18: =PRODUCT((BN18+BO18)/BM18) -> 45.9 % | BY18: 16. | BZ18: 15. | CA18: Hyvinkään Tahko | CB18: 9 | CC18: 168 | CD18: 64 | CE18: 29 | CF18: 0 | CG18: 21 | CH18: 54 | CI18: 1887 | CJ18: - | CK18: 1635 | CL18: 271 | CM18: =PRODUCT((CD18+CE18)/CC18) -> 55.4 % | CO18: 16. | CP18: 19. | CQ18: Nurmon Jymy | CR18: 29 | CS18: 405 | CT18: 52 | CU18: 229 | CV18: 9 | CW18: 17 | CX18: 98 | CY18: 4353 | CZ18: - | DA18: 2639 | DB18: 640 | DC18: =PRODUCT((CT18+CU18)/CS18) -> 69.4 % | DE18: 16. | DF18: 16. | DG18: Kajaanin Pallokerho | DH18: 20 | DI18: 235 | DJ18: 45 | DK18: 84 | DL18: 3 | DM18: 10 | DN18: 93 | DO18: 3081 | DP18: - | DQ18: 2490 | DR18: 316 | DS18: =PRODUCT((DJ18+DK18)/DI18) -> 54.9 % | DT18: 91»93 | DU18: =DI18-DJ18-DK18-DL18-DM18-DN18 -> 0
A19: 17. | B19: 17. | C19: Ulvilan Pesä-Veikot | D19: 19 | E19: 451 | F19: 37 | G19: 173 | H19: 18 | I19: 14 | J19: 209 | K19: 2925 | L19: - | M19: 3008 | N19: =PRODUCT(F19*3+G19*2+H19+I19) -> 489 | O19: =PRODUCT((F19+G19)/E19) -> 46.6 % | Q19: Nurmon Jymy | R19: 5 | S19: 3 | T19: =PRODUCT(S19/R19) -> 60.0 % | U19: 3 | V19: 1 | W19: 33.3 % | X19: 2 | Y19: 1 | Z19: 50.0 % | AA19: 1 | AB19: 0 | AC19: 0.0 % | AE19: 17. | AF19: 17. | AG19: Kempeleen Kiri | AH19: 12 | AI19: 284 | AJ19: 42 | AK19: 69 | AL19: 0 | AM19: 45 | AN19: 128 | AO19: 1522 | AP19: - | AQ19: 2036 | AR19: 309 | AS19: =PRODUCT((AJ19+AK19)/AI19) -> 39.1 % | AU19: Seinäjoen Maila-Jussit | AV19: 10 | AW19: 3 | AX19: =PRODUCT(AW19/AV19) -> 30.0 % | AY19: 3 | AZ19: 0 | BA19: =PRODUCT(AZ19/AY19) -> 0.0 % | BB19: 3 | BC19: 2 | BD19: =PRODUCT(BC19/BB19) -> 66.7 % | BI19: 17. | BJ19: 17. | BK19: Jyväskylän Lohi | BL19: 15 | BM19: 336 | BN19: 30 | BO19: 112 | BP19: 9 | BQ19: 26 | BR19: 159 | BS19: 1946 | BT19: - | BU19: 2405 | BV19: 349 | BW19: =PRODUCT((BN19+BO19)/BM19) -> 42.3 % | BY19: 17. | BZ19: 16. | CA19: Laitilan Jyske | CB19: 9 | CC19: 156 | CD19: 53 | CE19: 47 | CF19: 0 | CG19: 18 | CH19: 38 | CI19: 1428 | CJ19: - | CK19: 1201 | CL19: 270 | CM19: =PRODUCT((CD19+CE19)/CC19) -> 64.1 % | CO19: 17. | CP19: 16. | CQ19: Loimaan Palloilijat | CR19: 33 | CS19: 462 | CT19: 27 | CU19: 261 | CV19: 29 | CW19: 5 | CX19: 140 | CY19: 4229 | CZ19: - | DA19: 3063 | DB19: 637 | DC19: =PRODUCT((CT19+CU19)/CS19) -> 62.3 % | DE19: 17. | DF19: 28. | DG19: Mynämäen Vesa | DH19: 13 | DI19: 194 | DJ19: 76 | DK19: 32 | DL19: 0 | DM19: 22 | DN19: 64 | DO19: 2479 | DP19: - | DQ19: 2177 | DR19: 314 | DS19: =PRODUCT((DJ19+DK19)/DI19) -> 55.7 % | DU19: =DI19-DJ19-DK19-DL19-DM19-DN19 -> 0
A20: 18. | B20: 18. | C20: Loimaan Palloilijat | D20: 26 | E20: 494 | F20: 49 | G20: 135 | H20: 14 | I20: 33 | J20: 263 | K20: 2454 | L20: - | M20: 3356 | N20: =PRODUCT(F20*3+G20*2+H20+I20) -> 464 | O20: =PRODUCT((F20+G20)/E20) -> 37.2 % | Q20: Koskenkorvan Urheilijat | R20: 17 | S20: 3 | T20: =PRODUCT(S20/R20) -> 17.6 % | U20: 3 | V20: 0 | W20: 0.0 % | X20: 3 | Y20: 2 | Z20: 66.7 % | AE20: 18. | AF20: 18. | AG20: PeTo-Jussit | AH20: 8 | AI20: 172 | AJ20: 65 | AK20: 32 | AL20: 0 | AM20: 19 | AN20: 56 | AO20: 1350 | AP20: - | AQ20: 1204 | AR20: 278 | AS20: =PRODUCT((AJ20+AK20)/AI20) -> 56.4 % | AU20: Peräseinäjoen Toive | AV20: 6 | AW20: 2 | AX20: =PRODUCT(AW20/AV20) -> 33.3 % | AY20: 2 | AZ20: 0 | BA20: =PRODUCT(AZ20/AY20) -> 0.0 % | BB20: 2 | BC20: 2 | BD20: 100.0 % | BI20: 18. | BJ20: 18. | BK20: Jokioisten Koetus | BL20: 13 | BM20: 330 | BN20: 40 | BO20: 72 | BP20: 7 | BQ20: 52 | BR20: 159 | BS20: 1776 | BT20: - | BU20: 2524 | BV20: 323 | BW20: =PRODUCT((BN20+BO20)/BM20) -> 33.9 % | BY20: 18. | BZ20: 17. | CA20: Pöytyän Urheilijat | CB20: 9 | CC20: 152 | CD20: 59 | CE20: 33 | CF20: 0 | CG20: 17 | CH20: 43 | CI20: 1448 | CJ20: - | CK20: 1248 | CL20: 260 | CM20: =PRODUCT((CD20+CE20)/CC20) -> 60.5 % | CO20: 18. | CP20: 17. | CQ20: Lammin Luja | CR20: 31 | CS20: 573 | CT20: 44 | CU20: 221 | CV20: 26 | CW20: 22 | CX20: 260 | CY20: 4632 | CZ20: - | DA20: 5269 | DB20: 622 | DC20: =PRODUCT((CT20+CU20)/CS20) -> 46.2 % | DE20: 18. | DF20: 19. | DG20: Hyvinkään Tahko 2 | DH20: 19 | DI20: 249 | DJ20: 54 | DK20: 63 | DL20: 1 | DM20: 23 | DN20: 108 | DO20: 2988 | DP20: - | DQ20: 2902 | DR20: 312 | DS20: =PRODUCT((DJ20+DK20)/DI20) -> 47.0 % | DU20: =DI20-DJ20-DK20-DL20-DM20-DN20 -> 0
A21: 19. | B21: 19. | C21: Seinäjoen JymyJussit | D21: 12 | E21: 347 | F21: 82 | G21: 73 | H21: 0 | I21: 53 | J21: 139 | K21: 2516 | L21: - | M21: 2795 | N21: 445 | O21: =PRODUCT((F21+G21)/E21) -> 44.7 % | Q21: Jyväskylän Kiri | R21: 8 | S21: 3 | T21: =PRODUCT(S21/R21) -> 37.5 % | U21: 3 | V21: 0 | W21: 0.0 % | X21: 3 | Y21: 1 | Z21: 33.3 % | AE21: 19. | AF21: 19. | AG21: Mansen Pesäpallo | AH21: 16 | AI21: 326 | AJ21: 23 | AK21: 92 | AL21: 5 | AM21: 18 | AN21: 188 | AO21: 2544 | AP21: - | AQ21: 3575 | AR21: 276 | AS21: =PRODUCT((AJ21+AK21)/AI21) -> 35.3 % | AU21: Fera | AV21: 24 | AW21: 2 | AX21: =PRODUCT(AW21/AV21) -> 8.3 % | AY21: 2 | AZ21: 0 | BA21: =PRODUCT(AZ21/AY21) -> 0.0 % | BB21: 2 | BC21: 1 | BD21: =PRODUCT(BC21/BB21) -> 50.0 % | BI21: 19. | BJ21: 19. | BK21: Vaasan Maila | BL21: 11 | BM21: 235 | BN21: 44 | BO21: 75 | BP21: 3 | BQ21: 26 | BR21: 87 | BS21: 1728 | BT21: - | BU21: 1602 | BV21: 311 | BW21: =PRODUCT((BN21+BO21)/BM21) -> 50.6 % | BY21: 19. | BZ21: 18. | CA21: Ilmajoen Kisailijat | CB21: 8 | CC21: 141 | CD21: 58 | CE21: 27 | CF21: 0 | CG21: 25 | CH21: 31 | CI21: 1465 | CJ21: - | CK21: 1180 | CL21: 253 | CM21: =PRODUCT((CD21+CE21)/CC21) -> 60.3 % | CO21: 19. | CP21: 18. | CQ21: Ylivieskan Kuula | CR21: 31 | CS21: 472 | CT21: 62 | CU21: 195 | CV21: 21 | CW21: 16 | CX21: 178 | CY21: 3920 | CZ21: - | DA21: 3383 | DB21: 613 | DC21: =PRODUCT((CT21+CU21)/CS21) -> 54.4 % | DE21: 19. | DF21: 22. | DG21: Oulaisten Huima | DH21: 14 | DI21: 209 | DJ21: 67 | DK21: 35 | DL21: 0 | DM21: 35 | DN21: 72 | DO21: 2404 | DP21: - | DQ21: 2183 | DR21: 306 | DS21: =PRODUCT((DJ21+DK21)/DI21) -> 48.8 % | DU21: =DI21-DJ21-DK21-DL21-DM21-DN21 -> 0
A22: 20. | B22: 20. | C22: Työväen Maila-Pojat | D22: 23 | E22: 318 | F22: 0 | G22: 156 | H22: 26 | I22: 0 | J22: 136 | K22: 2065 | L22: - | M22: 2026 | N22: =PRODUCT(F22*3+G22*2+H22+I22) -> 338 | O22: =PRODUCT((F22+G22)/E22) -> 49.1 % | Q22: Kankaanpään Maila | R22: 7 | S22: 2 | T22: =PRODUCT(S22/R22) -> 28.6 % | U22: 2 | V22: 0 | W22: 0.0 % | X22: 2 | Y22: 1 | Z22: 50.0 % | AE22: 20. | AF22: 20. | AG22: Helsingin Puna-Mustat | AH22: 16 | AI22: 161 | AJ22: 0 | AK22: 126 | AL22: 2 | AM22: 0 | AN22: 33 | AO22: 2458 | AP22: - | AQ22: 1281 | AR22: 254 | AS22: =PRODUCT((AJ22+AK22)/AI22) -> 78.3 % | AU22: Kempeleen Kiri | AV22: 9 | AW22: 2 | AX22: =PRODUCT(AW22/AV22) -> 22.2 % | AY22: 2 | AZ22: 0 | BA22: =PRODUCT(AZ22/AY22) -> 0.0 % | BB22: 2 | BC22: 0 | BD22: 0.0 % | BI22: 20. | BJ22: 20. | BK22: Joensuun Maila | BL22: 9 | BM22: 226 | BN22: 60 | BO22: 48 | BP22: 1 | BQ22: 34 | BR22: 83 | BS22: 1418 | BT22: - | BU22: 1485 | BV22: 311 | BW22: =PRODUCT((BN22+BO22)/BM22) -> 47.8 % | BY22: 20. | BZ22: 19. | CA22: Kankaanpään Maila | CB22: 9 | CC22: 138 | CD22: 64 | CE22: 21 | CF22: 3 | CG22: 10 | CH22: 40 | CI22: 1467 | CJ22: - | CK22: 1189 | CL22: 247 | CM22: =PRODUCT((CD22+CE22)/CC22) -> 61.6 % | CO22: 20. | CP22: 20. | CQ22: Hyvinkään Tahko 2 | CR22: 26 | CS22: 465 | CT22: 101 | CU22: 120 | CV22: 6 | CW22: 52 | CX22: 186 | CY22: 4708 | CZ22: - | DA22: 4660 | DB22: 601 | DC22: =PRODUCT((CT22+CU22)/CS22) -> 47.5 % | DE22: 20. | DF22: 17. | DG22: Siilinjärven Pesis 2 | DH22: 14 | DI22: 192 | DJ22: 56 | DK22: 55 | DL22: 3 | DM22: 18 | DN22: 60 | DO22: 2363 | DP22: - | DQ22: 1914 | DR22: 299 | DS22: =PRODUCT((DJ22+DK22)/DI22) -> 57.8 % | DU22: =DI22-DJ22-DK22-DL22-DM22-DN22 -> 0
A23: 21. | B23: 21. | C23: Lahden Mailaveikot | D23: 23 | E23: 264 | F23: 0 | G23: 160 | H23: 14 | I23: 0 | J23: 90 | K23: 2038 | L23: - | M23: 1361 | N23: =PRODUCT(F23*3+G23*2+H23+I23) -> 334 | O23: =PRODUCT((F23+G23)/E23) -> 60.6 % | Q23: Kempeleen Kiri | R23: 5 | S23: 2 | T23: =PRODUCT(S23/R23) -> 40.0 % | U23: 2 | V23: 0 | W23: 0.0 % | X23: 2 | Y23: 1 | Z23: 100.0 % | AE23: 21. | AF23: 21. | AG23: Peräseinäjoen Toive | AH23: 7 | AI23: 154 | AJ23: 58 | AK23: 28 | AL23: 0 | AM23: 23 | AN23: 45 | AO23: 1423 | AP23: - | AQ23: 1099 | AR23: 253 | AS23: =PRODUCT((AJ23+AK23)/AI23) -> 55.8 % | AU23: Hyvinkään Tahko | AV23: 4 | AW23: 0 | AX23: =PRODUCT(AW23/AV23) -> 0.0 % | AY23: 1 | AZ23: 0 | BA23: =PRODUCT(AZ23/AY23) -> 0.0 % | BB23: 1 | BC23: 0 | BD23: 0.0 % | BI23: 21. | BJ23: 21. | BK23: Puurtilan Kisa-Pojat | BL23: 14 | BM23: 314 | BN23: 19 | BO23: 110 | BP23: 8 | BQ23: 5 | BR23: 172 | BS23: 2033 | BT23: - | BU23: 2520 | BV23: 290 | BW23: =PRODUCT((BN23+BO23)/BM23) -> 41.1 % | BY23: 21. | BZ23: 20. | CA23: Vihdin Pallo | CB23: 10 | CC23: 126 | CD23: 50 | CE23: 44 | CF23: 3 | CG23: 5 | CH23: 24 | CI23: 1856 | CJ23: - | CK23: 805 | CL23: 246 | CM23: =PRODUCT((CD23+CE23)/CC23) -> 74.6 % | CO23: 21. | CP23: 22. | CQ23: Ulvilan Pesä-Veikot | CR23: 23 | CS23: 383 | CT23: 33 | CU23: 232 | CV23: 18 | CW23: 13 | CX23: 87 | CY23: 3649 | CZ23: - | DA23: 2160 | DB23: 594 | DC23: =PRODUCT((CT23+CU23)/CS23) -> 69.2 % | DE23: 21. | DF23: 18. | DG23: Viinijärven Urheilijat 2 | DH23: 16 | DI23: 208 | DJ23: 64 | DK23: 41 | DL23: 1 | DM23: 24 | DN23: 78 | DO23: 2345 | DP23: - | DQ23: 2354 | DR23: 299 | DS23: =PRODUCT((DJ23+DK23)/DI23) -> 50.5 % | DU23: =DI23-DJ23-DK23-DL23-DM23-DN23 -> 0
A24: 22. | B24: 22. | C24: Helsingin Puna-Mustat | D24: 20 | E24: 344 | F24: 0 | G24: 151 | H24: 28 | I24: 0 | J24: 165 | K24: 2247 | L24: - | M24: 2360 | N24: =PRODUCT(F24*3+G24*2+H24+I24) -> 330 | O24: =PRODUCT((F24+G24)/E24) -> 43.9 % | Q24: Puijon Pesäpallo | R24: 5 | S24: 1 | T24: =PRODUCT(S24/R24) -> 20.0 % | U24: 1 | V24: 0 | W24: 0.0 % | X24: 1 | Y24: 1 | Z24: 100.0 % | AE24: 22. | AF24: 22. | AG24: Työväen Maila-Pojat | AH24: 15 | AI24: 145 | AJ24: 0 | AK24: 124 | AL24: 3 | AM24: 0 | AN24: 18 | AO24: 2467 | AP24: - | AQ24: 868 | AR24: 251 | AS24: =PRODUCT((AJ24+AK24)/AI24) -> 85.5 % | AU24: Ylihärmän Pesis-Junkkarit | AV24: 5 | AW24: 0 | AX24: =PRODUCT(AW24/AV24) -> 0.0 % | BI24: 22. | BJ24: 22. | BK24: Siilinjärven Pesis | BL24: 8 | BM24: 220 | BN24: 65 | BO24: 33 | BP24: 4 | BQ24: 20 | BR24: 98 | BS24: 1356 | BT24: - | BU24: 1224 | BV24: 285 | BW24: =PRODUCT((BN24+BO24)/BM24) -> 44.5 % | BY24: 22. | BZ24: 21. | CA24: Kokemäen Kova-Väki | CB24: 10 | CC24: 184 | CD24: 29 | CE24: 71 | CF24: 1 | CG24: 15 | CH24: 68 | CI24: 2110 | CJ24: - | CK24: 1740 | CL24: 245 | CM24: =PRODUCT((CD24+CE24)/CC24) -> 54.3 % | CO24: 22. | CP24: 21. | CQ24: Ikaalisten Tarmo | CR24: 22 | CS24: 418 | CT24: 61 | CU24: 166 | CV24: 9 | CW24: 28 | CX24: 154 | CY24: 3865 | CZ24: - | DA24: 3393 | DB24: 552 | DC24: =PRODUCT((CT24+CU24)/CS24) -> 54.3 % | DE24: 22. | DF24: 29. | DG24: Loimaan Palloilijat Junioripesis | DH24: 11 | DI24: 172 | DJ24: 69 | DK24: 30 | DL24: 0 | DM24: 23 | DN24: 50 | DO24: 1936 | DP24: - | DQ24: 1474 | DR24: 290 | DS24: =PRODUCT((DJ24+DK24)/DI24) -> 57.6 % | DU24: =DI24-DJ24-DK24-DL24-DM24-DN24 -> 0
A25: 23. | B25: 23. | C25: Hongikon Ns. Urheilijat | D25: 16 | E25: 304 | F25: 0 | G25: 151 | H25: 24 | I25: 0 | J25: 129 | K25: 2441 | L25: - | M25: 2166 | N25: =PRODUCT(F25*3+G25*2+H25+I25) -> 326 | O25: =PRODUCT((F25+G25)/E25) -> 49.7 % | Q25: Kiteen Urheilijat | R25: 2 | S25: 1 | T25: =PRODUCT(S25/R25) -> 50.0 % | U25: 1 | V25: 0 | W25: 0.0 % | X25: 1 | Y25: 0 | Z25: 0.0 % | AE25: 23. | AF25: 23. | AG25: Tyrnävän Tempaus | AH25: 9 | AI25: 192 | AJ25: 41 | AK25: 38 | AL25: 0 | AM25: 24 | AN25: 89 | AO25: 1260 | AP25: - | AQ25: 1590 | AR25: 223 | AS25: =PRODUCT((AJ25+AK25)/AI25) -> 41.1 % | AU25: Mailattaret | AV25: 4 | AW25: 0 | AX25: =PRODUCT(AW25/AV25) -> 0.0 % | BI25: 23. | BJ25: 23. | BK25: Oulun Lippo Juniorit | BL25: 6 | BM25: 134 | BN25: 60 | BO25: 33 | BP25: 0 | BQ25: 18 | BR25: 23 | BS25: 1172 | BT25: - | BU25: 681 | BV25: 264 | BW25: =PRODUCT((BN25+BO25)/BM25) -> 69.4 % | BY25: 23. | BZ25: 23. | CA25: Pesäkarhut | CB25: 8 | CC25: 132 | CD25: 34 | CE25: 66 | CF25: 3 | CG25: 2 | CH25: 27 | CI25: 1848 | CJ25: - | CK25: 857 | CL25: 239 | CM25: =PRODUCT((CD25+CE25)/CC25) -> 75.8 % | CO25: 23. | CP25: 23. | CQ25: Riihimäen Pallonlyöjät | CR25: 31 | CS25: 429 | CT25: 16 | CU25: 224 | CV25: 26 | CW25: 9 | CX25: 154 | CY25: 4011 | CZ25: - | DA25: 2992 | DB25: 531 | DC25: =PRODUCT((CT25+CU25)/CS25) -> 55.9 % | DE25: 23. | DF25: 20. | DG25: Ilmajoen Kisailijat | DH25: 12 | DI25: 178 | DJ25: 67 | DK25: 33 | DL25: 0 | DM25: 22 | DN25: 56 | DO25: 2337 | DP25: - | DQ25: 1961 | DR25: 289 | DS25: =PRODUCT((DJ25+DK25)/DI25) -> 56.2 % | DU25: =DI25-DJ25-DK25-DL25-DM25-DN25 -> 0
A26: 24. | B26: 28. | C26: Kempeleen Kiri | D26: 9 | E26: 261 | F26: 54 | G26: 60 | H26: 0 | I26: 40 | J26: 107 | K26: 1741 | L26: - | M26: 1953 | N26: 322 | O26: =PRODUCT((F26+G26)/E26) -> 43.7 % | Q26: Vaasan Maila | R26: 4 | S26: 1 | T26: =PRODUCT(S26/R26) -> 25.0 % | U26: 1 | V26: 0 | W26: 0.0 % | X26: 1 | Y26: 0 | Z26: 0.0 % | AE26: 24. | AF26: 24. | AG26: Ylihärmän Pesis-Junkkarit | AH26: 11 | AI26: 238 | AJ26: 36 | AK26: 38 | AL26: 0 | AM26: 36 | AN26: 128 | AO26: 1408 | AP26: - | AQ26: 2204 | AR26: 220 | AS26: =PRODUCT((AJ26+AK26)/AI26) -> 31.1 % | AU26: Ylihärmän Junkkarit | AV26: 3 | AW26: 0 | AX26: =PRODUCT(AW26/AV26) -> 0.0 % | BI26: 24. | BJ26: 24. | BK26: Juvan Pallo | BL26: 9 | BM26: 204 | BN26: 29 | BO26: 75 | BP26: 8 | BQ26: 6 | BR26: 86 | BS26: 1538 | BT26: - | BU26: 1458 | BV26: 251 | BW26: =PRODUCT((BN26+BO26)/BM26) -> 51.0 % | BY26: 24. | BZ26: 24. | CA26: Lapuan Virkiä 2 | CB26: 11 | CC26: 162 | CD26: 47 | CE26: 35 | CF26: 0 | CG26: 28 | CH26: 52 | CI26: 1624 | CJ26: - | CK26: 1425 | CL26: 239 | CM26: =PRODUCT((CD26+CE26)/CC26) -> 50.6 % | CO26: 24. | CP26: 24. | CQ26: Seinäjoen Maila-Jussit | CR26: 32 | CS26: 390 | CT26: 62 | CU26: 147 | CV26: 9 | CW26: 27 | CX26: 145 | CY26: 3460 | CZ26: - | DA26: 3112 | DB26: 516 | DC26: =PRODUCT((CT26+CU26)/CS26) -> 53.6 % | DE26: 24. | DF26: 34. | DG26: Ylihärmän Pesis-Junkkarit | DH26: 12 | DI26: 186 | DJ26: 57 | DK26: 42 | DL26: 0 | DM26: 27 | DN26: 60 | DO26: 2068 | DP26: - | DQ26: 1862 | DR26: 282 | DS26: =PRODUCT((DJ26+DK26)/DI26) -> 53.2 % | DU26: =DI26-DJ26-DK26-DL26-DM26-DN26 -> 0
A27: 25. | B27: 30. | C27: Manse PP Edustus | D27: 6 | E27: 172 | F27: 65 | G27: 48 | H27: 0 | I27: 27 | J27: 32 | K27: 1424 | L27: - | M27: 932 | N27: 318 | O27: =PRODUCT((F27+G27)/E27) -> 65.7 % | Q27: Seinäjoen JymyJussit | R27: 7 | S27: 0 | T27: =PRODUCT(S27/R27) -> 0.0 % | AE27: 25. | AF27: 25. | AG27: Ulvilan Pesä-Veikot | AH27: 15 | AI27: 226 | AJ27: 0 | AK27: 97 | AL27: 10 | AM27: 0 | AN27: 119 | AO27: 2260 | AP27: - | AQ27: 2477 | AR27: 204 | AS27: =PRODUCT((AJ27+AK27)/AI27) -> 42.9 % | AU27: Kajaanin Hymy | AV27: 2 | AW27: 0 | AX27: =PRODUCT(AW27/AV27) -> 0.0 % | BI27: 25. | BJ27: 25. | BK27: Loimaan Palloilijat | BL27: 7 | BM27: 158 | BN27: 29 | BO27: 71 | BP27: 2 | BQ27: 10 | BR27: 46 | BS27: 1194 | BT27: - | BU27: 866 | BV27: 241 | BW27: =PRODUCT((BN27+BO27)/BM27) -> 63.3 % | BY27: 25. | BZ27: 34. | CA27: Ylivieskan Kuula | CB27: 7 | CC27: 155 | CD27: 40 | CE27: 40 | CF27: 0 | CG27: 28 | CH27: 47 | CI27: 1345 | CJ27: - | CK27: 1284 | CL27: 228 | CM27: =PRODUCT((CD27+CE27)/CC27) -> 51.6 % | CO27: 25. | CP27: 32. | CQ27: Kempeleen Kiri 2 | CR27: 21 | CS27: 348 | CT27: 96 | CU27: 73 | CV27: 2 | CW27: 48 | CX27: 129 | CY27: 3303 | CZ27: - | DA27: 3146 | DB27: 484 | DC27: =PRODUCT((CT27+CU27)/CS27) -> 48.6 % | DE27: 25. | DF27: 21. | DG27: Roihu | DH27: 10 | DI27: 146 | DJ27: 66 | DK27: 30 | DL27: 0 | DM27: 23 | DN27: 27 | DO27: 2499 | DP27: - | DQ27: 1458 | DR27: 281 | DS27: =PRODUCT((DJ27+DK27)/DI27) -> 65.8 % | DU27: =DI27-DJ27-DK27-DL27-DM27-DN27 -> 0
A28: 26. | B28: 24. | C28: Siilinjärven Pesis | D28: 13 | E28: 344 | F28: 31 | G28: 81 | H28: 10 | I28: 34 | J28: 188 | K28: 1768 | L28: - | M28: 2747 | N28: 299 | O28: =PRODUCT((F28+G28)/E28) -> 32.6 % | Q28: Loimaan Palloilijat | R28: 4 | S28: 0 | T28: =PRODUCT(S28/R28) -> 0.0 % | AE28: 26. | AF28: 26. | AG28: Helsingin Pallo-Toverit | AH28: 17 | AI28: 145 | AJ28: 0 | AK28: 100 | AL28: 2 | AM28: 0 | AN28: 43 | AO28: 2252 | AP28: - | AQ28: 1178 | AR28: 202 | AS28: =PRODUCT((AJ28+AK28)/AI28) -> 69.0 % | AU28: Hämeenkyrön Räpsä | AV28: 2 | AW28: 0 | AX28: =PRODUCT(AW28/AV28) -> 0.0 % | BI28: 26. | BJ28: 26. | BK28: Riihimäen Pallonlyöjät | BL28: 9 | BM28: 190 | BN28: 0 | BO28: 103 | BP28: 12 | BQ28: 0 | BR28: 75 | BS28: 1575 | BT28: - | BU28: 1263 | BV28: 218 | BW28: =PRODUCT((BN28+BO28)/BM28) -> 54.2 % | BY28: 26. | BZ28: 25. | CA28: Ulvilan Pesä-Veikot | CB28: 9 | CC28: 168 | CD28: 36 | CE28: 51 | CF28: 8 | CG28: 6 | CH28: 67 | CI28: 1743 | CJ28: - | CK28: 1565 | CL28: 224 | CM28: =PRODUCT((CD28+CE28)/CC28) -> 51.8 % | CO28: 26. | CP28: 25. | CQ28: Saaren Urheilijat | CR28: 23 | CS28: 442 | CT28: 22 | CU28: 195 | CV28: 17 | CW28: 10 | CX28: 198 | CY28: 3442 | CZ28: - | DA28: 3351 | DB28: 483 | DC28: =PRODUCT((CT28+CU28)/CS28) -> 49.1 % | DE28: 26. | DF28: 23. | DG28: Ikaalisten Tarmo | DH28: 12 | DI28: 172 | DJ28: 54 | DK28: 42 | DL28: 0 | DM28: 27 | DN28: 49 | DO28: 2096 | DP28: - | DQ28: 1675 | DR28: 273 | DS28: =PRODUCT((DJ28+DK28)/DI28) -> 55.8 % | DU28: =DI28-DJ28-DK28-DL28-DM28-DN28 -> 0
A29: 27. | B29: 25. | C29: Kiteen Urheilijat | D29: 14 | E29: 308 | F29: 0 | G29: 135 | H29: 17 | I29: 0 | J29: 156 | K29: 2120 | L29: - | M29: 2184 | N29: =PRODUCT(F29*3+G29*2+H29+I29) -> 287 | O29: =PRODUCT((F29+G29)/E29) -> 43.8 % | Q29: Siilinjärven Pesis | R29: 3 | S29: 0 | T29: =PRODUCT(S29/R29) -> 0.0 % | AE29: 27. | AF29: 29. | AG29: Joensuun Maila | AH29: 7 | AI29: 145 | AJ29: 32 | AK29: 27 | AL29: 0 | AM29: 22 | AN29: 64 | AO29: 940 | AP29: - | AQ29: 1145 | AR29: 172 | AS29: =PRODUCT((AJ29+AK29)/AI29) -> 40.7 % | AU29: Turku-Pesis | AV29: 2 | AW29: 0 | AX29: =PRODUCT(AW29/AV29) -> 0.0 % | BI29: 27. | BJ29: 27. | BK29: Oulun Lippo Pesis | BL29: 5 | BM29: 112 | BN29: 40 | BO29: 42 | BP29: 0 | BQ29: 11 | BR29: 19 | BS29: 909 | BT29: - | BU29: 621 | BV29: 215 | BW29: =PRODUCT((BN29+BO29)/BM29) -> 73.2 % | BY29: 27. | BZ29: 26. | CA29: Kauhajoen Karhu | CB29: 10 | CC29: 180 | CD29: 33 | CE29: 48 | CF29: 5 | CG29: 13 | CH29: 81 | CI29: 1864 | CJ29: - | CK29: 1761 | CL29: 213 | CM29: =PRODUCT((CD29+CE29)/CC29) -> 45.0 % | CO29: 27. | CP29: 26. | CQ29: Mäntyharjun Virkistys | CR29: 20 | CS29: 368 | CT29: 72 | CU29: 117 | CV29: 7 | CW29: 24 | CX29: 148 | CY29: 3184 | CZ29: - | DA29: 3247 | DB29: 481 | DC29: =PRODUCT((CT29+CU29)/CS29) -> 51.4 % | DE29: 27. | DF29: 25. | DG29: Jyväskylän Kiri 2 | DH29: 17 | DI29: 197 | DJ29: 31 | DK29: 84 | DL29: 3 | DM29: 5 | DN29: 74 | DO29: 2605 | DP29: - | DQ29: 2023 | DR29: 269 | DS29: =PRODUCT((DJ29+DK29)/DI29) -> 58.4 % | DU29: =DI29-DJ29-DK29-DL29-DM29-DN29 -> 0
A30: 28. | B30: 26. | C30: Puijon Pesäpallo | D30: 8 | E30: 209 | F30: 54 | G30: 41 | H30: 0 | I30: 35 | J30: 79 | K30: 1272 | L30: - | M30: 1324 | N30: =PRODUCT(F30*3+G30*2+H30+I30) -> 279 | O30: =PRODUCT((F30+G30)/E30) -> 45.5 % | Q30: Ulvilan Pesä-Veikot | R30: 3 | S30: 0 | T30: =PRODUCT(S30/R30) -> 0.0 % | AE30: 28. | AF30: 27. | AG30: Pattijoen Urheilijat | AH30: 4 | AI30: 90 | AJ30: 37 | AK30: 17 | AL30: 0 | AM30: 11 | AN30: 25 | AO30: 891 | AP30: - | AQ30: 726 | AR30: 156 | AS30: =PRODUCT((AJ30+AK30)/AI30) -> 60.0 % | AU30: Vuokatin Veto | AV30: 2 | AW30: 0 | AX30: =PRODUCT(AW30/AV30) -> 0.0 % | BI30: 28. | BJ30: 28. | BK30: Manse PP Edustus | BL30: 4 | BM30: 127 | BN30: 51 | BO30: 22 | BP30: 0 | BQ30: 11 | BR30: 43 | BS30: 924 | BT30: - | BU30: 484 | BV30: 208 | BW30: =PRODUCT((BN30+BO30)/BM30) -> 57.5 % | BY30: 28. | BZ30: 27. | CA30: Turku-Pesis | CB30: 11 | CC30: 171 | CD30: 20 | CE30: 68 | CF30: 5 | CG30: 7 | CH30: 71 | CI30: 1611 | CJ30: - | CK30: 1434 | CL30: 208 | CM30: =PRODUCT((CD30+CE30)/CC30) -> 51.5 % | CO30: 28. | CP30: 29. | CQ30: Pattijoen Urheilijat 2 | CR30: 22 | CS30: 366 | CT30: 99 | CU30: 65 | CV30: 3 | CW30: 46 | CX30: 153 | CY30: 3408 | CZ30: - | DA30: 3790 | DB30: 476 | DC30: =PRODUCT((CT30+CU30)/CS30) -> 44.8 % | DE30: 28. | DF30: 26. | DG30: Pesäkarhut 2 | DH30: 14 | DI30: 196 | DJ30: 47 | DK30: 54 | DL30: 7 | DM30: 13 | DN30: 75 | DO30: 2001 | DP30: - | DQ30: 1811 | DR30: 269 | DS30: =PRODUCT((DJ30+DK30)/DI30) -> 51.5 % | DU30: =DI30-DJ30-DK30-DL30-DM30-DN30 -> 0
A31: 29. | B31: 27. | C31: Riihimäen Pallonlyöjät | D31: 23 | E31: 312 | F31: 1 | G31: 128 | H31: 18 | I31: 1 | J31: 164 | K31: 1774 | L31: - | M31: 1991 | N31: =PRODUCT(F31*3+G31*2+H31+I31) -> 278 | O31: =PRODUCT((F31+G31)/E31) -> 41.3 % | Q31: Oulun Lippo Pesis | R31: 1 | S31: 0 | T31: =PRODUCT(S31/R31) -> 0.0 % | AE31: 29. | AF31: 28. | AG31: Ylihärmän Junkkarit | AH31: 5 | AI31: 116 | AJ31: 33 | AK31: 20 | AL31: 2 | AM31: 9 | AN31: 52 | AO31: 944 | AP31: - | AQ31: 1031 | AR31: 150 | AS31: =PRODUCT((AJ31+AK31)/AI31) -> 45.7 % | AU31: Joensuun Maila | AV31: 2 | AW31: 0 | AX31: =PRODUCT(AW31/AV31) -> 0.0 % | BI31: 29. | BJ31: 29. | BK31: Vähänkyrön Viesti | BL31: 8 | BM31: 210 | BN31: 32 | BO31: 28 | BP31: 4 | BQ31: 46 | BR31: 100 | BS31: 1177 | BT31: - | BU31: 1561 | BV31: 202 | BW31: =PRODUCT((BN31+BO31)/BM31) -> 28.6 % | BY31: 29. | BZ31: 28. | CA31: Oulunsalon Vasama | CB31: 7 | CC31: 124 | CD31: 40 | CE31: 34 | CF31: 0 | CG31: 13 | CH31: 37 | CI31: 1059 | CJ31: - | CK31: 968 | CL31: 201 | CM31: =PRODUCT((CD31+CE31)/CC31) -> 59.7 % | CO31: 29. | CP31: 27. | CQ31: Kempeleen Kiri | CR31: 20 | CS31: 362 | CT31: 24 | CU31: 187 | CV31: 17 | CW31: 6 | CX31: 128 | CY31: 3176 | CZ31: - | DA31: 2460 | DB31: 469 | DC31: =PRODUCT((CT31+CU31)/CS31) -> 58.3 % | DE31: 29. | DF31: 27. | DG31: Nurmon Jymy | DH31: 18 | DI31: 225 | DJ31: 19 | DK31: 96 | DL31: 6 | DM31: 12 | DN31: 92 | DO31: 2691 | DP31: - | DQ31: 2631 | DR31: 267 | DS31: =PRODUCT((DJ31+DK31)/DI31) -> 51.1 % | DU31: =DI31-DJ31-DK31-DL31-DM31-DN31 -> 0
A32: 30. | B32: 29. | C32: Helsingin Pallo-Toverit | D32: 24 | E32: 262 | F32: 0 | G32: 127 | H32: 11 | I32: 0 | J32: 124 | K32: 1529 | L32: - | M32: 1519 | N32: =PRODUCT(F32*3+G32*2+H32+I32) -> 265 | O32: =PRODUCT((F32+G32)/E32) -> 48.5 % | Q32: Riihimäen Pallonlyöjät | R32: 1 | S32: 0 | T32: =PRODUCT(S32/R32) -> 0.0 % | AE32: 30. | AF32: 30. | AG32: Vähänkyrön Viesti | AH32: 8 | AI32: 162 | AJ32: 3 | AK32: 46 | AL32: 3 | AM32: 0 | AN32: 110 | AO32: 1041 | AP32: - | AQ32: 1978 | AR32: 104 | AS32: =PRODUCT((AJ32+AK32)/AI32) -> 30.2 % | AU32: Kankaanpään Maila | AV32: 1 | AW32: 0 | AX32: =PRODUCT(AW32/AV32) -> 0.0 % | BI32: 30. | BJ32: 30. | BK32: Hongikon Ns. Urheilijat | BL32: 10 | BM32: 224 | BN32: 0 | BO32: 95 | BP32: 6 | BQ32: 0 | BR32: 123 | BS32: 1786 | BT32: - | BU32: 1958 | BV32: 196 | BW32: =PRODUCT((BN32+BO32)/BM32) -> 42.4 % | BY32: 30. | BZ32: 29. | CA32: Mynämäen Vesa | CB32: 7 | CC32: 134 | CD32: 37 | CE32: 32 | CF32: 0 | CG32: 22 | CH32: 43 | CI32: 1089 | CJ32: - | CK32: 1184 | CL32: 197 | CM32: =PRODUCT((CD32+CE32)/CC32) -> 51.5 % | CO32: 30. | CP32: 36. | CQ32: Imatran Pallo-Veikot 2 | CR32: 27 | CS32: 455 | CT32: 55 | CU32: 128 | CV32: 16 | CW32: 31 | CX32: 225 | CY32: 3488 | CZ32: - | DA32: 4228 | DB32: 468 | DC32: =PRODUCT((CT32+CU32)/CS32) -> 40.2 % | DE32: 30. | DF32: 30. | DG32: Ylöjärven Pallo | DH32: 16 | DI32: 214 | DJ32: 35 | DK32: 68 | DL32: 5 | DM32: 18 | DN32: 88 | DO32: 2219 | DP32: - | DQ32: 2237 | DR32: 264 | DS32: =PRODUCT((DJ32+DK32)/DI32) -> 48.1 % | DU32: =DI32-DJ32-DK32-DL32-DM32-DN32 -> 0
A33: 31. | B33: 31. | C33: Vaasan Maila | D33: 12 | E33: 260 | F33: 0 | G33: 101 | H33: 22 | I33: 0 | J33: 137 | K33: 1383 | L33: - | M33: 1736 | N33: =PRODUCT(F33*3+G33*2+H33+I33) -> 224 | O33: =PRODUCT((F33+G33)/E33) -> 38.8 % | AE33: 31. | AF33: 36. | AG33: Mailattaret | AH33: 4 | AI33: 96 | AJ33: 12 | AK33: 27 | AL33: 0 | AM33: 13 | AN33: 44 | AO33: 498 | AP33: - | AQ33: 675 | AR33: 103 | AS33: =PRODUCT((AJ33+AK33)/AI33) -> 40.6 % | AU33: Mansen Pesäpallo | AV33: 1 | AW33: 0 | AX33: =PRODUCT(AW33/AV33) -> 0.0 % | BI33: 31. | BJ33: 31. | BK33: Seinäjoen Maila-Jussit | BL33: 6 | BM33: 138 | BN33: 45 | BO33: 28 | BP33: 0 | BQ33: 23 | BR33: 42 | BS33: 1015 | BT33: - | BU33: 875 | BV33: 214 | BW33: =PRODUCT((BN33+BO33)/BM33) -> 52.9 % | BY33: 31. | BZ33: 30. | CA33: Ylihärmän Pesis-Junkkarit | CB33: 6 | CC33: 118 | CD33: 46 | CE33: 20 | CF33: 0 | CG33: 13 | CH33: 39 | CI33: 1128 | CJ33: - | CK33: 934 | CL33: 191 | CM33: =PRODUCT((CD33+CE33)/CC33) -> 55.9 % | CO33: 31. | CP33: 28. | CQ33: Joensuun Maila | CR33: 21 | CS33: 402 | CT33: 13 | CU33: 200 | CV33: 20 | CW33: 6 | CX33: 163 | CY33: 3334 | CZ33: - | DA33: 2808 | DB33: 465 | DC33: =PRODUCT((CT33+CU33)/CS33) -> 53.0 % | DE33: 31. | DF33: 31. | DG33: Karinaisten Kunto | DH33: 18 | DI33: 226 | DJ33: 11 | DK33: 111 | DL33: 4 | DM33: 4 | DN33: 96 | DO33: 2357 | DP33: - | DQ33: 2182 | DR33: 263 | DS33: =PRODUCT((DJ33+DK33)/DI33) -> 54.0 % | DU33: =DI33-DJ33-DK33-DL33-DM33-DN33 -> 0
A34: 32. | B34: 32. | C34: Ilmajoen Kisailijat | D34: 12 | E34: 190 | F34: 0 | G34: 85 | H34: 16 | I34: 0 | J34: 89 | K34: 1231 | L34: - | M34: 1257 | N34: =PRODUCT(F34*3+G34*2+H34+I34) -> 186 | O34: =PRODUCT((F34+G34)/E34) -> 44.7 % | Q34: Vuoden 1994 loppusarja sarakkeessa Puolivälierät | AE34: 32. | AF34: 31. | AG34: Kuopion Kelta-Mustat | AH34: 12 | AI34: 100 | AJ34: 0 | AK34: 44 | AL34: 9 | AM34: 0 | AN34: 47 | AO34: 961 | AP34: - | AQ34: 1061 | AR34: 97 | AS34: =PRODUCT((AJ34+AK34)/AI34) -> 44.0 % | AU34: Oulun Lipottaret | AV34: 1 | AW34: 0 | AX34: =PRODUCT(AW34/AV34) -> 0.0 % | BI34: 32. | BJ34: 32. | BK34: Järvenpään Pesis | BL34: 4 | BM34: 100 | BN34: 41 | BO34: 22 | BP34: 0 | BQ34: 11 | BR34: 26 | BS34: 810 | BT34: - | BU34: 681 | BV34: 178 | BW34: =PRODUCT((BN34+BO34)/BM34) -> 63.0 % | BY34: 32. | BZ34: 31. | CA34: Hämeenkyrön Räpsä | CB34: 9 | CC34: 137 | CD34: 40 | CE34: 26 | CF34: 0 | CG34: 18 | CH34: 53 | CI34: 1324 | CJ34: - | CK34: 1200 | CL34: 190 | CM34: =PRODUCT((CD34+CE34)/CC34) -> 48.2 % | CO34: 32. | CP34: 30. | CQ34: Kiimingin Urheilijat | CR34: 14 | CS34: 242 | CT34: 113 | CU34: 48 | CV34: 2 | CW34: 25 | CX34: 54 | CY34: 2424 | CZ34: - | DA34: 1604 | DB34: 462 | DC34: =PRODUCT((CT34+CU34)/CS34) -> 66.5 % | DE34: 32. | DF34: 36. | DG34: Alajärven Ankkurit | DH34: 15 | DI34: 218 | DJ34: 57 | DK34: 35 | DL34: 1 | DM34: 20 | DN34: 105 | DO34: 2416 | DP34: - | DQ34: 2581 | DR34: 262 | DS34: =PRODUCT((DJ34+DK34)/DI34) -> 42.2 % | DU34: =DI34-DJ34-DK34-DL34-DM34-DN34 -> 0
A35: 33. | B35: 33. | C35: Siilinjärven Ponnistus | D35: 8 | E35: 164 | F35: 0 | G35: 73 | H35: 11 | I35: 0 | J35: 80 | K35: 921 | L35: - | M35: 1011 | N35: =PRODUCT(F35*3+G35*2+H35+I35) -> 157 | O35: =PRODUCT((F35+G35)/E35) -> 44.5 % | Q35: Vuosien 2004-2008 jatkosarjat sarakkeessa Puolivälierät | AE35: 33. | AF35: 32. | AG35: Riihimäen Pallonlyöjät | AH35: 8 | AI35: 112 | AJ35: 0 | AK35: 44 | AL35: 9 | AM35: 0 | AN35: 59 | AO35: 866 | AP35: - | AQ35: 1163 | AR35: 97 | AS35: =PRODUCT((AJ35+AK35)/AI35) -> 39.3 % | AU35: Oulun Lippo Juniorit | AV35: 1 | AW35: 0 | AX35: =PRODUCT(AW35/AV35) -> 0.0 % | BI35: 33. | BJ35: 33. | BK35: Kannuksen Ura | BL35: 7 | BM35: 158 | BN35: 35 | BO35: 31 | BP35: 0 | BQ35: 29 | BR35: 63 | BS35: 1001 | BT35: - | BU35: 1111 | BV35: 196 | BW35: =PRODUCT((BN35+BO35)/BM35) -> 41.8 % | BY35: 33. | BZ35: 32. | CA35: Fera 2 | CB35: 8 | CC35: 128 | CD35: 34 | CE35: 34 | CF35: 0 | CG35: 16 | CH35: 44 | CI35: 1095 | CJ35: - | CK35: 1125 | CL35: 186 | CM35: =PRODUCT((CD35+CE35)/CC35) -> 53.1 % | CO35: 33. | CP35: 31. | CQ35: Sotkamon Jymy | CR35: 28 | CS35: 364 | CT35: 0 | CU35: 223 | CV35: 16 | CW35: 0 | CX35: 125 | CY35: 3458 | CZ35: - | DA35: 2249 | DB35: 462 | DC35: =PRODUCT((CT35+CU35)/CS35) -> 61.3 % | DE35: 33. | DF35: 41. | DG35: Kokemäen Kova-Väki | DH35: 16 | DI35: 225 | DJ35: 40 | DK35: 51 | DL35: 5 | DM35: 33 | DN35: 96 | DO35: 2303 | DP35: - | DQ35: 2704 | DR35: 260 | DS35: =PRODUCT((DJ35+DK35)/DI35) -> 40.4 % | DU35: =DI35-DJ35-DK35-DL35-DM35-DN35 -> 0
A36: 34. | B36: 34. | C36: Puurtilan Kisa-Pojat | D36: 8 | E36: 152 | F36: 0 | G36: 72 | H36: 8 | I36: 0 | J36: 72 | K36: 1098 | L36: - | M36: 1067 | N36: =PRODUCT(F36*3+G36*2+H36+I36) -> 152 | O36: =PRODUCT((F36+G36)/E36) -> 47.4 % | AE36: 34. | AF36: 33. | AG36: Kajaanin Hymy | AH36: 3 | AI36: 68 | AJ36: 19 | AK36: 11 | AL36: 0 | AM36: 12 | AN36: 26 | AO36: 533 | AP36: - | AQ36: 553 | AR36: 91 | AS36: =PRODUCT((AJ36+AK36)/AI36) -> 44.1 % | AU36: Vimpelin Veto | AV36: 1 | AW36: 0 | AX36: =PRODUCT(AW36/AV36) -> 0.0 % | BI36: 34. | BJ36: 34. | BK36: Pöytyän Urheilijat | BL36: 5 | BM36: 136 | BN36: 26 | BO36: 22 | BP36: 6 | BQ36: 30 | BR36: 52 | BS36: 848 | BT36: - | BU36: 958 | BV36: 158 | BW36: =PRODUCT((BN36+BO36)/BM36) -> 35.3 % | BY36: 34. | BZ36: 33. | CA36: Kymi-Pesis | CB36: 8 | CC36: 143 | CD36: 35 | CE36: 25 | CF36: 0 | CG36: 26 | CH36: 57 | CI36: 1276 | CJ36: - | CK36: 1454 | CL36: 181 | CM36: =PRODUCT((CD36+CE36)/CC36) -> 42.0 % | CO36: 34. | CP36: =CT36*3+CU36*2+5+38 -> 462 | CQ36: Kiteen Pallo-90 2 | CR36: 20 | CS36: 352 | CT36: 75 | CU36: 97 | CV36: 5 | CW36: 38 | CX36: 137 | CY36: 3076 | CZ36: - | DA36: 3162 | DB36: 462 | DC36: =PRODUCT((CT36+CU36)/CS36) -> 48.9 % | DE36: 34. | DF36: 32. | DG36: Reisjärven Pilke | DH36: 15 | DI36: 178 | DJ36: 39 | DK36: 65 | DL36: 2 | DM36: 6 | DN36: 66 | DO36: 2667 | DP36: - | DQ36: 1668 | DR36: 255 | DS36: =PRODUCT((DJ36+DK36)/DI36) -> 58.4 % | DU36: =DI36-DJ36-DK36-DL36-DM36-DN36 -> 0
A37: 35. | B37: 35. | C37: Toijalan Pallo-Veikot | D37: 14 | E37: 132 | F37: 0 | G37: 68 | H37: 11 | I37: 0 | J37: 53 | K37: 944 | L37: - | M37: 744 | N37: =PRODUCT(F37*3+G37*2+H37+I37) -> 147 | O37: =PRODUCT((F37+G37)/E37) -> 51.5 % | AE37: 35. | AF37: 34. | AG37: Hämeenkyrön Räpsä | AH37: 3 | AI37: 72 | AJ37: 18 | AK37: 11 | AL37: 0 | AM37: 13 | AN37: 30 | AO37: 417 | AP37: - | AQ37: 432 | AR37: 89 | AS37: =PRODUCT((AJ37+AK37)/AI37) -> 40.3 % | BI37: 35. | BJ37: 35. | BK37: Simon Kiri | BL37: 7 | BM37: 158 | BN37: 23 | BO37: 44 | BP37: 0 | BQ37: 26 | BR37: 65 | BS37: 977 | BT37: - | BU37: 1234 | BV37: 193 | BW37: =PRODUCT((BN37+BO37)/BM37) -> 42.4 % | BY37: 35. | BZ37: 42. | CA37: Siilinjärven Pesis | CB37: 6 | CC37: 116 | CD37: 20 | CE37: 50 | CF37: 0 | CG37: 18 | CH37: 28 | CI37: 1194 | CJ37: - | CK37: 747 | CL37: 178 | CM37: =PRODUCT((CD37+CE37)/CC37) -> 60.3 % | CO37: 35. | CP37: 33. | CQ37: Peräseinäjoen Toive | CR37: 22 | CS37: 434 | CT37: 52 | CU37: 137 | CV37: 7 | CW37: 23 | CX37: 215 | CY37: 3372 | CZ37: - | DA37: 4410 | DB37: 460 | DC37: =PRODUCT((CT37+CU37)/CS37) -> 43.5 % | DE37: 35. | DF37: 33. | DG37: Hämeenlinnan Paukku | DH37: 14 | DI37: 198 | DJ37: 47 | DK37: 51 | DL37: 1 | DM37: 9 | DN37: 90 | DO37: 2645 | DP37: - | DQ37: 2600 | DR37: 253 | DS37: =PRODUCT((DJ37+DK37)/DI37) -> 49.5 % | DU37: =DI37-DJ37-DK37-DL37-DM37-DN37 -> 0
A38: 36. | B38: 36. | C38: Helsingin Pallonlyöjät | D38: 14 | E38: 136 | F38: 0 | G38: 67 | H38: 11 | I38: 0 | J38: 58 | K38: 631 | L38: - | M38: 758 | N38: =PRODUCT(F38*3+G38*2+H38+I38) -> 145 | O38: =PRODUCT((F38+G38)/E38) -> 49.3 % | AE38: 36. | AF38: 35. | AG38: Vimpelin Veto | AH38: 5 | AI38: 114 | AJ38: 13 | AK38: 12 | AL38: 0 | AM38: 25 | AN38: 64 | AO38: 663 | AP38: - | AQ38: 1216 | AR38: 88 | AS38: =PRODUCT((AJ38+AK38)/AI38) -> 21.9 % | AU38: Vuosien 2004-2008 jatkosarjat sarakkeessa Puolivälierät | BI38: 36. | BJ38: 36. | BK38: Sotkamon Jymy 2 | BL38: 5 | BM38: 126 | BN38: 25 | BO38: 23 | BP38: 2 | BQ38: 27 | BR38: 49 | BS38: 775 | BT38: - | BU38: 881 | BV38: 150 | BW38: =PRODUCT((BN38+BO38)/BM38) -> 38.1 % | BY38: 36. | BZ38: 35. | CA38: Sotkamon Jymy | CB38: 4 | CC38: 82 | CD38: 40 | CE38: 17 | CF38: 3 | CG38: 8 | CH38: 14 | CI38: 982 | CJ38: - | CK38: 540 | CL38: 165 | CM38: =PRODUCT((CD38+CE38)/CC38) -> 69.5 % | CO38: 36. | CP38: 35. | CQ38: Vetelin Urheiljat | CR38: 18 | CS38: 342 | CT38: 65 | CU38: 108 | CV38: 16 | CW38: 13 | CX38: 140 | CY38: 2578 | CZ38: - | DA38: 2353 | DB38: 440 | DC38: =PRODUCT((CT38+CU38)/CS38) -> 50.6 % | DE38: 36. | DF38: 24. | DG38: Kempeleen Kiri 2 | DH38: 9 | DI38: 132 | DJ38: 60 | DK38: 28 | DL38: 0 | DM38: 10 | DN38: 34 | DO38: 1834 | DP38: - | DQ38: 1205 | DR38: 246 | DS38: =PRODUCT((DJ38+DK38)/DI38) -> 66.7 % | DU38: =DI38-DJ38-DK38-DL38-DM38-DN38 -> 0
A39: 37. | B39: 37. | C39: Kuusankosken Veto | D39: 10 | E39: 98 | F39: 0 | G39: 64 | H39: 6 | I39: 0 | J39: 28 | K39: 606 | L39: - | M39: 327 | N39: =PRODUCT(F39*3+G39*2+H39+I39) -> 134 | O39: =PRODUCT((F39+G39)/E39) -> 65.3 % | AE39: 37. | AF39: 37. | AG39: Loimaan Palloilijat | AH39: 12 | AI39: 96 | AJ39: 0 | AK39: 42 | AL39: 2 | AM39: 0 | AN39: 52 | AO39: 861 | AP39: - | AQ39: 1188 | AR39: 86 | AS39: =PRODUCT((AJ39+AK39)/AI39) -> 43.8 % | BI39: 37. | BJ39: 37. | BK39: Kauhajoen Karhu | BL39: 6 | BM39: 127 | BN39: 21 | BO39: 33 | BP39: 2 | BQ39: 16 | BR39: 55 | BS39: 684 | BT39: - | BU39: 764 | BV39: 147 | BW39: =PRODUCT((BN39+BO39)/BM39) -> 42.5 % | BY39: 37. | BZ39: 36. | CA39: Viinijärven Urheilijat 2 | CB39: 8 | CC39: 142 | CD39: 12 | CE39: 57 | CF39: 6 | CG39: 8 | CH39: 59 | CI39: 1348 | CJ39: - | CK39: 1519 | CL39: 164 | CM39: =PRODUCT((CD39+CE39)/CC39) -> 48.6 % | CO39: 37. | CP39: 37. | CQ39: Ilmajoen Kisailijat | CR39: 25 | CS39: 338 | CT39: 8 | CU39: 194 | CV39: 13 | CW39: 9 | CX39: 114 | CY39: 2966 | CZ39: - | DA39: 2272 | DB39: 434 | DC39: =PRODUCT((CT39+CU39)/CS39) -> 59.8 % | DE39: 37. | DF39: 35. | DG39: Vähänkyrön Viesti | DH39: 13 | DI39: 180 | DJ39: 41 | DK39: 50 | DL39: 2 | DM39: 20 | DN39: 67 | DO39: 1862 | DP39: - | DQ39: 1950 | DR39: 245 | DS39: =PRODUCT((DJ39+DK39)/DI39) -> 50.6 % | DU39: =DI39-DJ39-DK39-DL39-DM39-DN39 -> 0
A40: 38. | B40: 38. | C40: Kaisaniemen Tiikerit | D40: 2 | E40: 56 | F40: 34 | G40: 11 | H40: 0 | I40: 4 | J40: 7 | K40: 503 | L40: - | M40: 260 | N40: =PRODUCT(F40*3+G40*2+H40+I40) -> 128 | O40: =PRODUCT((F40+G40)/E40) -> 80.4 % | AE40: 38. | AF40: 38. | AG40: Kauhajoen Karhu | AH40: 10 | AI40: 105 | AJ40: 0 | AK40: 40 | AL40: 5 | AM40: 0 | AN40: 60 | AO40: 1049 | AP40: - | AQ40: 1244 | AR40: 85 | AS40: =PRODUCT((AJ40+AK40)/AI40) -> 38.1 % | BI40: 38. | BJ40: 38. | BK40: Pattijoen Urheilijat | BL40: 3 | BM40: 78 | BN40: 18 | BO40: 43 | BP40: 0 | BQ40: 3 | BR40: 14 | BS40: 744 | BT40: - | BU40: 400 | BV40: 143 | BW40: =PRODUCT((BN40+BO40)/BM40) -> 78.2 % | BY40: 38. | BZ40: 37. | CA40: Joensuun Maila | CB40: 7 | CC40: 108 | CD40: 37 | CE40: 20 | CF40: 2 | CG40: 9 | CH40: 40 | CI40: 1060 | CJ40: - | CK40: 1039 | CL40: 162 | CM40: =PRODUCT((CD40+CE40)/CC40) -> 52.8 % | CO40: 38. | CP40: 38. | CQ40: Ilomantsin Urheilijat | CR40: 25 | CS40: 432 | CT40: 0 | CU40: 205 | CV40: 24 | CW40: 0 | CX40: 203 | CY40: 3754 | CZ40: - | DA40: 3655 | DB40: 434 | DC40: =PRODUCT((CT40+CU40)/CS40) -> 47.5 % | DE40: 38. | DF40: 39. | DG40: Sotkamon Jymy | DH40: 13 | DI40: 174 | DJ40: 35 | DK40: 59 | DL40: 0 | DM40: 11 | DN40: 69 | DO40: 2153 | DP40: - | DQ40: 2105 | DR40: 234 | DS40: =PRODUCT((DJ40+DK40)/DI40) -> 54.0 % | DU40: =DI40-DJ40-DK40-DL40-DM40-DN40 -> 0
A41: 39. | B41: 39. | C41: Jyväskylän Pesä-Veikot | D41: 11 | E41: 152 | F41: 0 | G41: 54 | H41: 11 | I41: 0 | J41: 87 | K41: 922 | L41: - | M41: 1163 | N41: =PRODUCT(F41*3+G41*2+H41+I41) -> 119 | O41: =PRODUCT((F41+G41)/E41) -> 35.5 % | AE41: 39. | AF41: 39. | AG41: Vuokatin Veto | AH41: 6 | AI41: 48 | AJ41: 9 | AK41: 11 | AL41: 0 | AM41: 7 | AN41: 21 | AO41: 310 | AP41: - | AQ41: 390 | AR41: 56 | AS41: =PRODUCT((AJ41+AK41)/AI41) -> 41.7 % | BI41: 39. | BJ41: 39. | BK41: Halsuan Toivo | BL41: 7 | BM41: 166 | BN41: 8 | BO41: 50 | BP41: 10 | BQ41: 6 | BR41: 92 | BS41: 1028 | BT41: - | BU41: 1275 | BV41: 140 | BW41: =PRODUCT((BN41+BO41)/BM41) -> 34.9 % | BY41: 39. | BZ41: 43. | CA41: Viinijärven Urheilijat | CB41: 7 | CC41: 132 | CD41: 27 | CE41: 32 | CF41: 0 | CG41: 16 | CH41: 57 | CI41: 1012 | CJ41: - | CK41: 1190 | CL41: 161 | CM41: =PRODUCT((CD41+CE41)/CC41) -> 44.7 % | CO41: 39. | CP41: 39. | CQ41: Ylihärmän Junkkarit | CR41: 31 | CS41: 442 | CT41: 3 | CU41: 193 | CV41: 26 | CW41: 7 | CX41: 213 | CY41: 3187 | CZ41: - | DA41: 3344 | DB41: 428 | DC41: =PRODUCT((CT41+CU41)/CS41) -> 44.3 % | DE41: 39. | DF41: 37. | DG41: Hämeenkyrön Räpsä | DH41: 9 | DI41: 138 | DJ41: 51 | DK41: 36 | DL41: 1 | DM41: 7 | DN41: 43 | DO41: 1720 | DP41: - | DQ41: 1371 | DR41: 233 | DS41: =PRODUCT((DJ41+DK41)/DI41) -> 63.0 % | DU41: =DI41-DJ41-DK41-DL41-DM41-DN41 -> 0
A42: 40. | B42: 40. | C42: Tampereen Pyrintö | D42: 10 | E42: 116 | F42: 0 | G42: 50 | H42: 6 | I42: 0 | J42: 60 | K42: 559 | L42: - | M42: 654 | N42: =PRODUCT(F42*3+G42*2+H42+I42) -> 106 | O42: =PRODUCT((F42+G42)/E42) -> 43.1 % | AE42: 40. | AF42: 40. | AG42: Haminan Palloiljat | AH42: 4 | AI42: 88 | AJ42: 5 | AK42: 13 | AL42: 0 | AM42: 15 | AN42: 55 | AO42: 434 | AP42: - | AQ42: 952 | AR42: 56 | AS42: =PRODUCT((AJ42+AK42)/AI42) -> 20.5 % | BI42: 40. | BJ42: 40. | BK42: Ikaalisten Tarmo | BL42: 7 | BM42: 154 | BN42: 6 | BO42: 54 | BP42: 4 | BQ42: 7 | BR42: 83 | BS42: 936 | BT42: - | BU42: 1102 | BV42: 137 | BW42: =PRODUCT((BN42+BO42)/BM42) -> 39.0 % | BY42: 40. | BZ42: 38. | CA42: Vuokatin Veto | CB42: 5 | CC42: 72 | CD42: 42 | CE42: 12 | CF42: 0 | CG42: 8 | CH42: 10 | CI42: 970 | CJ42: - | CK42: 490 | CL42: 158 | CM42: =PRODUCT((CD42+CE42)/CC42) -> 75.0 % | CO42: 40. | CP42: 40. | CQ42: Kuusankosken Puhti | CR42: 18 | CS42: 306 | CT42: 15 | CU42: 169 | CV42: 13 | CW42: 19 | CX42: 90 | CY42: 2835 | CZ42: - | DA42: 2064 | DB42: 415 | DC42: =PRODUCT((CT42+CU42)/CS42) -> 60.1 % | DE42: 40. | DF42: 38. | DG42: Tyrnävän Tempaus | DH42: 11 | DI42: 160 | DJ42: 25 | DK42: 73 | DL42: 6 | DM42: 5 | DN42: 51 | DO42: 1758 | DP42: - | DQ42: 1245 | DR42: 232 | DS42: =PRODUCT((DJ42+DK42)/DI42) -> 61.3 % | DU42: =DI42-DJ42-DK42-DL42-DM42-DN42 -> 0
A43: 41. | B43: 41. | C43: Jyväskylän Lohi | D43: 7 | E43: 154 | F43: 0 | G43: 46 | H43: 13 | I43: 0 | J43: 95 | K43: 784 | L43: - | M43: 1154 | N43: =PRODUCT(F43*3+G43*2+H43+I43) -> 105 | O43: =PRODUCT((F43+G43)/E43) -> 29.9 % | AE43: 41. | AF43: 41. | AG43: Oulun Lipottaret | AH43: 2 | AI43: 52 | AJ43: 7 | AK43: 14 | AL43: 0 | AM43: 5 | AN43: 26 | AO43: 306 | AP43: - | AQ43: 374 | AR43: 54 | AS43: =PRODUCT((AJ43+AK43)/AI43) -> 40.4 % | BI43: 41. | BJ43: 41. | BK43: Lievestuoreen Kisa | BL43: 6 | BM43: 151 | BN43: 15 | BO43: 28 | BP43: 5 | BQ43: 28 | BR43: 75 | BS43: 773 | BT43: - | BU43: 1192 | BV43: 134 | BW43: =PRODUCT((BN43+BO43)/BM43) -> 28.5 % | BY43: 41. | BZ43: 46. | CA43: Janakkalan Jana | CB43: 9 | CC43: 174 | CD43: 24 | CE43: 23 | CF43: 0 | CG43: 30 | CH43: 97 | CI43: 997 | CJ43: - | CK43: 1625 | CL43: 148 | CM43: =PRODUCT((CD43+CE43)/CC43) -> 27.0 % | CO43: 41. | CP43: 41. | CQ43: Kouvolan Pallonlyöjät 2 | CR43: 18 | CS43: 271 | CT43: 94 | CU43: 51 | CV43: 6 | CW43: 19 | CX43: 101 | CY43: 2833 | CZ43: - | DA43: 2393 | DB43: 409 | DC43: =PRODUCT((CT43+CU43)/CS43) -> 53.5 % | DE43: 41. | DF43: 40. | DG43: Vaasan Maila | DH43: 14 | DI43: 200 | DJ43: 50 | DK43: 32 | DL43: 1 | DM43: 15 | DN43: 102 | DO43: 2053 | DP43: - | DQ43: 2663 | DR43: 230 | DS43: =PRODUCT((DJ43+DK43)/DI43) -> 41.0 % | DU43: =DI43-DJ43-DK43-DL43-DM43-DN43 -> 0
A44: 42. | B44: 42. | C44: Järvenpään Pesis | D44: 3 | E44: 83 | F44: 16 | G44: 19 | H44: 0 | I44: 15 | J44: 33 | K44: 468 | L44: - | M44: 575 | N44: =PRODUCT(F44*3+G44*2+H44+I44) -> 101 | O44: =PRODUCT((F44+G44)/E44) -> 42.2 % | AE44: 42. | AF44: 48. | AG44: Pöytyän Urheilijat | AH44: 3 | AI44: 72 | AJ44: 7 | AK44: 10 | AL44: 0 | AM44: 13 | AN44: 42 | AO44: 351 | AP44: - | AQ44: 636 | AR44: 54 | AS44: =PRODUCT((AJ44+AK44)/AI44) -> 23.6 % | BI44: 42. | BJ44: 42. | BK44: Loimaan Palloilijat Junioripesis | BL44: 6 | BM44: 130 | BN44: 19 | BO44: 27 | BP44: 0 | BQ44: 22 | BR44: 62 | BS44: 656 | BT44: - | BU44: 955 | BV44: 133 | BW44: =PRODUCT((BN44+BO44)/BM44) -> 35.4 % | BY44: 42. | BZ44: 39. | CA44: Mansen Pesäpallo | CB44: 4 | CC44: 78 | CD44: 26 | CE44: 32 | CF44: 1 | CG44: 1 | CH44: 18 | CI44: 1145 | CJ44: - | CK44: 677 | CL44: 144 | CM44: =PRODUCT((CD44+CE44)/CC44) -> 74.4 % | CO44: 42. | CP44: 42. | CQ44: Kinnarin Pesis 2006 | CR44: 15 | CS44: 246 | CT44: 94 | CU44: 45 | CV44: 2 | CW44: 19 | CX44: 86 | CY44: 2719 | CZ44: - | DA44: 2148 | DB44: 393 | DC44: =PRODUCT((CT44+CU44)/CS44) -> 56.5 % | DE44: 42. | DF44: 47. | DG44: Oulun Lippo Juniorit | DH44: 8 | DI44: 113 | DJ44: 55 | DK44: 23 | DL44: 0 | DM44: 15 | DN44: 20 | DO44: 1543 | DP44: - | DQ44: 904 | DR44: 226 | DS44: =PRODUCT((DJ44+DK44)/DI44) -> 69.0 % | DU44: =DI44-DJ44-DK44-DL44-DM44-DN44 -> 0
A45: 43. | B45: 43. | C45: Katajanokan Haukat | D45: 10 | E45: 122 | F45: 0 | G45: 47 | H45: 6 | I45: 0 | J45: 69 | K45: 585 | L45: - | M45: 730 | N45: =PRODUCT(F45*3+G45*2+H45+I45) -> 100 | O45: =PRODUCT((F45+G45)/E45) -> 38.5 % | AE45: 43. | AF45: 42. | AG45: Vetelin Urheilijat | AH45: 5 | AI45: 54 | AJ45: 0 | AK45: 24 | AL45: 4 | AM45: 0 | AN45: 26 | AO45: 525 | AP45: - | AQ45: 483 | AR45: 52 | AS45: =PRODUCT((AJ45+AK45)/AI45) -> 44.4 % | BI45: 43. | BJ45: 43. | BK45: Sotkamon Jymy | BL45: 4 | BM45: 84 | BN45: 0 | BO45: 61 | BP45: 8 | BQ45: 0 | BR45: 15 | BS45: 802 | BT45: - | BU45: 430 | BV45: 130 | BW45: =PRODUCT((BN45+BO45)/BM45) -> 72.6 % | BY45: 43. | BZ45: 40. | CA45: Mailattaret | CB45: 6 | CC45: 112 | CD45: 25 | CE45: 26 | CF45: 0 | CG45: 12 | CH45: 49 | CI45: 870 | CJ45: - | CK45: 1033 | CL45: 139 | CM45: =PRODUCT((CD45+CE45)/CC45) -> 45.5 % | CO45: 43. | CP45: 43. | CQ45: Kuortaneen Kunto | CR45: 21 | CS45: 378 | CT45: 40 | CU45: 119 | CV45: 10 | CW45: 20 | CX45: 189 | CY45: 2954 | CZ45: - | DA45: 3453 | DB45: 388 | DC45: =PRODUCT((CT45+CU45)/CS45) -> 42.1 % | DE45: 43. | DF45: 42. | DG45: Viinijärven Urheilijat | DH45: 12 | DI45: 137 | DJ45: 25 | DK45: 64 | DL45: 3 | DM45: 7 | DN45: 38 | DO45: 2131 | DP45: - | DQ45: 1181 | DR45: 213 | DS45: =PRODUCT((DJ45+DK45)/DI45) -> 65.0 % | DU45: =DI45-DJ45-DK45-DL45-DM45-DN45 -> 0
A46: 44. | B46: 44. | C46: Myllykosken Kilpa-Veikot | D46: 10 | E46: 116 | F46: 0 | G46: 42 | H46: 11 | I46: 0 | J46: 63 | K46: 626 | L46: - | M46: 886 | N46: =PRODUCT(F46*3+G46*2+H46+I46) -> 95 | O46: =PRODUCT((F46+G46)/E46) -> 36.2 % | AE46: 44. | AF46: 43. | AG46: Kajaanin Pallokerho | AH46: 2 | AI46: 48 | AJ46: 6 | AK46: 11 | AL46: 0 | AM46: 5 | AN46: 26 | AO46: 275 | AP46: - | AQ46: 395 | AR46: 45 | AS46: =PRODUCT((AJ46+AK46)/AI46) -> 35.4 % | BI46: 44. | BJ46: 44. | BK46: Mansen Haukat | BL46: 4 | BM46: 90 | BN46: 30 | BO46: 10 | BP46: 0 | BQ46: 20 | BR46: 30 | BS46: 551 | BT46: - | BU46: 587 | BV46: 130 | BW46: =PRODUCT((BN46+BO46)/BM46) -> 44.4 % | BY46: 44. | BZ46: 41. | CA46: Köyliön Lallit | CB46: 6 | CC46: 96 | CD46: 32 | CE46: 14 | CF46: 0 | CG46: 12 | CH46: 38 | CI46: 943 | CJ46: - | CK46: 817 | CL46: 136 | CM46: =PRODUCT((CD46+CE46)/CC46) -> 47.9 % | CO46: 44. | CP46: 44. | CQ46: Juvan Pallo | CR46: 21 | CS46: 341 | CT46: 28 | CU46: 139 | CV46: 15 | CW46: 6 | CX46: 153 | CY46: 2792 | CZ46: - | DA46: 2665 | DB46: 383 | DC46: =PRODUCT((CT46+CU46)/CS46) -> 49.0 % | DE46: 44. | DF46: 43. | DG46: Seinäjoen Maila-Jussit | DH46: 11 | DI46: 148 | DJ46: 32 | DK46: 52 | DL46: 6 | DM46: 6 | DN46: 52 | DO46: 1970 | DP46: - | DQ46: 1604 | DR46: 212 | DS46: =PRODUCT((DJ46+DK46)/DI46) -> 56.8 % | DU46: =DI46-DJ46-DK46-DL46-DM46-DN46 -> 0
A47: 45. | B47: 45. | C47: Kuusankosken Puhti | D47: 10 | E47: 122 | F47: 0 | G47: 39 | H47: 17 | I47: 0 | J47: 66 | K47: 465 | L47: - | M47: 702 | N47: =PRODUCT(F47*3+G47*2+H47+I47) -> 95 | O47: =PRODUCT((F47+G47)/E47) -> 32.0 % | AE47: 45. | AF47: 44. | AG47: Oulun Lippo Juniorit | AH47: 2 | AI47: 48 | AJ47: 7 | AK47: 10 | AL47: 0 | AM47: 4 | AN47: 27 | AO47: 251 | AP47: - | AQ47: 492 | AR47: 45 | AS47: =PRODUCT((AJ47+AK47)/AI47) -> 35.4 % | BI47: 45. | BJ47: 45. | BK47: Puijon Pesäpallo | BL47: 2 | BM47: 52 | BN47: 36 | BO47: 7 | BP47: 0 | BQ47: 3 | BR47: 6 | BS47: 520 | BT47: - | BU47: 194 | BV47: 125 | BW47: =PRODUCT((BN47+BO47)/BM47) -> 82.7 % | BY47: 45. | BZ47: 53. | CA47: Kuusankosken Puhti | CB47: 5 | CC47: 112 | CD47: 27 | CE47: 14 | CF47: 0 | CG47: 23 | CH47: 48 | CI47: 930 | CJ47: - | CK47: 1176 | CL47: 132 | CM47: =PRODUCT((CD47+CE47)/CC47) -> 36.6 % | CO47: 45. | CP47: 50. | CQ47: Alajärven Ankkurit | CR47: 28 | CS47: 331 | CT47: 22 | CU47: 145 | CV47: 15 | CW47: 7 | CX47: 142 | CY47: 2891 | CZ47: - | DA47: 2495 | DB47: 378 | DC47: =PRODUCT((CT47+CU47)/CS47) -> 50.5 % | DE47: 45. | DF47: 44. | DG47: Jyväskylän Kirittäret 2 | DH47: 7 | DI47: 96 | DJ47: 52 | DK47: 20 | DL47: 0 | DM47: 12 | DN47: 12 | DO47: 1439 | DP47: - | DQ47: 804 | DR47: 208 | DS47: =PRODUCT((DJ47+DK47)/DI47) -> 75.0 % | DU47: =DI47-DJ47-DK47-DL47-DM47-DN47 -> 0
A48: 46. | B48: 46. | C48: Haapajärven Pesä-Kiilat | D48: 3 | E48: 85 | F48: 17 | G48: 8 | H48: 0 | I48: 17 | J48: 43 | K48: 447 | L48: - | M48: 616 | N48: =PRODUCT(F48*3+G48*2+H48+I48) -> 84 | O48: =PRODUCT((F48+G48)/E48) -> 29.4 % | AE48: 46. | AF48: 45. | AG48: Keravan Pallokerho | AH48: 6 | AI48: 76 | AJ48: 0 | AK48: 20 | AL48: 4 | AM48: 0 | AN48: 52 | AO48: 580 | AP48: - | AQ48: 1265 | AR48: 44 | AS48: =PRODUCT((AJ48+AK48)/AI48) -> 26.3 % | BI48: 46. | BJ48: 46. | BK48: Helsingin Puna-Mustat | BL48: 7 | BM48: 154 | BN48: 25 | BO48: 38 | BP48: 1 | BQ48: 19 | BR48: 71 | BS48: 981 | BT48: - | BU48: 1307 | BV48: 171 | BW48: =PRODUCT((BN48+BO48)/BM48) -> 40.9 % | BY48: 46. | BZ48: 44. | CA48: Siilinjärven Pesis 2 | CB48: 7 | CC48: 132 | CD48: 25 | CE48: 19 | CF48: 0 | CG48: 16 | CH48: 72 | CI48: 1149 | CJ48: - | CK48: 1718 | CL48: 129 | CM48: =PRODUCT((CD48+CE48)/CC48) -> 33.3 % | CO48: 46. | CP48: 45. | CQ48: Tyrnävän Tempaus | CR48: 26 | CS48: 424 | CT48: 29 | CU48: 132 | CV48: 15 | CW48: 9 | CX48: 239 | CY48: 2919 | CZ48: - | DA48: 3701 | DB48: 375 | DC48: =PRODUCT((CT48+CU48)/CS48) -> 38.0 % | DE48: 46. | DF48: 50. | DG48: Siilinjärven Pesis | DH48: 8 | DI48: 114 | DJ48: 50 | DK48: 22 | DL48: 0 | DM48: 13 | DN48: 29 | DO48: 1560 | DP48: - | DQ48: 1093 | DR48: 207 | DS48: =PRODUCT((DJ48+DK48)/DI48) -> 63.2 % | DU48: =DI48-DJ48-DK48-DL48-DM48-DN48 -> 0
A49: 47. | B49: 47. | C49: Oulun Lippo Pesis | D49: 3 | E49: 92 | F49: 15 | G49: 11 | H49: 0 | I49: 17 | J49: 49 | K49: 616 | L49: - | M49: 955 | N49: 84 | O49: =PRODUCT((F49+G49)/E49) -> 28.3 % | AE49: 47. | AF49: 46. | AG49: Helsingin Veto | AH49: 8 | AI49: 60 | AJ49: 0 | AK49: 20 | AL49: 1 | AM49: 0 | AN49: 39 | AO49: 474 | AP49: - | AQ49: 680 | AR49: 41 | AS49: =PRODUCT((AJ49+AK49)/AI49) -> 33.3 % | BI49: 47. | BJ49: 47. | BK49: Riihimäen Pallonlyöjät (1999) | BL49: 4 | BM49: 86 | BN49: 19 | BO49: 24 | BP49: 0 | BQ49: 15 | BR49: 28 | BS49: 651 | BT49: - | BU49: 654 | BV49: 120 | BW49: =PRODUCT((BN49+BO49)/BM49) -> 50.0 % | BY49: 47. | BZ49: 45. | CA49: Mailajuniorit | CB49: 7 | CC49: 136 | CD49: 16 | CE49: 26 | CF49: 0 | CG49: 28 | CH49: 66 | CI49: 875 | CJ49: - | CK49: 1294 | CL49: 128 | CM49: =PRODUCT((CD49+CE49)/CC49) -> 30.9 % | CO49: 47. | CP49: 46. | CQ49: Oulun Lippo | CR49: 15 | CS49: 210 | CT49: 0 | CU49: 177 | CV49: 8 | CW49: 0 | CX49: 25 | CY49: 2517 | CZ49: - | DA49: 1006 | DB49: 362 | DC49: =PRODUCT((CT49+CU49)/CS49) -> 84.3 % | DE49: 47. | DF49: 45. | DG49: Puurtilan Kisa-Pojat | DH49: 16 | DI49: 193 | DJ49: 24 | DK49: 53 | DL49: 4 | DM49: 22 | DN49: 90 | DO49: 1899 | DP49: - | DQ49: 2269 | DR49: 204 | DS49: =PRODUCT((DJ49+DK49)/DI49) -> 39.9 % | DU49: =DI49-DJ49-DK49-DL49-DM49-DN49 -> 0
A50: 48. | B50: 48. | C50: Juvan Pallo | D50: 3 | E50: 85 | F50: 14 | G50: 13 | H50: 0 | I50: 15 | J50: 43 | K50: 387 | L50: - | M50: 658 | N50: =PRODUCT(F50*3+G50*2+H50+I50) -> 83 | O50: =PRODUCT((F50+G50)/E50) -> 31.8 % | AE50: 48. | AF50: 47. | AG50: Kankaanpään Maila | AH50: 1 | AI50: 24 | AJ50: 10 | AK50: 2 | AL50: 0 | AM50: 3 | AN50: 9 | AO50: 169 | AP50: - | AQ50: 113 | AR50: 37 | AS50: =PRODUCT((AJ50+AK50)/AI50) -> 50.0 % | BI50: 48. | BJ50: 48. | BK50: Tohmajärven Urheilijat | BL50: 6 | BM50: 128 | BN50: 0 | BO50: 53 | BP50: 11 | BQ50: 0 | BR50: 64 | BS50: 771 | BT50: - | BU50: 842 | BV50: 117 | BW50: =PRODUCT((BN50+BO50)/BM50) -> 41.4 % | BY50: 48. | BZ50: 47. | CA50: Kajaanin Hymy | CB50: 3 | CC50: 61 | CD50: 29 | CE50: 5 | CF50: 0 | CG50: 10 | CH50: 17 | CI50: 712 | CJ50: - | CK50: 452 | CL50: 107 | CM50: =PRODUCT((CD50+CE50)/CC50) -> 55.7 % | CO50: 48. | CP50: 47. | CQ50: Jyväskylän Valo | CR50: 18 | CS50: 332 | CT50: 74 | CU50: 54 | CV50: 1 | CW50: 28 | CX50: 175 | CY50: 2422 | CZ50: - | DA50: 3237 | DB50: 359 | DC50: =PRODUCT((CT50+CU50)/CS50) -> 38.6 % | DE50: 48. | DF50: 46. | DG50: Lohjan Kisa-Veikot | DH50: 13 | DI50: 162 | DJ50: 9 | DK50: 83 | DL50: 2 | DM50: 8 | DN50: 60 | DO50: 1980 | DP50: - | DQ50: 1748 | DR50: 203 | DS50: =PRODUCT((DJ50+DK50)/DI50) -> 56.8 % | DU50: =DI50-DJ50-DK50-DL50-DM50-DN50 -> 0
A51: 49. | B51: 49. | C51: Viipurin Pallonlyöjät | D51: 8 | E51: 68 | F51: 0 | G51: 29 | H51: 9 | I51: 0 | J51: 30 | K51: 293 | L51: - | M51: 264 | N51: =PRODUCT(F51*3+G51*2+H51+I51) -> 67 | O51: =PRODUCT((F51+G51)/E51) -> 42.6 % | AE51: 49. | AF51: 49. | AG51: Mynämäen Vesa | AH51: 3 | AI51: 66 | AJ51: 1 | AK51: 7 | AL51: 0 | AM51: 13 | AN51: 45 | AO51: 299 | AP51: - | AQ51: 740 | AR51: 30 | AS51: =PRODUCT((AJ51+AK51)/AI51) -> 12.1 % | BI51: 49. | BJ51: 49. | BK51: Kouvolan Pallonlyöjät 2 | BL51: 4 | BM51: 96 | BN51: 30 | BO51: 22 | BP51: 0 | BQ51: 15 | BR51: 29 | BS51: 690 | BT51: - | BU51: 637 | BV51: 149 | BW51: =PRODUCT((BN51+BO51)/BM51) -> 54.2 % | BY51: 49. | BZ51: 48. | CA51: Kiteen Pallo-90 | CB51: 4 | CC51: 74 | CD51: 17 | CE51: 24 | CF51: 0 | CG51: 8 | CH51: 25 | CI51: 623 | CJ51: - | CK51: 605 | CL51: 107 | CM51: =PRODUCT((CD51+CE51)/CC51) -> 55.4 % | CO51: 49. | CP51: 55. | CQ51: Joensuun Maila 2 | CR51: 17 | CS51: 260 | CT51: 72 | CU51: 53 | CV51: 0 | CW51: 32 | CX51: 103 | CY51: 2437 | CZ51: - | DA51: 2581 | DB51: 354 | DC51: =PRODUCT((CT51+CU51)/CS51) -> 48.1 % | DE51: 49. | DF51: 48. | DG51: Hyvinkään Tahko | DH51: 8 | DI51: 118 | DJ51: 56 | DK51: 9 | DL51: 1 | DM51: 10 | DN51: 42 | DO51: 1709 | DP51: - | DQ51: 1520 | DR51: 197 | DS51: =PRODUCT((DJ51+DK51)/DI51) -> 55.1 % | DU51: =DI51-DJ51-DK51-DL51-DM51-DN51 -> 0
A52: 50. | B52: 50. | C52: Outokummun Partio | D52: 4 | E52: 80 | F52: 0 | G52: 29 | H52: 6 | I52: 0 | J52: 45 | K52: 515 | L52: - | M52: 672 | N52: =PRODUCT(F52*3+G52*2+H52+I52) -> 64 | O52: =PRODUCT((F52+G52)/E52) -> 36.3 % | AE52: 50. | AF52: 50. | AG52: Vaasan Maila | AH52: 5 | AI52: 32 | AJ52: 0 | AK52: 13 | AL52: 3 | AM52: 0 | AN52: 16 | AO52: 220 | AP52: - | AQ52: 255 | AR52: 29 | AS52: =PRODUCT((AJ52+AK52)/AI52) -> 40.6 % | BI52: 50. | BJ52: 50. | BK52: Ylistaron Kilpa-Veljet | BL52: 4 | BM52: 87 | BN52: 20 | BO52: 14 | BP52: 0 | BQ52: 15 | BR52: 38 | BS52: 505 | BT52: - | BU52: 724 | BV52: 103 | BW52: =PRODUCT((BN52+BO52)/BM52) -> 39.1 % | BY52: 50. | BZ52: 49. | CA52: Pesä Ysit 2 | CB52: 4 | CC52: 56 | CD52: 31 | CE52: 4 | CF52: 0 | CG52: 4 | CH52: 17 | CI52: 769 | CJ52: - | CK52: 491 | CL52: 105 | CM52: =PRODUCT((CD52+CE52)/CC52) -> 62.5 % | CO52: 50. | CP52: 48. | CQ52: Ylistaron Kilpa-Veljet | CR52: 18 | CS52: 252 | CT52: 71 | CU52: 53 | CV52: 1 | CW52: 31 | CX52: 96 | CY52: 2325 | CZ52: - | DA52: 2279 | DB52: 351 | DC52: =PRODUCT((CT52+CU52)/CS52) -> 49.2 % | DE52: 50. | DF52: 49. | DG52: Vihdin Pallo 2 | DH52: 13 | DI52: 186 | DJ52: 40 | DK52: 29 | DL52: 1 | DM52: 17 | DN52: 99 | DO52: 2337 | DP52: - | DQ52: 3152 | DR52: 196 | DS52: =PRODUCT((DJ52+DK52)/DI52) -> 37.1 % | DU52: =DI52-DJ52-DK52-DL52-DM52-DN52 -> 0
A53: 51. | B53: 51. | C53: Halsuan Toivo | D53: 4 | E53: 80 | F53: 0 | G53: 25 | H53: 3 | I53: 0 | J53: 52 | K53: 505 | L53: - | M53: 663 | N53: =PRODUCT(F53*3+G53*2+H53+I53) -> 53 | O53: =PRODUCT((F53+G53)/E53) -> 31.3 % | AE53: 51. | AF53: 51. | AG53: Lappajärven Veikot | AH53: 3 | AI53: 76 | AJ53: 3 | AK53: 7 | AL53: 0 | AM53: 4 | AN53: 62 | AO53: 275 | AP53: - | AQ53: 903 | AR53: 27 | AS53: =PRODUCT((AJ53+AK53)/AI53) -> 13.2 % | BI53: 51. | BJ53: 51. | BK53: Manse PP | BL53: 4 | BM53: 88 | BN53: 22 | BO53: 10 | BP53: 0 | BQ53: 16 | BR53: 40 | BS53: 512 | BT53: - | BU53: 598 | BV53: 102 | BW53: =PRODUCT((BN53+BO53)/BM53) -> 36.4 % | BY53: 51. | BZ53: 50. | CA53: Jyväskylän Lohi | CB53: 4 | CC53: 74 | CD53: 17 | CE53: 19 | CF53: 0 | CG53: 16 | CH53: 22 | CI53: 608 | CJ53: - | CK53: 684 | CL53: 105 | CM53: =PRODUCT((CD53+CE53)/CC53) -> 48.6 % | CO53: 51. | CP53: 49. | CQ53: Kajaanin Pallokerho | CR53: 21 | CS53: 374 | CT53: 33 | CU53: 112 | CV53: 11 | CW53: 15 | CX53: 203 | CY53: 2926 | CZ53: - | DA53: 3669 | DB53: 349 | DC53: =PRODUCT((CT53+CU53)/CS53) -> 38.8 % | DE53: 51. | DF53: 51. | DG53: Helsingin Puna-Mustat | DH53: 11 | DI53: 164 | DJ53: 43 | DK53: 21 | DL53: 0 | DM53: 21 | DN53: 79 | DO53: 1883 | DP53: - | DQ53: 2486 | DR53: 192 | DS53: =PRODUCT((DJ53+DK53)/DI53) -> 39.0 % | DU53: =DI53-DJ53-DK53-DL53-DM53-DN53 -> 0
A54: 52. | B54: 68. | C54: Alajärven Ankkuritpesis | D54: 2 | E54: 61 | F54: 4 | G54: 12 | H54: 0 | I54: 7 | J54: 38 | K54: 294 | L54: - | M54: 545 | N54: 43 | O54: =PRODUCT((F54+G54)/E54) -> 26.2 % | AE54: 52. | AF54: 52. | AG54: Lapuan Kiri | AH54: 4 | AI54: 30 | AJ54: 0 | AK54: 12 | AL54: 1 | AM54: 0 | AN54: 17 | AO54: 194 | AP54: - | AQ54: 295 | AR54: 25 | AS54: =PRODUCT((AJ54+AK54)/AI54) -> 40.0 % | BI54: 52. | BJ54: 52. | BK54: Mansen Pesäpallo | BL54: 3 | BM54: 74 | BN54: 0 | BO54: 48 | BP54: 3 | BQ54: 0 | BR54: 23 | BS54: 644 | BT54: - | BU54: 426 | BV54: 99 | BW54: =PRODUCT((BN54+BO54)/BM54) -> 64.9 % | BY54: 52. | BZ54: 51. | CA54: Peräseinäjoen Toive | CB54: 2 | CC54: 44 | CD54: 27 | CE54: 4 | CF54: 0 | CG54: 7 | CH54: 6 | CI54: 597 | CJ54: - | CK54: 283 | CL54: 96 | CM54: =PRODUCT((CD54+CE54)/CC54) -> 70.5 % | CO54: 52. | CP54: 51. | CQ54: Kuopion Kelta-Mustat | CR54: 19 | CS54: 263 | CT54: 34 | CU54: 113 | CV54: 10 | CW54: 9 | CX54: 97 | CY54: 2288 | CZ54: - | DA54: 1814 | DB54: 347 | DC54: =PRODUCT((CT54+CU54)/CS54) -> 55.9 % | DE54: 52. | DF54: 52. | DG54: Toholammin Urheilijat | DH54: 10 | DI54: 128 | DJ54: 24 | DK54: 55 | DL54: 4 | DM54: 5 | DN54: 40 | DO54: 1644 | DP54: - | DQ54: 1177 | DR54: 191 | DS54: =PRODUCT((DJ54+DK54)/DI54) -> 61.7 % | DU54: =DI54-DJ54-DK54-DL54-DM54-DN54 -> 0
A55: 53. | B55: 52. | C55: Keravan KooPee | D55: 5 | E55: 52 | F55: 0 | G55: 21 | H55: 0 | I55: 0 | J55: 31 | K55: 276 | L55: - | M55: 339 | N55: =PRODUCT(F55*3+G55*2+H55+I55) -> 42 | O55: =PRODUCT((F55+G55)/E55) -> 40.4 % | AE55: 53. | AF55: 53. | AG55: Sotkamon Jymy | AH55: 2 | AI55: 40 | AJ55: 3 | AK55: 3 | AL55: 0 | AM55: 3 | AN55: 31 | AO55: 189 | AP55: - | AQ55: 498 | AR55: 18 | AS55: =PRODUCT((AJ55+AK55)/AI55) -> 15.0 % | BI55: 53. | BJ55: 53. | BK55: Maaningan Mahti | BL55: 3 | BM55: 78 | BN55: 18 | BO55: 14 | BP55: 5 | BQ55: 10 | BR55: 31 | BS55: 525 | BT55: - | BU55: 557 | BV55: 97 | BW55: =PRODUCT((BN55+BO55)/BM55) -> 41.0 % | BY55: 53. | BZ55: 64. | CA55: Seinäjoen Maila-Jussit 2 | CB55: 3 | CC55: 67 | CD55: 11 | CE55: 26 | CF55: 0 | CG55: 9 | CH55: 21 | CI55: 579 | CJ55: - | CK55: 593 | CL55: 94 | CM55: =PRODUCT((CD55+CE55)/CC55) -> 55.2 % | CO55: 53. | CP55: 52. | CQ55: Kankaanpään Maila 2 | CR55: 18 | CS55: 330 | CT55: 57 | CU55: 66 | CV55: 1 | CW55: 42 | CX55: 164 | CY55: 2241 | CZ55: - | DA55: 3325 | DB55: 346 | DC55: =PRODUCT((CT55+CU55)/CS55) -> 37.3 % | DE55: 53. | DF55: 56. | DG55: Kiteen Pallo-90 | DH55: 8 | DI55: 114 | DJ55: 46 | DK55: 17 | DL55: 0 | DM55: 16 | DN55: 35 | DO55: 1355 | DP55: - | DQ55: 1221 | DR55: 188 | DS55: =PRODUCT((DJ55+DK55)/DI55) -> 55.3 % | DU55: =DI55-DJ55-DK55-DL55-DM55-DN55 -> 0
A56: 54. | B56: 53. | C56: Kotkan Into | D56: 4 | E56: 40 | F56: 0 | G56: 18 | H56: 4 | I56: 0 | J56: 18 | K56: 145 | L56: - | M56: 199 | N56: =PRODUCT(F56*3+G56*2+H56+I56) -> 40 | O56: =PRODUCT((F56+G56)/E56) -> 45.0 % | AE56: 54. | AF56: 54. | AG56: Nurmon Jymy | AH56: 3 | AI56: 32 | AJ56: 0 | AK56: 8 | AL56: 0 | AM56: 0 | AN56: 24 | AO56: 220 | AP56: - | AQ56: 281 | AR56: 16 | AS56: =PRODUCT((AJ56+AK56)/AI56) -> 25.0 % | BI56: 54. | BJ56: 54. | BK56: Kuusankosken Puhti | BL56: 4 | BM56: 98 | BN56: 10 | BO56: 28 | BP56: 2 | BQ56: 9 | BR56: 49 | BS56: 682 | BT56: - | BU56: 811 | BV56: 97 | BW56: =PRODUCT((BN56+BO56)/BM56) -> 38.8 % | BY56: 54. | BZ56: 52. | CA56: Raksilan Likat | CB56: 2 | CC56: 44 | CD56: 20 | CE56: 12 | CF56: 0 | CG56: 9 | CH56: 3 | CI56: 457 | CJ56: - | CK56: 269 | CL56: 93 | CM56: =PRODUCT((CD56+CE56)/CC56) -> 72.7 % | CO56: 54. | CP56: 53. | CQ56: Seinäjoen Maila-Jussit 2 | CR56: 15 | CS56: 262 | CT56: 48 | CU56: 82 | CV56: 9 | CW56: 13 | CX56: 110 | CY56: 2125 | CZ56: - | DA56: 2031 | DB56: 330 | DC56: =PRODUCT((CT56+CU56)/CS56) -> 49.6 % | DE56: 54. | DF56: 70. | DG56: Espoon Pesis | DH56: 9 | DI56: 145 | DJ56: 39 | DK56: 25 | DL56: 0 | DM56: 17 | DN56: 64 | DO56: 1424 | DP56: - | DQ56: 1743 | DR56: 184 | DS56: =PRODUCT((DJ56+DK56)/DI56) -> 44.1 % | DU56: =DI56-DJ56-DK56-DL56-DM56-DN56 -> 0
A57: 55. | B57: 54. | C57: Enson Kisailijat | D57: 5 | E57: 46 | F57: 0 | G57: 18 | H57: 2 | I57: 0 | J57: 26 | K57: 213 | L57: - | M57: 262 | N57: =PRODUCT(F57*3+G57*2+H57+I57) -> 38 | O57: =PRODUCT((F57+G57)/E57) -> 39.1 % | AE57: 55. | AF57: 55. | AG57: Puurtilan Kisa-Pojat | AH57: 2 | AI57: 20 | AJ57: 0 | AK57: 7 | AL57: 1 | AM57: 0 | AN57: 12 | AO57: 235 | AP57: - | AQ57: 326 | AR57: 15 | AS57: =PRODUCT((AJ57+AK57)/AI57) -> 35.0 % | BI57: 55. | BJ57: 55. | BK57: RPL-Riihimäki | BL57: 2 | BM57: 52 | BN57: 25 | BO57: 6 | BP57: 0 | BQ57: 9 | BR57: 12 | BS57: 371 | BT57: - | BU57: 289 | BV57: 96 | BW57: =PRODUCT((BN57+BO57)/BM57) -> 59.6 % | BY57: 55. | BZ57: 54. | CA57: Oulun Lippo | CB57: 4 | CC57: 48 | CD57: 8 | CE57: 31 | CF57: 1 | CG57: 2 | CH57: 6 | CI57: 626 | CJ57: - | CK57: 301 | CL57: 89 | CM57: =PRODUCT((CD57+CE57)/CC57) -> 81.3 % | CO57: 55. | CP57: 54. | CQ57: Nurmeksen Sepot | CR57: 23 | CS57: 309 | CT57: 18 | CU57: 125 | CV57: 8 | CW57: 14 | CX57: 144 | CY57: 2530 | CZ57: - | DA57: 2497 | DB57: 326 | DC57: =PRODUCT((CT57+CU57)/CS57) -> 46.3 % | DE57: 55. | DF57: 58. | DG57: Joensuun Maila | DH57: 14 | DI57: 175 | DJ57: 28 | DK57: 37 | DL57: 3 | DM57: 20 | DN57: 87 | DO57: 1585 | DP57: - | DQ57: 2090 | DR57: 181 | DS57: =PRODUCT((DJ57+DK57)/DI57) -> 37.1 % | DU57: =DI57-DJ57-DK57-DL57-DM57-DN57 -> 0
A58: 56. | B58: 55. | C58: Muhoksen Pallo-Salamat | D58: 3 | E58: 66 | F58: 3 | G58: 10 | H58: 2 | I58: 3 | J58: 48 | K58: 380 | L58: - | M58: 584 | N58: =PRODUCT(F58*3+G58*2+H58+I58) -> 34 | O58: =PRODUCT((F58+G58)/E58) -> 19.7 % | AE58: 56. | AF58: 56. | AG58: Hämeenlinnan Paukku | AH58: 3 | AI58: 40 | AJ58: 0 | AK58: 5 | AL58: 0 | AM58: 5 | AN58: 30 | AO58: 251 | AP58: - | AQ58: 578 | AR58: 15 | AS58: =PRODUCT((AJ58+AK58)/AI58) -> 12.5 % | BI58: 56. | BJ58: 56. | BK58: Hakunilan Kisa | BL58: 3 | BM58: 66 | BN58: 9 | BO58: 30 | BP58: 2 | BQ58: 1 | BR58: 24 | BS58: 516 | BT58: - | BU58: 422 | BV58: 90 | BW58: =PRODUCT((BN58+BO58)/BM58) -> 59.1 % | BY58: 56. | BZ58: 55. | CA58: Haapajärven Pesä-Kiilat | CB58: 6 | CC58: 91 | CD58: 15 | CE58: 16 | CF58: 0 | CG58: 10 | CH58: 50 | CI58: 791 | CJ58: - | CK58: 1222 | CL58: 87 | CM58: =PRODUCT((CD58+CE58)/CC58) -> 34.1 % | CO58: 56. | CP58: 63. | CQ58: Manse PP | CR58: 11 | CS58: 202 | CT58: 74 | CU58: 41 | CV58: 0 | CW58: 18 | CX58: 69 | CY58: 2125 | CZ58: - | DA58: 1906 | DB58: 322 | DC58: =PRODUCT((CT58+CU58)/CS58) -> 56.9 % | DE58: 56. | DF58: 53. | DG58: Kymi-Pesis | DH58: 8 | DI58: 112 | DJ58: 46 | DK58: 17 | DL58: 3 | DM58: 5 | DN58: 41 | DO58: 1607 | DP58: - | DQ58: 1147 | DR58: 180 | DS58: =PRODUCT((DJ58+DK58)/DI58) -> 56.3 % | DU58: =DI58-DJ58-DK58-DL58-DM58-DN58 -> 0
A59: 57. | B59: 56. | C59: Tainionkosken Urheilijat | D59: 4 | E59: 48 | F59: 0 | G59: 15 | H59: 3 | I59: 0 | J59: 30 | K59: 224 | L59: - | M59: 328 | N59: =PRODUCT(F59*3+G59*2+H59+I59) -> 33 | O59: =PRODUCT((F59+G59)/E59) -> 31.3 % | AE59: 57. | AF59: 57. | AG59: Tampereen Pyrintö | AH59: 4 | AI59: 34 | AJ59: 0 | AK59: 6 | AL59: 1 | AM59: 0 | AN59: 27 | AO59: 226 | AP59: - | AQ59: 553 | AR59: 13 | AS59: =PRODUCT((AJ59+AK59)/AI59) -> 17.6 % | BI59: 57. | BJ59: 57. | BK59: Oulun Lippo | BL59: 5 | BM59: 104 | BN59: 0 | BO59: 42 | BP59: 4 | BQ59: 0 | BR59: 58 | BS59: 831 | BT59: - | BU59: 855 | BV59: 88 | BW59: =PRODUCT((BN59+BO59)/BM59) -> 40.4 % | BY59: 57. | BZ59: 56. | CA59: Vimpelin Veto | CB59: 3 | CC59: 44 | CD59: 19 | CE59: 9 | CF59: 0 | CG59: 2 | CH59: 14 | CI59: 586 | CJ59: - | CK59: 353 | CL59: 77 | CM59: =PRODUCT((CD59+CE59)/CC59) -> 63.6 % | CO59: 57. | CP59: 56. | CQ59: Tohmajärven Urheilijat | CR59: 15 | CS59: 272 | CT59: 0 | CU59: 151 | CV59: 14 | CW59: 0 | CX59: 107 | CY59: 2363 | CZ59: - | DA59: 1948 | DB59: 316 | DC59: =PRODUCT((CT59+CU59)/CS59) -> 55.5 % | DE59: 57. | DF59: 54. | DG59: Laitilan Jyske | DH59: 8 | DI59: 119 | DJ59: 46 | DK59: 14 | DL59: 0 | DM59: 12 | DN59: 47 | DO59: 1650 | DP59: - | DQ59: 1434 | DR59: 178 | DS59: =PRODUCT((DJ59+DK59)/DI59) -> 50.4 % | DU59: =DI59-DJ59-DK59-DL59-DM59-DN59 -> 0
A60: 58. | B60: 57. | C60: Viipurin Kisa-Veikot | D60: 3 | E60: 30 | F60: 0 | G60: 11 | H60: 4 | I60: 0 | J60: 15 | K60: 108 | L60: - | M60: 82 | N60: =PRODUCT(F60*3+G60*2+H60+I60) -> 26 | O60: =PRODUCT((F60+G60)/E60) -> 36.7 % | AE60: 58. | AF60: ---- | AG60: Laitilan Jyske | AH60: 1 | AI60: 24 | AJ60: 0 | AK60: 4 | AL60: 0 | AM60: 4 | AN60: 16 | AO60: 93 | AQ60: 238 | AR60: 12 | AS60: =PRODUCT((AJ60+AK60)/AI60) -> 16.7 % | BI60: 58. | BJ60: 58. | BK60: Iin Urheilijat | BL60: 4 | BM60: 86 | BN60: 14 | BO60: 17 | BP60: 1 | BQ60: 9 | BR60: 45 | BS60: 534 | BT60: - | BU60: 722 | BV60: 86 | BW60: =PRODUCT((BN60+BO60)/BM60) -> 36.0 % | BY60: 58. | BZ60: 57. | CA60: Kouvolan Pallonlyöjät | CB60: 2 | CC60: 28 | CD60: 22 | CE60: 5 | CF60: 0 | CG60: 0 | CH60: 1 | CI60: 712 | CJ60: - | CK60: 172 | CL60: 76 | CM60: =PRODUCT((CD60+CE60)/CC60) -> 96.4 % | CO60: 58. | CP60: 57. | CQ60: Hämeenlinnan Paukku | CR60: 14 | CS60: 229 | CT60: 56 | CU60: 58 | CV60: 4 | CW60: 26 | CX60: 85 | CY60: 2138 | CZ60: - | DA60: 1983 | DB60: 314 | DC60: =PRODUCT((CT60+CU60)/CS60) -> 49.8 % | DE60: 58. | DF60: 66. | DG60: Kempeleen Kiri | DH60: 9 | DI60: 126 | DJ60: 40 | DK60: 22 | DL60: 0 | DM60: 12 | DN60: 52 | DO60: 1497 | DP60: - | DQ60: 1583 | DR60: 176 | DS60: =PRODUCT((DJ60+DK60)/DI60) -> 49.2 % | DU60: =DI60-DJ60-DK60-DL60-DM60-DN60 -> 0
A61: 59. | B61: 58. | C61: Ylihärmän Junkkarit | D61: 2 | E61: 28 | F61: 0 | G61: 11 | H61: 3 | I61: 0 | J61: 14 | K61: 131 | L61: - | M61: 151 | N61: =PRODUCT(F61*3+G61*2+H61+I61) -> 25 | O61: =PRODUCT((F61+G61)/E61) -> 39.3 % | AE61: 59. | AF61: 58. | AG61: Aurajoen Maila | AH61: 1 | AI61: 24 | AJ61: 2 | AK61: 0 | AL61: 0 | AM61: 5 | AN61: 17 | AO61: 125 | AP61: - | AQ61: 387 | AR61: 11 | AS61: =PRODUCT((AJ61+AK61)/AI61) -> 8.3 % | BI61: 59. | BJ61: 59. | BK61: Alavuden Peli-Veikot | BL61: 4 | BM61: 86 | BN61: 10 | BO61: 18 | BP61: 0 | BQ61: 17 | BR61: 41 | BS61: 408 | BT61: - | BU61: 625 | BV61: 83 | BW61: =PRODUCT((BN61+BO61)/BM61) -> 32.6 % | BY61: 59. | BZ61: 58. | CA61: Keravan Pallokerho | CB61: 4 | CC61: 56 | CD61: 7 | CE61: 24 | CF61: 1 | CG61: 6 | CH61: 18 | CI61: 719 | CJ61: - | CK61: 560 | CL61: 76 | CM61: =PRODUCT((CD61+CE61)/CC61) -> 55.4 % | CO61: 59. | CP61: 58. | CQ61: Kannuksen Ura | CR61: 12 | CS61: 222 | CT61: 77 | CU61: 32 | CV61: 1 | CW61: 16 | CX61: 96 | CY61: 2101 | CZ61: - | DA61: 1824 | DB61: 312 | DC61: =PRODUCT((CT61+CU61)/CS61) -> 49.1 % | DE61: 59. | DF61: 55. | DG61: Ylivieskan Kuula | DH61: 7 | DI61: 99 | DJ61: 45 | DK61: 15 | DL61: 0 | DM61: 10 | DN61: 29 | DO61: 1329 | DP61: - | DQ61: 1070 | DR61: 175 | DS61: =PRODUCT((DJ61+DK61)/DI61) -> 60.6 % | DU61: =DI61-DJ61-DK61-DL61-DM61-DN61 -> 0
A62: 60. | B62: 59. | C62: Hämeenlinnan Pallokerho | D62: 2 | E62: 20 | F62: 0 | G62: 12 | H62: 0 | I62: 0 | J62: 8 | K62: 101 | L62: - | M62: 101 | N62: =PRODUCT(F62*3+G62*2+H62+I62) -> 24 | O62: =PRODUCT((F62+G62)/E62) -> 60.0 % | AE62: 60. | AF62: 59. | AG62: Lahden Mailaveikot | AH62: 2 | AI62: 14 | AJ62: 0 | AK62: 5 | AL62: 0 | AM62: 0 | AN62: 9 | AO62: 70 | AP62: - | AQ62: 128 | AR62: 10 | AS62: =PRODUCT((AJ62+AK62)/AI62) -> 35.7 % | BI62: 60. | BJ62: 60. | BK62: Alajärven Ankkuritpesis | BL62: 2 | BM62: 46 | BN62: 15 | BO62: 15 | BP62: 0 | BQ62: 5 | BR62: 11 | BS62: 345 | BT62: - | BU62: 263 | BV62: 80 | BW62: =PRODUCT((BN62+BO62)/BM62) -> 65.2 % | BY62: 60. | BZ62: 59. | CA62: Riihimäen Pallonlyöjät | CB62: 7 | CC62: 92 | CD62: 0 | CE62: 37 | CF62: 1 | CG62: 0 | CH62: 54 | CI62: 982 | CJ62: - | CK62: 1476 | CL62: 75 | CM62: =PRODUCT((CD62+CE62)/CC62) -> 40.2 % | CO62: 60. | CP62: 59. | CQ62: Koskenkorvan Urheilijat 2 | CR62: 14 | CS62: 250 | CT62: 60 | CU62: 48 | CV62: 0 | CW62: 33 | CX62: 109 | CY62: 2097 | CZ62: - | DA62: 2614 | DB62: 309 | DC62: =PRODUCT((CT62+CU62)/CS62) -> 43.2 % | DE62: 60. | DF62: 67. | DG62: Pesäkarhut 3 | DH62: 10 | DI62: 154 | DJ62: 32 | DK62: 31 | DL62: 1 | DM62: 16 | DN62: 74 | DO62: 1463 | DP62: - | DQ62: 1661 | DR62: 175 | DS62: =PRODUCT((DJ62+DK62)/DI62) -> 40.9 % | DU62: =DI62-DJ62-DK62-DL62-DM62-DN62 -> 0
A63: 61. | B63: 60. | C63: Tampereen Pesä-Peikot | D63: 3 | E63: 36 | F63: 0 | G63: 11 | H63: 2 | I63: 0 | J63: 23 | K63: 209 | L63: - | M63: 280 | N63: =PRODUCT(F63*3+G63*2+H63+I63) -> 24 | O63: =PRODUCT((F63+G63)/E63) -> 30.6 % | AE63: 61. | AF63: 60. | AG63: Ilomantsin Urheilijat | AH63: 2 | AI63: 20 | AJ63: 0 | AK63: 5 | AL63: 0 | AM63: 0 | AN63: 15 | AO63: 136 | AP63: - | AQ63: 213 | AR63: 10 | AS63: =PRODUCT((AJ63+AK63)/AI63) -> 25.0 % | BI63: 61. | BJ63: 61. | BK63: Peräseinäjoen Toive | BL63: 3 | BM63: 80 | BN63: 19 | BO63: 5 | BP63: 0 | BQ63: 9 | BR63: 47 | BS63: 529 | BT63: - | BU63: 687 | BV63: 76 | BW63: =PRODUCT((BN63+BO63)/BM63) -> 30.0 % | BY63: 61. | BZ63: 60. | CA63: Kempeleen Kiri | CB63: 3 | CC63: 42 | CD63: 16 | CE63: 8 | CF63: 0 | CG63: 8 | CH63: 10 | CI63: 565 | CJ63: - | CK63: 434 | CL63: 72 | CM63: =PRODUCT((CD63+CE63)/CC63) -> 57.1 % | CO63: 61. | CP63: 60. | CQ63: Kokkolan Kiri | CR63: 14 | CS63: 220 | CT63: 38 | CU63: 86 | CV63: 9 | CW63: 9 | CX63: 78 | CY63: 2059 | CZ63: - | DA63: 1705 | DB63: 304 | DC63: =PRODUCT((CT63+CU63)/CS63) -> 56.4 % | DE63: 61. | DF63: 57. | DG63: Ulvilan Pesä-Veikot | DH63: 9 | DI63: 126 | DJ63: 38 | DK63: 16 | DL63: 0 | DM63: 24 | DN63: 48 | DO63: 1395 | DP63: - | DQ63: 1701 | DR63: 170 | DS63: =PRODUCT((DJ63+DK63)/DI63) -> 42.9 % | DU63: =DI63-DJ63-DK63-DL63-DM63-DN63 -> 0
A64: 62. | B64: 61. | C64: Kauhajoen Karhu | D64: 2 | E64: 44 | F64: 0 | G64: 11 | H64: 2 | I64: 0 | J64: 31 | K64: 246 | L64: - | M64: 426 | N64: =PRODUCT(F64*3+G64*2+H64+I64) -> 24 | O64: =PRODUCT((F64+G64)/E64) -> 25.0 % | AE64: 62. | AF64: 61. | AG64: Toholammin Urheilijat | AH64: 3 | AI64: 30 | AJ64: 0 | AK64: 5 | AL64: 0 | AM64: 0 | AN64: 25 | AO64: 222 | AP64: - | AQ64: 414 | AR64: 10 | AS64: =PRODUCT((AJ64+AK64)/AI64) -> 16.7 % | BI64: 62. | BJ64: 62. | BK64: Köyliön Lallit | BL64: 4 | BM64: 88 | BN64: 14 | BO64: 10 | BP64: 0 | BQ64: 13 | BR64: 51 | BS64: 482 | BT64: - | BU64: 744 | BV64: 75 | BW64: =PRODUCT((BN64+BO64)/BM64) -> 27.3 % | BY64: 62. | BZ64: 61. | CA64: Nurmon Jymy | CB64: 6 | CC64: 108 | CD64: 9 | CE64: 15 | CF64: 1 | CG64: 12 | CH64: 71 | CI64: 691 | CJ64: - | CK64: 1308 | CL64: 70 | CM64: =PRODUCT((CD64+CE64)/CC64) -> 22.2 % | CO64: 62. | CP64: 61. | CQ64: Alajärven Ankkurit 2 | CR64: 15 | CS64: 272 | CT64: 40 | CU64: 77 | CV64: 2 | CW64: 22 | CX64: 131 | CY64: 2341 | CZ64: - | DA64: 2891 | DB64: 298 | DC64: =PRODUCT((CT64+CU64)/CS64) -> 43.0 % | DE64: 62. | DF64: 59. | DG64: Pesäpallo HIFK | DH64: 5 | DI64: 76 | DJ64: 45 | DK64: 14 | DL64: 0 | DM64: 5 | DN64: 12 | DO64: 1255 | DP64: - | DQ64: 714 | DR64: 168 | DS64: =PRODUCT((DJ64+DK64)/DI64) -> 77.6 % | DU64: =DI64-DJ64-DK64-DL64-DM64-DN64 -> 0
A65: 63. | B65: 62. | C65: Keravan Pallokerho | D65: 3 | E65: 58 | F65: 0 | G65: 11 | H65: 2 | I65: 0 | J65: 45 | K65: 242 | L65: - | M65: 525 | N65: =PRODUCT(F65*3+G65*2+H65+I65) -> 24 | O65: =PRODUCT((F65+G65)/E65) -> 19.0 % | AE65: 63. | AF65: 62. | AG65: Kouvolan Pallonlyöjät | AH65: 2 | AI65: 18 | AJ65: 0 | AK65: 4 | AL65: 1 | AM65: 0 | AN65: 13 | AO65: 149 | AP65: - | AQ65: 317 | AR65: 9 | AS65: =PRODUCT((AJ65+AK65)/AI65) -> 22.2 % | BI65: 63. | BJ65: 63. | BK65: Halsua-Veteli Pesis | BL65: 3 | BM65: 66 | BN65: 11 | BO65: 10 | BP65: 0 | BQ65: 11 | BR65: 34 | BS65: 325 | BT65: - | BU65: 634 | BV65: 64 | BW65: =PRODUCT((BN65+BO65)/BM65) -> 31.8 % | BY65: 63. | BZ65: 62. | CA65: Simon Kiri-Siskot | CB65: 4 | CC65: 58 | CD65: 3 | CE65: 26 | CF65: 3 | CG65: 4 | CH65: 22 | CI65: 498 | CJ65: - | CK65: 516 | CL65: 68 | CM65: =PRODUCT((CD65+CE65)/CC65) -> 50.0 % | CO65: 63. | CP65: 62. | CQ65: Outokummun Partio | CR65: 24 | CS65: 272 | CT65: 0 | CU65: 142 | CV65: 11 | CW65: 0 | CX65: 119 | CY65: 2292 | CZ65: - | DA65: 1988 | DB65: 295 | DC65: =PRODUCT((CT65+CU65)/CS65) -> 52.2 % | DE65: 63. | DF65: 68. | DG65: Kannuksen Ura | DH65: 12 | DI65: 154 | DJ65: 31 | DK65: 31 | DL65: 1 | DM65: 12 | DN65: 79 | DO65: 1555 | DP65: - | DQ65: 2111 | DR65: 168 | DS65: =PRODUCT((DJ65+DK65)/DI65) -> 40.3 % | DU65: =DI65-DJ65-DK65-DL65-DM65-DN65 -> 0
A66: 64. | B66: 63. | C66: RPL-Riihimäki | D66: 1 | E66: 29 | F66: 3 | G66: 5 | H66: 0 | I66: 1 | J66: 20 | K66: 157 | L66: - | M66: 260 | N66: =PRODUCT(F66*3+G66*2+H66+I66) -> 20 | O66: =PRODUCT((F66+G66)/E66) -> 27.6 % | AE66: 64. | AF66: 63. | AG66: Outokummun Partio | AH66: 2 | AI66: 20 | AJ66: 0 | AK66: 3 | AL66: 1 | AM66: 0 | AN66: 16 | AO66: 184 | AP66: - | AQ66: 356 | AR66: 7 | AS66: =PRODUCT((AJ66+AK66)/AI66) -> 15.0 % | BI66: 64. | BJ66: 64. | BK66: Jyväskylän Kiri 2020 | BL66: 3 | BM66: 72 | BN66: 23 | BO66: 16 | BP66: 0 | BQ66: 9 | BR66: 24 | BS66: 508 | BT66: - | BU66: 422 | BV66: 110 | BW66: =PRODUCT((BN66+BO66)/BM66) -> 54.2 % | BY66: 64. | BZ66: 63. | CA66: Imatran Pallo-Veikot | CB66: 4 | CC66: 67 | CD66: 10 | CE66: 13 | CF66: 3 | CG66: 8 | CH66: 33 | CI66: 608 | CJ66: - | CK66: 748 | CL66: 67 | CM66: =PRODUCT((CD66+CE66)/CC66) -> 34.3 % | CO66: 64. | CP66: 64. | CQ66: Haminan Palloilijat | CR66: 11 | CS66: 172 | CT66: 20 | CU66: 107 | CV66: 2 | CW66: 7 | CX66: 36 | CY66: 1860 | CZ66: - | DA66: 1043 | DB66: 283 | DC66: =PRODUCT((CT66+CU66)/CS66) -> 73.8 % | DE66: 64. | DF66: 60. | DG66: Ruoveden Pirkat | DH66: 10 | DI66: 150 | DJ66: 34 | DK66: 26 | DL66: 0 | DM66: 13 | DN66: 77 | DO66: 1251 | DP66: - | DQ66: 1896 | DR66: 167 | DS66: =PRODUCT((DJ66+DK66)/DI66) -> 40.0 % | DU66: =DI66-DJ66-DK66-DL66-DM66-DN66 -> 0
A67: 65. | B67: 64. | C67: Muhoksen Urheilijat | D67: 3 | E67: 40 | F67: 0 | G67: 9 | H67: 2 | I67: 0 | J67: 29 | K67: 163 | L67: - | M67: 288 | N67: =PRODUCT(F67*3+G67*2+H67+I67) -> 20 | O67: =PRODUCT((F67+G67)/E67) -> 22.5 % | AE67: 65. | AF67: 64. | AG67: Jyväskylän Valo | AH67: 1 | AI67: 24 | AJ67: 1 | AK67: 0 | AL67: 0 | AM67: 4 | AN67: 19 | AO67: 90 | AP67: - | AQ67: 320 | AR67: 7 | AS67: =PRODUCT((AJ67+AK67)/AI67) -> 4.2 % | BI67: 65. | BJ67: 65. | BK67: Oulun Polte | BL67: 2 | BM67: 44 | BN67: 10 | BO67: 10 | BP67: 0 | BQ67: 10 | BR67: 14 | BS67: 287 | BT67: - | BU67: 270 | BV67: 60 | BW67: =PRODUCT((BN67+BO67)/BM67) -> 45.5 % | BY67: 65. | BZ67: 77. | CA67: Ikaalisten Tarmo | CB67: 2 | CC67: 46 | CD67: 13 | CE67: 9 | CF67: 0 | CG67: 8 | CH67: 16 | CI67: 368 | CJ67: - | CK67: 335 | CL67: 65 | CM67: =PRODUCT((CD67+CE67)/CC67) -> 47.8 % | CO67: 65. | CP67: 65. | CQ67: Jyväskylän Kiri 2 | CR67: 19 | CS67: 271 | CT67: 9 | CU67: 118 | CV67: 8 | CW67: 7 | CX67: 129 | CY67: 2469 | CZ67: - | DA67: 2385 | DB67: 278 | DC67: =PRODUCT((CT67+CU67)/CS67) -> 46.9 % | DE67: 65. | DF67: 61. | DG67: Vihdin Pallo | DH67: 9 | DI67: 105 | DJ67: 29 | DK67: 36 | DL67: 2 | DM67: 4 | DN67: 34 | DO67: 1397 | DP67: - | DQ67: 1123 | DR67: 165 | DS67: =PRODUCT((DJ67+DK67)/DI67) -> 61.9 % | DU67: =DI67-DJ67-DK67-DL67-DM67-DN67 -> 0
A68: 66. | B68: 65. | C68: Mansen Pesäpallo | D68: 1 | E68: 26 | F68: 0 | G68: 9 | H68: 1 | I68: 0 | J68: 16 | K68: 145 | L68: - | M68: 209 | N68: =PRODUCT(F68*3+G68*2+H68+I68) -> 19 | O68: =PRODUCT((F68+G68)/E68) -> 34.6 % | AE68: 66. | AF68: 65. | AG68: Imatran Pallo-Veikot | AH68: 2 | AI68: 28 | AJ68: 0 | AK68: 3 | AL68: 0 | AM68: 0 | AN68: 25 | AO68: 185 | AP68: - | AQ68: 467 | AR68: 6 | AS68: =PRODUCT((AJ68+AK68)/AI68) -> 10.7 % | BI68: 66. | BJ68: 66. | BK68: Lohjan Kisa-Veikot | BL68: 5 | BM68: 108 | BN68: 0 | BO68: 27 | BP68: 6 | BQ68: 0 | BR68: 75 | BS68: 692 | BT68: - | BU68: 1157 | BV68: 60 | BW68: =PRODUCT((BN68+BO68)/BM68) -> 25.0 % | BY68: 66. | BZ68: 65. | CA68: Puijon Pesis | CB68: 4 | CC68: 72 | CD68: 10 | CE68: 12 | CF68: 0 | CG68: 10 | CH68: 40 | CI68: 565 | CJ68: - | CK68: 745 | CL68: 64 | CM68: =PRODUCT((CD68+CE68)/CC68) -> 30.6 % | CO68: 66. | CP68: 78. | CQ68: Haminan Palloilijat 2 | CR68: 20 | CS68: 312 | CT68: 15 | CU68: 102 | CV68: 19 | CW68: 9 | CX68: 167 | CY68: 2571 | CZ68: - | DA68: 3140 | DB68: 277 | DC68: =PRODUCT((CT68+CU68)/CS68) -> 37.5 % | DE68: 66. | DF68: 62. | DG68: Oulun Lippo 2 | DH68: 9 | DI68: 124 | DJ68: 20 | DK68: 45 | DL68: 3 | DM68: 11 | DN68: 45 | DO68: 1513 | DP68: - | DQ68: 1325 | DR68: 164 | DS68: =PRODUCT((DJ68+DK68)/DI68) -> 52.4 % | DU68: =DI68-DJ68-DK68-DL68-DM68-DN68 -> 0
A69: 67. | B69: 66. | C69: Pankakosken Tehtaan Urh. | D69: 2 | E69: 20 | F69: 0 | G69: 9 | H69: 0 | I69: 0 | J69: 11 | K69: 86 | L69: - | M69: 143 | N69: =PRODUCT(F69*3+G69*2+H69+I69) -> 18 | O69: =PRODUCT((F69+G69)/E69) -> 45.0 % | AE69: 67. | AF69: 66. | AG69: Halsuan Toivo | AH69: 2 | AI69: 20 | AJ69: 0 | AK69: 2 | AL69: 1 | AM69: 0 | AN69: 17 | AO69: 75 | AP69: - | AQ69: 212 | AR69: 5 | AS69: =PRODUCT((AJ69+AK69)/AI69) -> 10.0 % | BI69: 67. | BJ69: 67. | BK69: Veteli Pesis | BL69: 2 | BM69: 48 | BN69: 11 | BO69: 10 | BP69: 0 | BQ69: 5 | BR69: 22 | BS69: 276 | BT69: - | BU69: 362 | BV69: 58 | BW69: =PRODUCT((BN69+BO69)/BM69) -> 43.8 % | BY69: 67. | BZ69: 66. | CA69: Pomarkun Pyry | CB69: 5 | CC69: 68 | CD69: 2 | CE69: 28 | CF69: 1 | CG69: 0 | CH69: 37 | CI69: 559 | CJ69: - | CK69: 695 | CL69: 63 | CM69: =PRODUCT((CD69+CE69)/CC69) -> 44.1 % | CO69: 67. | CP69: 66. | CQ69: Kulhon Kunto | CR69: 15 | CS69: 298 | CT69: 37 | CU69: 71 | CV69: 5 | CW69: 19 | CX69: 166 | CY69: 1889 | CZ69: - | DA69: 2613 | DB69: 277 | DC69: =PRODUCT((CT69+CU69)/CS69) -> 36.2 % | DE69: 67. | DF69: 63. | DG69: Hämeenlinnan Paukku 2 | DH69: 6 | DI69: 92 | DJ69: 41 | DK69: 15 | DL69: 0 | DM69: 7 | DN69: 29 | DO69: 1270 | DP69: - | DQ69: 1021 | DR69: 160 | DS69: =PRODUCT((DJ69+DK69)/DI69) -> 60.9 % | DU69: =DI69-DJ69-DK69-DL69-DM69-DN69 -> 0
A70: 68. | B70: 67. | C70: Tainionkosken Tähti | D70: 2 | E70: 24 | F70: 0 | G70: 7 | H70: 2 | I70: 0 | J70: 15 | K70: 95 | L70: - | M70: 152 | N70: =PRODUCT(F70*3+G70*2+H70+I70) -> 16 | O70: =PRODUCT((F70+G70)/E70) -> 29.2 % | AE70: 68. | AF70: 67. | AG70: Kemin Naisvoimistelijat | AH70: 1 | AI70: 6 | AJ70: 0 | AK70: 2 | AL70: 0 | AM70: 0 | AN70: 4 | AO70: 35 | AP70: - | AQ70: 47 | AR70: 4 | AS70: =PRODUCT((AJ70+AK70)/AI70) -> 33.3 % | BI70: 68. | BJ70: 68. | BK70: Kuopion Kelta-Mustat | BL70: 2 | BM70: 54 | BN70: 13 | BO70: 6 | BP70: 3 | BQ70: 4 | BR70: 28 | BS70: 340 | BT70: - | BU70: 477 | BV70: 58 | BW70: =PRODUCT((BN70+BO70)/BM70) -> 35.2 % | BY70: 68. | BZ70: 67. | CA70: Toholammin Urheilijat | CB70: 7 | CC70: 92 | CD70: 4 | CE70: 19 | CF70: 8 | CG70: 3 | CH70: 58 | CI70: 673 | CJ70: - | CK70: 1209 | CL70: 61 | CM70: =PRODUCT((CD70+CE70)/CC70) -> 25.0 % | CO70: 68. | CP70: 67. | CQ70: Kouvolan Pallonlyöjät | CR70: 11 | CS70: 150 | CT70: 34 | CU70: 82 | CV70: 3 | CW70: 5 | CX70: 26 | CY70: 1420 | CZ70: - | DA70: 689 | DB70: 274 | DC70: =PRODUCT((CT70+CU70)/CS70) -> 77.3 % | DE70: 68. | DF70: 64. | DG70: Kinnarin Pesis | DH70: 6 | DI70: 92 | DJ70: 38 | DK70: 17 | DL70: 0 | DM70: 11 | DN70: 26 | DO70: 1460 | DP70: - | DQ70: 998 | DR70: 159 | DS70: =PRODUCT((DJ70+DK70)/DI70) -> 59.8 % | DU70: =DI70-DJ70-DK70-DL70-DM70-DN70 -> 0
A71: 69. | B71: 69. | C71: Valtion Lentokonetehdas | D71: 2 | E71: 14 | F71: 0 | G71: 7 | H71: 0 | I71: 0 | J71: 7 | K71: 70 | L71: - | M71: 77 | N71: =PRODUCT(F71*3+G71*2+H71+I71) -> 14 | O71: =PRODUCT((F71+G71)/E71) -> 50.0 % | AE71: 69. | AF71: 68. | AG71: Porin Pallo-Veikot | AH71: 1 | AI71: 6 | AJ71: 0 | AK71: 2 | AL71: 0 | AM71: 0 | AN71: 4 | AO71: 51 | AP71: - | AQ71: 75 | AR71: 4 | AS71: =PRODUCT((AJ71+AK71)/AI71) -> 33.3 % | BI71: 69. | BJ71: 69. | BK71: Hämeenlinnan Paukku | BL71: 2 | BM71: 50 | BN71: 11 | BO71: 8 | BP71: 0 | BQ71: 5 | BR71: 26 | BS71: 336 | BT71: - | BU71: 398 | BV71: 54 | BW71: =PRODUCT((BN71+BO71)/BM71) -> 38.0 % | BY71: 69. | BZ71: 68. | CA71: Oulun Lippo Juniorit | CB71: 2 | CC71: 28 | CD71: 15 | CE71: 5 | CF71: 0 | CG71: 2 | CH71: 6 | CI71: 374 | CJ71: - | CK71: 180 | CL71: 57 | CM71: =PRODUCT((CD71+CE71)/CC71) -> 71.4 % | CO71: 69. | CP71: 68. | CQ71: Harjavallan Jymy | CR71: 17 | CS71: 202 | CT71: 32 | CU71: 80 | CV71: 5 | CW71: 11 | CX71: 74 | CY71: 1556 | CZ71: - | DA71: 1273 | DB71: 272 | DC71: =PRODUCT((CT71+CU71)/CS71) -> 55.4 % | DE71: 69. | DF71: 65. | DG71: Janakkalan Jana | DH71: 11 | DI71: 142 | DJ71: 14 | DK71: 53 | DL71: 2 | DM71: 5 | DN71: 68 | DO71: 1341 | DP71: - | DQ71: 1520 | DR71: 155 | DS71: =PRODUCT((DJ71+DK71)/DI71) -> 47.2 % | DU71: =DI71-DJ71-DK71-DL71-DM71-DN71 -> 0
A72: 70. | B72: 70. | C72: Tampereen Poliisi-Urheilijat | D72: 1 | E72: 10 | F72: 0 | G72: 6 | H72: 1 | I72: 0 | J72: 3 | K72: 86 | L72: - | M72: 65 | N72: =PRODUCT(F72*3+G72*2+H72+I72) -> 13 | O72: =PRODUCT((F72+G72)/E72) -> 60.0 % | AE72: 70. | AF72: 69. | AG72: Janakkalan Jana | AH72: 1 | AI72: 8 | AJ72: 0 | AK72: 2 | AL72: 0 | AM72: 0 | AN72: 6 | AO72: 35 | AP72: - | AQ72: 107 | AR72: 4 | AS72: =PRODUCT((AJ72+AK72)/AI72) -> 25.0 % | BI72: 70. | BJ72: 70. | BK72: Hamina Pesis | BL72: 3 | BM72: 64 | BN72: 7 | BO72: 11 | BP72: 0 | BQ72: 6 | BR72: 40 | BS72: 347 | BT72: - | BU72: 613 | BV72: 49 | BW72: =PRODUCT((BN72+BO72)/BM72) -> 28.1 % | BY72: 70. | BZ72: ---- | CA72: Oulun Lippo Naiset | CB72: 1 | CC72: 23 | CD72: 17 | CE72: 2 | CF72: 0 | CG72: 1 | CH72: 3 | CI72: 253 | CJ72: - | CK72: 89 | CL72: 56 | CM72: =PRODUCT((CD72+CE72)/CC72) -> 82.6 % | CO72: 70. | CP72: 69. | CQ72: Haapajärven Kiilat | CR72: 22 | CS72: 283 | CT72: 0 | CU72: 128 | CV72: 13 | CW72: 0 | CX72: 142 | CY72: 2334 | CZ72: - | DA72: 2365 | DB72: 269 | DC72: =PRODUCT((CT72+CU72)/CS72) -> 45.2 % | DE72: 70. | DF72: 69. | DG72: Pöytyän Urheilijat | DH72: 6 | DI72: 86 | DJ72: 34 | DK72: 17 | DL72: 0 | DM72: 13 | DN72: 22 | DO72: 1130 | DP72: - | DQ72: 808 | DR72: 149 | DS72: =PRODUCT((DJ72+DK72)/DI72) -> 59.3 % | DU72: =DI72-DJ72-DK72-DL72-DM72-DN72 -> 0
A73: 71. | B73: 71. | C73: Jokioisten Koetus | D73: 1 | E73: 22 | F73: 0 | G73: 6 | H73: 0 | I73: 0 | J73: 16 | K73: 76 | L73: - | M73: 165 | N73: =PRODUCT(F73*3+G73*2+H73+I73) -> 12 | O73: =PRODUCT((F73+G73)/E73) -> 27.3 % | AE73: 71. | AF73: 70. | AG73: Kokemäen Kova-Väki | AH73: 2 | AI73: 40 | AJ73: 0 | AK73: 2 | AL73: 0 | AM73: 0 | AN73: 38 | AO73: 248 | AP73: - | AQ73: 740 | AR73: 4 | AS73: =PRODUCT((AJ73+AK73)/AI73) -> 5.0 % | BI73: 71. | BJ73: 71. | BK73: Summan Ponnistus | BL73: 2 | BM73: 44 | BN73: 9 | BO73: 7 | BP73: 0 | BQ73: 7 | BR73: 21 | BS73: 277 | BT73: - | BU73: 419 | BV73: 48 | BW73: =PRODUCT((BN73+BO73)/BM73) -> 36.4 % | BY73: 71. | BZ73: 69. | CA73: PeTo-Jussit 2 | CB73: 3 | CC73: 44 | CD73: 8 | CE73: 12 | CF73: 0 | CG73: 8 | CH73: 16 | CI73: 430 | CJ73: - | CK73: 451 | CL73: 56 | CM73: =PRODUCT((CD73+CE73)/CC73) -> 45.5 % | CO73: 71. | CP73: 70. | CQ73: Kinnulan Kimmot | CR73: 12 | CS73: 226 | CT73: 50 | CU73: 45 | CV73: 0 | CW73: 28 | CX73: 103 | CY73: 1755 | CZ73: - | DA73: 1991 | DB73: 268 | DC73: =PRODUCT((CT73+CU73)/CS73) -> 42.0 % | DE73: 71. | DF73: 84. | DG73: Haminan Palloilijat 2 | DH73: 8 | DI73: 108 | DJ73: 32 | DK73: 19 | DL73: 0 | DM73: 12 | DN73: 45 | DO73: 1444 | DP73: - | DQ73: 1342 | DR73: 146 | DS73: =PRODUCT((DJ73+DK73)/DI73) -> 47.2 % | DU73: =DI73-DJ73-DK73-DL73-DM73-DN73 -> 0
A74: 72. | B74: 72. | C74: Salo-Uskelan suojeluskunta | D74: 2 | E74: 20 | F74: 0 | G74: 4 | H74: 4 | I74: 0 | J74: 12 | K74: 40 | L74: - | M74: 64 | N74: =PRODUCT(F74*3+G74*2+H74+I74) -> 12 | O74: =PRODUCT((F74+G74)/E74) -> 20.0 % | AE74: 72. | AF74: 71. | AG74: Kellokosken Urheilijat | AH74: 1 | AI74: 10 | AJ74: 0 | AK74: 1 | AL74: 1 | AM74: 0 | AN74: 8 | AO74: 49 | AP74: - | AQ74: 125 | AR74: 3 | AS74: =PRODUCT((AJ74+AK74)/AI74) -> 10.0 % | BI74: 72. | BJ74: 72. | BK74: Oulunsalon Vasama | BL74: 1 | BM74: 26 | BN74: 9 | BO74: 4 | BP74: 0 | BQ74: 5 | BR74: 8 | BS74: 153 | BT74: - | BU74: 161 | BV74: 40 | BW74: =PRODUCT((BN74+BO74)/BM74) -> 50.0 % | BY74: 72. | BZ74: 70. | CA74: Jyväskylän Valo | CB74: 2 | CC74: 26 | CD74: 13 | CE74: 5 | CF74: 0 | CG74: 3 | CH74: 5 | CI74: 311 | CJ74: - | CK74: 162 | CL74: 52 | CM74: =PRODUCT((CD74+CE74)/CC74) -> 69.2 % | CO74: 72. | CP74: 71. | CQ74: Leppävirran Viri | CR74: 13 | CS74: 236 | CT74: 60 | CU74: 30 | CV74: 5 | CW74: 23 | CX74: 118 | CY74: 1633 | CZ74: - | DA74: 2337 | DB74: 268 | DC74: =PRODUCT((CT74+CU74)/CS74) -> 38.1 % | DE74: 72. | DF74: 71. | DG74: Ilomantsin Urheilijat | DH74: 11 | DI74: 122 | DJ74: 3 | DK74: 63 | DL74: 5 | DM74: 2 | DN74: 49 | DO74: 1390 | DP74: - | DQ74: 1204 | DR74: 142 | DS74: =PRODUCT((DJ74+DK74)/DI74) -> 54.1 % | DU74: =DI74-DJ74-DK74-DL74-DM74-DN74 -> 0
A75: 73. | B75: 73. | C75: Helsinki-Pesis | D75: 1 | E75: 22 | F75: 0 | G75: 5 | H75: 1 | I75: 0 | J75: 16 | K75: 92 | L75: - | M75: 196 | N75: =PRODUCT(F75*3+G75*2+H75+I75) -> 11 | O75: =PRODUCT((F75+G75)/E75) -> 22.7 % | AE75: 73. | AF75: 72. | AG75: Savonlinnan Pallokerho | AH75: 1 | AI75: 6 | AJ75: 0 | AK75: 1 | AL75: 0 | AM75: 0 | AN75: 5 | AO75: 31 | AP75: - | AQ75: 98 | AR75: 2 | AS75: =PRODUCT((AJ75+AK75)/AI75) -> 16.7 % | BI75: 73. | BJ75: 73. | BK75: Ylihärmän Pesis-Junkkarit | BL75: 2 | BM75: 48 | BN75: 5 | BO75: 9 | BP75: 0 | BQ75: 7 | BR75: 27 | BS75: 279 | BT75: - | BU75: 431 | BV75: 40 | BW75: =PRODUCT((BN75+BO75)/BM75) -> 29.2 % | BY75: 73. | BZ75: 71. | CA75: Ruoveden Pirkat | CB75: 6 | CC75: 86 | CD75: 8 | CE75: 12 | CF75: 0 | CG75: 10 | CH75: 56 | CI75: 473 | CJ75: - | CK75: 1109 | CL75: 52 | CM75: =PRODUCT((CD75+CE75)/CC75) -> 23.3 % | CO75: 73. | CP75: 72. | CQ75: Järvenpään Palo | CR75: 17 | CS75: 257 | CT75: 9 | CU75: 114 | CV75: 11 | CW75: 1 | CX75: 122 | CY75: 2021 | CZ75: - | DA75: 1945 | DB75: 267 | DC75: =PRODUCT((CT75+CU75)/CS75) -> 47.9 % | DE75: 73. | DF75: 72. | DG75: Keravan Pallokerho | DH75: 10 | DI75: 128 | DJ75: 3 | DK75: 61 | DL75: 2 | DM75: 6 | DN75: 56 | DO75: 1797 | DP75: - | DQ75: 1904 | DR75: 139 | DS75: =PRODUCT((DJ75+DK75)/DI75) -> 50.0 % | DU75: =DI75-DJ75-DK75-DL75-DM75-DN75 -> 0
A76: 74. | B76: 74. | C76: Kuopion Kelta-Mustat | D76: 2 | E76: 26 | F76: 0 | G76: 4 | H76: 0 | I76: 0 | J76: 22 | K76: 118 | L76: - | M76: 265 | N76: =PRODUCT(F76*3+G76*2+H76+I76) -> 8 | O76: =PRODUCT((F76+G76)/E76) -> 15.4 % | AE76: 74. | AF76: 73. | AG76: Lapuan Laaka | AH76: 1 | AI76: 8 | AJ76: 0 | AK76: 0 | AL76: 1 | AM76: 0 | AN76: 7 | AO76: 62 | AP76: - | AQ76: 187 | AR76: 1 | AS76: =PRODUCT((AJ76+AK76)/AI76) -> 0.0 % | BI76: 74. | BJ76: 74. | BK76: Laukaan Urheilijat | BL76: 2 | BM76: 46 | BN76: 9 | BO76: 3 | BP76: 0 | BQ76: 5 | BR76: 29 | BS76: 262 | BT76: - | BU76: 511 | BV76: 38 | BW76: =PRODUCT((BN76+BO76)/BM76) -> 26.1 % | BY76: 74. | BZ76: 72. | CA76: Turku-Pesis 2 | CB76: 3 | CC76: 42 | CD76: 10 | CE76: 8 | CF76: 0 | CG76: 4 | CH76: 20 | CI76: 350 | CJ76: - | CK76: 449 | CL76: 50 | CM76: =PRODUCT((CD76+CE76)/CC76) -> 42.9 % | CO76: 74. | CP76: 73. | CQ76: Summan Ponnistus | CR76: 14 | CS76: 268 | CT76: 29 | CU76: 82 | CV76: 7 | CW76: 9 | CX76: 141 | CY76: 2017 | CZ76: - | DA76: 2320 | DB76: 267 | DC76: =PRODUCT((CT76+CU76)/CS76) -> 41.4 % | DE76: 74. | DF76: 73. | DG76: Muhoksen Pallo-Salamat | DH76: 5 | DI76: 76 | DJ76: 34 | DK76: 13 | DL76: 0 | DM76: 9 | DN76: 20 | DO76: 814 | DP76: - | DQ76: 543 | DR76: 137 | DS76: =PRODUCT((DJ76+DK76)/DI76) -> 61.8 % | DU76: =DI76-DJ76-DK76-DL76-DM76-DN76 -> 0
A77: 75. | B77: 75. | C77: Harjavallan Jymy | D77: 1 | E77: 14 | F77: 0 | G77: 3 | H77: 1 | I77: 0 | J77: 10 | K77: 53 | L77: - | M77: 102 | N77: =PRODUCT(F77*3+G77*2+H77+I77) -> 7 | O77: =PRODUCT((F77+G77)/E77) -> 21.4 % | AE77: 75. | AF77: 74. | AG77: Kiuruveden Jänteen Nv. | AH77: 1 | AI77: 8 | AJ77: 0 | AK77: 0 | AL77: 0 | AM77: 0 | AN77: 8 | AO77: 52 | AP77: - | AQ77: 187 | AR77: 0 | AS77: =PRODUCT((AJ77+AK77)/AI77) -> 0.0 % | BI77: 75. | BJ77: 75. | BK77: Siilinjärven Ponnistus | BL77: 1 | BM77: 22 | BN77: 0 | BO77: 17 | BP77: 2 | BQ77: 0 | BR77: 3 | BS77: 167 | BT77: - | BU77: 91 | BV77: 36 | BW77: =PRODUCT((BN77+BO77)/BM77) -> 77.3 % | BY77: 75. | BZ77: 73. | CA77: Oulun Lipottaret | CB77: 1 | CC77: 18 | CD77: 13 | CE77: 4 | CF77: 0 | CG77: 1 | CH77: 0 | CI77: 249 | CJ77: - | CK77: 78 | CL77: 48 | CM77: =PRODUCT((CD77+CE77)/CC77) -> 94.4 % | CO77: 75. | CP77: 81. | CQ77: Napapiirin Pesis-Team | CR77: 17 | CS77: 282 | CT77: 43 | CU77: 43 | CV77: 0 | CW77: 52 | CX77: 144 | CY77: 2073 | CZ77: - | DA77: 3118 | DB77: 267 | DC77: =PRODUCT((CT77+CU77)/CS77) -> 30.5 % | DE77: 75. | DF77: 74. | DG77: Alastaron Urheilijat | DH77: 13 | DI77: 163 | DJ77: 5 | DK77: 57 | DL77: 4 | DM77: 3 | DN77: 94 | DO77: 1491 | DP77: - | DQ77: 2006 | DR77: 136 | DS77: =PRODUCT((DJ77+DK77)/DI77) -> 38.0 % | DU77: =DI77-DJ77-DK77-DL77-DM77-DN77 -> 0
A78: 76. | B78: 76. | C78: Ikaalisten Tarmo | D78: 2 | E78: 44 | F78: 0 | G78: 3 | H78: 1 | I78: 0 | J78: 40 | K78: 148 | L78: - | M78: 437 | N78: =PRODUCT(F78*3+G78*2+H78+I78) -> 7 | O78: =PRODUCT((F78+G78)/E78) -> 6.8 % | AE78: 76. | AF78: 75. | AG78: Kannuksen Ura | AH78: 1 | AI78: 10 | AJ78: 0 | AK78: 0 | AL78: 0 | AM78: 0 | AN78: 10 | AO78: 32 | AP78: - | AQ78: 260 | AR78: 0 | AS78: =PRODUCT((AJ78+AK78)/AI78) -> 0.0 % | BI78: 76. | BJ78: 76. | BK78: Vihdin Pallo | BL78: 1 | BM78: 28 | BN78: 7 | BO78: 2 | BP78: 2 | BQ78: 6 | BR78: 11 | BS78: 185 | BT78: - | BU78: 232 | BV78: 33 | BW78: =PRODUCT((BN78+BO78)/BM78) -> 32.1 % | BY78: 76. | BZ78: 74. | CA78: Pispalan Pesis | CB78: 2 | CC78: 34 | CD78: 11 | CE78: 3 | CF78: 0 | CG78: 8 | CH78: 12 | CI78: 271 | CJ78: - | CK78: 282 | CL78: 47 | CM78: =PRODUCT((CD78+CE78)/CC78) -> 41.2 % | CO78: 76. | CP78: 77. | CQ78: Turku-Pesis | CR78: 21 | CS78: 288 | CT78: 29 | CU78: 73 | CV78: 8 | CW78: 24 | CX78: 154 | CY78: 1966 | CZ78: - | DA78: 2770 | DB78: 265 | DC78: =PRODUCT((CT78+CU78)/CS78) -> 35.4 % | DE78: 76. | DF78: 75. | DG78: Köyliön Lallit | DH78: 4 | DI78: 58 | DJ78: 37 | DK78: 10 | DL78: 0 | DM78: 4 | DN78: 7 | DO78: 1082 | DP78: - | DQ78: 401 | DR78: 135 | DS78: =PRODUCT((DJ78+DK78)/DI78) -> 81.0 % | DU78: =DI78-DJ78-DK78-DL78-DM78-DN78 -> 0
A79: 77. | B79: 77. | C79: Lappeenrannan Työv. Urh. | D79: 1 | E79: 12 | F79: 0 | G79: 2 | H79: 1 | I79: 0 | J79: 9 | K79: 29 | L79: - | M79: 104 | N79: =PRODUCT(F79*3+G79*2+H79+I79) -> 5 | O79: =PRODUCT((F79+G79)/E79) -> 16.7 % | AE79: 77. | AF79: 76. | AG79: Parkanon Urheilijat | AH79: 1 | AI79: 10 | AJ79: 0 | AK79: 0 | AL79: 0 | AM79: 0 | AN79: 10 | AO79: 41 | AP79: - | AQ79: 249 | AR79: 0 | AS79: =PRODUCT((AJ79+AK79)/AI79) -> 0.0 % | BI79: 77. | BJ79: 77. | BK79: Seinäjoen JymyJussit 2 | BL79: 1 | BM79: 22 | BN79: 5 | BO79: 4 | BP79: 0 | BQ79: 6 | BR79: 7 | BS79: 156 | BT79: - | BU79: 165 | BV79: 29 | BW79: =PRODUCT((BN79+BO79)/BM79) -> 40.9 % | BY79: 77. | BZ79: 75. | CA79: Puurtilan Kisa-Pojat | CB79: 5 | CC79: 62 | CD79: 0 | CE79: 23 | CF79: 1 | CG79: 0 | CH79: 38 | CI79: 511 | CJ79: - | CK79: 621 | CL79: 47 | CM79: =PRODUCT((CD79+CE79)/CC79) -> 37.1 % | CO79: 77. | CP79: 74. | CQ79: Sievin Sisu | CR79: 20 | CS79: 266 | CT79: 38 | CU79: 59 | CV79: 9 | CW79: 22 | CX79: 138 | CY79: 1884 | CZ79: - | DA79: 2264 | DB79: 263 | DC79: =PRODUCT((CT79+CU79)/CS79) -> 36.5 % | DE79: 77. | DF79: 89. | DG79: Mailattaret 2 | DH79: 5 | DI79: 78 | DJ79: 32 | DK79: 13 | DL79: 0 | DM79: 13 | DN79: 20 | DO79: 989 | DP79: - | DQ79: 778 | DR79: 135 | DS79: =PRODUCT((DJ79+DK79)/DI79) -> 57.7 % | DU79: =DI79-DJ79-DK79-DL79-DM79-DN79 -> 0
A80: 78. | B80: 78. | C80: Iin Urheilijat | D80: 1 | E80: 22 | F80: 0 | G80: 2 | H80: 1 | I80: 0 | J80: 19 | K80: 81 | L80: - | M80: 208 | N80: =PRODUCT(F80*3+G80*2+H80+I80) -> 5 | O80: =PRODUCT((F80+G80)/E80) -> 9.1 % | AE80: 78. | AF80: 77. | AG80: Vampulan Urheilijat | AH80: 1 | AI80: 10 | AJ80: 0 | AK80: 0 | AL80: 0 | AM80: 0 | AN80: 10 | AO80: 31 | AP80: - | AQ80: 228 | AR80: 0 | AS80: =PRODUCT((AJ80+AK80)/AI80) -> 0.0 % | BI80: 78. | BJ80: 78. | BK80: Kiimingin Urheilijat | BL80: 2 | BM80: 44 | BN80: 3 | BO80: 7 | BP80: 0 | BQ80: 6 | BR80: 28 | BS80: 211 | BT80: - | BU80: 396 | BV80: 29 | BW80: =PRODUCT((BN80+BO80)/BM80) -> 22.7 % | BY80: 78. | BZ80: 76. | CA80: Espoon Pesis | CB80: 3 | CC80: 52 | CD80: 5 | CE80: 12 | CF80: 0 | CG80: 8 | CH80: 27 | CI80: 357 | CJ80: - | CK80: 522 | CL80: 47 | CM80: =PRODUCT((CD80+CE80)/CC80) -> 32.7 % | CO80: 78. | CP80: 75. | CQ80: Pöytyän Urheilijat | CR80: 9 | CS80: 150 | CT80: 57 | CU80: 38 | CV80: 2 | CW80: 13 | CX80: 40 | CY80: 1615 | CZ80: - | DA80: 1195 | DB80: 262 | DC80: =PRODUCT((CT80+CU80)/CS80) -> 63.3 % | DE80: 78. | DF80: 76. | DG80: Jyväskylän Valo | DH80: 8 | DI80: 108 | DJ80: 25 | DK80: 22 | DL80: 0 | DM80: 12 | DN80: 49 | DO80: 1201 | DP80: - | DQ80: 1504 | DR80: 131 | DS80: =PRODUCT((DJ80+DK80)/DI80) -> 43.5 % | DU80: =DI80-DJ80-DK80-DL80-DM80-DN80 -> 0
A81: 79. | B81: 79. | C81: Rauman Fera | D81: 2 | E81: 28 | F81: 0 | G81: 2 | H81: 1 | I81: 0 | J81: 25 | K81: 70 | L81: - | M81: 258 | N81: =PRODUCT(F81*3+G81*2+H81+I81) -> 5 | O81: =PRODUCT((F81+G81)/E81) -> 7.1 % | AE81: 789. | AF81: 78. | AG81: Siilinjärven Ponnistus | AH81: 1 | AI81: 18 | AJ81: 0 | AK81: 0 | AL81: 0 | AM81: 0 | AN81: 18 | AO81: 90 | AP81: - | AQ81: 238 | AR81: 0 | AS81: =PRODUCT((AJ81+AK81)/AI81) -> 0.0 % | BI81: 79. | BJ81: 79. | BK81: Kokkolan Kiri | BL81: 2 | BM81: 40 | BN81: 0 | BO81: 13 | BP81: 2 | BQ81: 0 | BR81: 25 | BS81: 231 | BT81: - | BU81: 328 | BV81: 28 | BW81: =PRODUCT((BN81+BO81)/BM81) -> 32.5 % | BY81: 79. | BZ81: 78. | CA81: Simon Kiri | CB81: 2 | CC81: 42 | CD81: 9 | CE81: 6 | CF81: 0 | CG81: 7 | CH81: 20 | CI81: 369 | CJ81: - | CK81: 481 | CL81: 46 | CM81: =PRODUCT((CD81+CE81)/CC81) -> 35.7 % | CO81: 79. | CP81: 89. | CQ81: Loimaan Palloilijat Junioripesis | CR81: 7 | CS81: 124 | CT81: 65 | CU81: 25 | CV81: 0 | CW81: 14 | CX81: 20 | CY81: 1378 | CZ81: - | DA81: 744 | DB81: 259 | DC81: =PRODUCT((CT81+CU81)/CS81) -> 72.6 % | DE81: 79. | DF81: 77. | DG81: Joensuun Maila 2 | DH81: 7 | DI81: 95 | DJ81: 27 | DK81: 19 | DL81: 0 | DM81: 11 | DN81: 38 | DO81: 1023 | DP81: - | DQ81: 1075 | DR81: 130 | DS81: =PRODUCT((DJ81+DK81)/DI81) -> 48.4 % | DU81: =DI81-DJ81-DK81-DL81-DM81-DN81 -> 0
A82: 80. | B82: 80. | C82: Vähänkyrön Viesti | D82: 1 | E82: 22 | F82: 0 | G82: 2 | H82: 0 | I82: 0 | J82: 20 | K82: 75 | L82: - | M82: 214 | N82: =PRODUCT(F82*3+G82*2+H82+I82) -> 4 | O82: =PRODUCT((F82+G82)/E82) -> 9.1 % | BI82: 80. | BJ82: 80. | BK82: Kuortaneen Kunto | BL82: 2 | BM82: 40 | BN82: 0 | BO82: 13 | BP82: 1 | BQ82: 0 | BR82: 26 | BS82: 212 | BT82: - | BU82: 414 | BV82: 27 | BW82: =PRODUCT((BN82+BO82)/BM82) -> 32.5 % | BY82: 80. | BZ82: 79. | CA82: Jyväskylän Kiri 2 | CB82: 3 | CC82: 56 | CD82: 8 | CE82: 7 | CF82: 0 | CG82: 6 | CH82: 35 | CI82: 411 | CJ82: - | CK82: 821 | CL82: 44 | CM82: =PRODUCT((CD82+CE82)/CC82) -> 26.8 % | CO82: 80. | CP82: 76. | CQ82: Loimaan Palloilijat 2 | CR82: 12 | CS82: 244 | CT82: 31 | CU82: 66 | CV82: 6 | CW82: 27 | CX82: 114 | CY82: 1706 | CZ82: - | DA82: 2034 | DB82: 258 | DC82: =PRODUCT((CT82+CU82)/CS82) -> 39.8 % | DE82: 80. | DF82: 78. | DG82: Sievin Sisu | DH82: 8 | DI82: 120 | DJ82: 19 | DK82: 29 | DL82: 0 | DM82: 14 | DN82: 58 | DO82: 1172 | DP82: - | DQ82: 1640 | DR82: 129 | DS82: =PRODUCT((DJ82+DK82)/DI82) -> 40.0 % | DU82: =DI82-DJ82-DK82-DL82-DM82-DN82 -> 0
A83: 81. | B83: 81. | C83: Nurmeksen Sepot | D83: 1 | E83: 22 | F83: 0 | G83: 2 | H83: 0 | I83: 0 | J83: 20 | K83: 103 | L83: - | M83: 330 | N83: =PRODUCT(F83*3+G83*2+H83+I83) -> 4 | O83: =PRODUCT((F83+G83)/E83) -> 9.1 % | AG83: NAISTEN SUPERPESIKSEN RUNKOSARJA 1955-2025 | BI83: 81. | BJ83: 81. | BK83: Jalasjärven Jalas | BL83: 1 | BM83: 24 | BN83: 4 | BO83: 2 | BP83: 0 | BQ83: 7 | BR83: 11 | BS83: 153 | BT83: - | BU83: 210 | BV83: 23 | BW83: =PRODUCT((BN83+BO83)/BM83) -> 25.0 % | BY83: 81. | BZ83: 80. | CA83: Ylöjärven Pallo | CB83: 5 | CC83: 84 | CD83: 0 | CE83: 19 | CF83: 5 | CG83: 1 | CH83: 59 | CI83: 669 | CJ83: - | CK83: 1152 | CL83: 44 | CM83: =PRODUCT((CD83+CE83)/CC83) -> 22.6 % | CO83: 81. | CP83: 79. | CQ83: Lievestuoreen Kisa | CR83: 11 | CS83: 143 | CT83: 58 | CU83: 35 | CV83: 2 | CW83: 9 | CX83: 39 | CY83: 1433 | CZ83: - | DA83: 939 | DB83: 255 | DC83: =PRODUCT((CT83+CU83)/CS83) -> 65.0 % | DE83: 81. | DF83: 79. | DG83: Loimaan Palloilijat | DH83: 6 | DI83: 80 | DJ83: 26 | DK83: 20 | DL83: 1 | DM83: 6 | DN83: 27 | DO83: 1036 | DP83: - | DQ83: 994 | DR83: 125 | DS83: =PRODUCT((DJ83+DK83)/DI83) -> 57.5 % | DU83: =DI83-DJ83-DK83-DL83-DM83-DN83 -> 0
A84: 82. | B84: 82. | C84: Nokian Urheilijat | D84: 1 | E84: 12 | F84: 0 | G84: 1 | H84: 2 | I84: 0 | J84: 9 | K84: 64 | L84: - | M84: 139 | N84: =PRODUCT(F84*3+G84*2+H84+I84) -> 4 | O84: =PRODUCT((F84+G84)/E84) -> 8.3 % | AG84: Vuosi | AH84: Sarjanimike | AK84: Joukkueet | AM84: Ottelut | AO84: Kierrokset | BI84: 82. | BJ84: 82. | BK84: Oulujoen Kiekko | BL84: 1 | BM84: 22 | BN84: 3 | BO84: 3 | BP84: 0 | BQ84: 6 | BR84: 10 | BS84: 164 | BT84: - | BU84: 195 | BV84: 21 | BW84: =PRODUCT((BN84+BO84)/BM84) -> 27.3 % | BY84: 82. | BZ84: ---- | CA84: Alajärven Ankkurit | CB84: 1 | CC84: 23 | CD84: 9 | CE84: 6 | CF84: 0 | CG84: 4 | CH84: 4 | CI84: 194 | CJ84: - | CK84: 155 | CL84: 43 | CM84: =PRODUCT((CD84+CE84)/CC84) -> 65.2 % | CO84: 82. | CP84: 80. | CQ84: Köyliön Lallit | CR84: 8 | CS84: 138 | CT84: 65 | CU84: 23 | CV84: 0 | CW84: 12 | CX84: 38 | CY84: 1411 | CZ84: - | DA84: 1166 | DB84: 253 | DC84: =PRODUCT((CT84+CU84)/CS84) -> 63.8 % | DE84: 82. | DF84: 86. | DG84: Manse PP | DH84: 8 | DI84: 122 | DJ84: 28 | DK84: 14 | DL84: 0 | DM84: 12 | DN84: 68 | DO84: 1250 | DP84: - | DQ84: 1724 | DR84: 124 | DS84: =PRODUCT((DJ84+DK84)/DI84) -> 34.4 % | DU84: =DI84-DJ84-DK84-DL84-DM84-DN84 -> 0
A85: 83. | B85: 83. | C85: Turun Toverit | D85: 1 | E85: 12 | F85: 0 | G85: 1 | H85: 2 | I85: 0 | J85: 9 | K85: 19 | L85: - | M85: 95 | N85: =PRODUCT(F85*3+G85*2+H85+I85) -> 4 | O85: =PRODUCT((F85+G85)/E85) -> 8.3 % | AG85: 1955-1958 | AH85: Mestaruussarja | AK85: 7 | AM85: 21 | AO85: 6 | BI85: 83. | BJ85: 83. | BK85: Joensuun Maila 2 | BL85: 2 | BM85: 48 | BN85: 5 | BO85: 11 | BP85: 0 | BQ85: 9 | BR85: 23 | BS85: 314 | BT85: - | BU85: 406 | BV85: 46 | BW85: =PRODUCT((BN85+BO85)/BM85) -> 33.3 % | BY85: 83. | BZ85: 81. | CA85: Lammin Luja | CB85: 4 | CC85: 70 | CD85: 0 | CE85: 20 | CF85: 2 | CG85: 0 | CH85: 48 | CI85: 598 | CJ85: - | CK85: 872 | CL85: 42 | CM85: =PRODUCT((CD85+CE85)/CC85) -> 28.6 % | CO85: 83. | CP85: 82. | CQ85: Hongikon Ns. Urheilijat | CR85: 14 | CS85: 216 | CT85: 0 | CU85: 114 | CV85: 18 | CW85: 0 | CX85: 84 | CY85: 2046 | CZ85: - | DA85: 1585 | DB85: 246 | DC85: =PRODUCT((CT85+CU85)/CS85) -> 52.8 % | DE85: 83. | DF85: 80. | DG85: Turku-Pesis 2 | DH85: 8 | DI85: 104 | DJ85: 27 | DK85: 18 | DL85: 4 | DM85: 2 | DN85: 53 | DO85: 1118 | DP85: - | DQ85: 1348 | DR85: 123 | DS85: =PRODUCT((DJ85+DK85)/DI85) -> 43.3 % | DU85: =DI85-DJ85-DK85-DL85-DM85-DN85 -> 0
A86: 84. | B86: 84. | C86: Joensuun Palloseura | D86: 1 | E86: 6 | F86: 0 | G86: 1 | H86: 0 | I86: 0 | J86: 5 | K86: 29 | L86: - | M86: 59 | N86: =PRODUCT(F86*3+G86*2+H86+I86) -> 2 | O86: =PRODUCT((F86+G86)/E86) -> 16.7 % | AG86: 1959-1962 | AH86: Mestaruussarja | AK86: 9 | AM86: 36 | AO86: 8 | BI86: 84. | BJ86: 84. | BK86: Helsinki-Pesis | BL86: 1 | BM86: 20 | BN86: 0 | BO86: 9 | BP86: 0 | BQ86: 0 | BR86: 11 | BS86: 116 | BT86: - | BU86: 139 | BV86: 18 | BW86: =PRODUCT((BN86+BO86)/BM86) -> 45.0 % | BY86: 84. | BZ86: 82. | CA86: Vantaanjoen Juoksu | CB86: 3 | CC86: 42 | CD86: 7 | CE86: 5 | CF86: 0 | CG86: 5 | CH86: 25 | CI86: 366 | CJ86: - | CK86: 766 | CL86: 36 | CM86: =PRODUCT((CD86+CE86)/CC86) -> 28.6 % | CO86: 84. | CP86: 83. | CQ86: Maaningan Mahti | CR86: 12 | CS86: 244 | CT86: 6 | CU86: 106 | CV86: 11 | CW86: 3 | CX86: 118 | CY86: 2122 | CZ86: - | DA86: 2203 | DB86: 244 | DC86: =PRODUCT((CT86+CU86)/CS86) -> 45.9 % | DE86: 84. | DF86: 81. | DG86: Vetelin Urheilijat | DH86: 5 | DI86: 67 | DJ86: 27 | DK86: 17 | DL86: 0 | DM86: 6 | DN86: 17 | DO86: 774 | DP86: - | DQ86: 623 | DR86: 121 | DS86: =PRODUCT((DJ86+DK86)/DI86) -> 65.7 % | DU86: =DI86-DJ86-DK86-DL86-DM86-DN86 -> 0
A87: 85. | B87: 85. | C87: Keuruun Kisailijat | D87: 1 | E87: 14 | F87: 0 | G87: 1 | H87: 0 | I87: 0 | J87: 13 | K87: 46 | L87: - | M87: 159 | N87: =PRODUCT(F87*3+G87*2+H87+I87) -> 2 | O87: =PRODUCT((F87+G87)/E87) -> 7.1 % | AG87: 1963-1967 | AH87: Mestaruussarja | AK87: 11 | AM87: 55 | AO87: 10 | BI87: 85. | BJ87: 85. | BK87: Kylävuoren Kaiku | BL87: 1 | BM87: 22 | BN87: 1 | BO87: 6 | BP87: 0 | BQ87: 3 | BR87: 12 | BS87: 131 | BT87: - | BU87: 220 | BV87: 18 | BW87: =PRODUCT((BN87+BO87)/BM87) -> 31.8 % | BY87: 85. | BZ87: 83. | CA87: Oulun Lippo 2 | CB87: 1 | CC87: 22 | CD87: 9 | CE87: 2 | CF87: 2 | CG87: 1 | CH87: 8 | CI87: 191 | CJ87: - | CK87: 183 | CL87: 34 | CM87: =PRODUCT((CD87+CE87)/CC87) -> 50.0 % | CO87: 85. | CP87: 84. | CQ87: Tohmajärven Pomppu | CR87: 9 | CS87: 176 | CT87: 42 | CU87: 46 | CV87: 3 | CW87: 21 | CX87: 64 | CY87: 1542 | CZ87: - | DA87: 1327 | DB87: 242 | DC87: =PRODUCT((CT87+CU87)/CS87) -> 50.0 % | DE87: 85. | DF87: 96. | DG87: Nivala Pesis | DH87: 7 | DI87: 102 | DJ87: 26 | DK87: 17 | DL87: 0 | DM87: 9 | DN87: 50 | DO87: 1058 | DP87: - | DQ87: 1441 | DR87: 121 | DS87: =PRODUCT((DJ87+DK87)/DI87) -> 42.2 % | DU87: =DI87-DJ87-DK87-DL87-DM87-DN87 -> 0
A88: 86. | B88: 86. | C88: Sortavalan Palloseura | D88: 1 | E88: 10 | F88: 0 | G88: 0 | H88: 1 | I88: 0 | J88: 9 | K88: 14 | L88: - | M88: 79 | N88: =PRODUCT(F88*3+G88*2+H88+I88) -> 1 | O88: =PRODUCT((F88+G88)/E88) -> 0.0 % | AG88: 1968 | AH88: Mestaruussarja | AK88: 9 | AM88: 36 | AO88: 8 | BI88: 86. | BJ88: 86. | BK88: Järvenpään Palo | BL88: 2 | BM88: 44 | BN88: 0 | BO88: 7 | BP88: 1 | BQ88: 0 | BR88: 36 | BS88: 153 | BT88: - | BU88: 448 | BV88: 15 | BW88: =PRODUCT((BN88+BO88)/BM88) -> 15.9 % | BY88: 86. | BZ88: 84. | CA88: Ilomantsin Urheilijat | CB88: 4 | CC88: 50 | CD88: 0 | CE88: 14 | CF88: 6 | CG88: 0 | CH88: 30 | CI88: 442 | CJ88: - | CK88: 530 | CL88: 34 | CM88: =PRODUCT((CD88+CE88)/CC88) -> 28.0 % | CO88: 86. | CP88: 88. | CQ88: Haapajärven Pesä-Kiilat | CR88: 10 | CS88: 160 | CT88: 50 | CU88: 36 | CV88: 0 | CW88: 19 | CX88: 55 | CY88: 1448 | CZ88: - | DA88: 1440 | DB88: 241 | DC88: =PRODUCT((CT88+CU88)/CS88) -> 53.8 % | DE88: 86. | DF88: 82. | DG88: Kyrön Voima | DH88: 8 | DI88: 112 | DJ88: 22 | DK88: 21 | DL88: 2 | DM88: 7 | DN88: 60 | DO88: 1098 | DP88: - | DQ88: 1515 | DR88: 117 | DS88: =PRODUCT((DJ88+DK88)/DI88) -> 38.4 % | DU88: =DI88-DJ88-DK88-DL88-DM88-DN88 -> 0
A89: 87. | B89: 87. | C89: Haminan Ponteva | D89: 1 | E89: 12 | F89: 0 | G89: 0 | H89: 1 | I89: 0 | J89: 11 | K89: 53 | L89: - | M89: 206 | N89: =PRODUCT(F89*3+G89*2+H89+I89) -> 1 | O89: =PRODUCT((F89+G89)/E89) -> 0.0 % | AG89: 1969-1970 | AH89: Mestaruussarja | AK89: 11 | AM89: 55 | AO89: 10 | BI89: 87. | BJ89: 87. | BK89: Imatran Pallo-Veikot 2 | BL89: 1 | BM89: 20 | BN89: 0 | BO89: 4 | BP89: 2 | BQ89: 0 | BR89: 14 | BS89: 115 | BT89: - | BU89: 183 | BV89: 10 | BW89: =PRODUCT((BN89+BO89)/BM89) -> 20.0 % | BY89: 87. | BZ89: 85. | CA89: Muhoksen Pallo-Salamat | CB89: 1 | CC89: 14 | CD89: 7 | CE89: 4 | CF89: 0 | CG89: 1 | CH89: 2 | CI89: 161 | CJ89: - | CK89: 101 | CL89: 30 | CM89: =PRODUCT((CD89+CE89)/CC89) -> 78.6 % | CO89: 87. | CP89: 85. | CQ89: Lapuan Virkiä | CR89: 8 | CS89: 140 | CT89: 53 | CU89: 31 | CV89: 0 | CW89: 15 | CX89: 41 | CY89: 1368 | CZ89: - | DA89: 1113 | DB89: 236 | DC89: =PRODUCT((CT89+CU89)/CS89) -> 60.0 % | DE89: 87. | DF89: 83. | DG89: Pomarkun Pyry | DH89: 5 | DI89: 64 | DJ89: 18 | DK89: 30 | DL89: 0 | DM89: 2 | DN89: 14 | DO89: 919 | DP89: - | DQ89: 619 | DR89: 116 | DS89: =PRODUCT((DJ89+DK89)/DI89) -> 75.0 % | DU89: =DI89-DJ89-DK89-DL89-DM89-DN89 -> 0
AG90: 1971 | AH90: Mestaruussarja | AK90: 10 | AM90: 45 | AO90: 9 | BI90: 88. | BJ90: 88. | BK90: Lammin Luja | BL90: 1 | BM90: 22 | BN90: 0 | BO90: 4 | BP90: 1 | BQ90: 0 | BR90: 17 | BS90: 96 | BT90: - | BU90: 244 | BV90: 9 | BW90: =PRODUCT((BN90+BO90)/BM90) -> 18.2 % | BY90: 88. | BZ90: 86. | CA90: Helsingin Puna-Mustat | CB90: 2 | CC90: 28 | CD90: 5 | CE90: 3 | CF90: 0 | CG90: 1 | CH90: 19 | CI90: 252 | CJ90: - | CK90: 544 | CL90: 22 | CM90: =PRODUCT((CD90+CE90)/CC90) -> 28.6 % | CO90: 88. | CP90: 86. | CQ90: Ylihärmän Pesis-Junkkarit | CR90: 9 | CS90: 154 | CT90: 63 | CU90: 16 | CV90: 0 | CW90: 13 | CX90: 62 | CY90: 1595 | CZ90: - | DA90: 1449 | DB90: 234 | DC90: =PRODUCT((CT90+CU90)/CS90) -> 51.3 % | DE90: 88. | DF90: 93. | DG90: Simon Kiri | DH90: 6 | DI90: 90 | DJ90: 28 | DK90: 11 | DL90: 0 | DM90: 8 | DN90: 43 | DO90: 1061 | DP90: - | DQ90: 1333 | DR90: 114 | DS90: =PRODUCT((DJ90+DK90)/DI90) -> 43.3 % | DU90: =DI90-DJ90-DK90-DL90-DM90-DN90 -> 0
C91: Yksi luovutus laskettu tuloksella 1-0; 1931 KUS-ToPV | AG91: 1972-1973 | AH91: Mestaruussarja | AK91: 11 | AM91: 55 | AO91: 10 | BI91: 89. | BJ91: 89. | BK91: Mäntyharjun Virkistys | BL91: 1 | BM91: 22 | BN91: 0 | BO91: 1 | BP91: 0 | BQ91: 1 | BR91: 20 | BS91: 124 | BT91: - | BU91: 347 | BV91: 3 | BW91: =PRODUCT((BN91+BO91)/BM91) -> 4.5 % | BY91: 89. | BZ91: 87. | CA91: Ylihärmän Junkkarit | CB91: 1 | CC91: 12 | CD91: 0 | CE91: 8 | CF91: 3 | CG91: 0 | CH91: 1 | CI91: 154 | CJ91: - | CK91: 75 | CL91: 19 | CM91: =PRODUCT((CD91+CE91)/CC91) -> 66.7 % | CO91: 89. | CP91: 87. | CQ91: Kiteen Urheilijat | CR91: 10 | CS91: 162 | CT91: 0 | CU91: 111 | CV91: 6 | CW91: 0 | CX91: 45 | CY91: 1649 | CZ91: - | DA91: 1008 | DB91: 228 | DC91: =PRODUCT((CT91+CU91)/CS91) -> 68.5 % | DE91: 89. | DF91: 85. | DG91: Nokian Urheilijat | DH91: 8 | DI91: 106 | DJ91: 0 | DK91: 54 | DL91: 5 | DM91: 0 | DN91: 47 | DO91: 1216 | DP91: - | DQ91: 965 | DR91: 113 | DS91: =PRODUCT((DJ91+DK91)/DI91) -> 50.9 % | DU91: =DI91-DJ91-DK91-DL91-DM91-DN91 -> 0
C92: Seuraavat yhdistetty; Helsingin Puna-Mustat (Hukat), Jyväskylän Pesä-Veikot (Jyväskylän Veikot), Järvenpään Pesis (Kinnarin Pesis), | AG92: 1974 | AH92: Mestaruussarja | AK92: 8 | AM92: 56 | AO92: 14 | BY92: 90. | BZ92: 88. | CA92: Vihdin Pallo 2 | CB92: 3 | CC92: 52 | CD92: 1 | CE92: 7 | CF92: 0 | CG92: 2 | CH92: 42 | CI92: 335 | CJ92: - | CK92: 1208 | CL92: 19 | CM92: =PRODUCT((CD92+CE92)/CC92) -> 15.4 % | CO92: 90. | CP92: 90. | CQ92: Nurmon Jymy 2 | CR92: 9 | CS92: 154 | CT92: 51 | CU92: 26 | CV92: 0 | CW92: 20 | CX92: 57 | CY92: 1589 | CZ92: - | DA92: 1579 | DB92: 225 | DC92: =PRODUCT((CT92+CU92)/CS92) -> 50.0 % | DE92: 90. | DF92: 100. | DG92: Mailajuniorit | DH92: 3 | DI92: 54 | DJ92: 29 | DK92: 11 | DL92: 0 | DM92: 2 | DN92: 12 | DO92: 721 | DP92: - | DQ92: 441 | DR92: 111 | DS92: =PRODUCT((DJ92+DK92)/DI92) -> 74.1 % | DU92: =DI92-DJ92-DK92-DL92-DM92-DN92 -> 0
C93: Kuusankosken Veto (Kymintehtaan Urheiluseura), Rauman Fera (Rauman Urheilijat), Vimpelin Veto (Vimpelin suojeluskunta) | AG93: 1975-1980 | AH93: Mestaruussarja | AK93: 12 | AM93: 60 | AO93: 10 | BK93: MIESTEN YKKÖSPESIKSEN RUNKOSARJA 1981-2025 | BY93: 91. | BZ93: 89. | CA93: Lahden Mailaveikot | CB93: 2 | CC93: 24 | CD93: 0 | CE93: 9 | CF93: 0 | CG93: 0 | CH93: 15 | CI93: 274 | CJ93: - | CK93: 414 | CL93: 18 | CM93: =PRODUCT((CD93+CE93)/CC93) -> 37.5 % | CO93: 91. | CP93: 91. | CQ93: Siilinjärven Pesis | CR93: 9 | CS93: 138 | CT93: 48 | CU93: 32 | CV93: 0 | CW93: 13 | CX93: 45 | CY93: 1374 | CZ93: - | DA93: 1083 | DB93: 221 | DC93: =PRODUCT((CT93+CU93)/CS93) -> 58.0 % | DE93: 91. | DF93: 87. | DG93: Porvoon Kumuri | DH93: 7 | DI93: 96 | DJ93: 28 | DK93: 7 | DL93: 1 | DM93: 8 | DN93: 52 | DO93: 1314 | DP93: - | DQ93: 1946 | DR93: 107 | DS93: =PRODUCT((DJ93+DK93)/DI93) -> 36.5 % | DU93: =DI93-DJ93-DK93-DL93-DM93-DN93 -> 0
AG94: 1981-1989 | AH94: Mestaruussarja | AK94: 10 | AM94: 90 | AO94: 18 | BK94: Vuosi | BL94: Sarjanimike | BO94: Joukkueet | BQ94: Ottelut | BS94: Kierrokset | BY94: 92. | BZ94: 90. | CA94: Loimaan Palloilijat | CB94: 3 | CC94: 40 | CD94: 0 | CE94: 8 | CF94: 2 | CG94: 0 | CH94: 30 | CI94: 207 | CJ94: - | CK94: 489 | CL94: 18 | CM94: =PRODUCT((CD94+CE94)/CC94) -> 20.0 % | CO94: 92. | CP94: 92. | CQ94: Lohjan Kisa-Veikot | CR94: 10 | CS94: 196 | CT94: 0 | CU94: 106 | CV94: 7 | CW94: 0 | CX94: 83 | CY94: 1599 | CZ94: - | DA94: 1484 | DB94: 219 | DC94: =PRODUCT((CT94+CU94)/CS94) -> 54.1 % | DE94: 92. | DF94: 88. | DG94: Alavuden Pesäpeli | DH94: 4 | DI94: 64 | DJ94: 23 | DK94: 12 | DL94: 0 | DM94: 10 | DN94: 19 | DO94: 798 | DP94: - | DQ94: 644 | DR94: 103 | DS94: =PRODUCT((DJ94+DK94)/DI94) -> 54.7 % | DU94: =DI94-DJ94-DK94-DL94-DM94-DN94 -> 0
C95: MIESTEN SUPERPESIKSEN RUNKOSARJA 1931-2025 | AG95: 1990-1992 | AH95: Superpesis | AK95: 12 | AM95: 132 | AO95: 22 | BK95: 1981-1984 | BL95: Ykkössarja | BO95: 12 | BQ95: 60 | BS95: 20 | BY95: 93. | BZ95: ---- | CA95: Pattijoen Urheilijat Naiset | CB95: 1 | CC95: 23 | CD95: 1 | CE95: 5 | CF95: 0 | CG95: 4 | CH95: 13 | CI95: 117 | CJ95: - | CK95: 187 | CL95: 17 | CM95: =PRODUCT((CD95+CE95)/CC95) -> 26.1 % | CO95: 93. | CP95: 93. | CQ95: Rantsilan Raikas | CR95: 19 | CS95: 290 | CT95: 0 | CU95: 102 | CV95: 10 | CW95: 0 | CX95: 178 | CY95: 2078 | CZ95: - | DA95: 2950 | DB95: 214 | DC95: =PRODUCT((CT95+CU95)/CS95) -> 35.2 % | DE95: 93. | DF95: 90. | DG95: Mansen Pesäpallo 2 | DH95: 8 | DI95: 104 | DJ95: 11 | DK95: 32 | DL95: 1 | DM95: 1 | DN95: 59 | DO95: 914 | DP95: - | DQ95: 1327 | DR95: 99 | DS95: =PRODUCT((DJ95+DK95)/DI95) -> 41.3 % | DU95: =DI95-DJ95-DK95-DL95-DM95-DN95 -> 0
C96: Vuosi | D96: Sarjanimike | G96: Joukkueet | I96: Ottelut | K96: Kierrokset | AG96: 1993-1994 | AH96: Superpesis | AK96: 12 | AM96: 144 | AO96: 24 | BK96: 1985-1991 | BL96: Ykkössarja | BO96: 12 | BQ96: 132 | BS96: 22 | BY96: 94. | BZ96: 91. | CA96: Vetelin Urheilijat | CB96: 1 | CC96: 19 | CD96: 2 | CE96: 3 | CF96: 0 | CG96: 4 | CH96: 10 | CI96: 166 | CJ96: - | CK96: 269 | CL96: 16 | CM96: =PRODUCT((CD96+CE96)/CC96) -> 26.3 % | CO96: 94. | CP96: 94. | CQ96: Mynämäen Vesa | CR96: 16 | CS96: 298 | CT96: 20 | CU96: 59 | CV96: 13 | CW96: 21 | CX96: 185 | CY96: 1851 | CZ96: - | DA96: 3120 | DB96: 212 | DC96: =PRODUCT((CT96+CU96)/CS96) -> 26.5 % | DE96: 94. | DF96: 104. | DG96: Laitilan Jyske 2 | DH96: 4 | DI96: 64 | DJ96: 22 | DK96: 12 | DL96: 0 | DM96: 7 | DN96: 23 | DO96: 799 | DP96: - | DQ96: 783 | DR96: 97 | DS96: =PRODUCT((DJ96+DK96)/DI96) -> 53.1 % | DU96: =DI96-DJ96-DK96-DL96-DM96-DN96 -> 0
C97: 1931 | D97: Suursarja | G97: 7 | I97: 21 | K97: 6 | AG97: 1995 | AH97: Superpesis | AK97: 12 | AM97: 132 | AO97: 22 | BK97: 1992-1993 | BL97: Ykköspesis | BO97: 14 | BQ97: 182 | BS97: 26 | BY97: 95. | BZ97: 92. | CA97: Siilinjärven Ponnistus | CB97: 1 | CC97: 8 | CD97: 0 | CE97: 6 | CF97: 0 | CG97: 0 | CH97: 2 | CI97: 77 | CJ97: - | CK97: 39 | CL97: 12 | CM97: =PRODUCT((CD97+CE97)/CC97) -> 75.0 % | CO97: 95. | CP97: 95. | CQ97: Herttoniemen Urheilijat | CR97: 13 | CS97: 194 | CT97: 0 | CU97: 101 | CV97: 9 | CW97: 0 | CX97: 84 | CY97: 1914 | CZ97: - | DA97: 1686 | DB97: 211 | DC97: =PRODUCT((CT97+CU97)/CS97) -> 52.1 % | DE97: 95. | DF97: 91. | DG97: Vantaanjoen Juoksu | DH97: 6 | DI97: 88 | DJ97: 22 | DK97: 12 | DL97: 0 | DM97: 5 | DN97: 49 | DO97: 1090 | DP97: - | DQ97: 1446 | DR97: 95 | DS97: =PRODUCT((DJ97+DK97)/DI97) -> 38.6 % | DU97: =DI97-DJ97-DK97-DL97-DM97-DN97 -> 0
C98: 1932-1933 | D98: Suursarja | G98: 8 | I98: 24 | K98: 6 | AG98: 1996-1997 | AH98: Superpesis | AK98: 12 | AM98: 144 | AO98: 24 | BK98: 1994 | BL98: Ykköspesis | BO98: 14 | BQ98: 154 | BS98: 28 | BY98: 96. | BZ98: 93. | CA98: Loimaan Palloilijat Junioripesis | CB98: 2 | CC98: 28 | CD98: 2 | CE98: 0 | CF98: 0 | CG98: 4 | CH98: 22 | CI98: 172 | CJ98: - | CK98: 511 | CL98: 10 | CM98: =PRODUCT((CD98+CE98)/CC98) -> 7.1 % | CO98: 96. | CP98: 96. | CQ98: Nokian Urheilijat | CR98: 20 | CS98: 197 | CT98: 0 | CU98: 97 | CV98: 9 | CW98: 0 | CX98: 91 | CY98: 1703 | CZ98: - | DA98: 1520 | DB98: 203 | DC98: =PRODUCT((CT98+CU98)/CS98) -> 49.2 % | DE98: 96. | DF98: 92. | DG98: Ylihärmän Junkkarit | DH98: 5 | DI98: 72 | DJ98: 0 | DK98: 46 | DL98: 2 | DM98: 0 | DN98: 24 | DO98: 683 | DP98: - | DQ98: 534 | DR98: 94 | DS98: =PRODUCT((DJ98+DK98)/DI98) -> 63.9 % | DU98: =DI98-DJ98-DK98-DL98-DM98-DN98 -> 0
C99: 1934-1939 | D99: Suursarja | G99: 12 | I99: 60 | K99: 10 | AG99: 1998-2000 | AH99: Superpesis | AK99: 12 | AM99: 132 | AO99: 22 | BK99: 1995 | BL99: Ykköspesis | BO99: 13 | BQ99: 154 | BS99: 24 | BY99: 97. | BZ99: 94. | CA99: Heinolan Maila-Pojat | CB99: 1 | CC99: 22 | CD99: 2 | CE99: 0 | CF99: 0 | CG99: 3 | CH99: 17 | CI99: 128 | CJ99: - | CK99: 377 | CL99: 9 | CM99: =PRODUCT((CD99+CE99)/CC99) -> 9.1 % | CO99: 97. | CP99: 108. | CQ99: Alavuden Peli-Veikot | CR99: 7 | CS99: 110 | CT99: 51 | CU99: 16 | CV99: 0 | CW99: 12 | CX99: 31 | CY99: 1071 | CZ99: - | DA99: 768 | DB99: 197 | DC99: =PRODUCT((CT99+CU99)/CS99) -> 60.9 % | DE99: 97. | DF99: 94. | DG99: Ikaalisten Tarmo 2 | DH99: 6 | DI99: 78 | DJ99: 4 | DK99: 35 | DL99: 5 | DM99: 4 | DN99: 30 | DO99: 958 | DP99: - | DQ99: 756 | DR99: 91 | DS99: =PRODUCT((DJ99+DK99)/DI99) -> 50.0 % | DU99: =DI99-DJ99-DK99-DL99-DM99-DN99 -> 0
C100: 1940 | D100: Suursarja | G100: 9 | I100: 36 | K100: 8 | AG100: 1999 | AH100: Superpesis | AK100: 12 | AM100: 132 | AO100: 22 | BK100: 1996-1997 | BL100: Ykköspesis | BO100: 14 | BQ100: 182 | BS100: 26 | BY100: 98. | BZ100: 95. | CA100: Kuusaan Pallo | CB100: 2 | CC100: 18 | CD100: 0 | CE100: 4 | CF100: 0 | CG100: 0 | CH100: 14 | CI100: 108 | CJ100: - | CK100: 191 | CL100: 8 | CM100: =PRODUCT((CD100+CE100)/CC100) -> 22.2 % | CO100: 98. | CP100: 97. | CQ100: Veteli Pesis | CR100: 9 | CS100: 139 | CT100: 40 | CU100: 29 | CV100: 0 | CW100: 19 | CX100: 51 | CY100: 1370 | CZ100: - | DA100: 1371 | DB100: 197 | DC100: =PRODUCT((CT100+CU100)/CS100) -> 49.6 % | DE100: 98. | DF100: 95. | DG100: Kajaanin Pallokerho 2 | DH100: 4 | DI100: 58 | DJ100: 19 | DK100: 12 | DL100: 0 | DM100: 8 | DN100: 19 | DO100: 715 | DP100: - | DQ100: 672 | DR100: 89 | DS100: =PRODUCT((DJ100+DK100)/DI100) -> 53.4 % | DU100: =DI100-DJ100-DK100-DL100-DM100-DN100 -> 0
C101: 1941 | D101: Sarja jäi kesken sodan takia | AG101: 2001-2002 | AH101: Superpesis | AK101: 12 | AM101: 144 | AO101: 24 | BK101: 1998 | BL101: Ykköspesis | BO101: 13 | BQ101: 155 | BS101: 24 | BY101: 99. | BZ101: 96. | CA101: Tyrnävän Tempaus 2 | CB101: 1 | CC101: 14 | CD101: 2 | CE101: 0 | CF101: 0 | CG101: 1 | CH101: 11 | CI101: 78 | CJ101: - | CK101: 247 | CL101: 7 | CM101: =PRODUCT((CD101+CE101)/CC101) -> 14.3 % | CO101: 99. | CP101: 98. | CQ101: Ylivieskan Kuula 2 | CR101: 9 | CS101: 152 | CT101: 43 | CU101: 23 | CV101: 3 | CW101: 19 | CX101: 64 | CY101: 1279 | CZ101: - | DA101: 1583 | DB101: 197 | DC101: =PRODUCT((CT101+CU101)/CS101) -> 43.4 % | DE101: 99. | DF101: 97. | DG101: Vampulan Urheilijat | DH101: 8 | DI101: 92 | DJ101: 0 | DK101: 40 | DL101: 5 | DM101: 0 | DN101: 47 | DO101: 842 | DP101: - | DQ101: 972 | DR101: 85 | DS101: =PRODUCT((DJ101+DK101)/DI101) -> 43.5 % | DU101: =DI101-DJ101-DK101-DL101-DM101-DN101 -> 0
C102: 1942 | D102: Sotasarja | G102: 7 | I102: 21 | K102: 6 | AG102: 2003 | AH102: Superpesis | AK102: 11 | AM102: 110 | AO102: 20 | BK102: 1999 | BL102: Ykköspesis | BO102: 15 | BQ102: 112 | BS102: 14 | BY102: 100. | BZ102: 97. | CA102: Jyväskylän Valo 2 | CB102: 1 | CC102: 12 | CD102: 1 | CE102: 1 | CF102: 0 | CG102: 1 | CH102: 9 | CI102: 62 | CJ102: - | CK102: 160 | CL102: 6 | CM102: =PRODUCT((CD102+CE102)/CC102) -> 16.7 % | CO102: 100. | CP102: 99. | CQ102: Muhoksen Urheilijat | CR102: 16 | CS102: 149 | CT102: 0 | CU102: 95 | CV102: 6 | CW102: 0 | CX102: 48 | CY102: 1403 | CZ102: - | DA102: 884 | DB102: 196 | DC102: =PRODUCT((CT102+CU102)/CS102) -> 63.8 % | DE102: 100. | DF102: 98. | DG102: Fera | DH102: 4 | DI102: 54 | DJ102: 0 | DK102: 40 | DL102: 4 | DM102: 0 | DN102: 10 | DO102: 721 | DP102: - | DQ102: 399 | DR102: 84 | DS102: =PRODUCT((DJ102+DK102)/DI102) -> 74.1 % | DU102: =DI102-DJ102-DK102-DL102-DM102-DN102 -> 0
C103: 1943 | D103: Sotasarja | G103: 9 | I103: 36 | K103: 8 | AG103: 2004 | AH103: Superpesis | AK103: 10 | AM103: 100 | AO103: 20 | BK103: 2000-2001 | BL103: Ykköspesis | BO103: 14 | BQ103: 182 | BS103: 26 | BY103: 101. | BZ103: 98. | CA103: Alastaron Urheilijat | CB103: 1 | CC103: 10 | CD103: 0 | CE103: 2 | CF103: 0 | CG103: 0 | CH103: 8 | CI103: 84 | CJ103: - | CK103: 173 | CL103: 4 | CM103: =PRODUCT((CD103+CE103)/CC103) -> 20.0 % | CO103: 101. | CP103: 111. | CQ103: Riihimäen Pallonlyöjät (1999) | CR103: 7 | CS103: 128 | CT103: 46 | CU103: 23 | CV103: 0 | CW103: 12 | CX103: 47 | CY103: 1314 | CZ103: - | DA103: 1162 | DB103: 196 | DC103: =PRODUCT((CT103+CU103)/CS103) -> 53.9 % | DE103: 101. | DF103: 99. | DG103: Ulvilan Pesä-Veikot 2 | DH103: 6 | DI103: 80 | DJ103: 7 | DK103: 26 | DL103: 5 | DM103: 5 | DN103: 37 | DO103: 900 | DP103: - | DQ103: 945 | DR103: 83 | DS103: =PRODUCT((DJ103+DK103)/DI103) -> 41.3 % | DU103: =DI103-DJ103-DK103-DL103-DM103-DN103 -> 0
C104: 1944 | D104: Sarja jäi kesken sodan takia | AG104: 2005-2008 | AH104: Superpesis | AK104: 11 | AM104: 110 | AO104: 20 | BK104: 2002-2006 | BL104: Ykköspesis | BO104: 16 | BQ104: 176 | BS104: 22 | BY104: 102. | BZ104: 99. | CA104: Kotkan Into | CB104: 1 | CC104: 14 | CD104: 0 | CE104: 1 | CF104: 2 | CG104: 0 | CH104: 11 | CI104: 85 | CJ104: - | CK104: 171 | CL104: 4 | CM104: =PRODUCT((CD104+CE104)/CC104) -> 7.1 % | CO104: 102. | CP104: 100. | CQ104: Keravan Pallokerho | CR104: 13 | CS104: 188 | CT104: 0 | CU104: 87 | CV104: 9 | CW104: 0 | CX104: 92 | CY104: 1626 | CZ104: - | DA104: 1662 | DB104: 183 | DC104: =PRODUCT((CT104+CU104)/CS104) -> 46.3 % | DE104: 102. | DF104: 101. | DG104: Jalasjärven Jalas | DH104: 4 | DI104: 60 | DJ104: 19 | DK104: 6 | DL104: 0 | DM104: 8 | DN104: 27 | DO104: 586 | DP104: - | DQ104: 625 | DR104: 77 | DS104: =PRODUCT((DJ104+DK104)/DI104) -> 41.7 % | DU104: =DI104-DJ104-DK104-DL104-DM104-DN104 -> 0
C105: 1945-1955 | D105: Mestaruussarja | G105: 13 | I105: 78 | K105: 12 | AG105: 2009-2010 | AH105: Superpesis | AK105: 12 | AM105: 144 | AO105: 24 | BK105: 2007 | BL105: Ykköspesis | BO105: 15 | BQ105: 154 | BS105: 21 | BY105: 103. | BZ105: 100. | CA105: Nokian Urheilijat | CB105: 1 | CC105: 14 | CD105: 0 | CE105: 1 | CF105: 1 | CG105: 0 | CH105: 12 | CI105: 71 | CJ105: - | CK105: 177 | CL105: 3 | CM105: =PRODUCT((CD105+CE105)/CC105) -> 7.1 % | CO105: 103. | CP105: 121. | CQ105: Oulun Lippo Juniorit 2 | CR105: 7 | CS105: 110 | CT105: 36 | CU105: 31 | CV105: 0 | CW105: 12 | CX105: 31 | CY105: 1202 | CZ105: - | DA105: 922 | DB105: 182 | DC105: =PRODUCT((CT105+CU105)/CS105) -> 60.9 % | DE105: 103. | DF105: 102. | DG105: Lammin Luja | DH105: 5 | DI105: 66 | DJ105: 0 | DK105: 36 | DL105: 1 | DM105: 0 | DN105: 29 | DO105: 787 | DP105: - | DQ105: 745 | DR105: 73 | DS105: =PRODUCT((DJ105+DK105)/DI105) -> 54.5 % | DU105: =DI105-DJ105-DK105-DL105-DM105-DN105 -> 0
C106: 1956-1963 | D106: Mestaruussarja | G106: 15 | I106: 105 | K106: 14 | AG106: 2011 | AH106: Superpesis | AK106: 10 | AM106: 110 | AO106: 22 | BK106: 2008-2014 | BL106: Ykköspesis | BO106: 12 | BQ106: 132 | BS106: 22 | BY106: 104. | BZ106: 101. | CA106: Karinaisten Kunto | CB106: 1 | CC106: 22 | CD106: 1 | CE106: 0 | CF106: 0 | CG106: 0 | CH106: 21 | CI106: 133 | CJ106: - | CK106: 365 | CL106: 3 | CM106: =PRODUCT((CD106+CE106)/CC106) -> 4.5 % | CO106: 104. | CP106: 101. | CQ106: Juvan Nuorisopesis | CR106: 9 | CS106: 144 | CT106: 39 | CU106: 22 | CV106: 0 | CW106: 20 | CX106: 63 | CY106: 1274 | CZ106: - | DA106: 1409 | DB106: 181 | DC106: =PRODUCT((CT106+CU106)/CS106) -> 42.4 % | DE106: 104. | DF106: 103. | DG106: Loimaan Voima | DH106: 3 | DI106: 56 | DJ106: 16 | DK106: 9 | DL106: 0 | DM106: 6 | DN106: 25 | DO106: 637 | DP106: - | DQ106: 858 | DR106: 72 | DS106: =PRODUCT((DJ106+DK106)/DI106) -> 44.6 % | DU106: =DI106-DJ106-DK106-DL106-DM106-DN106 -> 0
C107: 1964-1989 | D107: Mestaruussarja | G107: 12 | I107: 132 | K107: 22 | AG107: 2012 | AH107: Superpesis | AK107: 11 | AM107: 121 | AO107: 22 | BK107: 2015-2017 | BL107: Ykköspesis | BO107: 12 | BQ107: 144 | BS107: 24 | BY107: 105. | BZ107: 102. | CA107: Nerkoon Nuorisoseuran Urheilijat | CB107: 1 | CC107: 16 | CD107: 0 | CE107: 1 | CF107: 0 | CG107: 0 | CH107: 15 | CI107: 51 | CJ107: - | CK107: 327 | CL107: 2 | CM107: =PRODUCT((CD107+CE107)/CC107) -> 6.3 % | CO107: 105. | CP107: 102. | CQ107: Halsua-Veteli Pesis | CR107: 7 | CS107: 122 | CT107: 35 | CU107: 29 | CV107: 0 | CW107: 17 | CX107: 41 | CY107: 1094 | CZ107: - | DA107: 1104 | DB107: 180 | DC107: =PRODUCT((CT107+CU107)/CS107) -> 52.5 % | DE107: 105. | DF107: 105. | DG107: Hämeenkyrön Räpsä 2 | DH107: 2 | DI107: 34 | DJ107: 20 | DK107: 3 | DL107: 0 | DM107: 3 | DN107: 8 | DO107: 461 | DP107: - | DQ107: 310 | DR107: 69 | DS107: =PRODUCT((DJ107+DK107)/DI107) -> 67.6 % | DU107: =DI107-DJ107-DK107-DL107-DM107-DN107 -> 0
C108: 1990-1992 | D108: Superpesis | G108: 14 | I108: 182 | K108: 26 | AG108: 2013 | AH108: Superpesis | AK108: 12 | AM108: 144 | AO108: 24 | BK108: 2018 | BL108: Ykköspesis | BO108: 11 | BQ108: 121 | BS108: 22 | BY108: 106. | BZ108: 103. | CA108: Jyväskylän Kirittäret 3 | CB108: 1 | CC108: 12 | CD108: 0 | CE108: 0 | CF108: 0 | CG108: 0 | CH108: 12 | CI108: 47 | CJ108: - | CK108: 398 | CL108: 0 | CM108: =PRODUCT((CD108+CE108)/CC108) -> 0.0 % | CO108: 106. | CP108: 103. | CQ108: Reisjärven Pilke | CR108: 12 | CS108: 242 | CT108: 13 | CU108: 57 | CV108: 8 | CW108: 18 | CX108: 146 | CY108: 1783 | CZ108: - | DA108: 2580 | DB108: 179 | DC108: =PRODUCT((CT108+CU108)/CS108) -> 28.9 % | DE108: 106. | DF108: 106. | DG108: Jyväskylän Kirittäret 3 | DH108: 5 | DI108: 70 | DJ108: 10 | DK108: 14 | DL108: 0 | DM108: 10 | DN108: 36 | DO108: 657 | DP108: - | DQ108: 925 | DR108: 68 | DS108: =PRODUCT((DJ108+DK108)/DI108) -> 34.3 % | DU108: =DI108-DJ108-DK108-DL108-DM108-DN108 -> 0
C109: 1993 | D109: Superpesis | G109: 14 | I109: 196 | K109: 28 | AG109: 2014 | AH109: Superpesis | AK109: 11 | AM109: 132 | AO109: 24 | BK109: 2019 | BL109: Ykköspesis | BO109: 12 | BQ109: 144 | BS109: 24 | CA109: Ruoveden Pirkat, 2014 vähennetty kuusi pistettä | CO109: 107. | CP109: 104. | CQ109: Etelä-Leppävirran Kiipperä | CR109: 17 | CS109: 163 | CT109: 0 | CU109: 83 | CV109: 9 | CW109: 0 | CX109: 71 | CY109: 1256 | CZ109: - | DA109: 1148 | DB109: 175 | DC109: =PRODUCT((CT109+CU109)/CS109) -> 50.9 % | DE109: 107. | DF109: 131. | DG109: Oulun Lippo Juniorit 2 | DH109: 3 | DI109: 42 | DJ109: 13 | DK109: 14 | DL109: 0 | DM109: 0 | DN109: 15 | DO109: 502 | DP109: - | DQ109: 472 | DR109: 67 | DS109: =PRODUCT((DJ109+DK109)/DI109) -> 64.3 % | DU109: =DI109-DJ109-DK109-DL109-DM109-DN109 -> 0
C110: 1994 | D110: Superpesis | G110: 14 | I110: 202 | K110: 34 | AG110: 2015-2016 | AH110: Superpesis | AK110: 11 | AM110: 121 | AO110: 22 | BK110: 2020 | BL110: Ykköspesis | BO110: 9 | BQ110: 72 | BS110: 16 | CO110: 108. | CP110: 105. | CQ110: Oulunsalon Vasama | CR110: 6 | CS110: 126 | CT110: 32 | CU110: 34 | CV110: 2 | CW110: 6 | CX110: 52 | CY110: 1054 | CZ110: - | DA110: 956 | DB110: 172 | DC110: =PRODUCT((CT110+CU110)/CS110) -> 52.4 % | DE110: 108. | DF110: 137. | DG110: Pirkkalan Pirkat | DH110: 3 | DI110: 45 | DJ110: 15 | DK110: 7 | DL110: 0 | DM110: 8 | DN110: 15 | DO110: 518 | DP110: - | DQ110: 431 | DR110: 67 | DS110: =PRODUCT((DJ110+DK110)/DI110) -> 48.9 % | DU110: =DI110-DJ110-DK110-DL110-DM110-DN110 -> 0
C111: 1995-1996 | D111: Superpesis | G111: 14 | I111: 203 | K111: 29 | AG111: 2017-2018 | AH111: Superpesis | AK111: 11 | AM111: 143 | AO111: 26 | BK111: 2021 | BL111: Ykköspesis | BO111: 12 | BQ111: 132 | BS111: 22 | CA111: NAISTEN YKKÖSPESIKSEN RUNKOSARJA 1985-2025 | CO111: 109. | CP111: 106. | CQ111: Heinolan Maila-Pojat | CR111: 14 | CS111: 189 | CT111: 0 | CU111: 81 | CV111: 9 | CW111: 0 | CX111: 99 | CY111: 1582 | CZ111: - | DA111: 1611 | DB111: 171 | DC111: =PRODUCT((CT111+CU111)/CS111) -> 42.9 % | DE111: 109. | DF111: 107. | DG111: Vantaan Pesis | DH111: 5 | DI111: 70 | DJ111: 10 | DK111: 17 | DL111: 2 | DM111: 1 | DN111: 40 | DO111: 887 | DP111: - | DQ111: 1300 | DR111: 67 | DS111: =PRODUCT((DJ111+DK111)/DI111) -> 38.6 % | DU111: =DI111-DJ111-DK111-DL111-DM111-DN111 -> 0
C112: 1997-1998 | D112: Superpesis | G112: 15 | I112: 210 | K112: 28 | AG112: 2019 | AH112: Superpesis | AK112: 11 | AM112: 132 | AO112: 24 | BK112: 2022-2025 | BL112: Ykköspesis | BO112: 12 | BQ112: 244 | BS112: 24 | CA112: Vuosi | CB112: Sarjanimike | CE112: Joukkueet | CG112: Ottelut | CI112: Lohkot ja (joukkuemäärät) | CO112: 110. | CP112: 107. | CQ112: Lauritsalan Visa | CR112: 13 | CS112: 129 | CT112: 0 | CU112: 80 | CV112: 6 | CW112: 0 | CX112: 43 | CY112: 1196 | CZ112: - | DA112: 790 | DB112: 166 | DC112: =PRODUCT((CT112+CU112)/CS112) -> 62.0 % | DE112: 110. | DF112: 108. | DG112: Riihimäen Pallonlyöjät | DH112: 4 | DI112: 45 | DJ112: 0 | DK112: 33 | DL112: 0 | DM112: 0 | DN112: 12 | DO112: 883 | DP112: - | DQ112: 394 | DR112: 66 | DS112: =PRODUCT((DJ112+DK112)/DI112) -> 73.3 % | DU112: =DI112-DJ112-DK112-DL112-DM112-DN112 -> 0
C113: 1999 | D113: Superpesis | G113: 13 | I113: 182 | K113: 28 | AG113: 2020 | AH113: Superpesis | AK113: 12 | AM113: 120 | AO113: 20 | CA113: 1985 | CB113: Ykkössarja | CE113: 12 | CG113: 60 | CI113: Pohjoislohko (6), Etelälohko (6) | CO113: 111. | CP113: 109. | CQ113: Siilinjärven Pesis 2 | CR113: 8 | CS113: 139 | CT113: 16 | CU113: 45 | CV113: 7 | CW113: 15 | CX113: 56 | CY113: 1141 | CZ113: - | DA113: 1257 | DB113: 160 | DC113: =PRODUCT((CT113+CU113)/CS113) -> 43.9 % | DE113: 111. | DF113: 109. | DG113: Saarijärven Pullistus | DH113: 7 | DI113: 88 | DJ113: 7 | DK113: 18 | DL113: 3 | DM113: 3 | DN113: 57 | DO113: 732 | DP113: - | DQ113: 1181 | DR113: 63 | DS113: =PRODUCT((DJ113+DK113)/DI113) -> 28.4 % | DU113: =DI113-DJ113-DK113-DL113-DM113-DN113 -> 0
C114: 2000-2001 | D114: Superpesis | G114: 14 | I114: 196 | K114: 28 | AG114: 2021 | AH114: Superpesis | AK114: 13 | AM114: 148 | AO114: 24 | CA114: 1986 | CB114: Ykkössarja | CE114: 11 | CG114: 50 | CI114: Itälohko (5), Länsilohko (6) | CO114: 112. | CP114: 110. | CQ114: Soinin Sisu | CR114: 8 | CS114: 160 | CT114: 11 | CU114: 56 | CV114: 3 | CW114: 12 | CX114: 78 | CY114: 1129 | CZ114: - | DA114: 1416 | DB114: 160 | DC114: =PRODUCT((CT114+CU114)/CS114) -> 41.9 % | DE114: 112. | DF114: 110. | DG114: Jyväskylän Lohi | DH114: 4 | DI114: 52 | DJ114: 0 | DK114: 31 | DL114: 0 | DM114: 0 | DN114: 21 | DO114: 535 | DP114: - | DQ114: 431 | DR114: 62 | DS114: =PRODUCT((DJ114+DK114)/DI114) -> 59.6 % | DU114: =DI114-DJ114-DK114-DL114-DM114-DN114 -> 0
C115: 2002 | D115: Superpesis | G115: 12 | I115: 174 | K115: 29 | AG115: 2022-2025 | AH115: Superpesis | AK115: 12 | AM115: 144 | AO115: 24 | CA115: 1987 | CB115: Ykkössarja | CE115: 14 | CG115: 86 | CI115: Itälohko (6), Länsilohko (8) | CO115: 113. | CP115: 112. | CQ115: Laitilan Jyske | CR115: 7 | CS115: 118 | CT115: 30 | CU115: 24 | CV115: 0 | CW115: 19 | CX115: 45 | CY115: 1031 | CZ115: - | DA115: 1057 | DB115: 157 | DC115: =PRODUCT((CT115+CU115)/CS115) -> 45.8 % | DE115: 113. | DF115: 111. | DG115: Oulun Lippo | DH115: 2 | DI115: 26 | DJ115: 12 | DK115: 12 | DL115: 0 | DM115: 1 | DN115: 1 | DO115: 568 | DP115: - | DQ115: 120 | DR115: 61 | DS115: =PRODUCT((DJ115+DK115)/DI115) -> 92.3 % | DU115: =DI115-DJ115-DK115-DL115-DM115-DN115 -> 0
C116: 2003 | D116: Superpesis | G116: 12 | I116: 156 | K116: 26 | CA116: 1988 | CB116: Ykkössarja | CE116: 14 | CG116: 84 | CI116: Itälohko (7), Länsilohko (7) | CO116: 114. | CP116: 115. | CQ116: Ylöjärven Pallo | CR116: 7 | CS116: 146 | CT116: 20 | CU116: 44 | CV116: 3 | CW116: 6 | CX116: 73 | CY116: 1103 | CZ116: - | DA116: 1211 | DB116: 157 | DC116: =PRODUCT((CT116+CU116)/CS116) -> 43.8 % | DE116: 114. | DF116: 112. | DG116: Outokummun Partio | DH116: 7 | DI116: 73 | DJ116: 0 | DK116: 30 | DL116: 1 | DM116: 0 | DN116: 42 | DO116: 686 | DP116: - | DQ116: 967 | DR116: 61 | DS116: =PRODUCT((DJ116+DK116)/DI116) -> 41.1 % | DU116: =DI116-DJ116-DK116-DL116-DM116-DN116 -> 0
C117: 2004 | D117: Superpesis | G117: 12 | I117: 168 | K117: 28 | CA117: 1989 | CB117: Ykkössarja | CE117: 16 | CG117: 112 | CI117: Itälohko (8), Länsilohko (8) | CO117: 115. | CP117: 113. | CQ117: Imatran Pallo-Veikot | CR117: 6 | CS117: 76 | CT117: 15 | CU117: 52 | CV117: 2 | CW117: 1 | CX117: 6 | CY117: 978 | CZ117: - | DA117: 275 | DB117: 152 | DC117: =PRODUCT((CT117+CU117)/CS117) -> 88.2 % | DE117: 115. | DF117: 113. | DG117: Puijon Pesis | DH117: 3 | DI117: 46 | DJ117: 14 | DK117: 7 | DL117: 0 | DM117: 3 | DN117: 22 | DO117: 520 | DP117: - | DQ117: 554 | DR117: 59 | DS117: =PRODUCT((DJ117+DK117)/DI117) -> 45.7 % | DU117: =DI117-DJ117-DK117-DL117-DM117-DN117 -> 0
C118: 2005 | D118: Superpesis | G118: 12 | I118: 150 | K118: 25 | CA118: 1990 | CB118: Ykkössarja | CE118: 16 | CG118: 112 | CI118: Itälohko (8), Länsilohko (8) | CO118: 116. | CP118: 114. | CQ118: Koskenkorvan Urheilijat | CR118: 6 | CS118: 107 | CT118: 0 | CU118: 74 | CV118: 2 | CW118: 0 | CX118: 31 | CY118: 1037 | CZ118: - | DA118: 594 | DB118: 150 | DC118: =PRODUCT((CT118+CU118)/CS118) -> 69.2 % | DE118: 116. | DF118: 114. | DG118: Fera 3 | DH118: 4 | DI118: 62 | DJ118: 10 | DK118: 12 | DL118: 0 | DM118: 5 | DN118: 35 | DO118: 501 | DP118: - | DQ118: 1016 | DR118: 59 | DS118: =PRODUCT((DJ118+DK118)/DI118) -> 35.5 % | DU118: =DI118-DJ118-DK118-DL118-DM118-DN118 -> 0
C119: 2006 | D119: Superpesis | G119: 12 | I119: 162 | K119: 27 | CA119: 1991 | CB119: Ykkössarja | CE119: 14 | CG119: 84 | CI119: Itälohko (7), Länsilohko (7) | CO119: 117. | CP119: 116. | CQ119: Lappeenrannan Urheilumiehet | CR119: 16 | CS119: 160 | CT119: 0 | CU119: 71 | CV119: 5 | CW119: 0 | CX119: 84 | CY119: 1119 | CZ119: - | DA119: 1214 | DB119: 147 | DC119: =PRODUCT((CT119+CU119)/CS119) -> 44.4 % | DE119: 117. | DF119: 115. | DG119: Kinnulan Kimmot | DH119: 6 | DI119: 84 | DJ119: 13 | DK119: 5 | DL119: 0 | DM119: 10 | DN119: 56 | DO119: 609 | DP119: - | DQ119: 1467 | DR119: 59 | DS119: =PRODUCT((DJ119+DK119)/DI119) -> 21.4 % | DU119: =DI119-DJ119-DK119-DL119-DM119-DN119 -> 0
C120: 2007 | D120: Superpesis | G120: 13 | I120: 169 | K120: 26 | CA120: 1992-1993 | CB120: Ykköspesis | CE120: 12 | CG120: 132 | CI120: Runkosarja (12) | CO120: 118. | CP120: 117. | CQ120: Pesä Ysit | CR120: 6 | CS120: 116 | CT120: 30 | CU120: 22 | CV120: 0 | CW120: 12 | CX120: 52 | CY120: 776 | CZ120: - | DA120: 923 | DB120: 146 | DC120: =PRODUCT((CT120+CU120)/CS120) -> 44.8 % | DE120: 118. | DF120: 116. | DG120: Lappajärven Veikot | DH120: 5 | DI120: 70 | DJ120: 8 | DK120: 13 | DL120: 3 | DM120: 4 | DN120: 42 | DO120: 714 | DP120: - | DQ120: 1036 | DR120: 57 | DS120: =PRODUCT((DJ120+DK120)/DI120) -> 30.0 % | DU120: =DI120-DJ120-DK120-DL120-DM120-DN120 -> 0
C121: 2008 | D121: Superpesis | G121: 12 | I121: 144 | K121: 24 | CA121: 1994-1997 | CB121: Ykköspesis | CE121: 16 | CG121: 176 | CI121: Pohjoislohko (8), Etelälohko (8) | CO121: 119. | CP121: 118. | CQ121: Fera | CR121: 12 | CS121: 116 | CT121: 0 | CU121: 69 | CV121: 7 | CW121: 0 | CX121: 40 | CY121: 829 | CZ121: - | DA121: 623 | DB121: 145 | DC121: =PRODUCT((CT121+CU121)/CS121) -> 59.5 % | DE121: 119. | DF121: 117. | DG121: Mailajuniorit 2 | DH121: 5 | DI121: 72 | DJ121: 11 | DK121: 8 | DL121: 0 | DM121: 8 | DN121: 45 | DO121: 682 | DP121: - | DQ121: 1085 | DR121: 57 | DS121: =PRODUCT((DJ121+DK121)/DI121) -> 26.4 % | DU121: =DI121-DJ121-DK121-DL121-DM121-DN121 -> 0
C122: 2009 | D122: Superpesis | G122: 11 | I122: 132 | K122: 24 | CA122: 1998 | CB122: Ykköspesis | CE122: 14 | CG122: 133 | CI122: Pohjoislohko (7), Etelälohko (7) | CO122: 120. | CP122: 119. | CQ122: Helsinki-Pesis | CR122: 6 | CS122: 108 | CT122: 0 | CU122: 67 | CV122: 8 | CW122: 0 | CX122: 33 | CY122: 1025 | CZ122: - | DA122: 670 | DB122: 142 | DC122: =PRODUCT((CT122+CU122)/CS122) -> 62.0 % | DE122: 120. | DF122: 171. | DG122: Seinäjoen Maila-Jussit 3 | DH122: 2 | DI122: 30 | DJ122: 13 | DK122: 6 | DL122: 0 | DM122: 5 | DN122: 6 | DO122: 393 | DP122: - | DQ122: 314 | DR122: 56 | DS122: =PRODUCT((DJ122+DK122)/DI122) -> 63.3 % | DU122: =DI122-DJ122-DK122-DL122-DM122-DN122 -> 0
C123: 2010 | D123: Superpesis | G123: 12 | I123: 156 | K123: 26 | CA123: 1999 | CB123: Ykköspesis | CE123: 10 | CG123: 90 | CI123: Runkosarja (10) | CO123: 121. | CP123: 120. | CQ123: Vimpelin Veto | CR123: 6 | CS123: 80 | CT123: 0 | CU123: 69 | CV123: 3 | CW123: 0 | CX123: 8 | CY123: 1010 | CZ123: - | DA123: 302 | DB123: 141 | DC123: =PRODUCT((CT123+CU123)/CS123) -> 86.3 % | DE123: 121. | DF123: 121. | DG123: Napapiirin Pesis-Team | DH123: 8 | DI123: 118 | DJ123: 11 | DK123: 4 | DL123: 0 | DM123: 14 | DN123: 89 | DO123: 854 | DP123: - | DQ123: 2082 | DR123: 55 | DS123: =PRODUCT((DJ123+DK123)/DI123) -> 12.7 % | DT123: 90»89 | DU123: =DI123-DJ123-DK123-DL123-DM123-DN123 -> 0
C124: 2011 | D124: Superpesis | G124: 11 | I124: 132 | K124: 26 | CA124: 2000 | CB124: Ykköspesis | CE124: 11 | CG124: 110 | CI124: Runkosarja (11) | CO124: 122. | CP124: 122. | CQ124: Oulun Lippo Pesis 2 | CR124: 6 | CS124: 102 | CT124: 28 | CU124: 22 | CV124: 0 | CW124: 12 | CX124: 40 | CY124: 1088 | CZ124: - | DA124: 1011 | DB124: 140 | DC124: =PRODUCT((CT124+CU124)/CS124) -> 49.0 % | DE124: 122. | DF124: 118. | DG124: Oulun Lipottaret 2 | DH124: 3 | DI124: 44 | DJ124: 10 | DK124: 9 | DL124: 0 | DM124: 6 | DN124: 19 | DO124: 417 | DP124: - | DQ124: 557 | DR124: 54 | DS124: =PRODUCT((DJ124+DK124)/DI124) -> 43.2 % | DU124: =DI124-DJ124-DK124-DL124-DM124-DN124 -> 0
C125: 2012-2013 | D125: Superpesis | G125: 12 | I125: 156 | K125: 26 | CA125: 2001 | CB125: Ykköspesis | CE125: 12 | CG125: 132 | CI125: Runkosarja (12) | CO125: 123. | CP125: 123. | CQ125: Toholammin Urheilijat | CR125: 7 | CS125: 130 | CT125: 22 | CU125: 28 | CV125: 6 | CW125: 12 | CX125: 62 | CY125: 905 | CZ125: - | DA125: 1178 | DB125: 140 | DC125: =PRODUCT((CT125+CU125)/CS125) -> 38.5 % | DE125: 123. | DF125: 119. | DG125: Pesä Ysit | DH125: 3 | DI125: 35 | DJ125: 0 | DK125: 25 | DL125: 3 | DM125: 0 | DN125: 7 | DO125: 357 | DP125: - | DQ125: 211 | DR125: 53 | DS125: =PRODUCT((DJ125+DK125)/DI125) -> 71.4 % | DU125: =DI125-DJ125-DK125-DL125-DM125-DN125 -> 0
C126: 2014-2015 | D126: Superpesis | G126: 12 | I126: 180 | K126: 30 | CA126: 2002 | CB126: Ykköspesis | CE126: 11 | CG126: 110 | CI126: Runkosarja (11) | CO126: 124. | CP126: 124. | CQ126: Janakkalan Jana | CR126: 12 | CS126: 209 | CT126: 5 | CU126: 58 | CV126: 6 | CW126: 1 | CX126: 139 | CY126: 1184 | CZ126: - | DA126: 2244 | DB126: 138 | DC126: =PRODUCT((CT126+CU126)/CS126) -> 30.1 % | DE126: 124. | DF126: 120. | DG126: Kymi-Pesis 2 | DH126: 3 | DI126: 38 | DJ126: 11 | DK126: 8 | DL126: 0 | DM126: 4 | DN126: 15 | DO126: 369 | DP126: - | DQ126: 419 | DR126: 53 | DS126: =PRODUCT((DJ126+DK126)/DI126) -> 50.0 % | DU126: =DI126-DJ126-DK126-DL126-DM126-DN126 -> 0
C127: 2016 | D127: Superpesis | G127: 14 | I127: 196 | K127: 28 | CA127: 2003 | CB127: Ykköspesis | CE127: 16 | CG127: 176 | CI127: Pohjoislohko (8), Etelälohko (8) | CO127: 125. | CP127: 125. | CQ127: Pesäkarhut | CR127: 7 | CS127: 150 | CT127: 1 | CU127: 63 | CV127: 7 | CW127: 1 | CX127: 78 | CY127: 1015 | CZ127: - | DA127: 1238 | DB127: 137 | DC127: =PRODUCT((CT127+CU127)/CS127) -> 42.7 % | DE127: 125. | DF127: 122. | DG127: Kuopion Kelta-Mustat | DH127: 5 | DI127: 61 | DJ127: 7 | DK127: 10 | DL127: 1 | DM127: 8 | DN127: 35 | DO127: 623 | DP127: - | DQ127: 1011 | DR127: 50 | DS127: =PRODUCT((DJ127+DK127)/DI127) -> 27.9 % | DU127: =DI127-DJ127-DK127-DL127-DM127-DN127 -> 0
C128: 2017-2018 | D128: Superpesis | G128: 14 | I128: 224 | K128: 32 | CA128: 2004 | CB128: Ykköspesis | CE128: 12 | CG128: 96 | CI128: Pohjoislohko (6), Etelälohko (6) | CO128: 126. | CP128: 136. | CQ128: Kannuksen Ura 2 | CR128: 8 | CS128: 122 | CT128: 23 | CU128: 22 | CV128: 0 | CW128: 20 | CX128: 57 | CY128: 1037 | CZ128: - | DA128: 1379 | DB128: 133 | DC128: =PRODUCT((CT128+CU128)/CS128) -> 36.9 % | DE128: 126. | DF128: 123. | DG128: Kinnarin Pesis 2006 | DH128: 2 | DI128: 36 | DJ128: 11 | DK128: 7 | DL128: 0 | DM128: 2 | DN128: 16 | DO128: 447 | DP128: - | DQ128: 468 | DR128: 49 | DS128: =PRODUCT((DJ128+DK128)/DI128) -> 50.0 % | DU128: =DI128-DJ128-DK128-DL128-DM128-DN128 -> 0
C129: 2019 | D129: Superpesis | G129: 14 | I129: 210 | K129: 30 | CA129: 2005 | CB129: Ykköspesis | CE129: 10 | CG129: 90 | CI129: Runkosarja (10) | CO129: 127. | CP129: 128. | CQ129: Sotkamon Jymy 3 | CR129: 6 | CS129: 90 | CT129: 27 | CU129: 19 | CV129: 0 | CW129: 13 | CX129: 31 | CY129: 987 | CZ129: - | DA129: 985 | DB129: 132 | DC129: =PRODUCT((CT129+CU129)/CS129) -> 51.1 % | DE129: 127. | DF129: 124. | DG129: Vuokatin Veto | DH129: 3 | DI129: 42 | DJ129: 8 | DK129: 10 | DL129: 0 | DM129: 4 | DN129: 20 | DO129: 406 | DP129: - | DQ129: 449 | DR129: 48 | DS129: =PRODUCT((DJ129+DK129)/DI129) -> 42.9 % | DU129: =DI129-DJ129-DK129-DL129-DM129-DN129 -> 0
C130: 2020 | D130: Superpesis | G130: 14 | I130: 168 | K130: 24 | CA130: 2006 | CB130: Ykköspesis | CE130: 9 | CG130: 72 | CI130: Runkosarja (9) | CO130: 128. | CP130: 126. | CQ130: Toijalan Pallo-Veikot | CR130: 13 | CS130: 135 | CT130: 0 | CU130: 62 | CV130: 8 | CW130: 0 | CX130: 65 | CY130: 1132 | CZ130: - | DA130: 1152 | DB130: 132 | DC130: =PRODUCT((CT130+CU130)/CS130) -> 45.9 % | DE130: 128. | DF130: 125. | DG130: Mansen Pesäpallo | DH130: 2 | DI130: 24 | DJ130: 0 | DK130: 23 | DL130: 1 | DM130: 0 | DN130: 0 | DO130: 643 | DP130: - | DQ130: 114 | DR130: 47 | DS130: =PRODUCT((DJ130+DK130)/DI130) -> 95.8 % | DU130: =DI130-DJ130-DK130-DL130-DM130-DN130 -> 0
C131: 2021 | D131: Superpesis | G131: 15 | I131: 199 | K131: 28 | CA131: 2007 | CB131: Ykköspesis | CE131: 8 | CG131: 56 | CI131: Runkosarja (8) | CO131: 129. | CP131: 127. | CQ131: Jyväskylän Kiri | CR131: 5 | CS131: 72 | CT131: 0 | CU131: 64 | CV131: 2 | CW131: 0 | CX131: 6 | CY131: 962 | CZ131: - | DA131: 329 | DB131: 130 | DC131: =PRODUCT((CT131+CU131)/CS131) -> 88.9 % | DE131: 129. | DF131: 126. | DG131: Vuokatin Veto 2 | DH131: 2 | DI131: 30 | DJ131: 15 | DK131: 0 | DL131: 0 | DM131: 2 | DN131: 13 | DO131: 308 | DP131: - | DQ131: 246 | DR131: 47 | DS131: =PRODUCT((DJ131+DK131)/DI131) -> 50.0 % | DU131: =DI131-DJ131-DK131-DL131-DM131-DN131 -> 0
C132: 2022 | D132: Superpesis | G132: 13 | I132: 195 | K132: 30 | CA132: 2008 | CB132: Ykköspesis | CE132: 29 | CG132: 182 | CI132: Etelälohko (8), Keskilohko (7), Länsilohko (7), Pohjoislohko (7) | CO132: 130. | CP132: 129. | CQ132: Siilinjärven Ponnistus | CR132: 16 | CS132: 141 | CT132: 0 | CU132: 60 | CV132: 9 | CW132: 0 | CX132: 72 | CY132: 1039 | CZ132: - | DA132: 1190 | DB132: 129 | DC132: =PRODUCT((CT132+CU132)/CS132) -> 42.6 % | DE132: 130. | DF132: 127. | DG132: Tohmajärven Pomppu | DH132: 4 | DI132: 52 | DJ132: 9 | DK132: 9 | DL132: 0 | DM132: 2 | DN132: 32 | DO132: 493 | DP132: - | DQ132: 720 | DR132: 47 | DS132: =PRODUCT((DJ132+DK132)/DI132) -> 34.6 % | DU132: =DI132-DJ132-DK132-DL132-DM132-DN132 -> 0
C133: 2023 | D133: Superpesis | G133: 13 | I133: 182 | K133: 30 | CA133: 2009 | CB133: Ykköspesis | CE133: 28 | CG133: 168 | CI133: Etelälohko (7), Keskilohko (7), Länsilohko (7), Pohjoislohko (7) | CO133: 131. | CP133: 130. | CQ133: Pattijoen Urheilijat | CR133: 5 | CS133: 110 | CT133: 0 | CU133: 62 | CV133: 4 | CW133: 0 | CX133: 44 | CY133: 877 | CZ133: - | DA133: 797 | DB133: 128 | DC133: =PRODUCT((CT133+CU133)/CS133) -> 56.4 % | DE133: 131. | DF133: 128. | DG133: Nerkoon Nuorisoseuran Pesis | DH133: 2 | DI133: 28 | DJ133: 10 | DK133: 7 | DL133: 0 | DM133: 2 | DN133: 9 | DO133: 282 | DP133: - | DQ133: 276 | DR133: 46 | DS133: =PRODUCT((DJ133+DK133)/DI133) -> 60.7 % | DU133: =DI133-DJ133-DK133-DL133-DM133-DN133 -> 0
C134: 2024 | D134: Superpesis | G134: 13 | I134: 192 | K134: 29-30 | CA134: 2010-2011 | CB134: Ykköspesis | CE134: 27 | CG134: 156 | CI134: Etelälohko (7), Keskilohko (6), Länsilohko (7), Pohjoislohko (7) | CO134: 132. | CP134: 131. | CQ134: Katajanokan Haukat | CR134: 9 | CS134: 88 | CT134: 0 | CU134: 62 | CV134: 3 | CW134: 0 | CX134: 23 | CY134: 879 | CZ134: - | DA134: 440 | DB134: 127 | DC134: =PRODUCT((CT134+CU134)/CS134) -> 70.5 % | DE134: 132. | DF134: 151. | DG134: Lapuan Virkiä 3 | DH134: 3 | DI134: 44 | DJ134: 8 | DK134: 9 | DL134: 0 | DM134: 4 | DN134: 23 | DO134: 413 | DP134: - | DQ134: 584 | DR134: 46 | DS134: =PRODUCT((DJ134+DK134)/DI134) -> 38.6 % | DU134: =DI134-DJ134-DK134-DL134-DM134-DN134 -> 0
C135: 2025 | D135: Superpesis | G135: 12 | I135: 198 | K135: 33 | CA135: 2012-2013 | CB135: Ykköspesis | CE135: 8 | CG135: 56 | CI135: Runkosarja (8) | CO135: 133. | CP135: 132. | CQ135: Jääsken Kirijät | CR135: 12 | CS135: 113 | CT135: 0 | CU135: 61 | CV135: 3 | CW135: 0 | CX135: 49 | CY135: 1045 | CZ135: - | DA135: 812 | DB135: 125 | DC135: =PRODUCT((CT135+CU135)/CS135) -> 54.0 % | DE135: 133. | DF135: 129. | DG135: Kankaanpään Maila 2 | DH135: 2 | DI135: 28 | DJ135: 12 | DK135: 3 | DL135: 0 | DM135: 1 | DN135: 12 | DO135: 320 | DP135: - | DQ135: 278 | DR135: 43 | DS135: =PRODUCT((DJ135+DK135)/DI135) -> 53.6 % | DU135: =DI135-DJ135-DK135-DL135-DM135-DN135 -> 0
CA136: 2014 | CB136: Ykköspesis | CE136: 9 | CG136: 72 | CI136: Runkosarja (9) | CO136: 134. | CP136: 133. | CQ136: Tainionkosken Tähti | CR136: 9 | CS136: 116 | CT136: 0 | CU136: 59 | CV136: 7 | CW136: 0 | CX136: 50 | CY136: 1064 | CZ136: - | DA136: 805 | DB136: 125 | DC136: =PRODUCT((CT136+CU136)/CS136) -> 50.9 % | DE136: 134. | DF136: 130. | DG136: Kotkan Into | DH136: 2 | DI136: 28 | DJ136: 0 | DK136: 20 | DL136: 2 | DM136: 0 | DN136: 6 | DO136: 368 | DP136: - | DQ136: 203 | DR136: 42 | DS136: =PRODUCT((DJ136+DK136)/DI136) -> 71.4 % | DU136: =DI136-DJ136-DK136-DL136-DM136-DN136 -> 0
CA137: 2015 | CB137: Ykköspesis | CE137: 12 | CG137: 132 | CI137: Runkosarja (12) | CO137: 135. | CP137: 134. | CQ137: Helsingin Pallo-Toverit | CR137: 9 | CS137: 88 | CT137: 0 | CU137: 59 | CV137: 6 | CW137: 0 | CX137: 23 | CY137: 879 | CZ137: - | DA137: 521 | DB137: 124 | DC137: =PRODUCT((CT137+CU137)/CS137) -> 67.0 % | DE137: 135. | DF137: 177. | DG137: Seinäjoen Maila-Jussit 4 | DH137: 2 | DI137: 30 | DJ137: 10 | DK137: 4 | DL137: 0 | DM137: 4 | DN137: 12 | DO137: 315 | DP137: - | DQ137: 368 | DR137: 42 | DS137: =PRODUCT((DJ137+DK137)/DI137) -> 46.7 % | DU137: =DI137-DJ137-DK137-DL137-DM137-DN137 -> 0
CA138: 2016 | CB138: Ykköspesis | CE138: 10 | CG138: 90 | CI138: Runkosarja (10) | CO138: 136. | CP138: 135. | CQ138: Riihimäen Pallonlyöjät 2 | CR138: 7 | CS138: 120 | CT138: 0 | CU138: 57 | CV138: 9 | CW138: 0 | CX138: 54 | CY138: 1045 | CZ138: - | DA138: 900 | DB138: 123 | DC138: =PRODUCT((CT138+CU138)/CS138) -> 47.5 % | DE138: 136. | DF138: 132. | DG138: Juvan Pallo | DH138: 3 | DI138: 42 | DJ138: 8 | DK138: 8 | DL138: 1 | DM138: 0 | DN138: 25 | DO138: 370 | DP138: - | DQ138: 502 | DR138: 41 | DS138: =PRODUCT((DJ138+DK138)/DI138) -> 38.1 % | DU138: =DI138-DJ138-DK138-DL138-DM138-DN138 -> 0
CA139: 2017-2018 | CB139: Ykköspesis | CE139: 12 | CG139: 132 | CI139: Runkosarja (12) | CO139: 137. | CP139: 207. | CQ139: Mansen Pesäpallo | CR139: 5 | CS139: 96 | CT139: 16 | CU139: 34 | CV139: 0 | CW139: 5 | CX139: 41 | CY139: 963 | CZ139: - | DA139: 915 | DB139: 121 | DC139: =PRODUCT((CT139+CU139)/CS139) -> 52.1 % | DE139: 137. | DF139: 133. | DG139: Nurmon Jymy 2 | DH139: 2 | DI139: 36 | DJ139: 8 | DK139: 5 | DL139: 0 | DM139: 7 | DN139: 16 | DO139: 359 | DP139: - | DQ139: 512 | DR139: 41 | DS139: =PRODUCT((DJ139+DK139)/DI139) -> 36.1 % | DU139: =DI139-DJ139-DK139-DL139-DM139-DN139 -> 0
CA140: 2019 | CB140: Ykköspesis | CE140: 16 | CG140: 176 | CI140: Lohko A (8), Lohko B (8) | CO140: 138. | CP140: 137. | CQ140: Paavolan Kisa | CR140: 16 | CS140: 126 | CT140: 0 | CU140: 57 | CV140: 6 | CW140: 0 | CX140: 63 | CY140: 851 | CZ140: - | DA140: 877 | DB140: 120 | DC140: =PRODUCT((CT140+CU140)/CS140) -> 45.2 % | DE140: 138. | DF140: 134. | DG140: Nurmeksen Sepot | DH140: 4 | DI140: 52 | DJ140: 5 | DK140: 11 | DL140: 1 | DM140: 2 | DN140: 33 | DO140: 463 | DP140: - | DQ140: 704 | DR140: 40 | DS140: =PRODUCT((DJ140+DK140)/DI140) -> 30.8 % | DU140: =DI140-DJ140-DK140-DL140-DM140-DN140 -> 0
CA141: 2020 | CB141: Ykköspesis | CE141: 16 | CG141: 112 | CI141: Lohko A (8), Lohko B (8) | CO141: 139. | CP141: 161. | CQ141: Vaasan Mailan Juniorit | CR141: 4 | CS141: 63 | CT141: 27 | CU141: 14 | CV141: 0 | CW141: 7 | CX141: 15 | CY141: 596 | CZ141: - | DA141: 438 | DB141: 116 | DC141: =PRODUCT((CT141+CU141)/CS141) -> 65.1 % | DE141: 139. | DF141: 135. | DG141: Roi-Pesis 83 | DH141: 4 | DI141: 56 | DJ141: 6 | DK141: 10 | DL141: 0 | DM141: 2 | DN141: 38 | DO141: 526 | DP141: - | DQ141: 896 | DR141: 40 | DS141: =PRODUCT((DJ141+DK141)/DI141) -> 28.6 % | DU141: =DI141-DJ141-DK141-DL141-DM141-DN141 -> 0
CA142: 2021-2022 | CB142: Ykköspesis | CE142: 17 | CG142: 127 | CI142: Etelälohko (9), Pohjoislohko (8) | CO142: 140. | CP142: 138. | CQ142: Oulujoen Kiekko | CR142: 7 | CS142: 84 | CT142: 22 | CU142: 21 | CV142: 3 | CW142: 3 | CX142: 35 | CY142: 695 | CZ142: - | DA142: 702 | DB142: 114 | DC142: =PRODUCT((CT142+CU142)/CS142) -> 51.2 % | DE142: 140. | DF142: 136. | DG142: Nilsiän Nujakka | DH142: 2 | DI142: 26 | DJ142: 11 | DK142: 3 | DL142: 0 | DM142: 0 | DN142: 12 | DO142: 267 | DP142: - | DQ142: 278 | DR142: 39 | DS142: =PRODUCT((DJ142+DK142)/DI142) -> 53.8 % | DU142: =DI142-DJ142-DK142-DL142-DM142-DN142 -> 0
CA143: 2023-2024 | CB143: Ykköspesis | CE143: 16 | CG143: 176 | CI143: Etelälohko (8), Pohjoislohko (8) | CO143: 141. | CP143: 139. | CQ143: Oulun Pyrintö | CR143: 10 | CS143: 78 | CT143: 0 | CU143: 55 | CV143: 3 | CW143: 0 | CX143: 20 | CY143: 723 | CZ143: - | DA143: 330 | DB143: 113 | DC143: =PRODUCT((CT143+CU143)/CS143) -> 70.5 % | DE143: 141. | DF143: 138. | DG143: Suomussalmen Rasti | DH143: 5 | DI143: 62 | DJ143: 5 | DK143: 7 | DL143: 2 | DM143: 8 | DN143: 40 | DO143: 436 | DP143: - | DQ143: 776 | DR143: 39 | DS143: =PRODUCT((DJ143+DK143)/DI143) -> 19.4 % | DU143: =DI143-DJ143-DK143-DL143-DM143-DN143 -> 0
CA144: 2025 | CB144: Ykköspesis | CE144: 17 | CG144: 176 | CI144: Etelälohko (9), Pohjoislohko (8) | CO144: 142. | CP144: 140. | CQ144: Oulun Lippo 2 | CR144: 5 | CS144: 92 | CT144: 21 | CU144: 17 | CV144: 1 | CW144: 12 | CX144: 41 | CY144: 840 | CZ144: - | DA144: 817 | DB144: 110 | DC144: =PRODUCT((CT144+CU144)/CS144) -> 41.3 % | DE144: 142. | DF144: 139. | DG144: Mellilän Huovit | DH144: 3 | DI144: 46 | DJ144: 7 | DK144: 6 | DL144: 0 | DM144: 5 | DN144: 28 | DO144: 458 | DP144: - | DQ144: 723 | DR144: 38 | DS144: =PRODUCT((DJ144+DK144)/DI144) -> 28.3 % | DU144: =DI144-DJ144-DK144-DL144-DM144-DN144 -> 0
CO145: 143. | CP145: 141. | CQ145: Jyväskylän Pesä-Veikot | CR145: 7 | CS145: 78 | CT145: 0 | CU145: 52 | CV145: 1 | CW145: 0 | CX145: 25 | CY145: 895 | CZ145: - | DA145: 658 | DB145: 105 | DC145: =PRODUCT((CT145+CU145)/CS145) -> 66.7 % | DE145: 143. | DF145: 140. | DG145: Oulun Lipottaret | DH145: 1 | DI145: 14 | DJ145: 11 | DK145: 2 | DL145: 0 | DM145: 0 | DN145: 1 | DO145: 215 | DP145: - | DQ145: 55 | DR145: 37 | DS145: =PRODUCT((DJ145+DK145)/DI145) -> 92.9 % | DU145: =DI145-DJ145-DK145-DL145-DM145-DN145 -> 0
CO146: 144. | CP146: 142. | CQ146: Puijon Pesis 2 | CR146: 6 | CS146: 86 | CT146: 22 | CU146: 13 | CV146: 0 | CW146: 13 | CX146: 38 | CY146: 904 | CZ146: - | DA146: 930 | DB146: 105 | DC146: =PRODUCT((CT146+CU146)/CS146) -> 40.7 % | DE146: 144. | DF146: --- | DG146: Eurajoen Veikot | DH146: 1 | DI146: 18 | DJ146: 7 | DK146: 7 | DL146: 0 | DM146: 1 | DN146: 3 | DO146: 215 | DP146: - | DQ146: 119 | DR146: 36 | DS146: =PRODUCT((DJ146+DK146)/DI146) -> 77.8 % | DU146: =DI146-DJ146-DK146-DL146-DM146-DN146 -> 0
CO147: 145. | CP147: 143. | CQ147: Lahden Pesä-Toverit | CR147: 8 | CS147: 81 | CT147: 0 | CU147: 48 | CV147: 8 | CW147: 0 | CX147: 25 | CY147: 597 | CZ147: - | DA147: 451 | DB147: 104 | DC147: =PRODUCT((CT147+CU147)/CS147) -> 59.3 % | DE147: 145. | DF147: 141. | DG147: Espoon Pesis 2 | DH147: 3 | DI147: 38 | DJ147: 7 | DK147: 5 | DL147: 0 | DM147: 5 | DN147: 21 | DO147: 296 | DP147: - | DQ147: 458 | DR147: 36 | DS147: =PRODUCT((DJ147+DK147)/DI147) -> 31.6 % | DU147: =DI147-DJ147-DK147-DL147-DM147-DN147 -> 0
CO148: 146. | CP148: 144. | CQ148: Suonenjoen Vasama | CR148: 7 | CS148: 114 | CT148: 13 | CU148: 25 | CV148: 1 | CW148: 13 | CX148: 62 | CY148: 766 | CZ148: - | DA148: 1189 | DB148: 103 | DC148: =PRODUCT((CT148+CU148)/CS148) -> 33.3 % | DE148: 146. | DF148: 142. | DG148: Mosan Mirrit | DH148: 2 | DI148: 32 | DJ148: 6 | DK148: 7 | DL148: 0 | DM148: 3 | DN148: 16 | DO148: 282 | DP148: - | DQ148: 404 | DR148: 35 | DS148: =PRODUCT((DJ148+DK148)/DI148) -> 40.6 % | DU148: =DI148-DJ148-DK148-DL148-DM148-DN148 -> 0
CO149: 147. | CP149: 145. | CQ149: Hyvinkään Tahko | CR149: 7 | CS149: 105 | CT149: 0 | CU149: 49 | CV149: 4 | CW149: 0 | CX149: 52 | CY149: 884 | CZ149: - | DA149: 941 | DB149: 102 | DC149: =PRODUCT((CT149+CU149)/CS149) -> 46.7 % | DE149: 147. | DF149: 143. | DG149: Iitin Pyrintö | DH149: 3 | DI149: 40 | DJ149: 0 | DK149: 17 | DL149: 0 | DM149: 0 | DN149: 23 | DO149: 403 | DP149: - | DQ149: 525 | DR149: 34 | DS149: =PRODUCT((DJ149+DK149)/DI149) -> 42.5 % | DU149: =DI149-DJ149-DK149-DL149-DM149-DN149 -> 0
CO150: 148. | CP150: 169. | CQ150: Simon Kiri 2 | CR150: 6 | CS150: 94 | CT150: 16 | CU150: 20 | CV150: 0 | CW150: 14 | CX150: 44 | CY150: 818 | CZ150: - | DA150: 1033 | DB150: 102 | DC150: =PRODUCT((CT150+CU150)/CS150) -> 38.3 % | DE150: 148. | DF150: 144. | DG150: Namika-Pesis | DH150: 11 | DI150: 105 | DJ150: 0 | DK150: 16 | DL150: 2 | DM150: 0 | DN150: 87 | DO150: 592 | DP150: - | DQ150: 2089 | DR150: 34 | DS150: =PRODUCT((DJ150+DK150)/DI150) -> 15.2 % | DU150: =DI150-DJ150-DK150-DL150-DM150-DN150 -> 0
CO151: 149. | CP151: 146. | CQ151: Tampereen Pyrintö | CR151: 11 | CS151: 120 | CT151: 0 | CU151: 47 | CV151: 5 | CW151: 0 | CX151: 68 | CY151: 823 | CZ151: - | DA151: 1127 | DB151: 99 | DC151: =PRODUCT((CT151+CU151)/CS151) -> 39.2 % | DE151: 149. | DF151: 145. | DG151: Liperin Taimi | DH151: 4 | DI151: 41 | DJ151: 0 | DK151: 15 | DL151: 3 | DM151: 0 | DN151: 23 | DO151: 417 | DP151: - | DQ151: 455 | DR151: 33 | DS151: =PRODUCT((DJ151+DK151)/DI151) -> 36.6 % | DU151: =DI151-DJ151-DK151-DL151-DM151-DN151 -> 0
CO152: 150. | CP152: 149. | CQ152: Eurajoen Veikot | CR152: 7 | CS152: 118 | CT152: 16 | CU152: 19 | CV152: 3 | CW152: 10 | CX152: 72 | CY152: 768 | CZ152: - | DA152: 1665 | DB152: 97 | DC152: =PRODUCT((CT152+CU152)/CS152) -> 29.7 % | DE152: 150. | DF152: 146. | DG152: Pesäkarhut | DH152: 1 | DI152: 16 | DJ152: 0 | DK152: 16 | DL152: 0 | DM152: 0 | DN152: 0 | DO152: 306 | DP152: - | DQ152: 81 | DR152: 32 | DS152: =PRODUCT((DJ152+DK152)/DI152) -> 100.0 % | DU152: =DI152-DJ152-DK152-DL152-DM152-DN152 -> 0
CO153: 151. | CP153: 147. | CQ153: Kankaanpään Maila | CR153: 7 | CS153: 77 | CT153: 0 | CU153: 47 | CV153: 2 | CW153: 0 | CX153: 28 | CY153: 625 | CZ153: - | DA153: 451 | DB153: 96 | DC153: =PRODUCT((CT153+CU153)/CS153) -> 61.0 % | DE153: 151. | DF153: 147. | DG153: Halsuan Toivo | DH153: 3 | DI153: 26 | DJ153: 0 | DK153: 15 | DL153: 1 | DM153: 0 | DN153: 10 | DO153: 269 | DP153: - | DQ153: 244 | DR153: 31 | DS153: =PRODUCT((DJ153+DK153)/DI153) -> 57.7 % | DU153: =DI153-DJ153-DK153-DL153-DM153-DN153 -> 0
CO154: 152. | CP154: 170. | CQ154: Laihian Luja | CR154: 5 | CS154: 80 | CT154: 15 | CU154: 16 | CV154: 0 | CW154: 17 | CX154: 32 | CY154: 705 | CZ154: - | DA154: 904 | DB154: 94 | DC154: =PRODUCT((CT154+CU154)/CS154) -> 38.8 % | DE154: 152. | DF154: 148. | DG154: Humppilan Veikot | DH154: 3 | DI154: 38 | DJ154: 0 | DK154: 15 | DL154: 1 | DM154: 0 | DN154: 22 | DO154: 370 | DP154: - | DQ154: 483 | DR154: 31 | DS154: =PRODUCT((DJ154+DK154)/DI154) -> 39.5 % | DU154: =DI154-DJ154-DK154-DL154-DM154-DN154 -> 0
CO155: 153. | CP155: 148. | CQ155: Myllykosken Kilpa-Veikot | CR155: 10 | CS155: 101 | CT155: 0 | CU155: 44 | CV155: 5 | CW155: 0 | CX155: 52 | CY155: 821 | CZ155: - | DA155: 983 | DB155: 93 | DC155: =PRODUCT((CT155+CU155)/CS155) -> 43.6 % | DE155: 153. | DF155: 149. | DG155: Tyrnävän Tempaus 2 | DH155: 2 | DI155: 26 | DJ155: 7 | DK155: 2 | DL155: 0 | DM155: 6 | DN155: 11 | DO155: 298 | DP155: - | DQ155: 357 | DR155: 31 | DS155: =PRODUCT((DJ155+DK155)/DI155) -> 34.6 % | DU155: =DI155-DJ155-DK155-DL155-DM155-DN155 -> 0
CO156: 154. | CP156: 150. | CQ156: Pieksämäen Palloilijat | CR156: 12 | CS156: 94 | CT156: 0 | CU156: 43 | CV156: 6 | CW156: 0 | CX156: 45 | CY156: 783 | CZ156: - | DA156: 745 | DB156: 92 | DC156: =PRODUCT((CT156+CU156)/CS156) -> 45.7 % | DE156: 154. | DF156: 150. | DG156: Peräseinäjoen Toive | DH156: 1 | DI156: 14 | DJ156: 8 | DK156: 3 | DL156: 0 | DM156: 0 | DN156: 3 | DO156: 192 | DP156: - | DQ156: 86 | DR156: 30 | DS156: =PRODUCT((DJ156+DK156)/DI156) -> 78.6 % | DU156: =DI156-DJ156-DK156-DL156-DM156-DN156 -> 0
CO157: 155. | CP157: 151. | CQ157: Ulvilan Pesä-Veikot 2 | CR157: 4 | CS157: 74 | CT157: 19 | CU157: 10 | CV157: 0 | CW157: 15 | CX157: 30 | CY157: 608 | CZ157: - | DA157: 641 | DB157: 92 | DC157: =PRODUCT((CT157+CU157)/CS157) -> 39.2 % | DE157: 155. | DF157: 152. | DG157: Pispalan Pesis | DH157: 1 | DI157: 12 | DJ157: 7 | DK157: 4 | DL157: 0 | DM157: 0 | DN157: 1 | DO157: 256 | DP157: - | DQ157: 58 | DR157: 29 | DS157: =PRODUCT((DJ157+DK157)/DI157) -> 91.7 % | DU157: =DI157-DJ157-DK157-DL157-DM157-DN157 -> 0
CO158: 156. | CP158: 152. | CQ158: Raahen Vesa | CR158: 13 | CS158: 140 | CT158: 0 | CU158: 42 | CV158: 8 | CW158: 0 | CX158: 90 | CY158: 902 | CZ158: - | DA158: 1284 | DB158: 92 | DC158: =PRODUCT((CT158+CU158)/CS158) -> 30.0 % | DE158: 156. | DF158: 153. | DG158: Riihimäen Pallonlyöjät (1999) | DH158: 1 | DI158: 20 | DJ158: 6 | DK158: 4 | DL158: 0 | DM158: 3 | DN158: 7 | DO158: 286 | DP158: - | DQ158: 216 | DR158: 29 | DS158: =PRODUCT((DJ158+DK158)/DI158) -> 50.0 % | DU158: =DI158-DJ158-DK158-DL158-DM158-DN158 -> 0
CO159: 157. | CP159: 153. | CQ159: Pomarkun Pyry | CR159: 11 | CS159: 183 | CT159: 7 | CU159: 28 | CV159: 0 | CW159: 14 | CX159: 134 | CY159: 1064 | CZ159: - | DA159: 2327 | DB159: 90 | DC159: =PRODUCT((CT159+CU159)/CS159) -> 19.1 % | DE159: 157. | DF159: 154. | DG159: Tempo | DH159: 2 | DI159: 26 | DJ159: 7 | DK159: 2 | DL159: 0 | DM159: 4 | DN159: 13 | DO159: 301 | DP159: - | DQ159: 395 | DR159: 29 | DS159: =PRODUCT((DJ159+DK159)/DI159) -> 34.6 % | DU159: =DI159-DJ159-DK159-DL159-DM159-DN159 -> 0
CO160: 158. | CP160: 154. | CQ160: Keravan KooPee | CR160: 10 | CS160: 91 | CT160: 0 | CU160: 38 | CV160: 13 | CW160: 0 | CX160: 40 | CY160: 673 | CZ160: - | DA160: 651 | DB160: 89 | DC160: =PRODUCT((CT160+CU160)/CS160) -> 41.8 % | DE160: 158. | DF160: 155. | DG160: Kankaanpään Maila | DH160: 2 | DI160: 30 | DJ160: 1 | DK160: 12 | DL160: 0 | DM160: 1 | DN160: 16 | DO160: 374 | DP160: - | DQ160: 373 | DR160: 28 | DS160: =PRODUCT((DJ160+DK160)/DI160) -> 43.3 % | DU160: =DI160-DJ160-DK160-DL160-DM160-DN160 -> 0
CO161: 159. | CP161: 155. | CQ161: Työväen Maila-Pojat | CR161: 6 | CS161: 94 | CT161: 0 | CU161: 42 | CV161: 4 | CW161: 0 | CX161: 48 | CY161: 909 | CZ161: - | DA161: 858 | DB161: 88 | DC161: =PRODUCT((CT161+CU161)/CS161) -> 44.7 % | DE161: 159. | DF161: 156. | DG161: Nurmijärven Maila | DH161: 2 | DI161: 30 | DJ161: 4 | DK161: 4 | DL161: 0 | DM161: 6 | DN161: 16 | DO161: 268 | DP161: - | DQ161: 399 | DR161: 26 | DS161: =PRODUCT((DJ161+DK161)/DI161) -> 26.7 % | DU161: =DI161-DJ161-DK161-DL161-DM161-DN161 -> 0
CO162: 160. | CP162: 156. | CQ162: Lohikosken Lohi | CR162: 6 | CS162: 51 | CT162: 0 | CU162: 43 | CV162: 1 | CW162: 0 | CX162: 7 | CY162: 627 | CZ162: - | DA162: 271 | DB162: 87 | DC162: =PRODUCT((CT162+CU162)/CS162) -> 84.3 % | DE162: 160. | DF162: 157. | DG162: Mikkelin Pallonlyöjät | DH162: 3 | DI162: 40 | DJ162: 4 | DK162: 6 | DL162: 0 | DM162: 2 | DN162: 28 | DO162: 296 | DP162: - | DQ162: 648 | DR162: 26 | DS162: =PRODUCT((DJ162+DK162)/DI162) -> 25.0 % | DU162: =DI162-DJ162-DK162-DL162-DM162-DN162 -> 0
CO163: 161. | CP163: 157. | CQ163: Lestijoen Pesis | CR163: 3 | CS163: 54 | CT163: 13 | CU163: 18 | CV163: 0 | CW163: 12 | CX163: 11 | CY163: 459 | CZ163: - | DA163: 357 | DB163: 87 | DC163: =PRODUCT((CT163+CU163)/CS163) -> 57.4 % | DE163: 161. | DF163: 158. | DG163: Askolan Kisa-Toverit | DH163: 4 | DI163: 54 | DJ163: 0 | DK163: 12 | DL163: 2 | DM163: 0 | DN163: 40 | DO163: 412 | DP163: - | DQ163: 894 | DR163: 26 | DS163: =PRODUCT((DJ163+DK163)/DI163) -> 22.2 % | DU163: =DI163-DJ163-DK163-DL163-DM163-DN163 -> 0
CO164: 162. | CP164: 158. | CQ164: Porvoon Kumuri | CR164: 5 | CS164: 90 | CT164: 0 | CU164: 42 | CV164: 2 | CW164: 0 | CX164: 46 | CY164: 729 | CZ164: - | DA164: 814 | DB164: 86 | DC164: =PRODUCT((CT164+CU164)/CS164) -> 46.7 % | DE164: 162. | DF164: 159. | DG164: Pesäkarhut 4 | DH164: 1 | DI164: 16 | DJ164: 4 | DK164: 5 | DL164: 0 | DM164: 3 | DN164: 4 | DO164: 211 | DP164: - | DQ164: 207 | DR164: 25 | DS164: =PRODUCT((DJ164+DK164)/DI164) -> 56.3 % | DU164: =DI164-DJ164-DK164-DL164-DM164-DN164 -> 0
CO165: 163. | CP165: 159. | CQ165: Forssan Alku | CR165: 8 | CS165: 103 | CT165: 0 | CU165: 40 | CV165: 6 | CW165: 0 | CX165: 57 | CY165: 683 | CZ165: - | DA165: 885 | DB165: 86 | DC165: =PRODUCT((CT165+CU165)/CS165) -> 38.8 % | DE165: 163. | DF165: 160. | DG165: Uudenkaupungin Urheilijat | DH165: 2 | DI165: 24 | DJ165: 0 | DK165: 12 | DL165: 1 | DM165: 0 | DN165: 11 | DO165: 218 | DP165: - | DQ165: 220 | DR165: 25 | DS165: =PRODUCT((DJ165+DK165)/DI165) -> 50.0 % | DU165: =DI165-DJ165-DK165-DL165-DM165-DN165 -> 0
CO166: 164. | CP166: 160. | CQ166: Tempo | CR166: 2 | CS166: 44 | CT166: 22 | CU166: 7 | CV166: 0 | CW166: 5 | CX166: 10 | CY166: 510 | CZ166: - | DA166: 256 | DB166: 85 | DC166: =PRODUCT((CT166+CU166)/CS166) -> 65.9 % | DE166: 164. | DF166: 161. | DG166: Reisjärven Pilke 2 | DH166: 1 | DI166: 14 | DJ166: 6 | DK166: 3 | DL166: 0 | DM166: 0 | DN166: 5 | DO166: 175 | DP166: - | DQ166: 129 | DR166: 24 | DS166: =PRODUCT((DJ166+DK166)/DI166) -> 64.3 % | DU166: =DI166-DJ166-DK166-DL166-DM166-DN166 -> 0
CO167: 165. | CP167: 162. | CQ167: Ristijärven Pyry | CR167: 11 | CS167: 88 | CT167: 0 | CU167: 38 | CV167: 9 | CW167: 0 | CX167: 41 | CY167: 540 | CZ167: - | DA167: 622 | DB167: 85 | DC167: =PRODUCT((CT167+CU167)/CS167) -> 43.2 % | DE167: 165. | DF167: 162. | DG167: Haka-Pesis | DH167: 2 | DI167: 28 | DJ167: 0 | DK167: 12 | DL167: 0 | DM167: 0 | DN167: 16 | DO167: 247 | DP167: - | DQ167: 304 | DR167: 24 | DS167: =PRODUCT((DJ167+DK167)/DI167) -> 42.9 % | DU167: =DI167-DJ167-DK167-DL167-DM167-DN167 -> 0
CO168: 166. | CP168: 163. | CQ168: Höytiäisten Urheilijat | CR168: 8 | CS168: 79 | CT168: 0 | CU168: 40 | CV168: 4 | CW168: 0 | CX168: 35 | CY168: 612 | CZ168: - | DA168: 568 | DB168: 84 | DC168: =PRODUCT((CT168+CU168)/CS168) -> 50.6 % | DE168: 166. | DF168: 163. | DG168: Jokioisten Koetus | DH168: 5 | DI168: 64 | DJ168: 0 | DK168: 11 | DL168: 2 | DM168: 0 | DN168: 51 | DO168: 361 | DP168: - | DQ168: 924 | DR168: 24 | DS168: =PRODUCT((DJ168+DK168)/DI168) -> 17.2 % | DU168: =DI168-DJ168-DK168-DL168-DM168-DN168 -> 0
CO169: 167. | CP169: 164. | CQ169: Helsingin Puna-Mustat 2 | CR169: 10 | CS169: 141 | CT169: 5 | CU169: 29 | CV169: 5 | CW169: 8 | CX169: 94 | CY169: 1029 | CZ169: - | DA169: 1777 | DB169: 84 | DC169: =PRODUCT((CT169+CU169)/CS169) -> 24.1 % | DE169: 167. | DF169: 164. | DG169: Simon Kiri-Siskot | DH169: 1 | DI169: 14 | DJ169: 0 | DK169: 11 | DL169: 1 | DM169: 0 | DN169: 2 | DO169: 151 | DP169: - | DQ169: 89 | DR169: 23 | DS169: =PRODUCT((DJ169+DK169)/DI169) -> 78.6 % | DU169: =DI169-DJ169-DK169-DL169-DM169-DN169 -> 0
CO170: 168. | CP170: 165. | CQ170: Kylävuoren Kaiku | CR170: 3 | CS170: 52 | CT170: 20 | CU170: 9 | CV170: 0 | CW170: 5 | CX170: 18 | CY170: 571 | CZ170: - | DA170: 567 | DB170: 83 | DC170: =PRODUCT((CT170+CU170)/CS170) -> 55.8 % | DE170: 168. | DF170: 165. | DG170: Ykköset | DH170: 1 | DI170: 14 | DJ170: 0 | DK170: 11 | DL170: 1 | DM170: 0 | DN170: 2 | DO170: 260 | DP170: - | DQ170: 114 | DR170: 23 | DS170: =PRODUCT((DJ170+DK170)/DI170) -> 78.6 % | DU170: =DI170-DJ170-DK170-DL170-DM170-DN170 -> 0
CO171: 169. | CP171: 166. | CQ171: Palokan Urheilijat | CR171: 4 | CS171: 88 | CT171: 0 | CU171: 41 | CV171: 1 | CW171: 0 | CX171: 46 | CY171: 711 | CZ171: - | DA171: 793 | DB171: 83 | DC171: =PRODUCT((CT171+CU171)/CS171) -> 46.6 % | DE171: 169. | DF171: 166. | DG171: PeTo-Jussit 2 | DH171: 1 | DI171: 14 | DJ171: 4 | DK171: 5 | DL171: 0 | DM171: 0 | DN171: 5 | DO171: 218 | DP171: - | DQ171: 225 | DR171: 22 | DS171: =PRODUCT((DJ171+DK171)/DI171) -> 64.3 % | DU171: =DI171-DJ171-DK171-DL171-DM171-DN171 -> 0
CO172: 170. | CP172: 167. | CQ172: Kinnarin Pesis 2 | CR172: 4 | CS172: 70 | CT172: 17 | CU172: 12 | CV172: 0 | CW172: 8 | CX172: 33 | CY172: 501 | CZ172: - | DA172: 681 | DB172: 83 | DC172: =PRODUCT((CT172+CU172)/CS172) -> 41.4 % | DE172: 170. | DF172: 167. | DG172: Janakkalan Jana 2 | DH172: 1 | DI172: 20 | DJ172: 5 | DK172: 2 | DL172: 0 | DM172: 2 | DN172: 11 | DO172: 186 | DP172: - | DQ172: 310 | DR172: 21 | DS172: =PRODUCT((DJ172+DK172)/DI172) -> 35.0 % | DU172: =DI172-DJ172-DK172-DL172-DM172-DN172 -> 0
CO173: 171. | CP173: 168. | CQ173: Savonlinnan Pallokerho | CR173: 9 | CS173: 65 | CT173: 0 | CU173: 38 | CV173: 4 | CW173: 0 | CX173: 23 | CY173: 540 | CZ173: - | DA173: 394 | DB173: 80 | DC173: =PRODUCT((CT173+CU173)/CS173) -> 58.5 % | DE173: 171. | DF173: 168. | DG173: Kiteen Urheilijat | DH173: 3 | DI173: 32 | DJ173: 0 | DK173: 10 | DL173: 1 | DM173: 0 | DN173: 21 | DO173: 304 | DP173: - | DQ173: 424 | DR173: 21 | DS173: =PRODUCT((DJ173+DK173)/DI173) -> 31.3 % | DU173: =DI173-DJ173-DK173-DL173-DM173-DN173 -> 0
CO174: 172. | CP174: 171. | CQ174: Tervakosken Pato | CR174: 12 | CS174: 138 | CT174: 0 | CU174: 37 | CV174: 4 | CW174: 0 | CX174: 97 | CY174: 945 | CZ174: - | DA174: 1635 | DB174: 78 | DC174: =PRODUCT((CT174+CU174)/CS174) -> 26.8 % | DE174: 172. | DF174: 169. | DG174: Oulunsalon Vasama 2 | DH174: 4 | DI174: 60 | DJ174: 0 | DK174: 6 | DL174: 0 | DM174: 8 | DN174: 46 | DO174: 389 | DP174: - | DQ174: 1122 | DR174: 20 | DS174: =PRODUCT((DJ174+DK174)/DI174) -> 10.0 % | DT174: 47»46 | DU174: =DI174-DJ174-DK174-DL174-DM174-DN174 -> 0
CO175: 173. | CP175: 172. | CQ175: Vantaanjoen Juoksu | CR175: 5 | CS175: 84 | CT175: 9 | CU175: 18 | CV175: 0 | CW175: 14 | CX175: 43 | CY175: 539 | CZ175: - | DA175: 894 | DB175: 77 | DC175: =PRODUCT((CT175+CU175)/CS175) -> 32.1 % | DE175: 173. | DF175: 170. | DG175: Vihdin Pallo 3 | DH175: 1 | DI175: 14 | DJ175: 4 | DK175: 3 | DL175: 0 | DM175: 1 | DN175: 6 | DO175: 134 | DP175: - | DQ175: 164 | DR175: 19 | DS175: =PRODUCT((DJ175+DK175)/DI175) -> 50.0 % | DU175: =DI175-DJ175-DK175-DL175-DM175-DN175 -> 0
CO176: 174. | CP176: 173. | CQ176: Puijon Pesäpallo 2 | CR176: 2 | CS176: 36 | CT176: 22 | CU176: 3 | CV176: 0 | CW176: 4 | CX176: 7 | CY176: 453 | CZ176: - | DA176: 211 | DB176: 76 | DC176: =PRODUCT((CT176+CU176)/CS176) -> 69.4 % | DE176: 174. | DF176: 172. | DG176: Ylistaron Kilpa-Veljet | DH176: 2 | DI176: 24 | DJ176: 4 | DK176: 2 | DL176: 0 | DM176: 3 | DN176: 15 | DO176: 246 | DP176: - | DQ176: 396 | DR176: 19 | DS176: =PRODUCT((DJ176+DK176)/DI176) -> 25.0 % | DU176: =DI176-DJ176-DK176-DL176-DM176-DN176 -> 0
CO177: 175. | CP177: 174. | CQ177: Juankosken Kuohu | CR177: 9 | CS177: 95 | CT177: 0 | CU177: 37 | CV177: 2 | CW177: 0 | CX177: 56 | CY177: 673 | CZ177: - | DA177: 910 | DB177: 76 | DC177: =PRODUCT((CT177+CU177)/CS177) -> 38.9 % | DE177: 175. | DF177: 173. | DG177: Kuusaan Pallo | DH177: 1 | DI177: 10 | DJ177: 0 | DK177: 9 | DL177: 0 | DM177: 0 | DN177: 1 | DO177: 171 | DP177: - | DQ177: 49 | DR177: 18 | DS177: =PRODUCT((DJ177+DK177)/DI177) -> 90.0 % | DU177: =DI177-DJ177-DK177-DL177-DM177-DN177 -> 0
CO178: 176. | CP178: 175. | CQ178: Tampellan Terä | CR178: 5 | CS178: 90 | CT178: 0 | CU178: 33 | CV178: 10 | CW178: 0 | CX178: 47 | CY178: 597 | CZ178: - | DA178: 700 | DB178: 76 | DC178: =PRODUCT((CT178+CU178)/CS178) -> 36.7 % | DE178: 176. | DF178: 174. | DG178: Siilinjärven Ponnistus | DH178: 1 | DI178: 10 | DJ178: 0 | DK178: 9 | DL178: 0 | DM178: 0 | DN178: 1 | DO178: 170 | DP178: - | DQ178: 44 | DR178: 18 | DS178: =PRODUCT((DJ178+DK178)/DI178) -> 90.0 % | DU178: =DI178-DJ178-DK178-DL178-DM178-DN178 -> 0
CO179: 177. | CP179: 176. | CQ179: Korian Ponsi | CR179: 7 | CS179: 69 | CT179: 0 | CU179: 37 | CV179: 1 | CW179: 0 | CX179: 31 | CY179: 533 | CZ179: - | DA179: 542 | DB179: 75 | DC179: =PRODUCT((CT179+CU179)/CS179) -> 53.6 % | DE179: 177. | DF179: 175. | DG179: Hyvinkään Tahko 3 | DH179: 1 | DI179: 18 | DJ179: 4 | DK179: 2 | DL179: 0 | DM179: 2 | DN179: 10 | DO179: 158 | DP179: - | DQ179: 213 | DR179: 18 | DS179: =PRODUCT((DJ179+DK179)/DI179) -> 33.3 % | DU179: =DI179-DJ179-DK179-DL179-DM179-DN179 -> 0
CO180: 178. | CP180: 177. | CQ180: Lahden Mailaveikot 2 | CR180: 8 | CS180: 79 | CT180: 0 | CU180: 35 | CV180: 4 | CW180: 0 | CX180: 40 | CY180: 502 | CZ180: - | DA180: 538 | DB180: 74 | DC180: =PRODUCT((CT180+CU180)/CS180) -> 44.3 % | DE180: 178. | DF180: 176. | DG180: Åbo Bobolls Flickor | DH180: 2 | DI180: 32 | DJ180: 2 | DK180: 4 | DL180: 0 | DM180: 4 | DN180: 22 | DO180: 162 | DP180: - | DQ180: 470 | DR180: 18 | DS180: =PRODUCT((DJ180+DK180)/DI180) -> 18.8 % | DU180: =DI180-DJ180-DK180-DL180-DM180-DN180 -> 0
CO181: 179. | CP181: 191. | CQ181: Jalasjärven Jalas | CR181: 4 | CS181: 68 | CT181: 16 | CU181: 8 | CV181: 0 | CW181: 10 | CX181: 34 | CY181: 530 | CZ181: - | DA181: 842 | DB181: 74 | DC181: =PRODUCT((CT181+CU181)/CS181) -> 35.3 % | DE181: 179. | DF181: 178. | DG181: Mynämäen Vesa 2 | DH181: 1 | DI181: 14 | DJ181: 5 | DK181: 0 | DL181: 0 | DM181: 1 | DN181: 8 | DO181: 142 | DP181: - | DQ181: 196 | DR181: 16 | DS181: =PRODUCT((DJ181+DK181)/DI181) -> 35.7 % | DU181: =DI181-DJ181-DK181-DL181-DM181-DN181 -> 0
CO182: 180. | CP182: 178. | CQ182: Lappajärven Veikot | CR182: 5 | CS182: 98 | CT182: 2 | CU182: 31 | CV182: 3 | CW182: 3 | CX182: 59 | CY182: 631 | CZ182: - | DA182: 925 | DB182: 74 | DC182: =PRODUCT((CT182+CU182)/CS182) -> 33.7 % | DE182: 180. | DF182: 179. | DG182: Helsingin Pallo-Toverit | DH182: 3 | DI182: 34 | DJ182: 0 | DK182: 7 | DL182: 0 | DM182: 1 | DN182: 26 | DO182: 157 | DP182: - | DQ182: 417 | DR182: 15 | DS182: =PRODUCT((DJ182+DK182)/DI182) -> 20.6 % | DU182: =DI182-DJ182-DK182-DL182-DM182-DN182 -> 0
CO183: 181. | CP183: 179. | CQ183: Jyväskylän Kiri 2020 | CR183: 2 | CS183: 27 | CT183: 21 | CU183: 5 | CV183: 0 | CW183: 0 | CX183: 1 | CY183: 397 | CZ183: - | DA183: 111 | DB183: 73 | DC183: =PRODUCT((CT183+CU183)/CS183) -> 96.3 % | DE183: 181. | DF183: 180. | DG183: Juvan Nuorisopesis | DH183: 1 | DI183: 14 | DJ183: 4 | DK183: 0 | DL183: 0 | DM183: 2 | DN183: 8 | DO183: 149 | DP183: - | DQ183: 225 | DR183: 14 | DS183: =PRODUCT((DJ183+DK183)/DI183) -> 28.6 % | DU183: =DI183-DJ183-DK183-DL183-DM183-DN183 -> 0
CO184: 182. | CP184: 180. | CQ184: Porin Veto | CR184: 9 | CS184: 88 | CT184: 0 | CU184: 33 | CV184: 6 | CW184: 0 | CX184: 49 | CY184: 464 | CZ184: - | DA184: 525 | DB184: 72 | DC184: =PRODUCT((CT184+CU184)/CS184) -> 37.5 % | DE184: 182. | DF184: 181. | DG184: Kajaanin Hymy | DH184: 1 | DI184: 14 | DJ184: 4 | DK184: 0 | DL184: 0 | DM184: 2 | DN184: 8 | DO184: 139 | DP184: - | DQ184: 189 | DR184: 14 | DS184: =PRODUCT((DJ184+DK184)/DI184) -> 28.6 % | DU184: =DI184-DJ184-DK184-DL184-DM184-DN184 -> 0
CO185: 183. | CP185: 181. | CQ185: Kemin kunnan Urheilijat | CR185: 7 | CS185: 78 | CT185: 0 | CU185: 33 | CV185: 5 | CW185: 0 | CX185: 40 | CY185: 689 | CZ185: - | DA185: 764 | DB185: 71 | DC185: =PRODUCT((CT185+CU185)/CS185) -> 42.3 % | DE185: 183. | DF185: 182. | DG185: Raahen Vesa | DH185: 2 | DI185: 28 | DJ185: 0 | DK185: 7 | DL185: 0 | DM185: 0 | DN185: 21 | DO185: 254 | DP185: - | DQ185: 335 | DR185: 14 | DS185: =PRODUCT((DJ185+DK185)/DI185) -> 25.0 % | DU185: =DI185-DJ185-DK185-DL185-DM185-DN185 -> 0
CO186: 184. | CP186: 182. | CQ186: Työväen Maila-Pojat 2 | CR186: 8 | CS186: 81 | CT186: 0 | CU186: 31 | CV186: 4 | CW186: 0 | CX186: 46 | CY186: 443 | CZ186: - | DA186: 681 | DB186: 66 | DC186: =PRODUCT((CT186+CU186)/CS186) -> 38.3 % | DE186: 184. | DF186: 183. | DG186: Harjavallan Jymy | DH186: 2 | DI186: 26 | DJ186: 0 | DK186: 6 | DL186: 1 | DM186: 0 | DN186: 19 | DO186: 184 | DP186: - | DQ186: 347 | DR186: 13 | DS186: =PRODUCT((DJ186+DK186)/DI186) -> 23.1 % | DU186: =DI186-DJ186-DK186-DL186-DM186-DN186 -> 0
CO187: 185. | CP187: 183. | CQ187: Ykköset | CR187: 2 | CS187: 44 | CT187: 0 | CU187: 32 | CV187: 1 | CW187: 0 | CX187: 11 | CY187: 525 | CZ187: - | DA187: 229 | DB187: 65 | DC187: =PRODUCT((CT187+CU187)/CS187) -> 72.7 % | DE187: 185. | DF187: 184. | DG187: Viinijärven Urheilijat 3 | DH187: 2 | DI187: 28 | DJ187: 0 | DK187: 6 | DL187: 1 | DM187: 0 | DN187: 21 | DO187: 222 | DP187: - | DQ187: 353 | DR187: 13 | DS187: =PRODUCT((DJ187+DK187)/DI187) -> 21.4 % | DU187: =DI187-DJ187-DK187-DL187-DM187-DN187 -> 0
CO188: 186. | CP188: 226. | CQ188: Espoon Pesis | CR188: 5 | CS188: 88 | CT188: 12 | CU188: 11 | CV188: 0 | CW188: 7 | CX188: 58 | CY188: 581 | CZ188: - | DA188: 1087 | DB188: 65 | DC188: =PRODUCT((CT188+CU188)/CS188) -> 26.1 % | DE188: 186. | DF188: 185. | DG188: Heinolan Maila-Pojat | DH188: 2 | DI188: 28 | DJ188: 0 | DK188: 6 | DL188: 0 | DM188: 0 | DN188: 22 | DO188: 207 | DP188: - | DQ188: 599 | DR188: 12 | DS188: =PRODUCT((DJ188+DK188)/DI188) -> 21.4 % | DU188: =DI188-DJ188-DK188-DL188-DM188-DN188 -> 0
CO189: 187. | CP189: 184. | CQ189: Haapajärven Pesä-Kiilat 2 | CR189: 5 | CS189: 88 | CT189: 13 | CU189: 9 | CV189: 0 | CW189: 8 | CX189: 58 | CY189: 608 | CZ189: - | DA189: 1299 | DB189: 65 | DC189: =PRODUCT((CT189+CU189)/CS189) -> 25.0 % | DE189: 187. | DF189: 186. | DG189: Vähänkyrön Viesti 2 | DH189: 2 | DI189: 28 | DJ189: 0 | DK189: 6 | DL189: 0 | DM189: 0 | DN189: 22 | DO189: 197 | DP189: - | DQ189: 472 | DR189: 12 | DS189: =PRODUCT((DJ189+DK189)/DI189) -> 21.4 % | DU189: =DI189-DJ189-DK189-DL189-DM189-DN189 -> 0
CO190: 188. | CP190: 185. | CQ190: Jokioisten Koetus Juniorit | CR190: 6 | CS190: 97 | CT190: 11 | CU190: 11 | CV190: 0 | CW190: 10 | CX190: 65 | CY190: 634 | CZ190: - | DA190: 1326 | DB190: 65 | DC190: =PRODUCT((CT190+CU190)/CS190) -> 22.7 % | DE190: 188. | DF190: 194. | DG190: Ruskon Pallo-67 | DH190: 2 | DI190: 34 | DJ190: 2 | DK190: 1 | DL190: 0 | DM190: 4 | DN190: 27 | DO190: 190 | DP190: - | DQ190: 663 | DR190: 12 | DS190: =PRODUCT((DJ190+DK190)/DI190) -> 8.8 % | DU190: =DI190-DJ190-DK190-DL190-DM190-DN190 -> 0
CO191: 189. | CP191: 186. | CQ191: Keljon Nuorisoseuran Urheilijat | CR191: 8 | CS191: 72 | CT191: 0 | CU191: 30 | CV191: 4 | CW191: 0 | CX191: 38 | CY191: 469 | CZ191: - | DA191: 588 | DB191: 64 | DC191: =PRODUCT((CT191+CU191)/CS191) -> 41.7 % | DE191: 189. | DF191: 187. | DG191: Kouvolan Pallonlyöjät | DH191: 3 | DI191: 36 | DJ191: 0 | DK191: 5 | DL191: 1 | DM191: 0 | DN191: 30 | DO191: 262 | DP191: - | DQ191: 691 | DR191: 11 | DS191: =PRODUCT((DJ191+DK191)/DI191) -> 13.9 % | DU191: =DI191-DJ191-DK191-DL191-DM191-DN191 -> 0
CO192: 190. | CP192: 187. | CQ192: Pankakosken Tehtaan Urheilijat | CR192: 10 | CS192: 77 | CT192: 0 | CU192: 30 | CV192: 4 | CW192: 0 | CX192: 43 | CY192: 608 | CZ192: - | DA192: 757 | DB192: 64 | DC192: =PRODUCT((CT192+CU192)/CS192) -> 39.0 % | DE192: 190. | DF192: 188. | DG192: Virkkalan Kiri | DH192: 2 | DI192: 32 | DJ192: 1 | DK192: 1 | DL192: 0 | DM192: 6 | DN192: 24 | DO192: 227 | DP192: - | DQ192: 636 | DR192: 11 | DS192: =PRODUCT((DJ192+DK192)/DI192) -> 6.3 % | DU192: =DI192-DJ192-DK192-DL192-DM192-DN192 -> 0
CO193: 191. | CP193: 188. | CQ193: Vuokatin Veto | CR193: 4 | CS193: 68 | CT193: 7 | CU193: 16 | CV193: 0 | CW193: 11 | CX193: 34 | CY193: 496 | CZ193: - | DA193: 750 | DB193: 64 | DC193: =PRODUCT((CT193+CU193)/CS193) -> 33.8 % | DE193: 191. | DF193: 189. | DG193: Liperin Pallotytöt | DH193: 1 | DI193: 8 | DJ193: 0 | DK193: 5 | DL193: 0 | DM193: 0 | DN193: 3 | DO193: 83 | DP193: - | DQ193: 64 | DR193: 10 | DS193: =PRODUCT((DJ193+DK193)/DI193) -> 62.5 % | DU193: =DI193-DJ193-DK193-DL193-DM193-DN193 -> 0
CO194: 192. | CP194: 189. | CQ194: Joensuun Maila-Pojat | CR194: 8 | CS194: 60 | CT194: 0 | CU194: 28 | CV194: 6 | CW194: 0 | CX194: 26 | CY194: 512 | CZ194: - | DA194: 510 | DB194: 62 | DC194: =PRODUCT((CT194+CU194)/CS194) -> 46.7 % | DE194: 192. | DF194: --- | DG194: Laihian Luja | DH194: 1 | DI194: 16 | DJ194: 1 | DK194: 3 | DL194: 0 | DM194: 1 | DN194: 11 | DO194: 146 | DP194: - | DQ194: 245 | DR194: 10 | DS194: =PRODUCT((DJ194+DK194)/DI194) -> 25.0 % | DU194: =DI194-DJ194-DK194-DL194-DM194-DN194 -> 0
CO195: 193. | CP195: 190. | CQ195: Kuhmon Kiva | CR195: 6 | CS195: 62 | CT195: 11 | CU195: 14 | CV195: 1 | CW195: 0 | CX195: 36 | CY195: 425 | CZ195: - | DA195: 640 | DB195: 62 | DC195: =PRODUCT((CT195+CU195)/CS195) -> 40.3 % | DE195: 193. | DF195: 190. | DG195: Vakka-Pesis | DH195: 1 | DI195: 16 | DJ195: 1 | DK195: 3 | DL195: 0 | DM195: 1 | DN195: 11 | DO195: 145 | DP195: - | DQ195: 281 | DR195: 10 | DS195: =PRODUCT((DJ195+DK195)/DI195) -> 25.0 % | DU195: =DI195-DJ195-DK195-DL195-DM195-DN195 -> 0
CO196: 194. | CP196: 192. | CQ196: Suomussalmen Rasti | CR196: 5 | CS196: 68 | CT196: 7 | CU196: 16 | CV196: 0 | CW196: 8 | CX196: 37 | CY196: 509 | CZ196: - | DA196: 792 | DB196: 61 | DC196: =PRODUCT((CT196+CU196)/CS196) -> 33.8 % | DE196: 194. | DF196: 191. | DG196: Pöytyän Urheilijat 2 | DH196: 1 | DI196: 13 | DJ196: 2 | DK196: 1 | DL196: 0 | DM196: 2 | DN196: 8 | DO196: 89 | DP196: - | DQ196: 151 | DR196: 10 | DS196: =PRODUCT((DJ196+DK196)/DI196) -> 23.1 % | DU196: =DI196-DJ196-DK196-DL196-DM196-DN196 -> 0
CO197: 195. | CP197: 193. | CQ197: Hongikon Ns. Urheilijat 2 | CR197: 3 | CS197: 66 | CT197: 0 | CU197: 28 | CV197: 3 | CW197: 0 | CX197: 35 | CY197: 572 | CZ197: - | DA197: 608 | DB197: 59 | DC197: =PRODUCT((CT197+CU197)/CS197) -> 42.4 % | DE197: 195. | DF197: 192. | DG197: Simon Kiri 2 | DH197: 1 | DI197: 16 | DJ197: 3 | DK197: 0 | DL197: 0 | DM197: 1 | DN197: 12 | DO197: 112 | DP197: - | DQ197: 322 | DR197: 10 | DS197: =PRODUCT((DJ197+DK197)/DI197) -> 18.8 % | DU197: =DI197-DJ197-DK197-DL197-DM197-DN197 -> 0
CO198: 196. | CP198: 194. | CQ198: Haka-Pesis | CR198: 2 | CS198: 44 | CT198: 16 | CU198: 1 | CV198: 4 | CW198: 4 | CX198: 19 | CY198: 248 | CZ198: - | DA198: 341 | DB198: 58 | DC198: =PRODUCT((CT198+CU198)/CS198) -> 38.6 % | DE198: 196. | DF198: 193. | DG198: Ilomantsin Urheilijat 2 | DH198: 1 | DI198: 10 | DJ198: 0 | DK198: 4 | DL198: 1 | DM198: 0 | DN198: 5 | DO198: 164 | DP198: - | DQ198: 119 | DR198: 9 | DS198: =PRODUCT((DJ198+DK198)/DI198) -> 40.0 % | DU198: =DI198-DJ198-DK198-DL198-DM198-DN198 -> 0
CO199: 197. | CP199: 195. | CQ199: Lahden Koripalloilijat | CR199: 6 | CS199: 55 | CT199: 0 | CU199: 28 | CV199: 1 | CW199: 0 | CX199: 26 | CY199: 396 | CZ199: - | DA199: 345 | DB199: 57 | DC199: =PRODUCT((CT199+CU199)/CS199) -> 50.9 % | DE199: 197. | DF199: 195. | DG199: Karstulan Kiva | DH199: 2 | DI199: 16 | DJ199: 0 | DK199: 4 | DL199: 0 | DM199: 0 | DN199: 12 | DO199: 124 | DP199: - | DQ199: 231 | DR199: 8 | DS199: =PRODUCT((DJ199+DK199)/DI199) -> 25.0 % | DU199: =DI199-DJ199-DK199-DL199-DM199-DN199 -> 0
CO200: 198. | CP200: 196. | CQ200: Kouvolan Pallonlyöjät 3 | CR200: 2 | CS200: 28 | CT200: 14 | CU200: 6 | CV200: 0 | CW200: 0 | CX200: 8 | CY200: 339 | CZ200: - | DA200: 222 | DB200: 54 | DC200: =PRODUCT((CT200+CU200)/CS200) -> 71.4 % | DE200: 198. | DF200: 196. | DG200: Kauhavan Wisa | DH200: 1 | DI200: 14 | DJ200: 1 | DK200: 2 | DL200: 0 | DM200: 1 | DN200: 10 | DO200: 115 | DP200: - | DQ200: 236 | DR200: 8 | DS200: =PRODUCT((DJ200+DK200)/DI200) -> 21.4 % | DU200: =DI200-DJ200-DK200-DL200-DM200-DN200 -> 0
... 178 more rows

Sheet Seurat, Paikkakunnat
C1: SEUROJEN MARATONTAULUKKO 1931-2025 | R1: PAIKKAKUNTIEN MARATONTAULUKKO 1931-2023 | AG1: MAAKUNTIEN MARATONTAULUKKO 1931-2023
D2: K | E2: O | F2: 3P | G2: 2P | H2: T | I2: 1P | J2: 0P | L2: JUOKSUT | N2: PIST | S2: K | T2: O | U2: 3P | V2: 2P | W2: T | X2: 1P | Y2: 0P | AA2: JUOKSUT | AC2: PIST | AH2: K | AI2: O | AJ2: 3P | AK2: 2P | AL2: T | AM2: 1P | AN2: 0P | AP2: JUOKSUT | AR2: PIST
B3: 1931-2025 | C3: MIESTEN SUPERPESIS | D3: 1142 | E3: =(F3+G3+H3+I3+J3)/2 -> 12210 | F3: 3398 | G3: 8397 | H3: 830 | I3: 1628 | J3: 10167 | K3: 160383 | L3: - | M3: 160383 | N3: 29446 | Q3: 1931-2025 | R3: MIESTEN SUPERPESIS | S3: 1142 | T3: =(U3+V3+W3+X3+Y3)/2 -> 12210 | U3: 3398 | V3: 8397 | W3: 830 | X3: 1628 | Y3: 10167 | Z3: 160383 | AA3: - | AB3: 160383 | AC3: 29446 | AF3: 1931-2025 | AG3: MIESTEN SUPERPESIS | AH3: 1142 | AI3: =(AJ3+AK3+AL3+AM3+AN3)/2 -> 12210 | AJ3: 3398 | AK3: 8397 | AL3: 830 | AM3: 1628 | AN3: 10167 | AO3: 160383 | AP3: - | AQ3: 160383 | AR3: 29446
B4: 1955-2025 | C4: NAISTEN SUPERPESIS | D4: 762 | E4: =(F4+G4+H4+I4+J4)/2 -> 6778 | F4: 2693 | G4: 3981 | H4: 208 | I4: 992 | J4: 5682 | K4: 113544 | L4: - | M4: 113544 | N4: 17241 | Q4: 1955-2025 | R4: NAISTEN SUPERPESIS | S4: 762 | T4: =(U4+V4+W4+X4+Y4)/2 -> 6778 | U4: 2693 | V4: 3981 | W4: 208 | X4: 992 | Y4: 5682 | Z4: 113544 | AA4: - | AB4: 113544 | AC4: 17241 | AF4: 1955-2025 | AG4: NAISTEN SUPERPESIS | AH4: 762 | AI4: =(AJ4+AK4+AL4+AM4+AN4)/2 -> 6778 | AJ4: 2693 | AK4: 3981 | AL4: 208 | AM4: 992 | AN4: 5682 | AO4: 113544 | AP4: - | AQ4: 113544 | AR4: 17241
B5: 1981-2025 | C5: MIESTEN YKKÖSPESIS | D5: 579 | E5: =(F5+G5+H5+I5+J5)/2 -> 6732 | F5: 2827 | G5: 3689 | H5: 212 | I5: 1452 | J5: 5284 | K5: 93143 | L5: - | M5: 93143 | N5: 17543 | Q5: 1981-2025 | R5: MIESTEN YKKÖSPESIS | S5: 579 | T5: =(U5+V5+W5+X5+Y5)/2 -> 6732 | U5: 2827 | V5: 3689 | W5: 212 | X5: 1452 | Y5: 5284 | Z5: 93143 | AA5: - | AB5: 93143 | AC5: 17543 | AF5: 1981-2025 | AG5: MIESTEN YKKÖSPESIS | AH5: 579 | AI5: =(AJ5+AK5+AL5+AM5+AN5)/2 -> 6732 | AJ5: 2827 | AK5: 3689 | AL5: 212 | AM5: 1452 | AN5: 5284 | AO5: 93143 | AP5: - | AQ5: 93143 | AR5: 17543
B6: 1985-2025 | C6: NAISTEN YKKÖSPESIS | D6: 605 | E6: =(F6+G6+H6+I6+J6)/2 -> 5242 | F6: 2732 | G6: 2462 | H6: 96 | I6: 1157 | J6: 4037 | K6: 99529 | L6: - | M6: 99529 | N6: 14366 | Q6: 1985-2025 | R6: NAISTEN YKKÖSPESIS | S6: 605 | T6: =(U6+V6+W6+X6+Y6)/2 -> 5242 | U6: 2732 | V6: 2462 | W6: 96 | X6: 1157 | Y6: 4037 | Z6: 99529 | AA6: - | AB6: 99529 | AC6: 14366 | AF6: 1985-2025 | AG6: NAISTEN YKKÖSPESIS | AH6: 605 | AI6: =(AJ6+AK6+AL6+AM6+AN6)/2 -> 5242 | AJ6: 2732 | AK6: 2462 | AL6: 96 | AM6: 1157 | AN6: 4037 | AO6: 99529 | AP6: - | AQ6: 99529 | AR6: 14366
B7: 1945-2025 | C7: MIESTEN SUOMENSARJA | D7: 3221 | E7: =(F7+G7+H7+I7+J7)/2 -> 23864 | F7: 6383 | G7: 16760 | H7: 1412 | I7: 2513 | J7: 20660 | K7: 403571 | L7: - | M7: 403571 | N7: 56585 | Q7: 1945-2025 | R7: MIESTEN SUOMENSARJA | S7: 3221 | T7: =(U7+V7+W7+X7+Y7)/2 -> 23864 | U7: 6383 | V7: 16760 | W7: 1412 | X7: 2513 | Y7: 20660 | Z7: 403571 | AA7: - | AB7: 403571 | AC7: 56585 | AF7: 1945-2025 | AG7: MIESTEN SUOMENSARJA | AH7: 3221 | AI7: =(AJ7+AK7+AL7+AM7+AN7)/2 -> 23864 | AJ7: 6383 | AK7: 16760 | AL7: 1412 | AM7: 2513 | AN7: 20660 | AO7: 403571 | AP7: - | AQ7: 403571 | AR7: 56585
B8: 1978-2025 | C8: NAISTEN SUOMENSARJA | D8: 1342 | E8: =(F8+G8+H8+I8+J8)/2 -> 9773 | F8: 4726 | G8: 4936 | H8: 218 | I8: 1612 | J8: 8054 | K8: 226375 | L8: - | M8: 226375 | N8: 25879 | Q8: 1978-2025 | R8: NAISTEN SUOMENSARJA | S8: 1342 | T8: =(U8+V8+W8+X8+Y8)/2 -> 9773 | U8: 4726 | V8: 4936 | W8: 218 | X8: 1612 | Y8: 8054 | Z8: 226375 | AA8: - | AB8: 226375 | AC8: 25879 | AF8: 1978-2025 | AG8: NAISTEN SUOMENSARJA | AH8: 1342 | AI8: =(AJ8+AK8+AL8+AM8+AN8)/2 -> 9773 | AJ8: 4726 | AK8: 4936 | AL8: 218 | AM8: 1612 | AN8: 8054 | AO8: 226375 | AP8: - | AQ8: 226375 | AR8: 25879
C9: YHTEENSÄ | D9: =SUM(D3:D8) -> 7651 | E9: =(F9+G9+H9+I9+J9)/2 -> 64599 | F9: =SUM(F3:F8) -> 22759 | G9: =SUM(G3:G8) -> 40225 | H9: =SUM(H3:H8) -> 2976 | I9: =SUM(I3:I8) -> 9354 | J9: =SUM(J3:J8) -> 53884 | K9: =SUM(K3:K8) -> 1096545 | L9: - | M9: =SUM(M3:M8) -> 1096545 | N9: =SUM(N3:N8) -> 161060 | R9: YHTEENSÄ | S9: =SUM(S3:S8) -> 7651 | T9: =(U9+V9+W9+X9+Y9)/2 -> 64599 | U9: =SUM(U3:U8) -> 22759 | V9: =SUM(V3:V8) -> 40225 | W9: =SUM(W3:W8) -> 2976 | X9: =SUM(X3:X8) -> 9354 | Y9: =SUM(Y3:Y8) -> 53884 | Z9: =SUM(Z3:Z8) -> 1096545 | AA9: - | AB9: =SUM(AB3:AB8) -> 1096545 | AC9: =SUM(AC3:AC8) -> 161060 | AG9: YHTEENSÄ | AH9: =SUM(AH3:AH8) -> 7651 | AI9: =(AJ9+AK9+AL9+AM9+AN9)/2 -> 64599 | AJ9: =SUM(AJ3:AJ8) -> 22759 | AK9: =SUM(AK3:AK8) -> 40225 | AL9: =SUM(AL3:AL8) -> 2976 | AM9: =SUM(AM3:AM8) -> 9354 | AN9: =SUM(AN3:AN8) -> 53884 | AO9: =SUM(AO3:AO8) -> 1096545 | AP9: - | AQ9: =SUM(AQ3:AQ8) -> 1096545 | AR9: =SUM(AR3:AR8) -> 161060
C11: SEURA | D11: K | E11: O | F11: 3P | G11: 2P | H11: T | I11: 1P | J11: 0P | L11: JUOKSUT | N11: PIST | O11: V-% | R11: PAIKKAKUNTA | S11: K | T11: O | U11: 3P | V11: 2P | W11: T | X11: 1P | Y11: 0P | AA11: JUOKSUT | AC11: PIST | AD11: V-% | AG11: MAAKUNTA | AH11: K | AI11: O | AJ11: 3P | AK11: 2P | AL11: T | AM11: 1P | AN11: 0P | AP11: JUOKSUT | AR11: PIST | AS11: V-%
B12: 1. | C12: Sotkamon Jymy | D12: 142 | E12: 2740 | F12: 775 | G12: 973 | H12: 66 | I12: 192 | J12: 734 | K12: 25517 | L12: - | M12: 17802 | N12: 4529 | O12: =PRODUCT((F12+G12)/E12) -> 63.8 % | Q12: 1. | R12: Jyväskylä | S12: 400 | T12: 6757 | U12: 1173 | V12: 2486 | W12: 193 | X12: 340 | Y12: 2565 | Z12: 59745 | AA12: - | AB12: 50803 | AC12: 9024 | AD12: =PRODUCT((U12+V12)/T12) -> 54.2 % | AF12: 1. | AG12: Etelä-Pohjanmaa | AH12: 1048 | AI12: 18865 | AJ12: 3420 | AK12: 6005 | AL12: 410 | AM12: 1465 | AN12: 7565 | AO12: 157465 | AP12: - | AQ12: 152680 | AR12: 24146 | AS12: =PRODUCT((AJ12+AK12)/AI12) -> 50.0 %
B13: 2. | C13: Hyvinkään Tahko | D13: 154 | E13: 2959 | F13: 574 | G13: 929 | H13: 65 | I13: 238 | J13: 1153 | K13: 27376 | L13: - | M13: 25969 | N13: 3883 | O13: =PRODUCT((F13+G13)/E13) -> 50.8 % | Q13: 2. | R13: Seinäjoki | S13: 346 | T13: 6261 | U13: 1150 | V13: 2008 | W13: 135 | X13: 504 | Y13: 2464 | Z13: 51902 | AA13: - | AB13: 50186 | AC13: 8105 | AD13: =PRODUCT((U13+V13)/T13) -> 50.4 % | AF13: 2. | AG13: Pohjois-Pohjanmaa | AH13: 937 | AI13: 16278 | AJ13: 3424 | AK13: 4605 | AL13: 286 | AM13: 1378 | AN13: 6586 | AO13: 138086 | AP13: - | AQ13: 135656 | AR13: 21146 | AS13: =PRODUCT((AJ13+AK13)/AI13) -> 49.3 %
B14: 3. | C14: Vimpelin Veto | D14: 145 | E14: 2724 | F14: 566 | G14: 898 | H14: 69 | I14: 172 | J14: 1019 | K14: 23885 | L14: - | M14: 20718 | N14: 3735 | O14: =PRODUCT((F14+G14)/E14) -> 53.7 % | Q14: 3. | R14: Helsinki | S14: 369 | T14: 5083 | U14: 602 | V14: 2066 | W14: 164 | X14: 199 | Y14: 2052 | Z14: 48705 | AA14: - | AB14: 42016 | AC14: 6299 | AD14: =PRODUCT((U14+V14)/T14) -> 52.5 % | AF14: 3. | AG14: Uusimaa | AH14: 816 | AI14: 12640 | AJ14: 1907 | AK14: 4319 | AL14: 326 | AM14: 737 | AN14: 5351 | AO14: 118301 | AP14: - | AQ14: 117178 | AR14: 15420 | AS14: =PRODUCT((AJ14+AK14)/AI14) -> 49.3 %
B15: 4. | C15: Jyväskylän Kiri | D15: 164 | E15: 2797 | F15: 395 | G15: 1138 | H15: 85 | I15: 135 | J15: 1044 | K15: 25432 | L15: - | M15: 20698 | N15: 3681 | O15: =PRODUCT((F15+G15)/E15) -> 54.8 % | Q15: 4. | R15: Oulu | S15: 241 | T15: 4157 | U15: 1004 | V15: 1289 | W15: 84 | X15: 334 | Y15: 1446 | Z15: 37541 | AA15: - | AB15: 32166 | AC15: 6009 | AD15: =PRODUCT((U15+V15)/T15) -> 55.2 % | AF15: 4. | AG15: Satakunta | AH15: 508 | AI15: 9011 | AJ15: 1793 | AK15: 2642 | AL15: 174 | AM15: 732 | AN15: 3670 | AO15: 73429 | AP15: - | AQ15: 74323 | AR15: 11568 | AS15: =PRODUCT((AJ15+AK15)/AI15) -> 49.2 %
B16: 5. | C16: Seinäjoen Maila-Jussit | D16: 152 | E16: 2678 | F16: 484 | G16: 942 | H16: 75 | I16: 178 | J16: 999 | K16: 22090 | L16: - | M16: 19818 | N16: 3589 | O16: =PRODUCT((F16+G16)/E16) -> 53.2 % | Q16: 5. | R16: Kouvola | S16: 248 | T16: 3983 | U16: 715 | V16: 1399 | W16: 129 | X16: 230 | Y16: 1510 | Z16: 33805 | AA16: - | AB16: 30065 | AC16: 5302 | AD16: =PRODUCT((U16+V16)/T16) -> 53.1 % | AF16: 5. | AG16: Keski-Suomi | AH16: 475 | AI16: 7835 | AJ16: 1331 | AK16: 2704 | AL16: 214 | AM16: 433 | AN16: 3153 | AO16: 67487 | AP16: - | AQ16: 62216 | AR16: 10048 | AS16: =PRODUCT((AJ16+AK16)/AI16) -> 51.5 %
B17: 6. | C17: Haminan Palloilijat | D17: 143 | E17: 2475 | F17: 383 | G17: 856 | H17: 74 | I17: 162 | J17: 1000 | K17: 21083 | L17: - | M17: 19517 | N17: 3097 | O17: =PRODUCT((F17+G17)/E17) -> 50.1 % | Q17: 6. | R17: Sotkamo | S17: 166 | T17: 3066 | U17: 856 | V17: 1048 | W17: 69 | X17: 224 | Y17: 869 | Z17: 28442 | AA17: - | AB17: 20642 | AC17: 4957 | AD17: =PRODUCT((U17+V17)/T17) -> 62.1 % | AF17: 6. | AG17: Pohjois-Karjala | AH17: 475 | AI17: 8006 | AJ17: 1150 | AK17: 2667 | AL17: 197 | AM17: 539 | AN17: 3453 | AO17: 65266 | AP17: - | AQ17: 66863 | AR17: 9520 | AS17: =PRODUCT((AJ17+AK17)/AI17) -> 47.7 %
B18: 7. | C18: Kouvolan Pallonlyöjät | D18: 109 | E18: 2110 | F18: 437 | G18: 737 | H18: 62 | I18: 126 | J18: 748 | K18: 16804 | L18: - | M18: 14350 | N18: 2973 | O18: =PRODUCT((F18+G18)/E18) -> 55.6 % | Q18: 7. | R18: Vaasa | S18: 175 | T18: 3001 | U18: 596 | V18: 922 | W18: 65 | X18: 236 | Y18: 1182 | Z18: 25643 | AA18: - | AB18: 24728 | AC18: 3933 | AD18: =PRODUCT((U18+V18)/T18) -> 50.6 % | AF18: 7. | AG18: Kymenlaakso | AH18: 439 | AI18: 7216 | AJ18: 1156 | AK18: 2450 | AL18: 229 | AM18: 425 | AN18: 2956 | AO18: 59789 | AP18: - | AQ18: 56823 | AR18: 9022 | AS18: =PRODUCT((AJ18+AK18)/AI18) -> 50.0 %
B19: 8. | C19: Oulun Lippo | D19: 115 | E19: 2112 | F19: 370 | G19: 790 | H19: 66 | I19: 123 | J19: 763 | K19: 18500 | L19: - | M19: 15331 | N19: 2879 | O19: =PRODUCT((F19+G19)/E19) -> 54.9 % | Q19: 8. | R19: Hyvinkää | S19: 154 | T19: 2959 | U19: 574 | V19: 929 | W19: 65 | X19: 238 | Y19: 1153 | Z19: 27376 | AA19: - | AB19: 25969 | AC19: 3883 | AD19: =PRODUCT((U19+V19)/T19) -> 50.8 % | AF19: 8. | AG19: Pohjois-Savo | AH19: 396 | AI19: 6340 | AJ19: 974 | AK19: 1869 | AL19: 155 | AM19: 436 | AN19: 2906 | AO19: 50528 | AP19: - | AQ19: 55850 | AR19: 7251 | AS19: =PRODUCT((AJ19+AK19)/AI19) -> 44.8 %
B20: 9. | C20: Imatran Pallo-Veikot | D20: 121 | E20: 2331 | F20: 322 | G20: 821 | H20: 70 | I20: 162 | J20: 956 | K20: 18351 | L20: - | M20: 17660 | N20: 2840 | O20: =PRODUCT((F20+G20)/E20) -> 49.0 % | Q20: 9. | R20: Vimpeli | S20: 145 | T20: 2724 | U20: 566 | V20: 898 | W20: 69 | X20: 172 | Y20: 1019 | Z20: 23885 | AA20: - | AB20: 20718 | AC20: 3735 | AD20: =PRODUCT((U20+V20)/T20) -> 53.7 % | AF20: 9. | AG20: Kainuu | AH20: 275 | AI20: 4743 | AJ20: 1177 | AK20: 1463 | AL20: 97 | AM20: 372 | AN20: 1632 | AO20: 43061 | AP20: - | AQ20: 36825 | AR20: 6926 | AS20: =PRODUCT((AJ20+AK20)/AI20) -> 55.7 %
B21: 10. | C21: Lapuan Virkiä | D21: 99 | E21: 1699 | F21: 522 | G21: 515 | H21: 25 | I21: 153 | J21: 484 | K21: 16737 | L21: - | M21: 12567 | N21: 2774 | O21: =PRODUCT((F21+G21)/E21) -> 61.0 % | Q21: 10. | R21: Hamina | S21: 172 | T21: 2981 | U21: 438 | V21: 979 | W21: 86 | X21: 188 | Y21: 1290 | Z21: 24454 | AA21: - | AB21: 24233 | AC21: 3546 | AD21: =PRODUCT((U21+V21)/T21) -> 47.5 % | AF21: 10. | AG21: Varsinais-Suomi | AH21: 374 | AI21: 5786 | AJ21: 971 | AK21: 1605 | AL21: 142 | AM21: 463 | AN21: 2605 | AO21: 48020 | AP21: - | AQ21: 53352 | AR21: 6727 | AS21: =PRODUCT((AJ21+AK21)/AI21) -> 44.5 %
B22: 11. | C22: Pattijoen Urheilijat | D22: 89 | E22: 1856 | F22: 526 | G22: 464 | H22: 13 | I22: 206 | J22: 647 | K22: 15633 | L22: - | M22: 14378 | N22: 2725 | O22: =PRODUCT((F22+G22)/E22) -> 53.3 % | Q22: 11. | R22: Imatra | S22: 148 | T22: 2624 | U22: 322 | V22: 943 | W22: 84 | X22: 162 | Y22: 1113 | Z22: 20429 | AA22: - | AB22: 19913 | AC22: 3098 | AD22: =PRODUCT((U22+V22)/T22) -> 48.2 % | AF22: 11. | AG22: Pirkanmaa | AH22: 320 | AI22: 5030 | AJ22: 780 | AK22: 1621 | AL22: 123 | AM22: 293 | AN22: 2213 | AO22: 44197 | AP22: - | AQ22: 44604 | AR22: 5992 | AS22: =PRODUCT((AJ22+AK22)/AI22) -> 47.7 %
B23: 12. | C23: Kempeleen Kiri | D23: 100 | E23: 1995 | F23: 451 | G23: 544 | H23: 23 | I23: 193 | J23: 784 | K23: 16180 | L23: - | M23: 15353 | N23: 2657 | O23: =PRODUCT((F23+G23)/E23) -> 49.9 % | Q23: 12. | R23: Raahe | S23: 105 | T23: 2032 | U23: 526 | V23: 514 | W23: 21 | X23: 206 | Y23: 765 | Z23: 16811 | AA23: - | AB23: 16080 | AC23: 2833 | AD23: =PRODUCT((U23+V23)/T23) -> 51.2 % | AF23: 12. | AG23: Kanta-Häme | AH23: 337 | AI23: 5398 | AJ23: 639 | AK23: 1810 | AL23: 164 | AM23: 282 | AN23: 2503 | AO23: 45446 | AP23: - | AQ23: 48807 | AR23: 5983 | AS23: =PRODUCT((AJ23+AK23)/AI23) -> 45.4 %
B24: 13. | C24: Ulvilan Pesä-Veikot | D24: 108 | E24: 2051 | F24: 299 | G24: 749 | H24: 66 | I24: 151 | J24: 786 | K24: 16867 | L24: - | M24: 16066 | N24: 2612 | O24: =PRODUCT((F24+G24)/E24) -> 51.1 % | Q24: 13. | R24: Ilmajoki | S24: 114 | T24: 2178 | U24: 388 | V24: 712 | W24: 37 | X24: 205 | Y24: 836 | Z24: 17936 | AA24: - | AB24: 17310 | AC24: 2830 | AD24: =PRODUCT((U24+V24)/T24) -> 50.5 % | AF24: 13. | AG24: Etelä-Karjala | AH24: 284 | AI24: 4755 | AJ24: 671 | AK24: 1617 | AL24: 129 | AM24: 294 | AN24: 2044 | AO24: 38649 | AP24: - | AQ24: 37923 | AR24: 5670 | AS24: =PRODUCT((AJ24+AK24)/AI24) -> 48.1 %
B25: 14. | C25: Joensuun Maila | D25: 99 | E25: 1909 | F25: 427 | G25: 522 | H25: 26 | I25: 197 | J25: 737 | K25: 15166 | L25: - | M25: 15360 | N25: 2548 | O25: =PRODUCT((F25+G25)/E25) -> 49.7 % | Q25: 14. | R25: Lapua | S25: 104 | T25: 1737 | U25: 522 | V25: 527 | W25: 27 | X25: 153 | Y25: 508 | Z25: 16993 | AA25: - | AB25: 13049 | AC25: 2800 | AD25: =PRODUCT((U25+V25)/T25) -> 60.4 % | AF25: 14. | AG25: Pohjanmaa | AH25: 208 | AI25: 3497 | AJ25: 744 | AK25: 1020 | AL25: 67 | AM25: 295 | AN25: 1371 | AO25: 30732 | AP25: - | AQ25: 29689 | AR25: 4633 | AS25: =PRODUCT((AJ25+AK25)/AI25) -> 50.4 %
B26: 15. | C26: Pesäkarhut | D26: 83 | E26: 1554 | F26: 517 | G26: 415 | H26: 18 | I26: 133 | J26: 471 | K26: 14305 | L26: - | M26: 10917 | N26: 2532 | O26: =PRODUCT((F26+G26)/E26) -> 60.0 % | Q26: 15. | R26: Kitee | S26: 96 | T26: 2051 | U26: 397 | V26: 651 | W26: 36 | X26: 170 | Y26: 797 | Z26: 15732 | AA26: - | AB26: 15348 | AC26: 2699 | AD26: =PRODUCT((U26+V26)/T26) -> 51.1 % | AF26: 15. | AG26: Keski-Pohjanmaa | AH26: 185 | AI26: 2989 | AJ26: 466 | AK26: 921 | AL26: 91 | AM26: 210 | AN26: 1301 | AO26: 25037 | AP26: - | AQ26: 26368 | AR26: 3541 | AS26: =PRODUCT((AJ26+AK26)/AI26) -> 46.4 %
B27: 16. | C27: Kankaanpään Maila | D27: 95 | E27: 1992 | F27: 317 | G27: 621 | H27: 38 | I27: 158 | J27: 858 | K27: 13633 | L27: - | M27: 15067 | N27: 2389 | O27: =PRODUCT((F27+G27)/E27) -> 47.1 % | Q27: 16. | R27: Loimaa | S27: 147 | T27: 2294 | U27: 314 | V27: 767 | W27: 68 | X27: 142 | Y27: 1003 | Z27: 18118 | AA27: 0 | AB27: 19347 | AC27: 2686 | AD27: =PRODUCT((U27+V27)/T27) -> 47.1 % | AF27: 16. | AG27: Päijät-Häme | AH27: 153 | AI27: 1953 | AJ27: 183 | AK27: 760 | AL27: 71 | AM27: 77 | AN27: 862 | AO27: 18610 | AP27: - | AQ27: 18714 | AR27: 2217 | AS27: =PRODUCT((AJ27+AK27)/AI27) -> 48.3 %
B28: 17. | C28: Siilinjärven Pesis | D28: 91 | E28: 1814 | F28: 425 | G28: 424 | H28: 27 | I28: 179 | J28: 759 | K28: 15361 | L28: - | M28: 15296 | N28: 2329 | O28: =PRODUCT((F28+G28)/E28) -> 46.8 % | Q28: 17. | R28: Siilinjärvi | S28: 119 | T28: 2177 | U28: 425 | V28: 589 | W28: 49 | X28: 179 | Y28: 935 | Z28: 17825 | AA28: - | AB28: 17909 | AC28: 2681 | AD28: =PRODUCT((U28+V28)/T28) -> 46.6 % | AF28: 17. | AG28: Etelä-Savo | AH28: 113 | AI28: 1690 | AJ28: 225 | AK28: 520 | AL28: 49 | AM28: 83 | AN28: 813 | AO28: 13115 | AP28: - | AQ28: 15324 | AR28: 1847 | AS28: =PRODUCT((AJ28+AK28)/AI28) -> 44.1 %
B29: 18. | C29: Nurmon Jymy | D29: 109 | E29: 1896 | F29: 245 | G29: 695 | H29: 52 | I29: 134 | J29: 770 | K29: 15981 | L29: - | M29: 15450 | N29: 2311 | O29: =PRODUCT((F29+G29)/E29) -> 49.6 % | Q29: 18. | R29: Kankaanpää | S29: 111 | T29: 2278 | U29: 362 | V29: 680 | W29: 39 | X29: 194 | Y29: 1003 | Z29: 15978 | AA29: - | AB29: 18077 | AC29: 2679 | AD29: =PRODUCT((U29+V29)/T29) -> 45.7 % | AF29: 18. | AG29: Lappi | AH29: 136 | AI29: 1699 | AJ29: 199 | AK29: 454 | AL29: 33 | AM29: 142 | AN29: 872 | AO29: 13383 | AP29: - | AQ29: 17580 | AR29: 1680 | AS29: =PRODUCT((AJ29+AK29)/AI29) -> 38.4 %
B30: 19. | C30: Alajärven Ankkurit | D30: 101 | E30: 1918 | F30: 259 | G30: 643 | H30: 44 | I30: 140 | J30: 832 | K30: 14751 | L30: - | M30: 15558 | N30: 2247 | O30: =PRODUCT((F30+G30)/E30) -> 47.0 % | Q30: 19. | R30: Tampere | S30: 121 | T30: 2097 | U30: 430 | V30: 606 | W30: 39 | X30: 138 | Y30: 884 | Z30: 17714 | AA30: - | AB30: 17308 | AC30: 2679 | AD30: =PRODUCT((U30+V30)/T30) -> 49.4 % | AF30: 19. | AG30: Laatokan Karjala | AH30: 29 | AI30: 267 | AJ30: 0 | AK30: 119 | AL30: 19 | AM30: 0 | AN30: 129 | AO30: 1673 | AP30: - | AQ30: 1499 | AR30: 257 | AS30: =PRODUCT((AJ30+AK30)/AI30) -> 44.6 %
B31: 20. | C31: Kiteen Pallo-90 | D31: 62 | E31: 1427 | F31: 397 | G31: 362 | H31: 10 | I31: 169 | J31: 489 | K31: 10866 | L31: - | M31: 10197 | N31: 2094 | O31: =PRODUCT((F31+G31)/E31) -> 53.2 % | Q31: 20. | R31: Kempele | S31: 100 | T31: 1995 | U31: 451 | V31: 544 | W31: 23 | X31: 193 | Y31: 784 | Z31: 16180 | AA31: - | AB31: 15353 | AC31: 2657 | AD31: =PRODUCT((U31+V31)/T31) -> 49.9 %
B32: 21. | C32: Helsingin Puna-Mustat | D32: 102 | E32: 1575 | F32: 263 | G32: 562 | H32: 48 | I32: 92 | J32: 610 | K32: 15272 | L32: - | M32: 13685 | N32: 2051 | O32: =PRODUCT((F32+G32)/E32) -> 52.4 % | Q32: 21. | R32: Ulvila | S32: 114 | T32: 2109 | U32: 299 | V32: 761 | W32: 73 | X32: 151 | Y32: 825 | Z32: 17118 | AA32: - | AB32: 16574 | AC32: 2643 | AD32: =PRODUCT((U32+V32)/T32) -> 50.3 %
B33: 22. | C33: Vihdin Pallo | D33: 80 | E33: 1387 | F33: 362 | G33: 340 | H33: 17 | I33: 128 | J33: 540 | K33: 13726 | L33: - | M33: 14097 | N33: 1911 | O33: =PRODUCT((F33+G33)/E33) -> 50.6 % | Q33: 22. | R33: Joensuu | S33: 111 | T33: 2000 | U33: 427 | V33: 553 | W33: 36 | X33: 197 | Y33: 787 | Z33: 15816 | AA33: - | AB33: 16293 | AC33: 2620 | AD33: =PRODUCT((U33+V33)/T33) -> 49.0 %
B34: 23. | C34: Vähänkyrön Viesti | D34: 79 | E34: 1457 | F34: 274 | G34: 456 | H34: 23 | I34: 122 | J34: 582 | K34: 12502 | L34: - | M34: 12549 | N34: 1879 | O34: =PRODUCT((F34+G34)/E34) -> 50.1 % | Q34: 23. | R34: Pori | S34: 96 | T34: 1702 | U34: 517 | V34: 453 | W34: 24 | X34: 133 | Y34: 575 | Z34: 15115 | AA34: - | AB34: 12299 | AC34: 2614 | AD34: =PRODUCT((U34+V34)/T34) -> 57.0 %
B35: 24. | C35: Loimaan Palloilijat | D35: 99 | E35: 1574 | F35: 162 | G35: 603 | H35: 56 | I35: 81 | J35: 672 | K35: 11687 | L35: - | M35: 11990 | N35: 1829 | O35: =PRODUCT((F35+G35)/E35) -> 48.6 % | Q35: 24. | R35: Kuopio | S35: 125 | T35: 1985 | U35: 349 | V35: 586 | W35: 51 | X35: 154 | Y35: 845 | Z35: 16057 | AA35: 0 | AB35: 16469 | AC35: 2424 | AD35: =PRODUCT((U35+V35)/T35) -> 47.1 %
B36: 25. | C36: Fera | D36: 77 | E36: 1312 | F36: 332 | G36: 335 | H36: 14 | I36: 136 | J36: 495 | K36: 10834 | L36: - | M36: 10780 | N36: 1816 | O36: =PRODUCT((F36+G36)/E36) -> 50.8 % | Q36: 25. | R36: Alajärvi | S36: 104 | T36: 1992 | U36: 274 | V36: 663 | W36: 44 | X36: 150 | Y36: 861 | Z36: 15225 | AA36: - | AB36: 16105 | AC36: 2342 | AD36: =PRODUCT((U36+V36)/T36) -> 47.0 %
B37: 26. | C37: Ylivieskan Kuula | D37: 74 | E37: 1364 | F37: 274 | G37: 364 | H37: 28 | I37: 148 | J37: 550 | K37: 10549 | L37: - | M37: 11076 | N37: 1726 | O37: =PRODUCT((F37+G37)/E37) -> 46.8 % | Q37: 26. | R37: Lappeenranta | S37: 101 | T37: 1544 | U37: 327 | V37: 448 | W37: 24 | X37: 122 | Y37: 623 | Z37: 13976 | AA37: - | AB37: 13053 | AC37: 2023 | AD37: =PRODUCT((U37+V37)/T37) -> 50.2 %
B38: 27. | C38: Vaasan Maila | D38: 83 | E38: 1305 | F38: 259 | G38: 412 | H38: 42 | I38: 77 | J38: 515 | K38: 11136 | L38: - | M38: 10098 | N38: 1720 | O38: =PRODUCT((F38+G38)/E38) -> 51.4 % | Q38: 27. | R38: Vihti | S38: 80 | T38: 1387 | U38: 362 | V38: 340 | W38: 17 | X38: 128 | Y38: 540 | Z38: 13726 | AA38: - | AB38: 14097 | AC38: 1911 | AD38: =PRODUCT((U38+V38)/T38) -> 50.6 %
B39: 28. | C39: Pesä Ysit | D39: 64 | E39: 1176 | F39: 327 | G39: 278 | H39: 10 | I39: 122 | J39: 439 | K39: 11313 | L39: - | M39: 10305 | N39: 1669 | O39: =PRODUCT((F39+G39)/E39) -> 51.4 % | Q39: 28. | R39: Hämeenlinna | S39: 94 | T39: 1591 | U39: 262 | V39: 472 | W39: 35 | X39: 106 | Y39: 716 | Z39: 15095 | AA39: - | AB39: 16380 | AC39: 1871 | AD39: =PRODUCT((U39+V39)/T39) -> 46.1 %
B40: 29. | C40: Koskenkorvan Urheilijat | D40: 55 | E40: 1291 | F40: 263 | G40: 355 | H40: 7 | I40: 149 | J40: 517 | K40: 9816 | L40: - | M40: 10313 | N40: 1655 | O40: =PRODUCT((F40+G40)/E40) -> 47.9 % | Q40: 29. | R40: Lahti | S40: 116 | T40: 1478 | U40: 177 | V40: 604 | W40: 51 | X40: 70 | Y40: 576 | Z40: 15203 | AA40: - | AB40: 13764 | AC40: 1860 | AD40: =PRODUCT((U40+V40)/T40) -> 52.8 %
B41: 30. | C41: Lahden Mailaveikot | D41: 95 | E41: 1277 | F41: 177 | G41: 502 | H41: 41 | I41: 70 | J41: 487 | K41: 13728 | L41: - | M41: 12180 | N41: 1646 | O41: =PRODUCT((F41+G41)/E41) -> 53.2 % | Q41: 30. | R41: Haapajärvi | S41: 89 | T41: 1507 | U41: 316 | V41: 360 | W41: 15 | X41: 161 | Y41: 655 | Z41: 13128 | AA41: - | AB41: 14088 | AC41: 1844 | AD41: =PRODUCT((U41+V41)/T41) -> 44.9 %
B42: 31. | C42: Jyväskylän Lohi | D42: 61 | E42: 1152 | F42: 239 | G42: 408 | H42: 32 | I42: 72 | J42: 401 | K42: 9325 | L42: - | M42: 7579 | N42: 1637 | O42: =PRODUCT((F42+G42)/E42) -> 56.2 % | Q42: 31. | R42: Riihimäki | S42: 107 | T42: 1640 | U42: 106 | V42: 701 | W42: 76 | X42: 48 | Y42: 709 | Z42: 13902 | AA42: - | AB42: 13027 | AC42: 1844 | AD42: =PRODUCT((U42+V42)/T42) -> 49.2 %
B43: 32. | C43: Haapajärven Pesä-Kiilat | D43: 67 | E43: 1224 | F43: 316 | G43: 232 | H43: 2 | I43: 161 | J43: 513 | K43: 10794 | L43: - | M43: 11723 | N43: 1575 | O43: =PRODUCT((F43+G43)/E43) -> 44.8 % | Q43: 32. | R43: Rauma | S43: 77 | T43: 1312 | U43: 332 | V43: 335 | W43: 14 | X43: 136 | Y43: 495 | Z43: 10834 | AA43: - | AB43: 10780 | AC43: 1816 | AD43: =PRODUCT((U43+V43)/T43) -> 50.8 %
B44: 33. | C44: Jyväskylän Kirittäret | D44: 44 | E44: 805 | F44: 392 | G44: 149 | H44: 0 | I44: 78 | J44: 186 | K44: 8160 | L44: - | M44: 5486 | N44: 1552 | O44: =PRODUCT((F44+G44)/E44) -> 67.2 % | Q44: 33. | R44: Ylivieska | S44: 74 | T44: 1364 | U44: 274 | V44: 364 | W44: 28 | X44: 148 | Y44: 550 | Z44: 10549 | AA44: - | AB44: 11076 | AC44: 1726 | AD44: =PRODUCT((U44+V44)/T44) -> 46.8 %
B45: 34. | C45: Viinijärven Urheilijat | D45: 77 | E45: 1262 | F45: 212 | G45: 382 | H45: 16 | I45: 112 | J45: 540 | K45: 11666 | L45: - | M45: 11634 | N45: 1528 | O45: =PRODUCT((F45+G45)/E45) -> 47.1 % | Q45: 34. | R45: Kajaani | S45: 81 | T45: 1389 | U45: 298 | V45: 340 | W45: 16 | X45: 132 | Y45: 603 | Z45: 12668 | AA45: - | AB45: 13270 | AC45: 1720 | AD45: =PRODUCT((U45+V45)/T45) -> 45.9 %
B46: 35. | C46: Muhoksen Pallo-Salamat | D46: 57 | E46: 1090 | F46: 224 | G46: 352 | H46: 24 | I46: 71 | J46: 419 | K46: 8829 | L46: - | M46: 7948 | N46: 1471 | O46: =PRODUCT((F46+G46)/E46) -> 52.8 % | Q46: 35. | R46: Muhos | S46: 76 | T46: 1279 | U46: 224 | V46: 456 | W46: 32 | X46: 71 | Y46: 496 | Z46: 10395 | AA46: - | AB46: 9120 | AC46: 1687 | AD46: =PRODUCT((U46+V46)/T46) -> 53.2 %
B47: 36. | C47: Roihu | D47: 72 | E47: 1175 | F47: 222 | G47: 353 | H47: 16 | I47: 83 | J47: 501 | K47: 12474 | L47: - | M47: 11544 | N47: 1471 | O47: =PRODUCT((F47+G47)/E47) -> 48.9 % | Q47: 36. | R47: Kauhava | S47: 85 | T47: 1422 | U47: 235 | V47: 402 | W47: 36 | X47: 111 | Y47: 638 | Z47: 11533 | AA47: - | AB47: 12368 | AC47: 1656 | AD47: =PRODUCT((U47+V47)/T47) -> 44.8 %
B48: 37. | C48: Kajaanin Pallokerho | D48: 72 | E48: 1212 | F48: 239 | G48: 315 | H48: 14 | I48: 106 | J48: 536 | K48: 11019 | L48: - | M48: 11737 | N48: 1467 | O48: =PRODUCT((F48+G48)/E48) -> 45.7 % | Q48: 37. | R48: Varkaus | S48: 100 | T48: 1477 | U48: 113 | V48: 574 | W48: 41 | X48: 55 | Y48: 694 | Z48: 12052 | AA48: - | AB48: 12602 | AC48: 1583 | AD48: =PRODUCT((U48+V48)/T48) -> 46.5 %
B49: 38. | C49: Kauhajoen Karhu | D49: 88 | E49: 1327 | F49: 135 | G49: 477 | H49: 42 | I49: 61 | J49: 614 | K49: 11429 | L49: - | M49: 11222 | N49: 1460 | O49: =PRODUCT((F49+G49)/E49) -> 46.1 % | Q49: 38. | R49: Liperi | S49: 82 | T49: 1311 | U49: 212 | V49: 402 | W49: 19 | X49: 112 | Y49: 566 | Z49: 12166 | AA49: - | AB49: 12153 | AC49: 1571 | AD49: =PRODUCT((U49+V49)/T49) -> 46.8 %
B50: 39. | C50: Jokioisten Koetus | D50: 58 | E50: 1096 | F50: 222 | G50: 320 | H50: 23 | I50: 86 | J50: 445 | K50: 9019 | L50: - | M50: 8211 | N50: 1415 | O50: =PRODUCT((F50+G50)/E50) -> 49.5 % | Q50: 39. | R50: Turku | S50: 100 | T50: 1446 | U50: 200 | V50: 373 | W50: 41 | X50: 100 | Y50: 732 | Z50: 11373 | AA50: - | AB50: 14040 | AC50: 1487 | AD50: =PRODUCT((U50+V50)/T50) -> 39.6 %
B51: 40. | C51: Riihimäen Pallonlyöjät | D51: 89 | E51: 1300 | F51: 17 | G51: 626 | H51: 75 | I51: 10 | J51: 572 | K51: 11136 | L51: - | M51: 10179 | N51: 1388 | O51: =PRODUCT((F51+G51)/E51) -> 49.5 % | Q51: 40. | R51: Jokioinen | S51: 63 | T51: 1173 | U51: 231 | V51: 331 | W51: 23 | X51: 96 | Y51: 492 | Z51: 9578 | AA51: - | AB51: 9180 | AC51: 1474 | AD51: =PRODUCT((U51+V51)/T51) -> 47.9 %
B52: 41. | C52: Ikaalisten Tarmo | D52: 62 | E52: 1136 | F52: 128 | G52: 453 | H52: 28 | I52: 69 | J52: 458 | K52: 10956 | L52: - | M52: 9737 | N52: 1387 | O52: =PRODUCT((F52+G52)/E52) -> 51.1 % | Q52: 41. | R52: Kauhajoki | S52: 88 | T52: 1327 | U52: 135 | V52: 476 | W52: 42 | X52: 61 | Y52: 613 | Z52: 11429 | AA52: - | AB52: 11222 | AC52: 1460 | AD52: =PRODUCT((U52+V52)/T52) -> 46.0 %
B53: 42. | C53: Kuusankosken Puhti | D53: 66 | E53: 1006 | F53: 176 | G53: 375 | H53: 38 | I53: 68 | J53: 349 | K53: 9871 | L53: - | M53: 7828 | N53: 1384 | O53: =PRODUCT((F53+G53)/E53) -> 54.8 % | Q53: 42. | R53: Ikaalinen | S53: 64 | T53: 1172 | U53: 128 | V53: 470 | W53: 30 | X53: 69 | Y53: 475 | Z53: 11205 | AA53: - | AB53: 9978 | AC53: 1423 | AD53: =PRODUCT((U53+V53)/T53) -> 51.0 %
B54: 43. | C54: Puurtilan Kisa-Pojat | D54: 76 | E54: 1246 | F54: 113 | G54: 470 | H54: 32 | I54: 55 | J54: 574 | K54: 10407 | L54: - | M54: 10741 | N54: 1370 | O54: =PRODUCT((F54+G54)/E54) -> 46.8 % | Q54: 43. | R54: Tyrnävä | S54: 61 | T54: 1055 | U54: 198 | V54: 283 | W54: 21 | X54: 76 | Y54: 477 | Z54: 8528 | AA54: - | AB54: 9122 | AC54: 1257 | AD54: =PRODUCT((U54+V54)/T54) -> 45.6 %
B55: 44. | C55: Turku-Pesis | D55: 86 | E55: 1255 | F55: 189 | G55: 346 | H55: 32 | I55: 81 | J55: 609 | K55: 10290 | L55: 0 | M55: 11953 | N55: 1368 | O55: =PRODUCT((F55+G55)/E55) -> 42.6 % | Q55: 44. | R55: Järvenpää | S55: 52 | T55: 908 | U55: 217 | V55: 241 | W55: 14 | X55: 66 | Y55: 370 | Z55: 8315 | AA55: - | AB55: 7784 | AC55: 1213 | AD55: =PRODUCT((U55+V55)/T55) -> 50.4 %
B56: 45. | C56: Tyrnävän Tempaus | D56: 61 | E56: 1055 | F56: 198 | G56: 283 | H56: 21 | I56: 76 | J56: 477 | K56: 8528 | L56: - | M56: 9122 | N56: 1257 | O56: =PRODUCT((F56+G56)/E56) -> 45.6 % | Q56: 45. | R56: Halsua | S56: 54 | T56: 972 | U56: 89 | V56: 391 | W56: 33 | X56: 63 | Y56: 396 | Z56: 7896 | AA56: - | AB56: 7582 | AC56: 1145 | AD56: =PRODUCT((U56+V56)/T56) -> 49.4 %
B57: 46. | C57: Ilmajoen Kisailijat | D57: 56 | E57: 833 | F57: 125 | G57: 335 | H57: 29 | I57: 56 | J57: 288 | K57: 7774 | L57: - | M57: 6551 | N57: 1130 | O57: =PRODUCT((F57+G57)/E57) -> 55.2 % | Q57: 46. | R57: Simo | S57: 60 | T57: 953 | U57: 153 | V57: 264 | W57: 16 | X57: 86 | Y57: 434 | Z57: 7963 | AA57: - | AB57: 9166 | AC57: 1089 | AD57: =PRODUCT((U57+V57)/T57) -> 43.8 %
B58: 47. | C58: Hämeenlinnan Paukku | D58: 53 | E58: 860 | F58: 218 | G58: 191 | H58: 5 | I58: 84 | J58: 362 | K58: 8982 | L58: - | M58: 9250 | N58: 1125 | O58: =PRODUCT((F58+G58)/E58) -> 47.6 % | Q58: 47. | R58: Juva | S58: 52 | T58: 901 | U58: 132 | V58: 276 | W58: 25 | X58: 52 | Y58: 416 | Z58: 6993 | AA58: - | AB58: 7690 | AC58: 1025 | AD58: =PRODUCT((U58+V58)/T58) -> 45.3 %
B59: 48. | C59: Iin Urheilijat | D59: 45 | E59: 780 | F59: 136 | G59: 275 | H59: 21 | I59: 36 | J59: 312 | K59: 6457 | L59: - | M59: 5944 | N59: 1015 | O59: =PRODUCT((F59+G59)/E59) -> 52.7 % | Q59: 48. | R59: Ii | S59: 48 | T59: 802 | U59: 136 | V59: 276 | W59: 21 | X59: 36 | Y59: 333 | Z59: 6550 | AA59: - | AB59: 6459 | AC59: 1017 | AD59: =PRODUCT((U59+V59)/T59) -> 51.4 %
B60: 49. | C60: Simon Kiri | D60: 53 | E60: 841 | F60: 150 | G60: 206 | H60: 10 | I60: 82 | J60: 393 | K60: 6976 | L60: - | M60: 8212 | N60: 954 | O60: =PRODUCT((F60+G60)/E60) -> 42.3 % | Q60: 49. | R60: Reisjärvi | S60: 48 | T60: 780 | U60: 157 | V60: 190 | W60: 12 | X60: 52 | Y60: 369 | Z60: 8235 | AA60: - | AB60: 8217 | AC60: 915 | AD60: =PRODUCT((U60+V60)/T60) -> 44.5 %
B61: 50. | C61: Ylihärmän Pesis-Junkkarit | D61: 39 | E61: 728 | F61: 198 | G61: 121 | H61: 0 | I61: 94 | J61: 315 | K61: 6275 | L61: - | M61: 6782 | N61: 930 | O61: =PRODUCT((F61+G61)/E61) -> 43.8 % | Q61: 50. | R61: Veteli | S61: 41 | T61: 679 | U61: 145 | V61: 193 | W61: 21 | X61: 47 | Y61: 273 | Z61: 5740 | AA61: - | AB61: 5559 | AC61: 889 | AD61: =PRODUCT((U61+V61)/T61) -> 49.8 %
B62: 51. | C62: Peräseinäjoen Toive | D62: 35 | E62: 726 | F62: 164 | G62: 177 | H62: 7 | I62: 62 | J62: 316 | K62: 6113 | L62: - | M62: 6565 | N62: 915 | O62: =PRODUCT((F62+G62)/E62) -> 47.0 % | Q62: 51. | R62: Säkylä | S62: 41 | T62: 628 | U62: 160 | V62: 168 | W62: 4 | X62: 45 | Y62: 251 | Z62: 6408 | AA62: 0 | AB62: 5675 | AC62: 865 | AD62: =PRODUCT((U62+V62)/T62) -> 52.2 %
B63: 52. | C63: Reisjärven Pilke | D63: 48 | E63: 780 | F63: 157 | G63: 190 | H63: 12 | I63: 52 | J63: 369 | K63: 8235 | L63: 0 | M63: 8217 | N63: 915 | O63: =PRODUCT((F63+G63)/E63) -> 44.5 % | Q63: 52. | R63: Pöytyä | S63: 31 | T63: 561 | U63: 180 | V63: 115 | W63: 8 | X63: 79 | Y63: 179 | Z63: 5249 | AA63: - | AB63: 4576 | AC63: 857 | AD63: =PRODUCT((U63+V63)/T63) -> 52.6 %
B64: 53. | C64: Oulunsalon Vasama | D64: 36 | E64: 596 | F64: 194 | G64: 127 | H64: 4 | I64: 61 | J64: 210 | K64: 5856 | L64: - | M64: 5606 | N64: 901 | O64: =PRODUCT((F64+G64)/E64) -> 53.9 % | Q64: 53. | R64: Tohmajärvi | S64: 34 | T64: 628 | U64: 51 | V64: 259 | W64: 28 | X64: 23 | Y64: 267 | Z64: 5169 | AA64: - | AB64: 4837 | AC64: 722 | AD64: =PRODUCT((U64+V64)/T64) -> 49.4 %
B65: 54. | C65: Halsuan Toivo | D65: 42 | E65: 750 | F65: 40 | G65: 347 | H65: 33 | I65: 27 | J65: 303 | K65: 6291 | L65: - | M65: 5403 | N65: 874 | O65: =PRODUCT((F65+G65)/E65) -> 51.6 % | Q65: 54. | R65: Laihia | S65: 33 | T65: 496 | U65: 148 | V65: 98 | W65: 2 | X65: 59 | Y65: 189 | Z65: 5089 | AA65: - | AB65: 4961 | AC65: 700 | AD65: =PRODUCT((U65+V65)/T65) -> 49.6 %
B66: 55. | C66: Työväen Maila-Pojat | D66: 57 | E66: 713 | F66: 29 | G66: 364 | H66: 37 | I66: 9 | J66: 274 | K66: 6764 | L66: 0 | M66: 5153 | N66: 861 | O66: =PRODUCT((F66+G66)/E66) -> 55.1 % | Q66: 55. | R66: Mynämäki | S66: 38 | T66: 672 | U66: 116 | V66: 122 | W66: 13 | X66: 78 | Y66: 343 | Z66: 5270 | AA66: - | AB66: 7241 | AC66: 683 | AD66: =PRODUCT((U66+V66)/T66) -> 35.4 %
B67: 56. | C67: Pöytyän Urheilijat | D67: 31 | E67: 561 | F67: 180 | G67: 115 | H67: 8 | I67: 79 | J67: 179 | K67: 5249 | L67: - | M67: 4576 | N67: 857 | O67: =PRODUCT((F67+G67)/E67) -> 52.6 % | Q67: 56. | R67: Kannus | S67: 41 | T67: 620 | U67: 131 | V67: 111 | W67: 8 | X67: 59 | Y67: 311 | Z67: 5055 | AA67: - | AB67: 6438 | AC67: 682 | AD67: =PRODUCT((U67+V67)/T67) -> 39.0 %
B68: 57. | C68: Hongikon Nuorisoseuran Urheilijat | D68: 43 | E68: 810 | F68: 0 | G68: 388 | H68: 51 | I68: 0 | J68: 371 | K68: 6845 | L68: - | M68: 6317 | N68: 827 | O68: =PRODUCT((F68+G68)/E68) -> 47.9 % | Q68: 57. | R68: Kerava | S68: 60 | T68: 748 | U68: 10 | V68: 292 | W68: 33 | X68: 12 | Y68: 401 | Z68: 6577 | AA68: - | AB68: 8150 | AC68: 659 | AD68: =PRODUCT((U68+V68)/T68) -> 40.4 %
B69: 58. | C69: Manse PP Edustus | D69: 16 | E69: 424 | F69: 191 | G69: 93 | H69: 0 | I69: 45 | J69: 95 | K69: 3488 | L69: - | M69: 1912 | N69: 804 | O69: =PRODUCT((F69+G69)/E69) -> 67.0 % | Q69: 58. | R69: Ilomantsi | S69: 43 | T69: 634 | U69: 3 | V69: 291 | W69: 36 | X69: 2 | Y69: 302 | Z69: 5886 | AA69: - | AB69: 5721 | AC69: 629 | AD69: =PRODUCT((U69+V69)/T69) -> 46.4 %
B70: 59. | C70: Juvan Pallo | D70: 37 | E70: 690 | F70: 85 | G70: 237 | H70: 24 | I70: 28 | J70: 316 | K70: 5183 | L70: - | M70: 5403 | N70: 781 | O70: =PRODUCT((F70+G70)/E70) -> 46.7 % | Q70: 59. | R70: Hämeenkyrö | S70: 25 | T70: 400 | U70: 129 | V70: 79 | W70: 2 | X70: 41 | Y70: 149 | Z70: 4015 | AA70: - | AB70: 3534 | AC70: 588 | AD70: =PRODUCT((U70+V70)/T70) -> 52.0 %
B71: 60. | C71: Puijon Pesis | D71: 27 | E71: 537 | F71: 148 | G71: 127 | H71: 0 | I71: 78 | J71: 184 | K71: 4445 | L71: - | M71: 4180 | N71: 776 | O71: =PRODUCT((F71+G71)/E71) -> 51.2 % | Q71: 60. | R71: Lohja | S71: 36 | T71: 570 | U71: 10 | V71: 241 | W71: 21 | X71: 14 | Y71: 284 | Z71: 4841 | AA71: - | AB71: 5684 | AC71: 547 | AD71: =PRODUCT((U71+V71)/T71) -> 44.0 %
B72: 61. | C72: Lammin Luja | D72: 41 | E72: 731 | F72: 44 | G72: 281 | H72: 30 | I72: 22 | J72: 354 | K72: 6113 | L72: - | M72: 7130 | N72: 746 | O72: =PRODUCT((F72+G72)/E72) -> 44.5 % | Q72: 61. | R72: Kurikka | S72: 20 | T72: 374 | U72: 105 | V72: 79 | W72: 0 | X72: 50 | Y72: 140 | Z72: 3354 | AA72: - | AB72: 3468 | AC72: 523 | AD72: =PRODUCT((U72+V72)/T72) -> 49.2 %
B73: 62. | C73: Mansen Pesäpallo | D73: 36 | E73: 676 | F73: 60 | G73: 260 | H73: 12 | I73: 20 | J73: 324 | K73: 6540 | L73: - | M73: 6747 | N73: 732 | O73: =PRODUCT((F73+G73)/E73) -> 47.3 % | Q73: 62. | R73: Janakkala | S73: 45 | T73: 663 | U73: 40 | V73: 170 | W73: 12 | X73: 32 | Y73: 409 | Z73: 4502 | AA73: - | AB73: 7284 | AC73: 504 | AD73: =PRODUCT((U73+V73)/T73) -> 31.7 %
B74: 63. | C74: Ylihärmän Junkkarit | D74: 44 | E74: 670 | F74: 36 | G74: 278 | H74: 36 | I74: 16 | J74: 304 | K74: 5099 | L74: - | M74: 5135 | N74: 716 | O74: =PRODUCT((F74+G74)/E74) -> 46.9 % | Q74: 63. | R74: Toholampi | S74: 32 | T74: 450 | U74: 63 | V74: 126 | W74: 18 | X74: 32 | Y74: 211 | Z74: 4037 | AA74: - | AB74: 4666 | AC74: 491 | AD74: =PRODUCT((U74+V74)/T74) -> 42.0 %
B75: 64. | C75: Mynämäen Vesa | D75: 38 | E75: 672 | F75: 116 | G75: 122 | H75: 13 | I75: 78 | J75: 343 | K75: 5270 | L75: - | M75: 7241 | N75: 683 | O75: =PRODUCT((F75+G75)/E75) -> 35.4 % | Q75: 64. | R75: Mäntyharju | S75: 22 | T75: 404 | U75: 73 | V75: 119 | W75: 7 | X75: 25 | Y75: 180 | Z75: 3382 | AA75: - | AB75: 3858 | AC75: 489 | AD75: =PRODUCT((U75+V75)/T75) -> 47.5 %
B76: 65. | C76: Oulun Lippo Juniorit | D76: 23 | E76: 397 | F76: 145 | G76: 98 | H76: 0 | I76: 43 | J76: 111 | K76: 4054 | L76: - | M76: 3228 | N76: 674 | O76: =PRODUCT((F76+G76)/E76) -> 61.2 % | Q76: 65. | R76: Parikkala | S76: 23 | T76: 442 | U76: 22 | V76: 195 | W76: 17 | X76: 10 | Y76: 198 | Z76: 3442 | AA76: - | AB76: 3351 | AC76: 483 | AD76: =PRODUCT((U76+V76)/T76) -> 49.1 %
B77: 66. | C77: Kannuksen Ura | D77: 34 | E77: 556 | F77: 131 | G77: 90 | H77: 2 | I77: 59 | J77: 274 | K77: 4705 | L77: - | M77: 5781 | N77: 634 | O77: =PRODUCT((F77+G77)/E77) -> 39.7 % | Q77: 66. | R77: Kokemäki | S77: 28 | T77: 435 | U77: 62 | V77: 116 | W77: 6 | X77: 39 | Y77: 212 | Z77: 4343 | AA77: - | AB77: 5064 | AC77: 463 | AD77: =PRODUCT((U77+V77)/T77) -> 40.9 %
B78: 67. | C78: Vetelin Urheiljat | D78: 29 | E78: 482 | F78: 94 | G78: 152 | H78: 20 | I78: 23 | J78: 193 | K78: 4043 | L78: - | M78: 3728 | N78: 629 | O78: =PRODUCT((F78+G78)/E78) -> 51.0 % | Q78: 67. | R78: Ylöjärvi | S78: 27 | T78: 426 | U78: 53 | V78: 130 | W78: 13 | X78: 25 | Y78: 205 | Z78: 3905 | AA78: - | AB78: 4377 | AC78: 457 | AD78: =PRODUCT((U78+V78)/T78) -> 43.0 %
B79: 68. | C79: Ilomantsin Urheilijat | D79: 43 | E79: 634 | F79: 3 | G79: 291 | H79: 36 | I79: 2 | J79: 302 | K79: 5886 | L79: - | M79: 5721 | N79: 629 | O79: =PRODUCT((F79+G79)/E79) -> 46.4 % | Q79: 68. | R79: Laukaa | S79: 21 | T79: 372 | U79: 83 | V79: 67 | W79: 7 | X79: 44 | Y79: 171 | Z79: 2590 | AA79: - | AB79: 3213 | AC79: 434 | AD79: =PRODUCT((U79+V79)/T79) -> 40.3 %
B80: 69. | C80: Laitilan Jyske | D80: 25 | E80: 401 | F80: 137 | G80: 78 | H80: 0 | I80: 50 | J80: 136 | K80: 4417 | L80: - | M80: 3952 | N80: 616 | O80: =PRODUCT((F80+G80)/E80) -> 53.6 % | Q80: 69. | R80: Outokumpu | S80: 37 | T80: 445 | U80: 0 | V80: 204 | W80: 19 | X80: 0 | Y80: 222 | Z80: 3677 | AA80: - | AB80: 3983 | AC80: 427 | AD80: =PRODUCT((U80+V80)/T80) -> 45.8 %
B81: 70. | C81: Helsingin Pallo-Toverit | D81: 53 | E81: 529 | F81: 0 | G81: 293 | H81: 19 | I81: 1 | J81: 216 | K81: 4817 | L81: - | M81: 3635 | N81: 606 | O81: =PRODUCT((F81+G81)/E81) -> 55.4 % | Q81: 70. | R81: Kuortane | S81: 23 | T81: 418 | U81: 40 | V81: 132 | W81: 11 | X81: 20 | Y81: 215 | Z81: 3166 | AA81: - | AB81: 3867 | AC81: 415 | AD81: =PRODUCT((U81+V81)/T81) -> 41.1 %
B82: 71. | C82: Köyliön Lallit | D82: 22 | E82: 380 | F82: 148 | G82: 57 | H82: 0 | I82: 41 | J82: 134 | K82: 3918 | L82: - | M82: 3128 | N82: 599 | O82: =PRODUCT((F82+G82)/E82) -> 53.9 % | Q82: 71. | R82: Vantaa | S82: 25 | T82: 402 | U82: 61 | V82: 96 | W82: 5 | X82: 29 | Y82: 211 | Z82: 3773 | AA82: - | AB82: 5434 | AC82: 409 | AD82: =PRODUCT((U82+V82)/T82) -> 39.1 %
B83: 72. | C83: Kiteen Urheilijat | D83: 30 | E83: 564 | F83: 0 | G83: 282 | H83: 26 | I83: 0 | J83: 256 | K83: 4537 | L83: - | M83: 4288 | N83: 590 | O83: =PRODUCT((F83+G83)/E83) -> 50.0 % | Q83: 72. | R83: Sievi | S83: 28 | T83: 386 | U83: 57 | V83: 88 | W83: 9 | X83: 36 | Y83: 196 | Z83: 3056 | AA83: - | AB83: 3904 | AC83: 392 | AD83: =PRODUCT((U83+V83)/T83) -> 37.6 %
B84: 73. | C84: Hämeenkyrön Räpsä | D84: 23 | E84: 381 | F84: 129 | G84: 76 | H84: 1 | I84: 41 | J84: 134 | K84: 3922 | L84: - | M84: 3313 | N84: 581 | O84: =PRODUCT((F84+G84)/E84) -> 53.8 % | Q84: 73. | R84: Rovaniemi | S84: 42 | T84: 518 | U84: 46 | V84: 97 | W84: 2 | X84: 56 | Y84: 318 | Z84: 3790 | AA84: - | AB84: 6449 | AC84: 390 | AD84: =PRODUCT((U84+V84)/T84) -> 27.6 %
B85: 74. | C85: Kuopion Kelta-Mustat | D85: 40 | E85: 504 | F85: 54 | G85: 177 | H85: 23 | I85: 21 | J85: 229 | K85: 4330 | L85: - | M85: 4628 | N85: 560 | O85: =PRODUCT((F85+G85)/E85) -> 45.8 % | Q85: 74. | R85: Nurmes | S85: 28 | T85: 383 | U85: 23 | V85: 138 | W85: 9 | X85: 16 | Y85: 197 | Z85: 3096 | AA85: - | AB85: 3531 | AC85: 370 | AD85: =PRODUCT((U85+V85)/T85) -> 42.0 %
B86: 75. | C86: Loimaan Palloilijat Junioripesis | D86: 22 | E86: 382 | F86: 124 | G86: 70 | H86: 0 | I86: 47 | J86: 141 | K86: 3422 | L86: - | M86: 3115 | N86: 559 | O86: =PRODUCT((F86+G86)/E86) -> 50.8 % | Q86: 75. | R86: Lappajärvi | S86: 21 | T86: 390 | U86: 48 | V86: 87 | W86: 6 | X86: 38 | Y86: 211 | Z86: 2740 | AA86: - | AB86: 4080 | AC86: 362 | AD86: =PRODUCT((U86+V86)/T86) -> 34.6 %
B87: 76. | C87: Jyväskylän Valo | D87: 30 | E87: 502 | F87: 114 | G87: 82 | H87: 1 | I87: 48 | J87: 257 | K87: 4086 | L87: - | M87: 5383 | N87: 555 | O87: =PRODUCT((F87+G87)/E87) -> 39.0 % | Q87: 76. | R87: Kontiolahti | S87: 23 | T87: 377 | U87: 37 | V87: 111 | W87: 9 | X87: 19 | Y87: 201 | Z87: 2501 | AA87: - | AB87: 3181 | AC87: 361 | AD87: =PRODUCT((U87+V87)/T87) -> 39.3 %
B88: 77. | C88: Manse PP | D88: 23 | E88: 399 | F88: 119 | G88: 66 | H88: 0 | I88: 42 | J88: 172 | K88: 3768 | L88: - | M88: 4057 | N88: 531 | O88: =PRODUCT((F88+G88)/E88) -> 46.4 % | Q88: 77. | R88: Kokkola | S88: 17 | T88: 268 | U88: 38 | V88: 100 | W88: 11 | X88: 9 | Y88: 110 | Z88: 2309 | AA88: - | AB88: 2123 | AC88: 334 | AD88: =PRODUCT((U88+V88)/T88) -> 51.5 %
B89: 78. | C89: Järvenpään Pesis | D89: 17 | E89: 345 | F89: 112 | G89: 70 | H89: 0 | I89: 45 | J89: 118 | K89: 3239 | L89: - | M89: 2935 | N89: 521 | O89: =PRODUCT((F89+G89)/E89) -> 52.8 % | Q89: 78. | R89: Alavus | S89: 14 | T89: 248 | U89: 69 | V89: 42 | W89: 0 | X89: 40 | Y89: 97 | Z89: 2084 | AA89: - | AB89: 2124 | AC89: 331 | AD89: =PRODUCT((U89+V89)/T89) -> 44.8 %
B90: 79. | C90: Kiimingin Urheilijat | D90: 16 | E90: 286 | F90: 116 | G90: 55 | H90: 2 | I90: 31 | J90: 82 | K90: 2635 | L90: - | M90: 2000 | N90: 491 | O90: =PRODUCT((F90+G90)/E90) -> 59.8 % | Q90: 79. | R90: Kinnula | S90: 18 | T90: 310 | U90: 63 | V90: 50 | W90: 0 | X90: 38 | Y90: 159 | Z90: 2364 | AA90: - | AB90: 3458 | AC90: 327 | AD90: =PRODUCT((U90+V90)/T90) -> 36.5 %
B91: 80. | C91: Mäntyharjun Virkistys | D91: 22 | E91: 404 | F91: 73 | G91: 119 | H91: 7 | I91: 25 | J91: 180 | K91: 3382 | L91: - | M91: 3858 | N91: 489 | O91: =PRODUCT((F91+G91)/E91) -> 47.5 % | Q91: 80. | R91: Nokia | S91: 30 | T91: 329 | U91: 0 | V91: 153 | W91: 17 | X91: 0 | Y91: 159 | Z91: 3054 | AA91: - | AB91: 2801 | AC91: 323 | AD91: =PRODUCT((U91+V91)/T91) -> 46.5 %
B92: 81. | C92: Lohjan Kisa-Veikot | D92: 29 | E92: 488 | F92: 9 | G92: 217 | H92: 15 | I92: 8 | J92: 239 | K92: 4336 | L92: - | M92: 4752 | N92: 484 | O92: =PRODUCT((F92+G92)/E92) -> 46.3 % | Q92: 81. | R92: Harjavalta | S92: 22 | T92: 262 | U92: 32 | V92: 95 | W92: 9 | X92: 11 | Y92: 115 | Z92: 1884 | AA92: - | AB92: 1865 | AC92: 306 | AD92: =PRODUCT((U92+V92)/T92) -> 48.5 %
B93: 82. | C93: Saaren Urheilijat | D93: 23 | E93: 442 | F93: 22 | G93: 195 | H93: 17 | I93: 10 | J93: 198 | K93: 3442 | L93: - | M93: 3351 | N93: 483 | O93: =PRODUCT((F93+G93)/E93) -> 49.1 % | Q93: 82. | R93: Akaa | S93: 27 | T93: 267 | U93: 0 | V93: 130 | W93: 19 | X93: 0 | Y93: 118 | Z93: 2076 | AA93: - | AB93: 1896 | AC93: 279 | AD93: =PRODUCT((U93+V93)/T93) -> 48.7 %
B94: 83. | C94: Puijon Pesäpallo | D94: 12 | E94: 297 | F94: 112 | G94: 51 | H94: 0 | I94: 42 | J94: 92 | K94: 2245 | L94: - | M94: 1729 | N94: 480 | O94: =PRODUCT((F94+G94)/E94) -> 54.9 % | Q94: 83. | R94: Pomarkku | S94: 21 | T94: 315 | U94: 27 | V94: 86 | W94: 1 | X94: 16 | Y94: 185 | Z94: 2542 | AA94: - | AB94: 3641 | AC94: 269 | AD94: =PRODUCT((U94+V94)/T94) -> 35.9 %
B95: 84. | C95: Ylistaron Kilpa-Veljet | D95: 24 | E95: 363 | F95: 95 | G95: 69 | H95: 1 | I95: 49 | J95: 149 | K95: 3076 | L95: - | M95: 3399 | N95: 473 | O95: =PRODUCT((F95+G95)/E95) -> 45.2 % | Q95: 84. | R95: Leppävirta | S95: 13 | T95: 236 | U95: 60 | V95: 30 | W95: 5 | X95: 23 | Y95: 118 | Z95: 1633 | AA95: - | AB95: 2337 | AC95: 268 | AD95: =PRODUCT((U95+V95)/T95) -> 38.1 %
B96: 85. | C96: Keravan Pallokerho | D96: 36 | E96: 506 | F96: 10 | G96: 203 | H96: 18 | I96: 12 | J96: 263 | K96: 4964 | L96: - | M96: 5916 | N96: 466 | O96: =PRODUCT((F96+G96)/E96) -> 42.1 % | Q96: 85. | R96: Siikalatva | S96: 22 | T96: 352 | U96: 2 | V96: 116 | W96: 11 | X96: 6 | Y96: 217 | Z96: 2490 | AA96: - | AB96: 3721 | AC96: 255 | AD96: =PRODUCT((U96+V96)/T96) -> 33.5 %
B97: 86. | C97: Kokemäen Kova-Väki | D97: 28 | E97: 435 | F97: 62 | G97: 116 | H97: 6 | I97: 39 | J97: 212 | K97: 4343 | L97: - | M97: 5064 | N97: 463 | O97: =PRODUCT((F97+G97)/E97) -> 40.9 % | Q97: 86. | R97: Heinola | S97: 26 | T97: 331 | U97: 2 | V97: 114 | W97: 17 | X97: 3 | Y97: 195 | Z97: 2341 | AA97: - | AB97: 3334 | AC97: 254 | AD97: =PRODUCT((U97+V97)/T97) -> 35.0 %
B98: 87. | C98: Ylöjärven Pallo | D98: 27 | E98: 426 | F98: 53 | G98: 130 | H98: 13 | I98: 25 | J98: 205 | K98: 3905 | L98: - | M98: 4377 | N98: 457 | O98: =PRODUCT((F98+G98)/E98) -> 43.0 % | Q98: 87. | R98: Oulainen | S98: 12 | T98: 181 | U98: 50 | V98: 33 | W98: 0 | X98: 32 | Y98: 66 | Z98: 1983 | AA98: - | AB98: 1933 | AC98: 248 | AD98: =PRODUCT((U98+V98)/T98) -> 45.9 %
B99: 89. | C99: Seinäjoen JymyJussit | D99: 12 | E99: 340 | F99: 85 | G99: 69 | H99: 0 | I99: 54 | J99: 132 | K99: 2513 | L99: - | M99: 2722 | N99: 447 | O99: =PRODUCT((F99+G99)/E99) -> 45.3 % | Q99: 89. | R99: Espoo | S99: 19 | T99: 292 | U99: 39 | V99: 45 | W99: 1 | X99: 37 | Y99: 170 | Z99: 2146 | AA99: - | AB99: 3679 | AC99: 245 | AD99: =PRODUCT((U99+V99)/T99) -> 28.8 %
B100: 90. | C100: Oulun Lippo Pesis | D100: 14 | E100: 306 | F100: 83 | G100: 75 | H100: 0 | I100: 40 | J100: 108 | K100: 2613 | L100: - | M100: 2587 | N100: 439 | O100: =PRODUCT((F100+G100)/E100) -> 51.6 % | Q100: 90. | R100: Porvoo | S100: 14 | T100: 197 | U100: 28 | V100: 52 | W100: 3 | X100: 8 | Y100: 106 | Z100: 2113 | AA100: - | AB100: 2947 | AC100: 199 | AD100: =PRODUCT((U100+V100)/T100) -> 40.6 %
B101: 91. | C101: Tohmajärven Urheilijat | D101: 21 | E101: 400 | F101: 0 | G101: 204 | H101: 25 | I101: 0 | J101: 171 | K101: 3134 | L101: - | M101: 2790 | N101: 433 | O101: =PRODUCT((F101+G101)/E101) -> 51.0 % | Q101: 91. | R101: Ruovesi | S101: 15 | T101: 220 | U101: 36 | V101: 36 | W101: 0 | X101: 19 | Y101: 129 | Z101: 1573 | AA101: - | AB101: 2848 | AC101: 193 | AD101: =PRODUCT((U101+V101)/T101) -> 32.7 %
B102: 92. | C102: Outokummun Partio | D102: 37 | E102: 445 | F102: 0 | G102: 204 | H102: 19 | I102: 0 | J102: 222 | K102: 3677 | L102: - | M102: 3983 | N102: 427 | O102: =PRODUCT((F102+G102)/E102) -> 45.8 % | Q102: 92. | R102: Savonlinna | S102: 17 | T102: 168 | U102: 16 | V102: 60 | W102: 8 | X102: 4 | Y102: 80 | Z102: 1210 | AA102: - | AB102: 1397 | AC102: 180 | AD102: =PRODUCT((U102+V102)/T102) -> 45.2 %
B103: 93. | C103: Jalasjärven Jalas | D103: 16 | E103: 300 | F103: 84 | G103: 64 | H103: 0 | I103: 42 | J103: 110 | K103: 2652 | L103: - | M103: 2681 | N103: 422 | O103: =PRODUCT((F103+G103)/E103) -> 49.3 % | Q103: 93. | R103: Soini | S103: 8 | T103: 160 | U103: 11 | V103: 56 | W103: 3 | X103: 12 | Y103: 78 | Z103: 1129 | AA103: - | AB103: 1416 | AC103: 160 | AD103: =PRODUCT((U103+V103)/T103) -> 41.9 %
B104: 94. | C104: Janakkalan Jana | D104: 32 | E104: 507 | F104: 40 | G104: 131 | H104: 8 | I104: 32 | J104: 296 | K104: 3487 | L104: - | M104: 5440 | N104: 422 | O104: =PRODUCT((F104+G104)/E104) -> 33.7 % | Q104: 94. | R104: Kotka | S104: 16 | T104: 198 | U104: 2 | V104: 68 | W104: 13 | X104: 1 | Y104: 114 | Z104: 1245 | AA104: - | AB104: 1698 | AC104: 156 | AD104: =PRODUCT((U104+V104)/T104) -> 35.4 %
B105: 95. | C105: Kuortaneen Kunto | D105: 23 | E105: 418 | F105: 40 | G105: 132 | H105: 11 | I105: 20 | J105: 215 | K105: 3166 | L105: - | M105: 3867 | N105: 415 | O105: =PRODUCT((F105+G105)/E105) -> 41.1 % | Q105: 95. | R105: Ruukki | S105: 20 | T105: 190 | U105: 3 | V105: 67 | W105: 7 | X105: 3 | Y105: 110 | Z105: 1127 | AA105: - | AB105: 1526 | AC105: 153 | AD105: =PRODUCT((U105+V105)/T105) -> 36.8 %
B106: 96. | C106: Kymi-Pesis | D106: 19 | E106: 293 | F106: 92 | G106: 50 | H106: 3 | I106: 35 | J106: 113 | K106: 3252 | L106: - | M106: 3020 | N106: 414 | O106: =PRODUCT((F106+G106)/E106) -> 48.5 % | Q106: 96. | R106: Kemi | S106: 19 | T106: 142 | U106: 0 | V106: 66 | W106: 10 | X106: 0 | Y106: 66 | Z106: 1163 | AA106: - | AB106: 1207 | AC106: 142 | AD106: =PRODUCT((U106+V106)/T106) -> 46.5 %
B107: 97. | C107: Kinnarin Pesis 2006 | D107: 16 | E107: 262 | F107: 96 | G107: 50 | H107: 2 | I107: 20 | J107: 94 | K107: 2902 | L107: - | M107: 2456 | N107: 410 | O107: =PRODUCT((F107+G107)/E107) -> 55.7 % | Q107: 97. | R107: Jääski | S107: 12 | T107: 113 | U107: 0 | V107: 61 | W107: 3 | X107: 0 | Y107: 49 | Z107: 1045 | AA107: - | AB107: 812 | AC107: 125 | AD107: =PRODUCT((U107+V107)/T107) -> 54.0 %
B108: 98. | C108: Toholammin Urheilijat | D108: 29 | E108: 396 | F108: 50 | G108: 108 | H108: 18 | I108: 20 | J108: 200 | K108: 3578 | L108: - | M108: 4309 | N108: 404 | O108: =PRODUCT((F108+G108)/E108) -> 39.9 % | Q108: 98. | R108: Isokyrö | S108: 8 | T108: 112 | U108: 22 | V108: 21 | W108: 2 | X108: 7 | Y108: 60 | Z108: 1098 | AA108: - | AB108: 1515 | AC108: 117 | AD108: =PRODUCT((U108+V108)/T108) -> 38.4 %
B109: 99. | C109: Lievestuoreen Kisa | D109: 19 | E109: 326 | F109: 74 | G109: 64 | H109: 7 | I109: 39 | J109: 142 | K109: 2328 | L109: - | M109: 2702 | N109: 396 | O109: =PRODUCT((F109+G109)/E109) -> 42.3 % | Q109: 99. | R109: Lieksa | S109: 18 | T109: 157 | U109: 0 | V109: 54 | W109: 5 | X109: 0 | Y109: 98 | Z109: 1130 | AA109: - | AB109: 1586 | AC109: 113 | AD109: =PRODUCT((U109+V109)/T109) -> 34.4 %
B110: 100. | C110: Sievin Sisu | D110: 28 | E110: 386 | F110: 57 | G110: 88 | H110: 9 | I110: 36 | J110: 196 | K110: 3056 | L110: - | M110: 3904 | N110: 392 | O110: =PRODUCT((F110+G110)/E110) -> 37.6 % | Q110: 100. | R110: Suonenjoki | S110: 8 | T110: 128 | U110: 14 | V110: 26 | W110: 1 | X110: 14 | Y110: 73 | Z110: 905 | AA110: - | AB110: 1447 | AC110: 109 | AD110: =PRODUCT((U110+V110)/T110) -> 31.3 %
B111: 101. | C111: Vuokatin Veto | D111: 20 | E111: 260 | F111: 81 | G111: 49 | H111: 0 | I111: 32 | J111: 98 | K111: 2490 | L111: - | M111: 2325 | N111: 373 | O111: =PRODUCT((F111+G111)/E111) -> 50.0 % | Q111: 101. | R111: Pieksämäki | S111: 15 | T111: 137 | U111: 0 | V111: 50 | W111: 7 | X111: 0 | Y111: 80 | Z111: 1015 | AA111: - | AB111: 1325 | AC111: 107 | AD111: =PRODUCT((U111+V111)/T111) -> 36.5 %
B112: 102. | C112: Nurmeksen Sepot | D112: 28 | E112: 383 | F112: 23 | G112: 138 | H112: 9 | I112: 16 | J112: 197 | K112: 3096 | L112: - | M112: 3531 | N112: 370 | O112: =PRODUCT((F112+G112)/E112) -> 42.0 % | Q112: 102. | R112: Suomussalmi | S112: 10 | T112: 130 | U112: 12 | V112: 23 | W112: 2 | X112: 16 | Y112: 77 | Z112: 945 | AA112: - | AB112: 1568 | AC112: 100 | AD112: =PRODUCT((U112+V112)/T112) -> 26.9 %
B113: 103. | C113: Lappajärven Veikot | D113: 21 | E113: 390 | F113: 48 | G113: 87 | H113: 6 | I113: 38 | J113: 211 | K113: 2740 | L113: - | M113: 4080 | N113: 362 | O113: =PRODUCT((F113+G113)/E113) -> 34.6 % | Q113: 103. | R113: Viipuri | S113: 11 | T113: 98 | U113: 0 | V113: 40 | W113: 13 | X113: 0 | Y113: 45 | Z113: 401 | AA113: - | AB113: 346 | AC113: 93 | AD113: =PRODUCT((U113+V113)/T113) -> 40.8 %
B114: 104. | C114: PeTo-Jussit | D114: 12 | E114: 230 | F114: 77 | G114: 49 | H114: 0 | I114: 27 | J114: 77 | K114: 1998 | L114: - | M114: 1880 | N114: 356 | O114: =PRODUCT((F114+G114)/E114) -> 54.8 % | Q114: 104. | R114: Huittinen | S114: 10 | T114: 111 | U114: 0 | V114: 42 | W114: 7 | X114: 0 | Y114: 62 | Z114: 938 | AA114: - | AB114: 1285 | AC114: 91 | AD114: =PRODUCT((U114+V114)/T114) -> 37.8 %
B115: 105. | C115: Siilinjärven Ponnistus | D115: 28 | E115: 363 | F115: 0 | G115: 165 | H115: 22 | I115: 0 | J115: 176 | K115: 2464 | L115: - | M115: 2613 | N115: 352 | O115: =PRODUCT((F115+G115)/E115) -> 45.5 % | Q115: 105. | R115: Forssa | S115: 9 | T115: 115 | U115: 0 | V115: 41 | W115: 6 | X115: 0 | Y115: 68 | Z115: 760 | AA115: - | AB115: 1044 | AC115: 88 | AD115: =PRODUCT((U115+V115)/T115) -> 35.7 %
B116: 106. | C116: Maaningan Mahti | D116: 15 | E116: 322 | F116: 24 | G116: 120 | H116: 16 | I116: 13 | J116: 149 | K116: 2647 | L116: - | M116: 2760 | N116: 341 | O116: =PRODUCT((F116+G116)/E116) -> 44.7 % | Q116: 106. | R116: Nivala | S116: 6 | T116: 88 | U116: 16 | V116: 15 | W116: 0 | X116: 8 | Y116: 49 | Z116: 802 | AA116: - | AB116: 1345 | AC116: 86 | AD116: =PRODUCT((U116+V116)/T116) -> 35.2 %
B117: 107. | C117: Kokkolan Kiri | D117: 16 | E117: 260 | F117: 38 | G117: 99 | H117: 11 | I117: 9 | J117: 103 | K117: 2290 | L117: - | M117: 2033 | N117: 332 | O117: =PRODUCT((F117+G117)/E117) -> 52.7 % | Q117: 107. | R117: Hämeelinna | S117: 10 | T117: 95 | U117: 0 | V117: 39 | W117: 7 | X117: 0 | Y117: 49 | Z117: 545 | AA117: - | AB117: 824 | AC117: 85 | AD117: =PRODUCT((U117+V117)/T117) -> 41.1 %
B118: 108. | C118: Kinnulan Kimmot | D118: 18 | E118: 310 | F118: 63 | G118: 50 | H118: 0 | I118: 38 | J118: 159 | K118: 2364 | L118: - | M118: 3458 | N118: 327 | O118: =PRODUCT((F118+G118)/E118) -> 36.5 % | Q118: 108. | R118: Ristijärvi | S118: 11 | T118: 88 | U118: 0 | V118: 38 | W118: 9 | X118: 0 | Y118: 41 | Z118: 540 | AA118: - | AB118: 622 | AC118: 85 | AD118: =PRODUCT((U118+V118)/T118) -> 43.2 %
B119: 109. | C119: Nokian Urheilijat | D119: 30 | E119: 329 | F119: 0 | G119: 153 | H119: 17 | I119: 0 | J119: 159 | K119: 3054 | L119: - | M119: 2801 | N119: 323 | O119: =PRODUCT((F119+G119)/E119) -> 46.5 % | Q119: 109. | R119: Eurajoki | S119: 5 | T119: 80 | U119: 14 | V119: 16 | W119: 1 | X119: 8 | Y119: 41 | Z119: 603 | AA119: - | AB119: 1079 | AC119: 83 | AD119: =PRODUCT((U119+V119)/T119) -> 37.5 %
B120: 110. | C120: Summan Ponnistus | D120: 16 | E120: 312 | F120: 38 | G120: 89 | H120: 7 | I120: 16 | J120: 162 | K120: 2294 | L120: - | M120: 2739 | N120: 315 | O120: =PRODUCT((F120+G120)/E120) -> 40.7 % | Q120: 110. | R120: Lapinlahti | S120: 7 | T120: 100 | U120: 12 | V120: 18 | W120: 0 | X120: 7 | Y120: 63 | Z120: 623 | AA120: - | AB120: 1320 | AC120: 79 | AD120: =PRODUCT((U120+V120)/T120) -> 30.0 %
B121: 111. | C121: Harjavallan Jymy | D121: 20 | E121: 242 | F121: 32 | G121: 89 | H121: 7 | I121: 11 | J121: 103 | K121: 1793 | L121: - | M121: 1722 | N121: 292 | O121: =PRODUCT((F121+G121)/E121) -> 50.0 % | Q121: 111. | R121: Äänekoski | S121: 9 | T121: 91 | U121: 0 | V121: 37 | W121: 1 | X121: 2 | Y121: 51 | Z121: 702 | AA121: - | AB121: 908 | AC121: 77 | AD121: =PRODUCT((U121+V121)/T121) -> 40.7 %
B122: 112. | C122: Mailattaret | D122: 11 | E122: 208 | F122: 54 | G122: 48 | H122: 0 | I122: 31 | J122: 75 | K122: 1751 | L122: - | M122: 1818 | N122: 289 | O122: =PRODUCT((F122+G122)/E122) -> 49.0 % | Q122: 112. | R122: Saarijärvi | S122: 9 | T122: 107 | U122: 7 | V122: 20 | W122: 5 | X122: 3 | Y122: 72 | Z122: 826 | AA122: - | AB122: 1429 | AC122: 69 | AD122: =PRODUCT((U122+V122)/T122) -> 25.2 %
B123: 113. | C123: Tohmajärven Pomppu | D123: 13 | E123: 228 | F123: 51 | G123: 55 | H123: 3 | I123: 23 | J123: 96 | K123: 2035 | L123: - | M123: 2047 | N123: 289 | O123: =PRODUCT((F123+G123)/E123) -> 46.5 % | Q123: 113. | R123: Kuhmo | S123: 6 | T123: 62 | U123: 11 | V123: 14 | W123: 1 | X123: 0 | Y123: 36 | Z123: 425 | AA123: - | AB123: 640 | AC123: 62 | AD123: =PRODUCT((U123+V123)/T123) -> 40.3 %
B124: 114. | C124: Järvenpään Palo | D124: 19 | E124: 301 | F124: 9 | G124: 121 | H124: 12 | I124: 1 | J124: 158 | K124: 2174 | L124: - | M124: 2393 | N124: 282 | O124: =PRODUCT((F124+G124)/E124) -> 43.2 % | Q124: 114. | R124: Pielavesi | S124: 9 | T124: 81 | U124: 0 | V124: 28 | W124: 6 | X124: 0 | Y124: 47 | Z124: 572 | AA124: - | AB124: 740 | AC124: 62 | AD124: =PRODUCT((U124+V124)/T124) -> 34.6 %
B125: 115. | C125: Riihimäen Pallonlyöjät (Riihi-Pesis) | D125: 10 | E125: 196 | F125: 54 | G125: 47 | H125: 0 | I125: 25 | J125: 70 | K125: 1779 | L125: - | M125: 1763 | N125: 281 | O125: =PRODUCT((F125+G125)/E125) -> 51.5 % | Q125: 115. | R125: Karstula | S125: 5 | T125: 78 | U125: 3 | V125: 20 | W125: 2 | X125: 5 | Y125: 48 | Z125: 536 | AA125: - | AB125: 877 | AC125: 56 | AD125: =PRODUCT((U125+V125)/T125) -> 29.5 %
B126: 116. | C126: Toijalan Pallo-Veikot | D126: 27 | E126: 267 | F126: 0 | G126: 130 | H126: 19 | I126: 0 | J126: 118 | K126: 2076 | L126: - | M126: 1896 | N126: 279 | O126: =PRODUCT((F126+G126)/E126) -> 48.7 % | Q126: 116. | R126: Hartola | S126: 5 | T126: 56 | U126: 0 | V126: 25 | W126: 2 | X126: 0 | Y126: 29 | Z126: 402 | AA126: - | AB126: 461 | AC126: 52 | AD126: =PRODUCT((U126+V126)/T126) -> 44.6 %
B127: 117. | C127: Kulhon Kunto | D127: 15 | E127: 298 | F127: 37 | G127: 71 | H127: 5 | I127: 19 | J127: 166 | K127: 1889 | L127: - | M127: 2613 | N127: 277 | O127: =PRODUCT((F127+G127)/E127) -> 36.2 % | Q127: 117. | R127: Tammela | S127: 2 | T127: 44 | U127: 0 | V127: 23 | W127: 3 | X127: 0 | Y127: 18 | Z127: 402 | AA127: - | AB127: 256 | AC127: 49 | AD127: =PRODUCT((U127+V127)/T127) -> 52.3 %
B128: 118. | C128: Halsua-Veteli Pesis | D128: 12 | E128: 222 | F128: 49 | G128: 44 | H128: 0 | I128: 36 | J128: 93 | K128: 1605 | L128: - | M128: 2179 | N128: 271 | O128: =PRODUCT((F128+G128)/E128) -> 41.9 % | Q128: 118. | R128: Luumäki | S128: 9 | T128: 83 | U128: 0 | V128: 22 | W128: 2 | X128: 0 | Y128: 59 | Z128: 461 | AA128: - | AB128: 871 | AC128: 46 | AD128: =PRODUCT((U128+V128)/T128) -> 26.5 %
B129: 119. | C129: Haapajärven Kiilat | D129: 22 | E129: 283 | F129: 0 | G129: 128 | H129: 13 | I129: 0 | J129: 142 | K129: 2334 | L129: - | M129: 2365 | N129: 269 | O129: =PRODUCT((F129+G129)/E129) -> 45.2 % | Q129: 119. | R129: Mikkeli | S129: 7 | T129: 80 | U129: 4 | V129: 15 | W129: 2 | X129: 2 | Y129: 57 | Z129: 515 | AA129: - | AB129: 1054 | AC129: 46 | AD129: =PRODUCT((U129+V129)/T129) -> 23.8 %
B130: 120. | C130: Pomarkun Pyry | D130: 21 | E130: 315 | F130: 27 | G130: 86 | H130: 1 | I130: 16 | J130: 185 | K130: 2542 | L130: - | M130: 3641 | N130: 269 | O130: =PRODUCT((F130+G130)/E130) -> 35.9 % | Q130: 120. | R130: Iisalmi | S130: 12 | T130: 127 | U130: 1 | V130: 17 | W130: 2 | X130: 3 | Y130: 104 | Z130: 686 | AA130: - | AB130: 2357 | AC130: 42 | AD130: =PRODUCT((U130+V130)/T130) -> 14.2 %
B131: 121. | C131: Leppävirran Viri | D131: 13 | E131: 236 | F131: 60 | G131: 30 | H131: 5 | I131: 23 | J131: 118 | K131: 1633 | L131: - | M131: 2337 | N131: 268 | O131: =PRODUCT((F131+G131)/E131) -> 38.1 % | Q131: 121. | R131: Enso | S131: 5 | T131: 46 | U131: 0 | V131: 18 | W131: 2 | X131: 0 | Y131: 26 | Z131: 213 | AA131: - | AB131: 262 | AC131: 38 | AD131: =PRODUCT((U131+V131)/T131) -> 39.1 %
B132: 122. | C132: Karinaisten Kunto | D132: 19 | E132: 248 | F132: 12 | G132: 111 | H132: 4 | I132: 4 | J132: 117 | K132: 2490 | L132: - | M132: 2547 | N132: 266 | O132: =PRODUCT((F132+G132)/E132) -> 49.6 % | Q132: 122. | R132: Pyhäjärvi | S132: 4 | T132: 64 | U132: 7 | V132: 3 | W132: 0 | X132: 10 | Y132: 44 | Z132: 361 | AA132: - | AB132: 848 | AC132: 37 | AD132: =PRODUCT((U132+V132)/T132) -> 15.6 %
B133: 123. | C133: Napapiirin Pesis-Team | D133: 21 | E133: 338 | F133: 40 | G133: 43 | H133: 0 | I133: 53 | J133: 202 | K133: 2400 | L133: - | M133: 4352 | N133: 252 | O133: =PRODUCT((F133+G133)/E133) -> 24.6 % | Q133: 123. | R133: Uusikaupunki | S133: 3 | T133: 40 | U133: 1 | V133: 15 | W133: 1 | X133: 1 | Y133: 22 | Z133: 363 | AA133: - | AB133: 501 | AC133: 35 | AD133: =PRODUCT((U133+V133)/T133) -> 40.0 %
B134: 124. | C134: Veteli Pesis | D134: 11 | E134: 187 | F134: 51 | G134: 39 | H134: 0 | I134: 24 | J134: 73 | K134: 1646 | L134: - | M134: 1733 | N134: 255 | O134: =PRODUCT((F134+G134)/E134) -> 48.1 % | Q134: 124. | R134: Iitti | S134: 3 | T134: 40 | U134: 0 | V134: 17 | W134: 0 | X134: 0 | Y134: 23 | Z134: 403 | AA134: - | AB134: 525 | AC134: 34 | AD134: =PRODUCT((U134+V134)/T134) -> 42.5 %
B135: 125. | C135: Oulaisten Huima | D135: 12 | E135: 181 | F135: 50 | G135: 33 | H135: 0 | I135: 32 | J135: 66 | K135: 1983 | L135: - | M135: 1933 | N135: 248 | O135: =PRODUCT((F135+G135)/E135) -> 45.9 % | Q135: 125. | R135: Sodankylä | S135: 7 | T135: 37 | U135: 0 | V135: 15 | W135: 3 | X135: 0 | Y135: 19 | Z135: 216 | AA135: - | AB135: 258 | AC135: 33 | AD135: =PRODUCT((U135+V135)/T135) -> 40.5 %
B136: 126. | C136: Mailajuniorit | D136: 13 | E136: 228 | F136: 45 | G136: 36 | H136: 0 | I136: 36 | J136: 111 | K136: 1915 | L136: - | M136: 2470 | N136: 243 | O136: =PRODUCT((F136+G136)/E136) -> 35.5 % | Q136: 126. | R136: Ypäjä | S136: 3 | T136: 29 | U136: 0 | V136: 16 | W136: 0 | X136: 0 | Y136: 13 | Z136: 211 | AA136: - | AB136: 212 | AC136: 32 | AD136: =PRODUCT((U136+V136)/T136) -> 55.2 %
B137: 127. | C137: Espoon Pesis | D137: 16 | E137: 254 | F137: 39 | G137: 40 | H137: 0 | I137: 32 | J137: 143 | K137: 1926 | L137: - | M137: 3148 | N137: 229 | O137: =PRODUCT((F137+G137)/E137) -> 31.1 % | Q137: 127. | R137: Humppila | S137: 3 | T137: 38 | U137: 0 | V137: 15 | W137: 1 | X137: 0 | Y137: 22 | Z137: 370 | AA137: - | AB137: 483 | AC137: 31 | AD137: =PRODUCT((U137+V137)/T137) -> 39.5 %
B138: 128. | C138: Katajanokan Haukat | D138: 19 | E138: 210 | F138: 0 | G138: 109 | H138: 9 | I138: 0 | J138: 92 | K138: 1464 | L138: - | M138: 1170 | N138: 227 | O138: =PRODUCT((F138+G138)/E138) -> 51.9 % | Q138: 128. | R138: Keuruu | S138: 4 | T138: 40 | U138: 0 | V138: 13 | W138: 1 | X138: 0 | Y138: 26 | Z138: 262 | AA138: - | AB138: 339 | AC138: 27 | AD138: =PRODUCT((U138+V138)/T138) -> 32.5 %
B139: 129. | C139: Alavuden Peli-Veikot | D139: 9 | E139: 164 | F139: 46 | G139: 30 | H139: 0 | I139: 26 | J139: 62 | K139: 1208 | L139: - | M139: 1174 | N139: 224 | O139: =PRODUCT((F139+G139)/E139) -> 46.3 % | Q139: 129. | R139: Askola | S139: 4 | T139: 54 | U139: 0 | V139: 12 | W139: 2 | X139: 0 | Y139: 40 | Z139: 412 | AA139: - | AB139: 894 | AC139: 26 | AD139: =PRODUCT((U139+V139)/T139) -> 22.2 %
B140: 130. | C140: Jyväskylän Pesä-Veikot | D140: 18 | E140: 230 | F140: 0 | G140: 106 | H140: 12 | I140: 0 | J140: 112 | K140: 1817 | L140: - | M140: 1821 | N140: 224 | O140: =PRODUCT((F140+G140)/E140) -> 46.1 % | Q140: 130. | R140: Nurmijärvi | S140: 2 | T140: 30 | U140: 4 | V140: 4 | W140: 0 | X140: 6 | Y140: 16 | Z140: 268 | AA140: - | AB140: 399 | AC140: 26 | AD140: =PRODUCT((U140+V140)/T140) -> 26.7 %
B141: 131. | C141: Tampereen Pyrintö | D141: 25 | E141: 270 | F141: 0 | G141: 103 | H141: 12 | I141: 0 | J141: 155 | K141: 1608 | L141: - | M141: 2334 | N141: 218 | O141: =PRODUCT((F141+G141)/E141) -> 38.1 % | Q141: 131. | R141: Kärsämäki | S141: 2 | T141: 28 | U141: 3 | V141: 4 | W141: 2 | X141: 3 | Y141: 16 | Z141: 230 | AA141: - | AB141: 344 | AC141: 22 | AD141: =PRODUCT((U141+V141)/T141) -> 25.0 %
B142: 132. | C142: Muhoksen Urheilijat | D142: 19 | E142: 189 | F142: 0 | G142: 104 | H142: 8 | I142: 0 | J142: 77 | K142: 1566 | L142: - | M142: 1172 | N142: 216 | O142: =PRODUCT((F142+G142)/E142) -> 55.0 % | Q142: 132. | R142: Rautjärvi | S142: 3 | T142: 62 | U142: 0 | V142: 9 | W142: 2 | X142: 0 | Y142: 51 | Z142: 341 | AA142: - | AB142: 735 | AC142: 20 | AD142: =PRODUCT((U142+V142)/T142) -> 14.5 %
B143: 133. | C143: Rantsilan Raikas | D143: 19 | E143: 290 | F143: 0 | G143: 102 | H143: 10 | I143: 0 | J143: 178 | K143: 2078 | L143: - | M143: 2950 | N143: 214 | O143: =PRODUCT((F143+G143)/E143) -> 35.2 % | Q143: 133. | R143: Pirkkala | S143: 1 | T143: 14 | U143: 4 | V143: 3 | W143: 0 | X143: 1 | Y143: 6 | Z143: 153 | AA143: - | AB143: 137 | AC143: 19 | AD143: =PRODUCT((U143+V143)/T143) -> 50.0 %
B144: 134. | C144: Kajaanin Hymy | D144: 7 | E144: 143 | F144: 52 | G144: 16 | H144: 0 | I144: 24 | J144: 51 | K144: 1384 | L144: - | M144: 1194 | N144: 212 | O144: =PRODUCT((F144+G144)/E144) -> 47.6 % | Q144: 134. | R144: Luhanka | S144: 4 | T144: 32 | U144: 0 | V144: 7 | W144: 4 | X144: 0 | Y144: 21 | Z144: 222 | AA144: - | AB144: 430 | AC144: 18 | AD144: =PRODUCT((U144+V144)/T144) -> 21.9 %
B145: 135. | C145: Herttoniemen Urheilijat | D145: 13 | E145: 194 | F145: 0 | G145: 101 | H145: 9 | I145: 0 | J145: 84 | K145: 1914 | L145: - | M145: 1686 | N145: 211 | O145: =PRODUCT((F145+G145)/E145) -> 52.1 % | Q145: 135. | R145: Kemijärvi | S145: 3 | T145: 17 | U145: 0 | V145: 8 | W145: 1 | X145: 0 | Y145: 8 | Z145: 85 | AA145: - | AB145: 79 | AC145: 17 | AD145: =PRODUCT((U145+V145)/T145) -> 47.1 %
B146: 136. | C146: Vantaanjoen Juoksu | D146: 14 | E146: 214 | F146: 38 | G146: 35 | H146: 0 | I146: 24 | J146: 117 | K146: 1995 | L146: - | M146: 3106 | N146: 208 | O146: =PRODUCT((F146+G146)/E146) -> 34.1 % | Q146: 136. | R146: Valkeakoski | S146: 4 | T146: 34 | U146: 0 | V146: 8 | W146: 1 | X146: 0 | Y146: 25 | Z146: 131 | AA146: - | AB146: 420 | AC146: 17 | AD146: =PRODUCT((U146+V146)/T146) -> 23.5 %
B147: 137. | C147: Juvan Nuorisopesis | D147: 10 | E147: 158 | F147: 43 | G147: 22 | H147: 0 | I147: 22 | J147: 71 | K147: 1423 | L147: - | M147: 1634 | N147: 195 | O147: =PRODUCT((F147+G147)/E147) -> 41.1 % | Q147: 137. | R147: Sysmä | S147: 2 | T147: 36 | U147: 4 | V147: 0 | W147: 0 | X147: 4 | Y147: 28 | Z147: 185 | AA147: - | AB147: 453 | AC147: 16 | AD147: =PRODUCT((U147+V147)/T147) -> 11.1 %
B148: 138. | C148: Oulun Lipottaret | D148: 7 | E148: 128 | F148: 41 | G148: 29 | H148: 0 | I148: 12 | J148: 46 | K148: 1187 | L148: - | M148: 1064 | N148: 193 | O148: =PRODUCT((F148+G148)/E148) -> 54.7 % | Q148: 138. | R148: Salo | S148: 3 | T148: 29 | U148: 0 | V148: 4 | W148: 5 | X148: 0 | Y148: 20 | Z148: 68 | AA148: - | AB148: 139 | AC148: 13 | AD148: =PRODUCT((U148+V148)/T148) -> 13.8 %
B149: 139. | C149: Porvoon Kumuri | D149: 12 | E149: 186 | F149: 28 | G149: 49 | H149: 3 | I149: 8 | J149: 98 | K149: 2043 | L149: - | M149: 2760 | N149: 193 | O149: =PRODUCT((F149+G149)/E149) -> 41.4 % | Q149: 139. | R149: Miehikkälä | S149: 2 | T149: 40 | U149: 1 | V149: 1 | W149: 0 | X149: 6 | Y149: 32 | Z149: 187 | AA149: - | AB149: 630 | AC149: 11 | AD149: =PRODUCT((U149+V149)/T149) -> 5.0 %
B150: 140. | C150: Ruoveden Pirkat | D150: 15 | E150: 220 | F150: 36 | G150: 36 | H150: 0 | I150: 19 | J150: 129 | K150: 1573 | L150: - | M150: 2848 | N150: 193 | O150: =PRODUCT((F150+G150)/E150) -> 32.7 % | Q150: 140. | R150: Uurainen | S150: 1 | T150: 16 | U150: 2 | V150: 2 | W150: 0 | X150: 1 | Y150: 11 | Z150: 84 | AA150: - | AB150: 214 | AC150: 11 | AD150: =PRODUCT((U150+V150)/T150) -> 25.0 %
B151: 141. | C151: Heinolan Maila-Pojat | D151: 17 | E151: 239 | F151: 2 | G151: 87 | H151: 9 | I151: 3 | J151: 138 | K151: 1917 | L151: - | M151: 2587 | N151: 192 | O151: =PRODUCT((F151+G151)/E151) -> 37.2 % | Q151: 141. | R151: Evijärvi | S151: 1 | T151: 18 | U151: 3 | V151: 0 | W151: 0 | X151: 1 | Y151: 14 | Z151: 80 | AA151: - | AB151: 213 | AC151: 10 | AD151: =PRODUCT((U151+V151)/T151) -> 16.7 %
B152: 142. | C152: Myllykosken Kilpa-Veikot | D152: 20 | E152: 217 | F152: 0 | G152: 86 | H152: 16 | I152: 0 | J152: 115 | K152: 1447 | L152: - | M152: 1869 | N152: 188 | O152: =PRODUCT((F152+G152)/E152) -> 39.6 % | Q152: 142. | R152: Haapavesi | S152: 1 | T152: 18 | U152: 0 | V152: 3 | W152: 0 | X152: 2 | Y152: 13 | Z152: 120 | AA152: - | AB152: 354 | AC152: 8 | AD152: =PRODUCT((U152+V152)/T152) -> 16.7 %
B153: 143. | C153: Kuusankosken Veto | D153: 17 | E153: 165 | F153: 0 | G153: 89 | H153: 9 | I153: 0 | J153: 67 | K153: 991 | L153: - | M153: 840 | N153: 187 | O153: =PRODUCT((F153+G153)/E153) -> 53.9 % | Q153: 143. | R153: Juuka | S153: 3 | T153: 20 | U153: 0 | V153: 4 | W153: 0 | X153: 0 | Y153: 16 | Z153: 93 | AA153: - | AB153: 230 | AC153: 8 | AD153: =PRODUCT((U153+V153)/T153) -> 20.0 %
B154: 144. | C154: Helsingin Pallonlyöjät | D154: 17 | E154: 168 | F154: 0 | G154: 83 | H154: 11 | I154: 0 | J154: 74 | K154: 899 | L154: - | M154: 978 | N154: 177 | O154: =PRODUCT((F154+G154)/E154) -> 49.4 % | Q154: 144. | R154: Virrat | S154: 2 | T154: 28 | U154: 0 | V154: 3 | W154: 2 | X154: 0 | Y154: 23 | Z154: 116 | AA154: - | AB154: 529 | AC154: 8 | AD154: =PRODUCT((U154+V154)/T154) -> 10.7 %
B155: 145. | C155: Etelä-Leppävirran Kiipperä | D155: 17 | E155: 163 | F155: 0 | G155: 83 | H155: 9 | I155: 0 | J155: 71 | K155: 1256 | L155: - | M155: 1148 | N155: 175 | O155: =PRODUCT((F155+G155)/E155) -> 50.9 % | Q155: 145. | R155: Virolahti | S155: 1 | T155: 14 | U155: 0 | V155: 3 | W155: 1 | X155: 0 | Y155: 10 | Z155: 98 | AA155: - | AB155: 197 | AC155: 7 | AD155: =PRODUCT((U155+V155)/T155) -> 21.4 %
B156: 146. | C156: Helsinki-Pesis | D156: 8 | E156: 150 | F156: 0 | G156: 81 | H156: 9 | I156: 0 | J156: 60 | K156: 1233 | L156: - | M156: 1005 | N156: 171 | O156: =PRODUCT((F156+G156)/E156) -> 54.0 % | Q156: 146. | R156: Parkano | S156: 3 | T156: 33 | U156: 0 | V156: 3 | W156: 0 | X156: 0 | Y156: 30 | Z156: 207 | AA156: - | AB156: 629 | AC156: 6 | AD156: =PRODUCT((U156+V156)/T156) -> 9.1 %
B157: 147. | C157: Pesäpallo HIFK | D157: 5 | E157: 76 | F157: 45 | G157: 14 | H157: 0 | I157: 5 | J157: 12 | K157: 1255 | L157: - | M157: 714 | N157: 168 | O157: =PRODUCT((F157+G157)/E157) -> 77.6 % | Q157: 147. | R157: Hattula | S157: 1 | T157: 10 | U157: 0 | V157: 2 | W157: 1 | X157: 0 | Y157: 7 | Z157: 81 | AA157: - | AB157: 117 | AC157: 5 | AD157: =PRODUCT((U157+V157)/T157) -> 20.0 %
B158: 148. | C158: Lauritsalan Visa | D158: 13 | E158: 129 | F158: 0 | G158: 80 | H158: 6 | I158: 0 | J158: 43 | K158: 1196 | L158: - | M158: 790 | N158: 166 | O158: =PRODUCT((F158+G158)/E158) -> 62.0 % | Q158: 148. | R158: Karvia | S158: 2 | T158: 27 | U158: 0 | V158: 1 | W158: 0 | X158: 3 | Y158: 23 | Z158: 156 | AA158: - | AB158: 531 | AC158: 5 | AD158: =PRODUCT((U158+V158)/T158) -> 3.7 %
B159: 149. | C159: Soinin Sisu | D159: 8 | E159: 160 | F159: 11 | G159: 56 | H159: 3 | I159: 12 | J159: 78 | K159: 1129 | L159: - | M159: 1416 | N159: 160 | O159: =PRODUCT((F159+G159)/E159) -> 41.9 % | Q159: 149. | R159: Posio | S159: 1 | T159: 12 | U159: 0 | V159: 2 | W159: 0 | X159: 0 | Y159: 10 | Z159: 81 | AA159: - | AB159: 193 | AC159: 4 | AD159: =PRODUCT((U159+V159)/T159) -> 16.7 %
B160: 150. | C160: Tainionkosken Tähti | D160: 12 | E160: 150 | F160: 0 | G160: 73 | H160: 9 | I160: 0 | J160: 68 | K160: 1259 | L160: - | M160: 1018 | N160: 155 | O160: =PRODUCT((F160+G160)/E160) -> 48.7 % | Q160: 150. | R160: Hankasalmi | S160: 1 | T160: 8 | U160: 0 | V160: 1 | W160: 1 | X160: 0 | Y160: 6 | Z160: 45 | AA160: - | AB160: 110 | AC160: 3 | AD160: =PRODUCT((U160+V160)/T160) -> 12.5 %
B161: 151. | C161: RPL-Riihimäki | D161: 4 | E161: 103 | F161: 35 | G161: 15 | H161: 0 | I161: 13 | J161: 40 | K161: 718 | L161: - | M161: 723 | N161: 148 | O161: =PRODUCT((F161+G161)/E161) -> 48.5 % | Q161: 151. | R161: Joroinen | S161: 1 | T161: 13 | U161: 0 | V161: 1 | W161: 0 | X161: 1 | Y161: 11 | Z161: 95 | AA161: - | AB161: 348 | AC161: 3 | AD161: =PRODUCT((U161+V161)/T161) -> 7.7 %
B162: 152. | C162: Lappeenrannan Urheilumiehet | D162: 16 | E162: 160 | F162: 0 | G162: 71 | H162: 5 | I162: 0 | J162: 84 | K162: 1119 | L162: - | M162: 1214 | N162: 147 | O162: =PRODUCT((F162+G162)/E162) -> 44.4 % | Q162: 152. | R162: Tornio | S162: 1 | T162: 5 | U162: 0 | V162: 1 | W162: 1 | X162: 0 | Y162: 3 | Z162: 33 | AA162: - | AB162: 59 | AC162: 3 | AD162: =PRODUCT((U162+V162)/T162) -> 20.0 %
B163: 153. | C163: Alastaron Urheilijat | D163: 14 | E163: 173 | F163: 5 | G163: 59 | H163: 4 | I163: 3 | J163: 102 | K163: 1575 | L163: - | M163: 2179 | N163: 140 | O163: =PRODUCT((F163+G163)/E163) -> 37.0 % | Q163: 153. | R163: Tuusula | S163: 1 | T163: 10 | U163: 0 | V163: 1 | W163: 1 | X163: 0 | Y163: 8 | Z163: 49 | AA163: - | AB163: 125 | AC163: 3 | AD163: =PRODUCT((U163+V163)/T163) -> 10.0 %
B164: 154. | C164: Oulujoen Kiekko | D164: 8 | E164: 106 | F164: 25 | G164: 24 | H164: 3 | I164: 9 | J164: 45 | K164: 859 | L164: - | M164: 897 | N164: 135 | O164: =PRODUCT((F164+G164)/E164) -> 46.2 % | Q164: 154. | R164: Hyrynsalmi | S164: 1 | T164: 8 | U164: 0 | V164: 1 | W164: 0 | X164: 0 | Y164: 7 | Z164: 41 | AA164: - | AB164: 83 | AC164: 2 | AD164: =PRODUCT((U164+V164)/T164) -> 12.5 %
B165: 155. | C165: Keravan KooPee | D165: 15 | E165: 143 | F165: 0 | G165: 59 | H165: 13 | I165: 0 | J165: 71 | K165: 949 | L165: - | M165: 990 | N165: 131 | O165: =PRODUCT((F165+G165)/E165) -> 41.3 % | Q165: 155. | R165: Jämsä | S165: 2 | T165: 12 | U165: 0 | V165: 1 | W165: 0 | X165: 0 | Y165: 11 | Z165: 43 | AA165: - | AB165: 256 | AC165: 2 | AD165: =PRODUCT((U165+V165)/T165) -> 8.3 %
B166: 156. | C166: Mansen Haukat | D166: 4 | E166: 90 | F166: 30 | G166: 10 | H166: 0 | I166: 20 | J166: 30 | K166: 551 | L166: - | M166: 587 | N166: 130 | O166: =PRODUCT((F166+G166)/E166) -> 44.4 % | Q166: 156. | R166: Salla | S166: 2 | T166: 11 | U166: 0 | V166: 1 | W166: 0 | X166: 0 | Y166: 10 | Z166: 46 | AA166: - | AB166: 136 | AC166: 2 | AD166: =PRODUCT((U166+V166)/T166) -> 9.1 %
B167: 157. | C167: Kaisaniemen Tiikerit | D167: 2 | E167: 56 | F167: 34 | G167: 11 | H167: 0 | I167: 4 | J167: 7 | K167: 503 | L167: - | M167: 260 | N167: 128 | O167: =PRODUCT((F167+G167)/E167) -> 80.4 % | Q167: 157. | R167: Orimattila | S167: 1 | T167: 12 | U167: 0 | V167: 0 | W167: 1 | X167: 0 | Y167: 11 | Z167: 76 | AA167: - | AB167: 177 | AC167: 1 | AD167: =PRODUCT((U167+V167)/T167) -> 0.0 %
B168: 158. | C168: Jääsken Kirijät | D168: 12 | E168: 113 | F168: 0 | G168: 61 | H168: 3 | I168: 0 | J168: 49 | K168: 1045 | L168: - | M168: 812 | N168: 125 | O168: =PRODUCT((F168+G168)/E168) -> 54.0 % | Q168: 158. | R168: Sortavala | S168: 1 | T168: 10 | U168: 0 | V168: 0 | W168: 1 | X168: 0 | Y168: 9 | Z168: 14 | AA168: - | AB168: 79 | AC168: 1 | AD168: =PRODUCT((U168+V168)/T168) -> 0.0 %
B169: 159. | C169: Paavolan Kisa | D169: 16 | E169: 126 | F169: 0 | G169: 57 | H169: 6 | I169: 0 | J169: 63 | K169: 851 | L169: - | M169: 877 | N169: 120 | O169: =PRODUCT((F169+G169)/E169) -> 45.2 % | Q169: 159. | R169: Kiuruvesi | S169: 1 | T169: 8 | U169: 0 | V169: 0 | W169: 0 | X169: 0 | Y169: 8 | Z169: 52 | AA169: - | AB169: 187 | AC169: 0 | AD169: =PRODUCT((U169+V169)/T169) -> 0.0 %
B170: 160. | C170: Kyrön Voima | D170: 8 | E170: 112 | F170: 22 | G170: 21 | H170: 2 | I170: 7 | J170: 60 | K170: 1098 | L170: - | M170: 1515 | N170: 117 | O170: =PRODUCT((F170+G170)/E170) -> 38.4 % | Q170: 160. | R170: Lempäälä | S170: 1 | T170: 10 | U170: 0 | V170: 0 | W170: 0 | X170: 0 | Y170: 10 | Z170: 48 | AA170: - | AB170: 147 | AC170: 0 | AD170: =PRODUCT((U170+V170)/T170) -> 0.0 %
B171: 161. | C171: Kotkan Into | D171: 10 | E171: 148 | F171: 2 | G171: 50 | H171: 10 | I171: 1 | J171: 85 | K171: 945 | L171: - | M171: 1285 | N171: 117 | O171: =PRODUCT((F171+G171)/E171) -> 35.1 % | Q171: 161. | R171: Tuusniemi | S171: 1 | T171: 8 | U171: 0 | V171: 0 | W171: 0 | X171: 0 | Y171: 8 | Z171: 28 | AA171: - | AB171: 134 | AC171: 0 | AD171: =PRODUCT((U171+V171)/T171) -> 0.0 %
B172: 162. | C172: Hakunilan Kisa | D172: 4 | E172: 88 | F172: 9 | G172: 42 | H172: 3 | I172: 1 | J172: 33 | K172: 696 | L172: - | M172: 582 | N172: 115 | O172: =PRODUCT((F172+G172)/E172) -> 58.0 % | Q172: 162. | R172: Viitasaari | S172: 1 | T172: 12 | U172: 0 | V172: 0 | W172: 0 | X172: 0 | Y172: 12 | Z172: 68 | AA172: - | AB172: 179 | AC172: 0 | AD172: =PRODUCT((U172+V172)/T172) -> 0.0 %
B173: 163. | C173: Oulun Pyrintö | D173: 10 | E173: 78 | F173: 0 | G173: 55 | H173: 3 | I173: 0 | J173: 20 | K173: 723 | L173: - | M173: 330 | N173: 113 | O173: =PRODUCT((F173+G173)/E173) -> 70.5 % | Q173: 163. | R173: Ylitornio | S173: 1 | T173: 4 | U173: 0 | V173: 0 | W173: 0 | X173: 0 | Y173: 4 | Z173: 6 | AA173: - | AB173: 33 | AC173: 0 | AD173: =PRODUCT((U173+V173)/T173) -> 0.0 %
B174: 164. | C174: Suonenjoen Vasama | D174: 8 | E174: 128 | F174: 14 | G174: 26 | H174: 1 | I174: 14 | J174: 73 | K174: 905 | L174: - | M174: 1447 | N174: 109 | O174: =PRODUCT((F174+G174)/E174) -> 31.3 %
B175: 165. | C175: Raahen Vesa | D175: 15 | E175: 168 | F175: 0 | G175: 49 | H175: 8 | I175: 0 | J175: 111 | K175: 1156 | L175: - | M175: 1619 | N175: 106 | O175: =PRODUCT((F175+G175)/E175) -> 29.2 %
B176: 166. | C176: Lahden Pesä-Toverit | D176: 8 | E176: 81 | F176: 0 | G176: 48 | H176: 8 | I176: 0 | J176: 25 | K176: 597 | L176: - | M176: 451 | N176: 104 | O176: =PRODUCT((F176+G176)/E176) -> 59.3 %
B177: 167. | C177: Alavuden Pesäpeli | D177: 4 | E177: 64 | F177: 23 | G177: 12 | H177: 0 | I177: 10 | J177: 19 | K177: 798 | L177: - | M177: 644 | N177: 103 | O177: =PRODUCT((F177+G177)/E177) -> 54.7 %
B178: 168. | C178: Jyväskylän Kiri 2020 | D178: 3 | E178: 51 | F178: 27 | G178: 9 | H178: 0 | I178: 2 | J178: 13 | K178: 544 | L178: - | M178: 276 | N178: 101 | O178: =PRODUCT((F178+G178)/E178) -> 70.6 %
B179: 169. | C179: Kylävuoren Kaiku | D179: 4 | E179: 74 | F179: 21 | G179: 15 | H179: 0 | I179: 8 | J179: 30 | K179: 702 | L179: - | M179: 787 | N179: 101 | O179: =PRODUCT((F179+G179)/E179) -> 48.6 %
B180: 170. | C180: Suomussalmen Rasti | D180: 10 | E180: 130 | F180: 12 | G180: 23 | H180: 2 | I180: 16 | J180: 77 | K180: 945 | L180: - | M180: 1568 | N180: 100 | O180: =PRODUCT((F180+G180)/E180) -> 26.9 %
B181: 171. | C181: Oulun Polte | D181: 3 | E181: 56 | F181: 21 | G181: 11 | H181: 0 | I181: 10 | J181: 14 | K181: 464 | L181: - | M181: 316 | N181: 95 | O181: =PRODUCT((F181+G181)/E181) -> 57.1 %
B182: 172. | C182: Alajärven Ankkuritpesis | D182: 3 | E182: 74 | F182: 15 | G182: 20 | H182: 0 | I182: 10 | J182: 29 | K182: 474 | L182: - | M182: 547 | N182: 95 | O182: =PRODUCT((F182+G182)/E182) -> 47.3 %
B183: 173. | C183: Hamina Pesis | D183: 5 | E183: 96 | F183: 17 | G183: 16 | H183: 0 | I183: 10 | J183: 53 | K183: 596 | L183: - | M183: 910 | N183: 93 | O183: =PRODUCT((F183+G183)/E183) -> 34.4 %
B184: 174. | C184: Pieksämäen Palloilijat | D184: 12 | E184: 94 | F184: 0 | G184: 43 | H184: 6 | I184: 0 | J184: 45 | K184: 783 | L184: - | M184: 745 | N184: 92 | O184: =PRODUCT((F184+G184)/E184) -> 45.7 %
B185: 175. | C185: Simon Kiri-Siskot | D185: 5 | E185: 72 | F185: 3 | G185: 37 | H185: 4 | I185: 4 | J185: 24 | K185: 649 | L185: - | M185: 605 | N185: 91 | O185: =PRODUCT((F185+G185)/E185) -> 55.6 %
B186: 176. | C186: Ykköset | D186: 3 | E186: 58 | F186: 0 | G186: 43 | H186: 2 | I186: 0 | J186: 13 | K186: 785 | L186: - | M186: 343 | N186: 88 | O186: =PRODUCT((F186+G186)/E186) -> 74.1 %
B187: 177. | C187: Forssan Alku | D187: 9 | E187: 115 | F187: 0 | G187: 41 | H187: 6 | I187: 0 | J187: 68 | K187: 760 | L187: - | M187: 1044 | N187: 88 | O187: =PRODUCT((F187+G187)/E187) -> 35.7 %
B188: 178. | C188: Lohikosken Lohi | D188: 6 | E188: 51 | F188: 0 | G188: 43 | H188: 1 | I188: 0 | J188: 7 | K188: 627 | L188: - | M188: 271 | N188: 87 | O188: =PRODUCT((F188+G188)/E188) -> 84.3 %
B189: 179. | C189: Lestijoen Pesis | D189: 3 | E189: 54 | F189: 13 | G189: 18 | H189: 0 | I189: 12 | J189: 11 | K189: 459 | L189: - | M189: 357 | N189: 87 | O189: =PRODUCT((F189+G189)/E189) -> 57.4 %
B190: 180. | C190: Jyväskylän Veikot | D190: 7 | E190: 59 | F190: 0 | G190: 42 | H190: 2 | I190: 0 | J190: 15 | K190: 712 | L190: - | M190: 271 | N190: 86 | O190: =PRODUCT((F190+G190)/E190) -> 71.2 %
B191: 181. | C191: Nivala Pesis | D191: 6 | E191: 88 | F191: 16 | G191: 15 | H191: 0 | I191: 8 | J191: 49 | K191: 802 | L191: - | M191: 1345 | N191: 86 | O191: =PRODUCT((F191+G191)/E191) -> 35.2 %
B192: 182. | C192: Ristijärven Pyry | D192: 11 | E192: 88 | F192: 0 | G192: 38 | H192: 9 | I192: 0 | J192: 41 | K192: 540 | L192: - | M192: 622 | N192: 85 | O192: =PRODUCT((F192+G192)/E192) -> 43.2 %
B193: 183. | C193: Vampulan Urheilijat | D193: 9 | E193: 102 | F193: 0 | G193: 40 | H193: 5 | I193: 0 | J193: 57 | K193: 873 | L193: - | M193: 1200 | N193: 85 | O193: =PRODUCT((F193+G193)/E193) -> 39.2 %
B194: 184. | C194: Höytiäisten Urheilijat | D194: 8 | E194: 79 | F194: 0 | G194: 40 | H194: 4 | I194: 0 | J194: 35 | K194: 612 | L194: - | M194: 568 | N194: 84 | O194: =PRODUCT((F194+G194)/E194) -> 50.6 %
B195: 185. | C195: Palokan Urheilijat | D195: 4 | E195: 88 | F195: 0 | G195: 41 | H195: 1 | I195: 0 | J195: 46 | K195: 711 | L195: - | M195: 793 | N195: 83 | O195: =PRODUCT((F195+G195)/E195) -> 46.6 %
B196: 186. | C196: Eurajoen Veikot | D196: 5 | E196: 80 | F196: 14 | G196: 16 | H196: 1 | I196: 8 | J196: 41 | K196: 603 | L196: - | M196: 1079 | N196: 83 | O196: =PRODUCT((F196+G196)/E196) -> 37.5 %
B197: 187. | C197: Savonlinnan Pallokerho | D197: 10 | E197: 71 | F197: 0 | G197: 39 | H197: 4 | I197: 0 | J197: 28 | K197: 571 | L197: - | M197: 492 | N197: 82 | O197: =PRODUCT((F197+G197)/E197) -> 54.9 %
B198: 188. | C198: Haka-Pesis | D198: 4 | E198: 72 | F198: 16 | G198: 13 | H198: 4 | I198: 4 | J198: 35 | K198: 495 | L198: - | M198: 645 | N198: 82 | O198: =PRODUCT((F198+G198)/E198) -> 40.3 %
B199: 189. | C199: Nilsiän Nujakka | D199: 7 | E199: 95 | F199: 11 | G199: 20 | H199: 5 | I199: 0 | J199: 59 | K199: 782 | L199: - | M199: 1058 | N199: 78 | O199: =PRODUCT((F199+G199)/E199) -> 32.6 %
B200: 190. | C200: Tervakosken Pato | D200: 12 | E200: 138 | F200: 0 | G200: 37 | H200: 4 | I200: 0 | J200: 97 | K200: 945 | L200: - | M200: 1635 | N200: 78 | O200: =PRODUCT((F200+G200)/E200) -> 26.8 %
B201: 191. | C201: Pispalan Pesis | D201: 3 | E201: 46 | F201: 18 | G201: 7 | H201: 0 | I201: 8 | J201: 13 | K201: 527 | L201: - | M201: 340 | N201: 76 | O201: =PRODUCT((F201+G201)/E201) -> 54.3 %
... 376 more rows

Sheet Taulukko3
C1: SEUROJEN MARATONTAULUKKO 1931-2025
B2: 2025 | D2: K | E2: O | F2: 3P | G2: 2P | H2: T | I2: 1P | J2: 0P | L2: JUOKSUT | N2: PIST
B3: 1. | C3: MIESTEN SUPERPESIS | D3: 1142 | E3: =(F3+G3+H3+I3+J3)/2 -> 12210 | F3: 3398 | G3: 8397 | H3: 830 | I3: 1628 | J3: 10167 | K3: 160383 | L3: - | M3: 160383 | N3: 29446
B4: 3. | C4: NAISTEN SUPERPESIS | D4: 762 | E4: =(F4+G4+H4+I4+J4)/2 -> 6778 | F4: 2693 | G4: 3981 | H4: 208 | I4: 992 | J4: 5682 | K4: 113544 | L4: - | M4: 113544 | N4: 17241
B5: 4. | C5: MIESTEN YKKÖSPESIS | D5: 579 | E5: =(F5+G5+H5+I5+J5)/2 -> 6732 | F5: 2827 | G5: 3689 | H5: 212 | I5: 1452 | J5: 5284 | K5: 93143 | L5: - | M5: 93143 | N5: 17543
B6: 5. | C6: NAISTEN YKKÖSPESIS | D6: 605 | E6: =(F6+G6+H6+I6+J6)/2 -> 5242 | F6: 2732 | G6: 2462 | H6: 96 | I6: 1157 | J6: 4037 | K6: 99529 | L6: - | M6: 99529 | N6: 14366
B7: 6. | C7: MIESTEN SUOMENSARJA | D7: 3221 | E7: =(F7+G7+H7+I7+J7)/2 -> 23864 | F7: 6383 | G7: 16760 | H7: 1412 | I7: 2513 | J7: 20660 | K7: 403571 | L7: - | M7: 403571 | N7: 56585
B8: 8. | C8: NAISTEN SUOMENSARJA | D8: 1342 | E8: =(F8+G8+H8+I8+J8)/2 -> 9773 | F8: 4726 | G8: 4936 | H8: 218 | I8: 1612 | J8: 8054 | K8: 226375 | L8: - | M8: 226375 | N8: 25879
B9: 9. | C9: YHTEENSÄ | D9: =SUM(D3:D8) -> 7651 | E9: =(F9+G9+H9+I9+J9)/2 -> 64599 | F9: =SUM(F3:F8) -> 22759 | G9: =SUM(G3:G8) -> 40225 | H9: =SUM(H3:H8) -> 2976 | I9: =SUM(I3:I8) -> 9354 | J9: =SUM(J3:J8) -> 53884 | K9: =SUM(K3:K8) -> 1096545 | L9: - | M9: =SUM(M3:M8) -> 1096545 | N9: =SUM(N3:N8) -> 161060
B10: 10.
B11: 11. | C11: SEURA | D11: K | E11: O | F11: 3P | G11: 2P | H11: T | I11: 1P | J11: 0P | L11: JUOKSUT | N11: PIST | O11: V-%
B12: 13. | C12: Sotkamon Jymy | D12: 142 | E12: 2740 | F12: 775 | G12: 973 | H12: 66 | I12: 192 | J12: 734 | K12: 25517 | L12: - | M12: 17802 | N12: 4529 | O12: =PRODUCT((F12+G12)/E12) -> 63.8 %
B13: 14. | C13: Hyvinkään Tahko | D13: 154 | E13: 2959 | F13: 574 | G13: 929 | H13: 65 | I13: 238 | J13: 1153 | K13: 27376 | L13: - | M13: 25969 | N13: 3883 | O13: =PRODUCT((F13+G13)/E13) -> 50.8 %
B14: 15. | C14: Vimpelin Veto | D14: 145 | E14: 2724 | F14: 566 | G14: 898 | H14: 69 | I14: 172 | J14: 1019 | K14: 23885 | L14: - | M14: 20718 | N14: 3735 | O14: =PRODUCT((F14+G14)/E14) -> 53.7 %
B15: 17. | C15: Jyväskylän Kiri | D15: 164 | E15: 2797 | F15: 395 | G15: 1138 | H15: 85 | I15: 135 | J15: 1044 | K15: 25432 | L15: - | M15: 20698 | N15: 3681 | O15: =PRODUCT((F15+G15)/E15) -> 54.8 %
B16: 18. | C16: Seinäjoen Maila-Jussit | D16: 152 | E16: 2678 | F16: 484 | G16: 942 | H16: 75 | I16: 178 | J16: 999 | K16: 22090 | L16: - | M16: 19818 | N16: 3589 | O16: =PRODUCT((F16+G16)/E16) -> 53.2 %
B17: 19. | C17: Haminan Palloilijat | D17: 143 | E17: 2475 | F17: 383 | G17: 856 | H17: 74 | I17: 162 | J17: 1000 | K17: 21083 | L17: - | M17: 19517 | N17: 3097 | O17: =PRODUCT((F17+G17)/E17) -> 50.1 %
B18: 20. | C18: Kouvolan Pallonlyöjät | D18: 109 | E18: 2110 | F18: 437 | G18: 737 | H18: 62 | I18: 126 | J18: 748 | K18: 16804 | L18: - | M18: 14350 | N18: 2973 | O18: =PRODUCT((F18+G18)/E18) -> 55.6 %
B19: 21. | C19: Oulun Lippo | D19: 115 | E19: 2112 | F19: 370 | G19: 790 | H19: 66 | I19: 123 | J19: 763 | K19: 18500 | L19: - | M19: 15331 | N19: 2879 | O19: =PRODUCT((F19+G19)/E19) -> 54.9 %
B20: 23. | C20: Imatran Pallo-Veikot | D20: 121 | E20: 2331 | F20: 322 | G20: 821 | H20: 70 | I20: 162 | J20: 956 | K20: 18351 | L20: - | M20: 17660 | N20: 2840 | O20: =PRODUCT((F20+G20)/E20) -> 49.0 %
B21: 24. | C21: Lapuan Virkiä | D21: 99 | E21: 1699 | F21: 522 | G21: 515 | H21: 25 | I21: 153 | J21: 484 | K21: 16737 | L21: - | M21: 12567 | N21: 2774 | O21: =PRODUCT((F21+G21)/E21) -> 61.0 %
B22: 25. | C22: Pattijoen Urheilijat | D22: 89 | E22: 1856 | F22: 526 | G22: 464 | H22: 13 | I22: 206 | J22: 647 | K22: 15633 | L22: - | M22: 14378 | N22: 2725 | O22: =PRODUCT((F22+G22)/E22) -> 53.3 %
B23: 26. | C23: Kempeleen Kiri | D23: 100 | E23: 1995 | F23: 451 | G23: 544 | H23: 23 | I23: 193 | J23: 784 | K23: 16180 | L23: - | M23: 15353 | N23: 2657 | O23: =PRODUCT((F23+G23)/E23) -> 49.9 %
B24: 27. | C24: Ulvilan Pesä-Veikot | D24: 108 | E24: 2051 | F24: 299 | G24: 749 | H24: 66 | I24: 151 | J24: 786 | K24: 16867 | L24: - | M24: 16066 | N24: 2612 | O24: =PRODUCT((F24+G24)/E24) -> 51.1 %
B25: 28. | C25: Joensuun Maila | D25: 99 | E25: 1909 | F25: 427 | G25: 522 | H25: 26 | I25: 197 | J25: 737 | K25: 15166 | L25: - | M25: 15360 | N25: 2548 | O25: =PRODUCT((F25+G25)/E25) -> 49.7 %
B26: 29. | C26: Pesäkarhut | D26: 83 | E26: 1554 | F26: 517 | G26: 415 | H26: 18 | I26: 133 | J26: 471 | K26: 14305 | L26: - | M26: 10917 | N26: 2532 | O26: =PRODUCT((F26+G26)/E26) -> 60.0 %
B27: 31. | C27: Kankaanpään Maila | D27: 95 | E27: 1992 | F27: 317 | G27: 621 | H27: 38 | I27: 158 | J27: 858 | K27: 13633 | L27: - | M27: 15067 | N27: 2389 | O27: =PRODUCT((F27+G27)/E27) -> 47.1 %
B28: 32. | C28: Siilinjärven Pesis | D28: 91 | E28: 1814 | F28: 425 | G28: 424 | H28: 27 | I28: 179 | J28: 759 | K28: 15361 | L28: - | M28: 15296 | N28: 2329 | O28: =PRODUCT((F28+G28)/E28) -> 46.8 %
B29: 33. | C29: Nurmon Jymy | D29: 109 | E29: 1896 | F29: 245 | G29: 695 | H29: 52 | I29: 134 | J29: 770 | K29: 15981 | L29: - | M29: 15450 | N29: 2311 | O29: =PRODUCT((F29+G29)/E29) -> 49.6 %
B30: 34. | C30: Alajärven Ankkurit | D30: 101 | E30: 1918 | F30: 259 | G30: 643 | H30: 44 | I30: 140 | J30: 832 | K30: 14751 | L30: - | M30: 15558 | N30: 2247 | O30: =PRODUCT((F30+G30)/E30) -> 47.0 %
B31: 35. | C31: Kiteen Pallo-90 | D31: 62 | E31: 1427 | F31: 397 | G31: 362 | H31: 10 | I31: 169 | J31: 489 | K31: 10866 | L31: - | M31: 10197 | N31: 2094 | O31: =PRODUCT((F31+G31)/E31) -> 53.2 %
B32: 36. | C32: Helsingin Puna-Mustat | D32: 102 | E32: 1575 | F32: 263 | G32: 562 | H32: 48 | I32: 92 | J32: 610 | K32: 15272 | L32: - | M32: 13685 | N32: 2051 | O32: =PRODUCT((F32+G32)/E32) -> 52.4 %
B33: 37. | C33: Vihdin Pallo | D33: 80 | E33: 1387 | F33: 362 | G33: 340 | H33: 17 | I33: 128 | J33: 540 | K33: 13726 | L33: - | M33: 14097 | N33: 1911 | O33: =PRODUCT((F33+G33)/E33) -> 50.6 %
B34: 38. | C34: Vähänkyrön Viesti | D34: 79 | E34: 1457 | F34: 274 | G34: 456 | H34: 23 | I34: 122 | J34: 582 | K34: 12502 | L34: - | M34: 12549 | N34: 1879 | O34: =PRODUCT((F34+G34)/E34) -> 50.1 %
B35: 39. | C35: Loimaan Palloilijat | D35: 99 | E35: 1574 | F35: 162 | G35: 603 | H35: 56 | I35: 81 | J35: 672 | K35: 11687 | L35: - | M35: 11990 | N35: 1829 | O35: =PRODUCT((F35+G35)/E35) -> 48.6 %
B36: 40. | C36: Fera | D36: 77 | E36: 1312 | F36: 332 | G36: 335 | H36: 14 | I36: 136 | J36: 495 | K36: 10834 | L36: - | M36: 10780 | N36: 1816 | O36: =PRODUCT((F36+G36)/E36) -> 50.8 %
B37: 41. | C37: Ylivieskan Kuula | D37: 74 | E37: 1364 | F37: 274 | G37: 364 | H37: 28 | I37: 148 | J37: 550 | K37: 10549 | L37: - | M37: 11076 | N37: 1726 | O37: =PRODUCT((F37+G37)/E37) -> 46.8 %
B38: 42. | C38: Vaasan Maila | D38: 83 | E38: 1305 | F38: 259 | G38: 412 | H38: 42 | I38: 77 | J38: 515 | K38: 11136 | L38: - | M38: 10098 | N38: 1720 | O38: =PRODUCT((F38+G38)/E38) -> 51.4 %
B39: 43. | C39: Pesä Ysit | D39: 64 | E39: 1176 | F39: 327 | G39: 278 | H39: 10 | I39: 122 | J39: 439 | K39: 11313 | L39: - | M39: 10305 | N39: 1669 | O39: =PRODUCT((F39+G39)/E39) -> 51.4 %
B40: 44. | C40: Koskenkorvan Urheilijat | D40: 55 | E40: 1291 | F40: 263 | G40: 355 | H40: 7 | I40: 149 | J40: 517 | K40: 9816 | L40: - | M40: 10313 | N40: 1655 | O40: =PRODUCT((F40+G40)/E40) -> 47.9 %
B41: 46. | C41: Lahden Mailaveikot | D41: 95 | E41: 1277 | F41: 177 | G41: 502 | H41: 41 | I41: 70 | J41: 487 | K41: 13728 | L41: - | M41: 12180 | N41: 1646 | O41: =PRODUCT((F41+G41)/E41) -> 53.2 %
B42: 47. | C42: Jyväskylän Lohi | D42: 61 | E42: 1152 | F42: 239 | G42: 408 | H42: 32 | I42: 72 | J42: 401 | K42: 9325 | L42: - | M42: 7579 | N42: 1637 | O42: =PRODUCT((F42+G42)/E42) -> 56.2 %
B43: 48. | C43: Haapajärven Pesä-Kiilat | D43: 67 | E43: 1224 | F43: 316 | G43: 232 | H43: 2 | I43: 161 | J43: 513 | K43: 10794 | L43: - | M43: 11723 | N43: 1575 | O43: =PRODUCT((F43+G43)/E43) -> 44.8 %
B44: 50. | C44: Jyväskylän Kirittäret | D44: 44 | E44: 805 | F44: 392 | G44: 149 | H44: 0 | I44: 78 | J44: 186 | K44: 8160 | L44: - | M44: 5486 | N44: 1552 | O44: =PRODUCT((F44+G44)/E44) -> 67.2 %
B45: 51. | C45: Viinijärven Urheilijat | D45: 77 | E45: 1262 | F45: 212 | G45: 382 | H45: 16 | I45: 112 | J45: 540 | K45: 11666 | L45: - | M45: 11634 | N45: 1528 | O45: =PRODUCT((F45+G45)/E45) -> 47.1 %
B46: 52. | C46: Muhoksen Pallo-Salamat | D46: 57 | E46: 1090 | F46: 224 | G46: 352 | H46: 24 | I46: 71 | J46: 419 | K46: 8829 | L46: - | M46: 7948 | N46: 1471 | O46: =PRODUCT((F46+G46)/E46) -> 52.8 %
B47: 53. | C47: Roihu | D47: 72 | E47: 1175 | F47: 222 | G47: 353 | H47: 16 | I47: 83 | J47: 501 | K47: 12474 | L47: - | M47: 11544 | N47: 1471 | O47: =PRODUCT((F47+G47)/E47) -> 48.9 %
B48: 54. | C48: Kajaanin Pallokerho | D48: 72 | E48: 1212 | F48: 239 | G48: 315 | H48: 14 | I48: 106 | J48: 536 | K48: 11019 | L48: - | M48: 11737 | N48: 1467 | O48: =PRODUCT((F48+G48)/E48) -> 45.7 %
B49: 55. | C49: Kauhajoen Karhu | D49: 88 | E49: 1327 | F49: 135 | G49: 477 | H49: 42 | I49: 61 | J49: 614 | K49: 11429 | L49: - | M49: 11222 | N49: 1460 | O49: =PRODUCT((F49+G49)/E49) -> 46.1 %
B50: 56. | C50: Jokioisten Koetus | D50: 58 | E50: 1096 | F50: 222 | G50: 320 | H50: 23 | I50: 86 | J50: 445 | K50: 9019 | L50: - | M50: 8211 | N50: 1415 | O50: =PRODUCT((F50+G50)/E50) -> 49.5 %
B51: 57. | C51: Riihimäen Pallonlyöjät | D51: 89 | E51: 1300 | F51: 17 | G51: 626 | H51: 75 | I51: 10 | J51: 572 | K51: 11136 | L51: - | M51: 10179 | N51: 1388 | O51: =PRODUCT((F51+G51)/E51) -> 49.5 %
B52: 58. | C52: Ikaalisten Tarmo | D52: 62 | E52: 1136 | F52: 128 | G52: 453 | H52: 28 | I52: 69 | J52: 458 | K52: 10956 | L52: - | M52: 9737 | N52: 1387 | O52: =PRODUCT((F52+G52)/E52) -> 51.1 %
B53: 59. | C53: Kuusankosken Puhti | D53: 66 | E53: 1006 | F53: 176 | G53: 375 | H53: 38 | I53: 68 | J53: 349 | K53: 9871 | L53: - | M53: 7828 | N53: 1384 | O53: =PRODUCT((F53+G53)/E53) -> 54.8 %
B54: 60. | C54: Puurtilan Kisa-Pojat | D54: 76 | E54: 1246 | F54: 113 | G54: 470 | H54: 32 | I54: 55 | J54: 574 | K54: 10407 | L54: - | M54: 10741 | N54: 1370 | O54: =PRODUCT((F54+G54)/E54) -> 46.8 %
B55: 61. | C55: Turku-Pesis | D55: 86 | E55: 1255 | F55: 189 | G55: 346 | H55: 32 | I55: 81 | J55: 609 | K55: 10290 | L55: 0 | M55: 11953 | N55: 1368 | O55: =PRODUCT((F55+G55)/E55) -> 42.6 %
B56: 62. | C56: Tyrnävän Tempaus | D56: 61 | E56: 1055 | F56: 198 | G56: 283 | H56: 21 | I56: 76 | J56: 477 | K56: 8528 | L56: - | M56: 9122 | N56: 1257 | O56: =PRODUCT((F56+G56)/E56) -> 45.6 %
B57: 63. | C57: Ilmajoen Kisailijat | D57: 56 | E57: 833 | F57: 125 | G57: 335 | H57: 29 | I57: 56 | J57: 288 | K57: 7774 | L57: - | M57: 6551 | N57: 1130 | O57: =PRODUCT((F57+G57)/E57) -> 55.2 %
B58: 64. | C58: Hämeenlinnan Paukku | D58: 53 | E58: 860 | F58: 218 | G58: 191 | H58: 5 | I58: 84 | J58: 362 | K58: 8982 | L58: - | M58: 9250 | N58: 1125 | O58: =PRODUCT((F58+G58)/E58) -> 47.6 %
B59: 65. | C59: Iin Urheilijat | D59: 45 | E59: 780 | F59: 136 | G59: 275 | H59: 21 | I59: 36 | J59: 312 | K59: 6457 | L59: - | M59: 5944 | N59: 1015 | O59: =PRODUCT((F59+G59)/E59) -> 52.7 %
B60: 66. | C60: Simon Kiri | D60: 53 | E60: 841 | F60: 150 | G60: 206 | H60: 10 | I60: 82 | J60: 393 | K60: 6976 | L60: - | M60: 8212 | N60: 954 | O60: =PRODUCT((F60+G60)/E60) -> 42.3 %
B61: 68. | C61: Ylihärmän Pesis-Junkkarit | D61: 39 | E61: 728 | F61: 198 | G61: 121 | H61: 0 | I61: 94 | J61: 315 | K61: 6275 | L61: - | M61: 6782 | N61: 930 | O61: =PRODUCT((F61+G61)/E61) -> 43.8 %
B62: 69. | C62: Peräseinäjoen Toive | D62: 35 | E62: 726 | F62: 164 | G62: 177 | H62: 7 | I62: 62 | J62: 316 | K62: 6113 | L62: - | M62: 6565 | N62: 915 | O62: =PRODUCT((F62+G62)/E62) -> 47.0 %
B63: 70. | C63: Reisjärven Pilke | D63: 48 | E63: 780 | F63: 157 | G63: 190 | H63: 12 | I63: 52 | J63: 369 | K63: 8235 | L63: 0 | M63: 8217 | N63: 915 | O63: =PRODUCT((F63+G63)/E63) -> 44.5 %
B64: 71. | C64: Oulunsalon Vasama | D64: 36 | E64: 596 | F64: 194 | G64: 127 | H64: 4 | I64: 61 | J64: 210 | K64: 5856 | L64: - | M64: 5606 | N64: 901 | O64: =PRODUCT((F64+G64)/E64) -> 53.9 %
B65: 72. | C65: Halsuan Toivo | D65: 42 | E65: 750 | F65: 40 | G65: 347 | H65: 33 | I65: 27 | J65: 303 | K65: 6291 | L65: - | M65: 5403 | N65: 874 | O65: =PRODUCT((F65+G65)/E65) -> 51.6 %
B66: 73. | C66: Työväen Maila-Pojat | D66: 57 | E66: 713 | F66: 29 | G66: 364 | H66: 37 | I66: 9 | J66: 274 | K66: 6764 | L66: 0 | M66: 5153 | N66: 861 | O66: =PRODUCT((F66+G66)/E66) -> 55.1 %
B67: 75. | C67: Pöytyän Urheilijat | D67: 31 | E67: 561 | F67: 180 | G67: 115 | H67: 8 | I67: 79 | J67: 179 | K67: 5249 | L67: - | M67: 4576 | N67: 857 | O67: =PRODUCT((F67+G67)/E67) -> 52.6 %
B68: 76. | C68: Hongikon Nuorisoseuran Urheilijat | D68: 43 | E68: 810 | F68: 0 | G68: 388 | H68: 51 | I68: 0 | J68: 371 | K68: 6845 | L68: - | M68: 6317 | N68: 827 | O68: =PRODUCT((F68+G68)/E68) -> 47.9 %
B69: 77. | C69: Manse PP Edustus | D69: 16 | E69: 424 | F69: 191 | G69: 93 | H69: 0 | I69: 45 | J69: 95 | K69: 3488 | L69: - | M69: 1912 | N69: 804 | O69: =PRODUCT((F69+G69)/E69) -> 67.0 %
B70: 78. | C70: Juvan Pallo | D70: 37 | E70: 690 | F70: 85 | G70: 237 | H70: 24 | I70: 28 | J70: 316 | K70: 5183 | L70: - | M70: 5403 | N70: 781 | O70: =PRODUCT((F70+G70)/E70) -> 46.7 %
B71: 79. | C71: Puijon Pesis | D71: 27 | E71: 537 | F71: 148 | G71: 127 | H71: 0 | I71: 78 | J71: 184 | K71: 4445 | L71: - | M71: 4180 | N71: 776 | O71: =PRODUCT((F71+G71)/E71) -> 51.2 %
B72: 80. | C72: Lammin Luja | D72: 41 | E72: 731 | F72: 44 | G72: 281 | H72: 30 | I72: 22 | J72: 354 | K72: 6113 | L72: - | M72: 7130 | N72: 746 | O72: =PRODUCT((F72+G72)/E72) -> 44.5 %
B73: 81. | C73: Mansen Pesäpallo | D73: 36 | E73: 676 | F73: 60 | G73: 260 | H73: 12 | I73: 20 | J73: 324 | K73: 6540 | L73: - | M73: 6747 | N73: 732 | O73: =PRODUCT((F73+G73)/E73) -> 47.3 %
B74: 83. | C74: Ylihärmän Junkkarit | D74: 44 | E74: 670 | F74: 36 | G74: 278 | H74: 36 | I74: 16 | J74: 304 | K74: 5099 | L74: - | M74: 5135 | N74: 716 | O74: =PRODUCT((F74+G74)/E74) -> 46.9 %
B75: 84. | C75: Mynämäen Vesa | D75: 38 | E75: 672 | F75: 116 | G75: 122 | H75: 13 | I75: 78 | J75: 343 | K75: 5270 | L75: - | M75: 7241 | N75: 683 | O75: =PRODUCT((F75+G75)/E75) -> 35.4 %
B76: 86. | C76: Oulun Lippo Juniorit | D76: 23 | E76: 397 | F76: 145 | G76: 98 | H76: 0 | I76: 43 | J76: 111 | K76: 4054 | L76: - | M76: 3228 | N76: 674 | O76: =PRODUCT((F76+G76)/E76) -> 61.2 %
B77: 87. | C77: Kannuksen Ura | D77: 34 | E77: 556 | F77: 131 | G77: 90 | H77: 2 | I77: 59 | J77: 274 | K77: 4705 | L77: - | M77: 5781 | N77: 634 | O77: =PRODUCT((F77+G77)/E77) -> 39.7 %
B78: 88. | C78: Vetelin Urheiljat | D78: 29 | E78: 482 | F78: 94 | G78: 152 | H78: 20 | I78: 23 | J78: 193 | K78: 4043 | L78: - | M78: 3728 | N78: 629 | O78: =PRODUCT((F78+G78)/E78) -> 51.0 %
B79: 89. | C79: Ilomantsin Urheilijat | D79: 43 | E79: 634 | F79: 3 | G79: 291 | H79: 36 | I79: 2 | J79: 302 | K79: 5886 | L79: - | M79: 5721 | N79: 629 | O79: =PRODUCT((F79+G79)/E79) -> 46.4 %
B80: 90. | C80: Laitilan Jyske | D80: 25 | E80: 401 | F80: 137 | G80: 78 | H80: 0 | I80: 50 | J80: 136 | K80: 4417 | L80: - | M80: 3952 | N80: 616 | O80: =PRODUCT((F80+G80)/E80) -> 53.6 %
B81: 91. | C81: Helsingin Pallo-Toverit | D81: 53 | E81: 529 | F81: 0 | G81: 293 | H81: 19 | I81: 1 | J81: 216 | K81: 4817 | L81: - | M81: 3635 | N81: 606 | O81: =PRODUCT((F81+G81)/E81) -> 55.4 %
B82: 92. | C82: Köyliön Lallit | D82: 22 | E82: 380 | F82: 148 | G82: 57 | H82: 0 | I82: 41 | J82: 134 | K82: 3918 | L82: - | M82: 3128 | N82: 599 | O82: =PRODUCT((F82+G82)/E82) -> 53.9 %
B83: 93. | C83: Kiteen Urheilijat | D83: 30 | E83: 564 | F83: 0 | G83: 282 | H83: 26 | I83: 0 | J83: 256 | K83: 4537 | L83: - | M83: 4288 | N83: 590 | O83: =PRODUCT((F83+G83)/E83) -> 50.0 %
B84: 94. | C84: Hämeenkyrön Räpsä | D84: 23 | E84: 381 | F84: 129 | G84: 76 | H84: 1 | I84: 41 | J84: 134 | K84: 3922 | L84: - | M84: 3313 | N84: 581 | O84: =PRODUCT((F84+G84)/E84) -> 53.8 %
B85: 95. | C85: Kuopion Kelta-Mustat | D85: 40 | E85: 504 | F85: 54 | G85: 177 | H85: 23 | I85: 21 | J85: 229 | K85: 4330 | L85: - | M85: 4628 | N85: 560 | O85: =PRODUCT((F85+G85)/E85) -> 45.8 %
B86: 97. | C86: Loimaan Palloilijat Junioripesis | D86: 22 | E86: 382 | F86: 124 | G86: 70 | H86: 0 | I86: 47 | J86: 141 | K86: 3422 | L86: - | M86: 3115 | N86: 559 | O86: =PRODUCT((F86+G86)/E86) -> 50.8 %
B87: 98. | C87: Jyväskylän Valo | D87: 30 | E87: 502 | F87: 114 | G87: 82 | H87: 1 | I87: 48 | J87: 257 | K87: 4086 | L87: - | M87: 5383 | N87: 555 | O87: =PRODUCT((F87+G87)/E87) -> 39.0 %
B88: 99. | C88: Manse PP | D88: 23 | E88: 399 | F88: 119 | G88: 66 | H88: 0 | I88: 42 | J88: 172 | K88: 3768 | L88: - | M88: 4057 | N88: 531 | O88: =PRODUCT((F88+G88)/E88) -> 46.4 %
B89: 100. | C89: Järvenpään Pesis | D89: 17 | E89: 345 | F89: 112 | G89: 70 | H89: 0 | I89: 45 | J89: 118 | K89: 3239 | L89: - | M89: 2935 | N89: 521 | O89: =PRODUCT((F89+G89)/E89) -> 52.8 %
B90: 102. | C90: Kiimingin Urheilijat | D90: 16 | E90: 286 | F90: 116 | G90: 55 | H90: 2 | I90: 31 | J90: 82 | K90: 2635 | L90: - | M90: 2000 | N90: 491 | O90: =PRODUCT((F90+G90)/E90) -> 59.8 %
B91: 103. | C91: Mäntyharjun Virkistys | D91: 22 | E91: 404 | F91: 73 | G91: 119 | H91: 7 | I91: 25 | J91: 180 | K91: 3382 | L91: - | M91: 3858 | N91: 489 | O91: =PRODUCT((F91+G91)/E91) -> 47.5 %
B92: 104. | C92: Lohjan Kisa-Veikot | D92: 29 | E92: 488 | F92: 9 | G92: 217 | H92: 15 | I92: 8 | J92: 239 | K92: 4336 | L92: - | M92: 4752 | N92: 484 | O92: =PRODUCT((F92+G92)/E92) -> 46.3 %
B93: 106. | C93: Saaren Urheilijat | D93: 23 | E93: 442 | F93: 22 | G93: 195 | H93: 17 | I93: 10 | J93: 198 | K93: 3442 | L93: - | M93: 3351 | N93: 483 | O93: =PRODUCT((F93+G93)/E93) -> 49.1 %
B94: 108. | C94: Puijon Pesäpallo | D94: 12 | E94: 297 | F94: 112 | G94: 51 | H94: 0 | I94: 42 | J94: 92 | K94: 2245 | L94: - | M94: 1729 | N94: 480 | O94: =PRODUCT((F94+G94)/E94) -> 54.9 %
B95: 109. | C95: Ylistaron Kilpa-Veljet | D95: 24 | E95: 363 | F95: 95 | G95: 69 | H95: 1 | I95: 49 | J95: 149 | K95: 3076 | L95: - | M95: 3399 | N95: 473 | O95: =PRODUCT((F95+G95)/E95) -> 45.2 %
B96: 110. | C96: Keravan Pallokerho | D96: 36 | E96: 506 | F96: 10 | G96: 203 | H96: 18 | I96: 12 | J96: 263 | K96: 4964 | L96: - | M96: 5916 | N96: 466 | O96: =PRODUCT((F96+G96)/E96) -> 42.1 %
B97: 111. | C97: Kokemäen Kova-Väki | D97: 28 | E97: 435 | F97: 62 | G97: 116 | H97: 6 | I97: 39 | J97: 212 | K97: 4343 | L97: - | M97: 5064 | N97: 463 | O97: =PRODUCT((F97+G97)/E97) -> 40.9 %
B98: 112. | C98: Ylöjärven Pallo | D98: 27 | E98: 426 | F98: 53 | G98: 130 | H98: 13 | I98: 25 | J98: 205 | K98: 3905 | L98: - | M98: 4377 | N98: 457 | O98: =PRODUCT((F98+G98)/E98) -> 43.0 %
B99: 113. | C99: Seinäjoen JymyJussit | D99: 12 | E99: 340 | F99: 85 | G99: 69 | H99: 0 | I99: 54 | J99: 132 | K99: 2513 | L99: - | M99: 2722 | N99: 447 | O99: =PRODUCT((F99+G99)/E99) -> 45.3 %
B100: 115. | C100: Oulun Lippo Pesis | D100: 14 | E100: 306 | F100: 83 | G100: 75 | H100: 0 | I100: 40 | J100: 108 | K100: 2613 | L100: - | M100: 2587 | N100: 439 | O100: =PRODUCT((F100+G100)/E100) -> 51.6 %
B101: 116. | C101: Tohmajärven Urheilijat | D101: 21 | E101: 400 | F101: 0 | G101: 204 | H101: 25 | I101: 0 | J101: 171 | K101: 3134 | L101: - | M101: 2790 | N101: 433 | O101: =PRODUCT((F101+G101)/E101) -> 51.0 %
B102: 118. | C102: Outokummun Partio | D102: 37 | E102: 445 | F102: 0 | G102: 204 | H102: 19 | I102: 0 | J102: 222 | K102: 3677 | L102: - | M102: 3983 | N102: 427 | O102: =PRODUCT((F102+G102)/E102) -> 45.8 %
B103: 119. | C103: Jalasjärven Jalas | D103: 16 | E103: 300 | F103: 84 | G103: 64 | H103: 0 | I103: 42 | J103: 110 | K103: 2652 | L103: - | M103: 2681 | N103: 422 | O103: =PRODUCT((F103+G103)/E103) -> 49.3 %
B104: 121. | C104: Janakkalan Jana | D104: 32 | E104: 507 | F104: 40 | G104: 131 | H104: 8 | I104: 32 | J104: 296 | K104: 3487 | L104: - | M104: 5440 | N104: 422 | O104: =PRODUCT((F104+G104)/E104) -> 33.7 %
B105: 123. | C105: Kuortaneen Kunto | D105: 23 | E105: 418 | F105: 40 | G105: 132 | H105: 11 | I105: 20 | J105: 215 | K105: 3166 | L105: - | M105: 3867 | N105: 415 | O105: =PRODUCT((F105+G105)/E105) -> 41.1 %
B106: 124. | C106: Kymi-Pesis | D106: 19 | E106: 293 | F106: 92 | G106: 50 | H106: 3 | I106: 35 | J106: 113 | K106: 3252 | L106: - | M106: 3020 | N106: 414 | O106: =PRODUCT((F106+G106)/E106) -> 48.5 %
B107: 125. | C107: Kinnarin Pesis 2006 | D107: 16 | E107: 262 | F107: 96 | G107: 50 | H107: 2 | I107: 20 | J107: 94 | K107: 2902 | L107: - | M107: 2456 | N107: 410 | O107: =PRODUCT((F107+G107)/E107) -> 55.7 %
B108: 126. | C108: Toholammin Urheilijat | D108: 29 | E108: 396 | F108: 50 | G108: 108 | H108: 18 | I108: 20 | J108: 200 | K108: 3578 | L108: - | M108: 4309 | N108: 404 | O108: =PRODUCT((F108+G108)/E108) -> 39.9 %
B109: 127. | C109: Lievestuoreen Kisa | D109: 19 | E109: 326 | F109: 74 | G109: 64 | H109: 7 | I109: 39 | J109: 142 | K109: 2328 | L109: - | M109: 2702 | N109: 396 | O109: =PRODUCT((F109+G109)/E109) -> 42.3 %
B110: 128. | C110: Sievin Sisu | D110: 28 | E110: 386 | F110: 57 | G110: 88 | H110: 9 | I110: 36 | J110: 196 | K110: 3056 | L110: - | M110: 3904 | N110: 392 | O110: =PRODUCT((F110+G110)/E110) -> 37.6 %
B111: 129. | C111: Vuokatin Veto | D111: 20 | E111: 260 | F111: 81 | G111: 49 | H111: 0 | I111: 32 | J111: 98 | K111: 2490 | L111: - | M111: 2325 | N111: 373 | O111: =PRODUCT((F111+G111)/E111) -> 50.0 %
B112: 131. | C112: Nurmeksen Sepot | D112: 28 | E112: 383 | F112: 23 | G112: 138 | H112: 9 | I112: 16 | J112: 197 | K112: 3096 | L112: - | M112: 3531 | N112: 370 | O112: =PRODUCT((F112+G112)/E112) -> 42.0 %
B113: 132. | C113: Lappajärven Veikot | D113: 21 | E113: 390 | F113: 48 | G113: 87 | H113: 6 | I113: 38 | J113: 211 | K113: 2740 | L113: - | M113: 4080 | N113: 362 | O113: =PRODUCT((F113+G113)/E113) -> 34.6 %
B114: 133. | C114: PeTo-Jussit | D114: 12 | E114: 230 | F114: 77 | G114: 49 | H114: 0 | I114: 27 | J114: 77 | K114: 1998 | L114: - | M114: 1880 | N114: 356 | O114: =PRODUCT((F114+G114)/E114) -> 54.8 %
B115: 134. | C115: Siilinjärven Ponnistus | D115: 28 | E115: 363 | F115: 0 | G115: 165 | H115: 22 | I115: 0 | J115: 176 | K115: 2464 | L115: - | M115: 2613 | N115: 352 | O115: =PRODUCT((F115+G115)/E115) -> 45.5 %
